Workbook

Sheet מסך פתיחה
C3: =CONCATENATE("דוח איכות סביבה ",MID([1]Count!B2,8,4)) -> דוח איכות סביבה הפקה
C4: =[1]ForbDraft!C7 -> אור - יהודה - מי שקמה | E4: =[1]Count!B2 -> תאריך הפקה 27/02/2023 14:57:15
C6: דיווחי דיגומים, חריגים ואסורים
C7: תקופת ביצוע הדיגומים | D7: =[1]Count!F4 -> מ01/01/2022 00:00:00עד01/01/2023 00:00:00
C9: דיווח כספי שנתי
C10: תקופת חיובי חריגים | D10: =[1]ExcCharge!F4 -> מ24/05/2022 00:00:00עד21/02/2023 23:59:59
C11: תקופת חיובי אסורים | D11: =[1]ForbCharge!F4 -> מ23/05/2022 00:00:00עד21/02/2023 23:59:59
C12: =IF(D10=D11,"","תקופות החיוב של חריגים ואסורים אינן זהות. עלולים להיות נתוני חיוב חסרים בדיווח הכספי") -> תקופות החיוב של חריגים ואסורים אינן זהות. עלולים להיות נתוני חיוב חסרים בדיווח הכספי
C13: מומלץ לשמור עותק לגיבוי לפני ניקוי הנוסחאות

Sheet דיווח דיגומים
C1: ='[1]מסך פתיחה'!$C$3 -> דוח איכות סביבה הפקה | D1: דיווח דיגומים | E1: ='[1]מסך פתיחה'!D7 -> מ01/01/2022 00:00:00עד01/01/2023 00:00:00 | I1: =#REF! -> 
C2: ='[1]מסך פתיחה'!$C$4 -> אור - יהודה - מי שקמה
B4: אקודן | C4: שם מפעל | D4: כתובת המפעל | E4: מגזר תעשייתי לפי התוספת השלישית | F4: אופן הדיגום (חטף/מורכב) | G4: כמות מים/שפכים שנתית (מ"ק) | H4: מספר בדיקות שנתי מתוכנן עפ"י תכנית הדיגום | I4: מספר בדיקות בפועל | J4: האם יש הסכם להזרמת שפכים חריגים כן/לא | K4: מספר דיגומים שנמצאו שפכים חריגים | L4: מספר דיגומים שנמצאו שפכים אסורים | M4: מספר הדיגומים שלא נמצאו חריגות (אסורים או חריגים) | N4: הערות
B5: =IF(AND(B3<>"",ISNUMBER(B3),B4=""),"סך הכל",IF([1]Planning!A8="","",[1]Planning!A8)) -> 8146 | C5: =IFERROR(_xlfn.IFS(B5="סך הכל",[1]Summary!$B$6,[1]Planning!C8<>"",[1]Planning!C8),"") -> אולמי אקסייט (גני סאם) | D5: =IFERROR(VLOOKUP(B5,[1]Address!B:G,5,FALSE),"") -> החרושת 6, אור יהודה | E5: =IFERROR(VLOOKUP(B5,[1]Address!B:L,11,FALSE),"") -> אולמות אירועים, מסעדות, קניונים | F5: =IF(ISNUMBER(B5),"חטף","") -> חטף | G5: =IF(B5="סך הכל",[1]Summary!$B$7,IF(F5="","",IF(VLOOKUP(B5,[1]WQ_UnitID!B:C,2,FALSE)=0,"",VLOOKUP(B5,[1]WQ_UnitID!B:C,2,FALSE)))) ->  | H5: 0 | I5: =IF(B5="סך הכל",[1]Summary!$B$9,IF(F5="","",IFERROR(VLOOKUP(B5,[1]Count!A:B,2,FALSE),0))) -> 0 | J5: =IF(F5="","",(IF(ISNUMBER(MATCH(B5,[1]ExcPermit!$H$8:$H$1000,0)),"כן","לא"))) -> לא | K5: =IF(B5="סך הכל",[1]Summary!$B$10,IF(F5="","",IFERROR(VLOOKUP(B5,[1]Count!A:J,8,FALSE),0))) -> 0 | L5: =IF(B5="סך הכל",[1]Summary!$B$11,IF(F5="","",IFERROR(VLOOKUP(B5,[1]Count!A:J,9,FALSE),0))) -> 0 | M5: =IF(B5="סך הכל",[1]Summary!$B$12,IF(F5="","",IFERROR(VLOOKUP(B5,[1]Count!A:J,10,FALSE),0))) -> 0 | N5: אין אפשרות לדגום. | O5: =IFERROR(VLOOKUP(B5,[1]Comments!A:B,2,FALSE),"") -> 0
B6: =IF(AND(B4<>"",ISNUMBER(B4),B5=""),"סך הכל",IF([1]Planning!A9="","",[1]Planning!A9)) -> 30305 | C6: =IFERROR(_xlfn.IFS(B6="סך הכל",[1]Summary!$B$6,[1]Planning!C9<>"",[1]Planning!C9),"") -> אולמי דניאל | D6: =IFERROR(VLOOKUP(B6,[1]Address!B:G,5,FALSE),"") -> הסדנא 14, אור יהודה | E6: =IFERROR(VLOOKUP(B6,[1]Address!B:L,11,FALSE),"") -> אולמות אירועים, מסעדות, קניונים | F6: חטף | G6: =IF(B6="סך הכל",[1]Summary!$B$7,IF(F6="","",IF(VLOOKUP(B6,[1]WQ_UnitID!B:C,2,FALSE)=0,"",VLOOKUP(B6,[1]WQ_UnitID!B:C,2,FALSE)))) -> 2038.006799 | H6: 4 | I6: =IF(B6="סך הכל",[1]Summary!$B$9,IF(F6="","",IFERROR(VLOOKUP(B6,[1]Count!A:B,2,FALSE),0))) -> 4 | J6: =IF(F6="","",(IF(ISNUMBER(MATCH(B6,[1]ExcPermit!$H$8:$H$1000,0)),"כן","לא"))) -> לא | K6: =IF(B6="סך הכל",[1]Summary!$B$10,IF(F6="","",IFERROR(VLOOKUP(B6,[1]Count!A:J,8,FALSE),0))) -> 4 | L6: =IF(B6="סך הכל",[1]Summary!$B$11,IF(F6="","",IFERROR(VLOOKUP(B6,[1]Count!A:J,9,FALSE),0))) -> 3 | M6: =IF(B6="סך הכל",[1]Summary!$B$12,IF(F6="","",IFERROR(VLOOKUP(B6,[1]Count!A:J,10,FALSE),0))) -> 0 | N6: =IF(O6=0,"",O6) -> שעת דיגום 10;;; | O6: =IFERROR(VLOOKUP(B6,[1]Comments!A:B,2,FALSE),"") -> שעת דיגום 10;;;
B7: =IF(AND(B5<>"",ISNUMBER(B5),B6=""),"סך הכל",IF([1]Planning!A10="","",[1]Planning!A10)) -> 32580 | C7: =IFERROR(_xlfn.IFS(B7="סך הכל",[1]Summary!$B$6,[1]Planning!C10<>"",[1]Planning!C10),"") -> אטליז שרעבי | D7: =IFERROR(VLOOKUP(B7,[1]Address!B:G,5,FALSE),"") -> היצירה 6, אור יהודה | E7: =IFERROR(VLOOKUP(B7,[1]Address!B:L,11,FALSE),"") -> משחטות, בתי מטבחיים, בתי נחירה, עיבוד דגים | F7: חטף | G7: =IF(B7="סך הכל",[1]Summary!$B$7,IF(F7="","",IF(VLOOKUP(B7,[1]WQ_UnitID!B:C,2,FALSE)=0,"",VLOOKUP(B7,[1]WQ_UnitID!B:C,2,FALSE)))) -> 70.00487045 | H7: 4 | I7: =IF(B7="סך הכל",[1]Summary!$B$9,IF(F7="","",IFERROR(VLOOKUP(B7,[1]Count!A:B,2,FALSE),0))) -> 4 | J7: =IF(F7="","",(IF(ISNUMBER(MATCH(B7,[1]ExcPermit!$H$8:$H$1000,0)),"כן","לא"))) -> לא | K7: =IF(B7="סך הכל",[1]Summary!$B$10,IF(F7="","",IFERROR(VLOOKUP(B7,[1]Count!A:J,8,FALSE),0))) -> 1 | L7: =IF(B7="סך הכל",[1]Summary!$B$11,IF(F7="","",IFERROR(VLOOKUP(B7,[1]Count!A:J,9,FALSE),0))) -> 1 | M7: =IF(B7="סך הכל",[1]Summary!$B$12,IF(F7="","",IFERROR(VLOOKUP(B7,[1]Count!A:J,10,FALSE),0))) -> 3 | O7: =IFERROR(VLOOKUP(B7,[1]Comments!A:B,2,FALSE),"") -> ;;;
B8: =IF(AND(B6<>"",ISNUMBER(B6),B7=""),"סך הכל",IF([1]Planning!A11="","",[1]Planning!A11)) -> 8272 | C8: =IFERROR(_xlfn.IFS(B8="סך הכל",[1]Summary!$B$6,[1]Planning!C11<>"",[1]Planning!C11),"") -> אצל התורכי | D8: =IFERROR(VLOOKUP(B8,[1]Address!B:G,5,FALSE),"") -> הראשונים 2, אור יהודה | E8: =IFERROR(VLOOKUP(B8,[1]Address!B:L,11,FALSE),"") -> אולמות אירועים, מסעדות, קניונים | F8: חטף | G8: =IF(B8="סך הכל",[1]Summary!$B$7,IF(F8="","",IF(VLOOKUP(B8,[1]WQ_UnitID!B:C,2,FALSE)=0,"",VLOOKUP(B8,[1]WQ_UnitID!B:C,2,FALSE)))) -> 425.1191798 | H8: 4 | I8: =IF(B8="סך הכל",[1]Summary!$B$9,IF(F8="","",IFERROR(VLOOKUP(B8,[1]Count!A:B,2,FALSE),0))) -> 4 | J8: =IF(F8="","",(IF(ISNUMBER(MATCH(B8,[1]ExcPermit!$H$8:$H$1000,0)),"כן","לא"))) -> לא | K8: =IF(B8="סך הכל",[1]Summary!$B$10,IF(F8="","",IFERROR(VLOOKUP(B8,[1]Count!A:J,8,FALSE),0))) -> 3 | L8: =IF(B8="סך הכל",[1]Summary!$B$11,IF(F8="","",IFERROR(VLOOKUP(B8,[1]Count!A:J,9,FALSE),0))) -> 2 | M8: =IF(B8="סך הכל",[1]Summary!$B$12,IF(F8="","",IFERROR(VLOOKUP(B8,[1]Count!A:J,10,FALSE),0))) -> 0 | N8: לא ניתן לקחת דיגום בגלל עבודות תשתיות באזור המסעדה;; | O8: =IFERROR(VLOOKUP(B8,[1]Comments!A:B,2,FALSE),"") -> לא ניתן לקחת דיגום בגלל עבודות תשתיות באזור המסעדה;;
B9: =IF(AND(B7<>"",ISNUMBER(B7),B8=""),"סך הכל",IF([1]Planning!A12="","",[1]Planning!A12)) -> 30030 | C9: =IFERROR(_xlfn.IFS(B9="סך הכל",[1]Summary!$B$6,[1]Planning!C12<>"",[1]Planning!C12),"") -> בית סיעודי - צומת סביון | D9: =IFERROR(VLOOKUP(B9,[1]Address!B:G,5,FALSE),"") -> סמטת האירוס 9, אור יהודה | E9: =IFERROR(VLOOKUP(B9,[1]Address!B:L,11,FALSE),"") -> בתי מלון | F9: חטף | G9: =IF(B9="סך הכל",[1]Summary!$B$7,IF(F9="","",IF(VLOOKUP(B9,[1]WQ_UnitID!B:C,2,FALSE)=0,"",VLOOKUP(B9,[1]WQ_UnitID!B:C,2,FALSE)))) -> 2165.116711 | H9: 4 | I9: =IF(B9="סך הכל",[1]Summary!$B$9,IF(F9="","",IFERROR(VLOOKUP(B9,[1]Count!A:B,2,FALSE),0))) -> 4 | J9: =IF(F9="","",(IF(ISNUMBER(MATCH(B9,[1]ExcPermit!$H$8:$H$1000,0)),"כן","לא"))) -> לא | K9: =IF(B9="סך הכל",[1]Summary!$B$10,IF(F9="","",IFERROR(VLOOKUP(B9,[1]Count!A:J,8,FALSE),0))) -> 1 | L9: =IF(B9="סך הכל",[1]Summary!$B$11,IF(F9="","",IFERROR(VLOOKUP(B9,[1]Count!A:J,9,FALSE),0))) -> 0 | M9: =IF(B9="סך הכל",[1]Summary!$B$12,IF(F9="","",IFERROR(VLOOKUP(B9,[1]Count!A:J,10,FALSE),0))) -> 3 | N9: ;שעת דיגום 10:30;; | O9: =IFERROR(VLOOKUP(B9,[1]Comments!A:B,2,FALSE),"") -> ;שעת דיגום 10:30;;
B10: =IF(AND(B8<>"",ISNUMBER(B8),B9=""),"סך הכל",IF([1]Planning!A13="","",[1]Planning!A13)) -> 38345 | C10: =IFERROR(_xlfn.IFS(B10="סך הכל",[1]Summary!$B$6,[1]Planning!C13<>"",[1]Planning!C13),"") -> דור אנרגיה בישר | D10: =IFERROR(VLOOKUP(B10,[1]Address!B:G,5,FALSE),"") -> המסגר 8, אור יהודה | E10: =IFERROR(VLOOKUP(B10,[1]Address!B:L,11,FALSE),"") -> תחנות תדלוק | F10: חטף | G10: =IF(B10="סך הכל",[1]Summary!$B$7,IF(F10="","",IF(VLOOKUP(B10,[1]WQ_UnitID!B:C,2,FALSE)=0,"",VLOOKUP(B10,[1]WQ_UnitID!B:C,2,FALSE)))) ->  | H10: 1 | I10: =IF(B10="סך הכל",[1]Summary!$B$9,IF(F10="","",IFERROR(VLOOKUP(B10,[1]Count!A:B,2,FALSE),0))) -> 0 | J10: =IF(F10="","",(IF(ISNUMBER(MATCH(B10,[1]ExcPermit!$H$8:$H$1000,0)),"כן","לא"))) -> לא | K10: =IF(B10="סך הכל",[1]Summary!$B$10,IF(F10="","",IFERROR(VLOOKUP(B10,[1]Count!A:J,8,FALSE),0))) -> 0 | L10: =IF(B10="סך הכל",[1]Summary!$B$11,IF(F10="","",IFERROR(VLOOKUP(B10,[1]Count!A:J,9,FALSE),0))) -> 0 | M10: =IF(B10="סך הכל",[1]Summary!$B$12,IF(F10="","",IFERROR(VLOOKUP(B10,[1]Count!A:J,10,FALSE),0))) -> 0 | O10: =IFERROR(VLOOKUP(B10,[1]Comments!A:B,2,FALSE),"") -> 
B11: =IF(AND(B9<>"",ISNUMBER(B9),B10=""),"סך הכל",IF([1]Planning!A14="","",[1]Planning!A14)) -> 31558 | C11: =IFERROR(_xlfn.IFS(B11="סך הכל",[1]Summary!$B$6,[1]Planning!C14<>"",[1]Planning!C14),"") -> האחים שקורי בשרים | D11: =IFERROR(VLOOKUP(B11,[1]Address!B:G,5,FALSE),"") -> אליהו סעדון 130, אור יהודה | E11: =IFERROR(VLOOKUP(B11,[1]Address!B:L,11,FALSE),"") -> משחטות, בתי מטבחיים, בתי נחירה, עיבוד דגים | F11: חטף | G11: =IF(B11="סך הכל",[1]Summary!$B$7,IF(F11="","",IF(VLOOKUP(B11,[1]WQ_UnitID!B:C,2,FALSE)=0,"",VLOOKUP(B11,[1]WQ_UnitID!B:C,2,FALSE)))) -> 151.1089801 | H11: 4 | I11: =IF(B11="סך הכל",[1]Summary!$B$9,IF(F11="","",IFERROR(VLOOKUP(B11,[1]Count!A:B,2,FALSE),0))) -> 4 | J11: =IF(F11="","",(IF(ISNUMBER(MATCH(B11,[1]ExcPermit!$H$8:$H$1000,0)),"כן","לא"))) -> לא | K11: =IF(B11="סך הכל",[1]Summary!$B$10,IF(F11="","",IFERROR(VLOOKUP(B11,[1]Count!A:J,8,FALSE),0))) -> 4 | L11: =IF(B11="סך הכל",[1]Summary!$B$11,IF(F11="","",IFERROR(VLOOKUP(B11,[1]Count!A:J,9,FALSE),0))) -> 3 | M11: =IF(B11="סך הכל",[1]Summary!$B$12,IF(F11="","",IFERROR(VLOOKUP(B11,[1]Count!A:J,10,FALSE),0))) -> 0 | O11: =IFERROR(VLOOKUP(B11,[1]Comments!A:B,2,FALSE),"") -> ;;;
B12: =IF(AND(B10<>"",ISNUMBER(B10),B11=""),"סך הכל",IF([1]Planning!A15="","",[1]Planning!A15)) -> 8122 | C12: =IFERROR(_xlfn.IFS(B12="סך הכל",[1]Summary!$B$6,[1]Planning!C15<>"",[1]Planning!C15),"") -> הרמיטאג' (ברייט הול) | D12: =IFERROR(VLOOKUP(B12,[1]Address!B:G,5,FALSE),"") -> הפלדה 1, אור יהודה | E12: =IFERROR(VLOOKUP(B12,[1]Address!B:L,11,FALSE),"") -> אולמות אירועים, מסעדות, קניונים | F12: חטף | G12: =IF(B12="סך הכל",[1]Summary!$B$7,IF(F12="","",IF(VLOOKUP(B12,[1]WQ_UnitID!B:C,2,FALSE)=0,"",VLOOKUP(B12,[1]WQ_UnitID!B:C,2,FALSE)))) ->  | H12: 0 | I12: =IF(B12="סך הכל",[1]Summary!$B$9,IF(F12="","",IFERROR(VLOOKUP(B12,[1]Count!A:B,2,FALSE),0))) -> 0 | J12: =IF(F12="","",(IF(ISNUMBER(MATCH(B12,[1]ExcPermit!$H$8:$H$1000,0)),"כן","לא"))) -> לא | K12: =IF(B12="סך הכל",[1]Summary!$B$10,IF(F12="","",IFERROR(VLOOKUP(B12,[1]Count!A:J,8,FALSE),0))) -> 0 | L12: =IF(B12="סך הכל",[1]Summary!$B$11,IF(F12="","",IFERROR(VLOOKUP(B12,[1]Count!A:J,9,FALSE),0))) -> 0 | M12: =IF(B12="סך הכל",[1]Summary!$B$12,IF(F12="","",IFERROR(VLOOKUP(B12,[1]Count!A:J,10,FALSE),0))) -> 0 | N12: העסק נסגר | O12: =IFERROR(VLOOKUP(B12,[1]Comments!A:B,2,FALSE),"") -> 0
B13: =IF(AND(B11<>"",ISNUMBER(B11),B12=""),"סך הכל",IF([1]Planning!A16="","",[1]Planning!A16)) -> 8416 | C13: =IFERROR(_xlfn.IFS(B13="סך הכל",[1]Summary!$B$6,[1]Planning!C16<>"",[1]Planning!C16),"") -> חיים לגזיאל מעדני בשר | D13: =IFERROR(VLOOKUP(B13,[1]Address!B:G,5,FALSE),"") -> ההגנה 14, אור יהודה | E13: =IFERROR(VLOOKUP(B13,[1]Address!B:L,11,FALSE),"") -> משחטות, בתי מטבחיים, בתי נחירה, עיבוד דגים | F13: חטף | G13: =IF(B13="סך הכל",[1]Summary!$B$7,IF(F13="","",IF(VLOOKUP(B13,[1]WQ_UnitID!B:C,2,FALSE)=0,"",VLOOKUP(B13,[1]WQ_UnitID!B:C,2,FALSE)))) -> 156.8030033 | H13: 4 | I13: =IF(B13="סך הכל",[1]Summary!$B$9,IF(F13="","",IFERROR(VLOOKUP(B13,[1]Count!A:B,2,FALSE),0))) -> 4 | J13: =IF(F13="","",(IF(ISNUMBER(MATCH(B13,[1]ExcPermit!$H$8:$H$1000,0)),"כן","לא"))) -> לא | K13: =IF(B13="סך הכל",[1]Summary!$B$10,IF(F13="","",IFERROR(VLOOKUP(B13,[1]Count!A:J,8,FALSE),0))) -> 4 | L13: =IF(B13="סך הכל",[1]Summary!$B$11,IF(F13="","",IFERROR(VLOOKUP(B13,[1]Count!A:J,9,FALSE),0))) -> 3 | M13: =IF(B13="סך הכל",[1]Summary!$B$12,IF(F13="","",IFERROR(VLOOKUP(B13,[1]Count!A:J,10,FALSE),0))) -> 0 | N13: שעת דיגום 9:40;;; | O13: =IFERROR(VLOOKUP(B13,[1]Comments!A:B,2,FALSE),"") -> שעת דיגום 9:40;;;
B14: =IF(AND(B12<>"",ISNUMBER(B12),B13=""),"סך הכל",IF([1]Planning!A17="","",[1]Planning!A17)) -> 32586 | C14: =IFERROR(_xlfn.IFS(B14="סך הכל",[1]Summary!$B$6,[1]Planning!C17<>"",[1]Planning!C17),"") -> מאפיית ברכת הארץ | D14: =IFERROR(VLOOKUP(B14,[1]Address!B:G,5,FALSE),"") -> ההגנה 15, אור יהודה | E14: =IFERROR(VLOOKUP(B14,[1]Address!B:L,11,FALSE),"") -> מפעלי מזון ומשקאות | F14: חטף | G14: =IF(B14="סך הכל",[1]Summary!$B$7,IF(F14="","",IF(VLOOKUP(B14,[1]WQ_UnitID!B:C,2,FALSE)=0,"",VLOOKUP(B14,[1]WQ_UnitID!B:C,2,FALSE)))) -> 12.16666667 | H14: 0 | I14: =IF(B14="סך הכל",[1]Summary!$B$9,IF(F14="","",IFERROR(VLOOKUP(B14,[1]Count!A:B,2,FALSE),0))) -> 0 | J14: =IF(F14="","",(IF(ISNUMBER(MATCH(B14,[1]ExcPermit!$H$8:$H$1000,0)),"כן","לא"))) -> לא | K14: =IF(B14="סך הכל",[1]Summary!$B$10,IF(F14="","",IFERROR(VLOOKUP(B14,[1]Count!A:J,8,FALSE),0))) -> 0 | L14: =IF(B14="סך הכל",[1]Summary!$B$11,IF(F14="","",IFERROR(VLOOKUP(B14,[1]Count!A:J,9,FALSE),0))) -> 0 | M14: =IF(B14="סך הכל",[1]Summary!$B$12,IF(F14="","",IFERROR(VLOOKUP(B14,[1]Count!A:J,10,FALSE),0))) -> 0 | N14: העסק נסגר | O14: =IFERROR(VLOOKUP(B14,[1]Comments!A:B,2,FALSE),"") -> 0
B15: =IF(AND(B13<>"",ISNUMBER(B13),B14=""),"סך הכל",IF([1]Planning!A18="","",[1]Planning!A18)) -> 32583 | C15: =IFERROR(_xlfn.IFS(B15="סך הכל",[1]Summary!$B$6,[1]Planning!C18<>"",[1]Planning!C18),"") -> מאפיית הכוהנים | D15: =IFERROR(VLOOKUP(B15,[1]Address!B:G,5,FALSE),"") -> ההגנה 12, אור יהודה | E15: =IFERROR(VLOOKUP(B15,[1]Address!B:L,11,FALSE),"") -> מפעלי מזון ומשקאות | F15: חטף | G15: =IF(B15="סך הכל",[1]Summary!$B$7,IF(F15="","",IF(VLOOKUP(B15,[1]WQ_UnitID!B:C,2,FALSE)=0,"",VLOOKUP(B15,[1]WQ_UnitID!B:C,2,FALSE)))) -> 86.61016949 | H15: 4 | I15: 4 | J15: =IF(F15="","",(IF(ISNUMBER(MATCH(B15,[1]ExcPermit!$H$8:$H$1000,0)),"כן","לא"))) -> לא | K15: =IF(B15="סך הכל",[1]Summary!$B$10,IF(F15="","",IFERROR(VLOOKUP(B15,[1]Count!A:J,8,FALSE),0))) -> 1 | L15: =IF(B15="סך הכל",[1]Summary!$B$11,IF(F15="","",IFERROR(VLOOKUP(B15,[1]Count!A:J,9,FALSE),0))) -> 0 | M15: =IF(B15="סך הכל",[1]Summary!$B$12,IF(F15="","",IFERROR(VLOOKUP(B15,[1]Count!A:J,10,FALSE),0))) -> 0 | N15: שעת דיגום 9:40;; | O15: =IFERROR(VLOOKUP(B15,[1]Comments!A:B,2,FALSE),"") -> שעת דיגום 9:40;;
B16: =IF(AND(B14<>"",ISNUMBER(B14),B15=""),"סך הכל",IF([1]Planning!A19="","",[1]Planning!A19)) -> 7993 | C16: =IFERROR(_xlfn.IFS(B16="סך הכל",[1]Summary!$B$6,[1]Planning!C19<>"",[1]Planning!C19),"") -> מאפית וינסטו השלום | D16: =IFERROR(VLOOKUP(B16,[1]Address!B:G,5,FALSE),"") -> היוזמים 10, אור יהודה | E16: =IFERROR(VLOOKUP(B16,[1]Address!B:L,11,FALSE),"") -> מפעלי מזון ומשקאות | F16: חטף | G16: =IF(B16="סך הכל",[1]Summary!$B$7,IF(F16="","",IF(VLOOKUP(B16,[1]WQ_UnitID!B:C,2,FALSE)=0,"",VLOOKUP(B16,[1]WQ_UnitID!B:C,2,FALSE)))) -> 389.9396245 | H16: 4 | I16: =IF(B16="סך הכל",[1]Summary!$B$9,IF(F16="","",IFERROR(VLOOKUP(B16,[1]Count!A:B,2,FALSE),0))) -> 4 | J16: =IF(F16="","",(IF(ISNUMBER(MATCH(B16,[1]ExcPermit!$H$8:$H$1000,0)),"כן","לא"))) -> לא | K16: =IF(B16="סך הכל",[1]Summary!$B$10,IF(F16="","",IFERROR(VLOOKUP(B16,[1]Count!A:J,8,FALSE),0))) -> 2 | L16: =IF(B16="סך הכל",[1]Summary!$B$11,IF(F16="","",IFERROR(VLOOKUP(B16,[1]Count!A:J,9,FALSE),0))) -> 1 | M16: =IF(B16="סך הכל",[1]Summary!$B$12,IF(F16="","",IFERROR(VLOOKUP(B16,[1]Count!A:J,10,FALSE),0))) -> 1 | N16: ;אין אדם שיכול להתלוות לביקור | O16: =IFERROR(VLOOKUP(B16,[1]Comments!A:B,2,FALSE),"") -> ;אין אדם שיכול להתלוות לביקור
B17: =IF(AND(B15<>"",ISNUMBER(B15),B16=""),"סך הכל",IF([1]Planning!A20="","",[1]Planning!A20)) -> 29048 | C17: =IFERROR(_xlfn.IFS(B17="סך הכל",[1]Summary!$B$6,[1]Planning!C20<>"",[1]Planning!C20),"") -> מגדלי הים התיכון | D17: =IFERROR(VLOOKUP(B17,[1]Address!B:G,5,FALSE),"") -> האיריס 9, אור יהודה | E17: =IFERROR(VLOOKUP(B17,[1]Address!B:L,11,FALSE),"") -> בתי מלון | F17: חטף | G17: =IF(B17="סך הכל",[1]Summary!$B$7,IF(F17="","",IF(VLOOKUP(B17,[1]WQ_UnitID!B:C,2,FALSE)=0,"",VLOOKUP(B17,[1]WQ_UnitID!B:C,2,FALSE)))) -> 2756.808874 | H17: 4 | I17: =IF(B17="סך הכל",[1]Summary!$B$9,IF(F17="","",IFERROR(VLOOKUP(B17,[1]Count!A:B,2,FALSE),0))) -> 4 | J17: =IF(F17="","",(IF(ISNUMBER(MATCH(B17,[1]ExcPermit!$H$8:$H$1000,0)),"כן","לא"))) -> לא | K17: =IF(B17="סך הכל",[1]Summary!$B$10,IF(F17="","",IFERROR(VLOOKUP(B17,[1]Count!A:J,8,FALSE),0))) -> 0 | L17: =IF(B17="סך הכל",[1]Summary!$B$11,IF(F17="","",IFERROR(VLOOKUP(B17,[1]Count!A:J,9,FALSE),0))) -> 0 | M17: =IF(B17="סך הכל",[1]Summary!$B$12,IF(F17="","",IFERROR(VLOOKUP(B17,[1]Count!A:J,10,FALSE),0))) -> 4 | N17: שעת דיגום 10:10;;; | O17: =IFERROR(VLOOKUP(B17,[1]Comments!A:B,2,FALSE),"") -> שעת דיגום 10:10;;;
B18: =IF(AND(B16<>"",ISNUMBER(B16),B17=""),"סך הכל",IF([1]Planning!A21="","",[1]Planning!A21)) -> 8332 | C18: =IFERROR(_xlfn.IFS(B18="סך הכל",[1]Summary!$B$6,[1]Planning!C21<>"",[1]Planning!C21),"") -> מוסך א.מ.ואחיו | D18: =IFERROR(VLOOKUP(B18,[1]Address!B:G,5,FALSE),"") -> הסדנא 4, א.ת. ישן, אור יהודה | E18: =IFERROR(VLOOKUP(B18,[1]Address!B:L,11,FALSE),"") -> מוסכים | F18: חטף | G18: =IF(B18="סך הכל",[1]Summary!$B$7,IF(F18="","",IF(VLOOKUP(B18,[1]WQ_UnitID!B:C,2,FALSE)=0,"",VLOOKUP(B18,[1]WQ_UnitID!B:C,2,FALSE)))) -> 20.50561798 | H18: 4 | I18: =IF(B18="סך הכל",[1]Summary!$B$9,IF(F18="","",IFERROR(VLOOKUP(B18,[1]Count!A:B,2,FALSE),0))) -> 4 | J18: =IF(F18="","",(IF(ISNUMBER(MATCH(B18,[1]ExcPermit!$H$8:$H$1000,0)),"כן","לא"))) -> לא | K18: =IF(B18="סך הכל",[1]Summary!$B$10,IF(F18="","",IFERROR(VLOOKUP(B18,[1]Count!A:J,8,FALSE),0))) -> 0 | L18: =IF(B18="סך הכל",[1]Summary!$B$11,IF(F18="","",IFERROR(VLOOKUP(B18,[1]Count!A:J,9,FALSE),0))) -> 1 | M18: =IF(B18="סך הכל",[1]Summary!$B$12,IF(F18="","",IFERROR(VLOOKUP(B18,[1]Count!A:J,10,FALSE),0))) -> 2 | N18: שעת דיגום 10:30;אין אפשרות לדגום בגלל בסתימה | O18: =IFERROR(VLOOKUP(B18,[1]Comments!A:B,2,FALSE),"") -> שעת דיגום 10:30;אין אפשרות לדגום בגלל בסתימה
B19: =IF(AND(B17<>"",ISNUMBER(B17),B18=""),"סך הכל",IF([1]Planning!A22="","",[1]Planning!A22)) -> 7937 | C19: =IFERROR(_xlfn.IFS(B19="סך הכל",[1]Summary!$B$6,[1]Planning!C22<>"",[1]Planning!C22),"") -> מוסך וולבו חנן שפיק | D19: =IFERROR(VLOOKUP(B19,[1]Address!B:G,5,FALSE),"") -> חטיבת אלכסנדרוני 3, אור יהודה | E19: =IFERROR(VLOOKUP(B19,[1]Address!B:L,11,FALSE),"") -> מוסכים | F19: חטף | G19: =IF(B19="סך הכל",[1]Summary!$B$7,IF(F19="","",IF(VLOOKUP(B19,[1]WQ_UnitID!B:C,2,FALSE)=0,"",VLOOKUP(B19,[1]WQ_UnitID!B:C,2,FALSE)))) -> 96.17215423 | H19: 4 | I19: =IF(B19="סך הכל",[1]Summary!$B$9,IF(F19="","",IFERROR(VLOOKUP(B19,[1]Count!A:B,2,FALSE),0))) -> 4 | J19: =IF(F19="","",(IF(ISNUMBER(MATCH(B19,[1]ExcPermit!$H$8:$H$1000,0)),"כן","לא"))) -> לא | K19: =IF(B19="סך הכל",[1]Summary!$B$10,IF(F19="","",IFERROR(VLOOKUP(B19,[1]Count!A:J,8,FALSE),0))) -> 0 | L19: =IF(B19="סך הכל",[1]Summary!$B$11,IF(F19="","",IFERROR(VLOOKUP(B19,[1]Count!A:J,9,FALSE),0))) -> 1 | M19: =IF(B19="סך הכל",[1]Summary!$B$12,IF(F19="","",IFERROR(VLOOKUP(B19,[1]Count!A:J,10,FALSE),0))) -> 3 | N19: שעת דיגום 10:30;;; | O19: =IFERROR(VLOOKUP(B19,[1]Comments!A:B,2,FALSE),"") -> שעת דיגום 10:30;;;
B20: =IF(AND(B18<>"",ISNUMBER(B18),B19=""),"סך הכל",IF([1]Planning!A23="","",[1]Planning!A23)) -> 30932 | C20: =IFERROR(_xlfn.IFS(B20="סך הכל",[1]Summary!$B$6,[1]Planning!C23<>"",[1]Planning!C23),"") -> מסעדת פארוק | D20: =IFERROR(VLOOKUP(B20,[1]Address!B:G,5,FALSE),"") -> מרדכי בן פורת 70, אור יהודה | E20: =IFERROR(VLOOKUP(B20,[1]Address!B:L,11,FALSE),"") -> אולמות אירועים, מסעדות, קניונים | F20: חטף | G20: =IF(B20="סך הכל",[1]Summary!$B$7,IF(F20="","",IF(VLOOKUP(B20,[1]WQ_UnitID!B:C,2,FALSE)=0,"",VLOOKUP(B20,[1]WQ_UnitID!B:C,2,FALSE)))) -> 545.1559619 | H20: 4 | I20: =IF(B20="סך הכל",[1]Summary!$B$9,IF(F20="","",IFERROR(VLOOKUP(B20,[1]Count!A:B,2,FALSE),0))) -> 4 | J20: =IF(F20="","",(IF(ISNUMBER(MATCH(B20,[1]ExcPermit!$H$8:$H$1000,0)),"כן","לא"))) -> לא | K20: =IF(B20="סך הכל",[1]Summary!$B$10,IF(F20="","",IFERROR(VLOOKUP(B20,[1]Count!A:J,8,FALSE),0))) -> 3 | L20: =IF(B20="סך הכל",[1]Summary!$B$11,IF(F20="","",IFERROR(VLOOKUP(B20,[1]Count!A:J,9,FALSE),0))) -> 1 | M20: =IF(B20="סך הכל",[1]Summary!$B$12,IF(F20="","",IFERROR(VLOOKUP(B20,[1]Count!A:J,10,FALSE),0))) -> 0 | N20: אין אפשרות לדגום. | O20: =IFERROR(VLOOKUP(B20,[1]Comments!A:B,2,FALSE),"") -> אין אפשרות לדגום.
B21: =IF(AND(B19<>"",ISNUMBER(B19),B20=""),"סך הכל",IF([1]Planning!A24="","",[1]Planning!A24)) -> 8198 | C21: =IFERROR(_xlfn.IFS(B21="סך הכל",[1]Summary!$B$6,[1]Planning!C24<>"",[1]Planning!C24),"") -> מפגש אנטבה | D21: =IFERROR(VLOOKUP(B21,[1]Address!B:G,5,FALSE),"") -> שוק 1 כפר ענה, אור יהודה | E21: =IFERROR(VLOOKUP(B21,[1]Address!B:L,11,FALSE),"") -> אולמות אירועים, מסעדות, קניונים | F21: חטף | G21: =IF(B21="סך הכל",[1]Summary!$B$7,IF(F21="","",IF(VLOOKUP(B21,[1]WQ_UnitID!B:C,2,FALSE)=0,"",VLOOKUP(B21,[1]WQ_UnitID!B:C,2,FALSE)))) -> 793.6394588 | H21: 4 | I21: =IF(B21="סך הכל",[1]Summary!$B$9,IF(F21="","",IFERROR(VLOOKUP(B21,[1]Count!A:B,2,FALSE),0))) -> 4 | J21: =IF(F21="","",(IF(ISNUMBER(MATCH(B21,[1]ExcPermit!$H$8:$H$1000,0)),"כן","לא"))) -> לא | K21: =IF(B21="סך הכל",[1]Summary!$B$10,IF(F21="","",IFERROR(VLOOKUP(B21,[1]Count!A:J,8,FALSE),0))) -> 3 | L21: =IF(B21="סך הכל",[1]Summary!$B$11,IF(F21="","",IFERROR(VLOOKUP(B21,[1]Count!A:J,9,FALSE),0))) -> 1 | M21: =IF(B21="סך הכל",[1]Summary!$B$12,IF(F21="","",IFERROR(VLOOKUP(B21,[1]Count!A:J,10,FALSE),0))) -> 0 | N21: ;אין אפשרות לדגום. | O21: =IFERROR(VLOOKUP(B21,[1]Comments!A:B,2,FALSE),"") -> ;אין אפשרות לדגום.
B22: =IF(AND(B20<>"",ISNUMBER(B20),B21=""),"סך הכל",IF([1]Planning!A25="","",[1]Planning!A25)) -> 29453 | C22: =IFERROR(_xlfn.IFS(B22="סך הכל",[1]Summary!$B$6,[1]Planning!C25<>"",[1]Planning!C25),"") -> סיטי סטאר | D22: =IFERROR(VLOOKUP(B22,[1]Address!B:G,5,FALSE),"") -> הסדנא 6, אור יהודה | E22: =IFERROR(VLOOKUP(B22,[1]Address!B:L,11,FALSE),"") -> אולמות אירועים, מסעדות, קניונים | F22: חטף | G22: =IF(B22="סך הכל",[1]Summary!$B$7,IF(F22="","",IF(VLOOKUP(B22,[1]WQ_UnitID!B:C,2,FALSE)=0,"",VLOOKUP(B22,[1]WQ_UnitID!B:C,2,FALSE)))) -> 847.9897411 | H22: 4 | I22: =IF(B22="סך הכל",[1]Summary!$B$9,IF(F22="","",IFERROR(VLOOKUP(B22,[1]Count!A:B,2,FALSE),0))) -> 4 | J22: =IF(F22="","",(IF(ISNUMBER(MATCH(B22,[1]ExcPermit!$H$8:$H$1000,0)),"כן","לא"))) -> לא | K22: =IF(B22="סך הכל",[1]Summary!$B$10,IF(F22="","",IFERROR(VLOOKUP(B22,[1]Count!A:J,8,FALSE),0))) -> 4 | L22: =IF(B22="סך הכל",[1]Summary!$B$11,IF(F22="","",IFERROR(VLOOKUP(B22,[1]Count!A:J,9,FALSE),0))) -> 4 | M22: =IF(B22="סך הכל",[1]Summary!$B$12,IF(F22="","",IFERROR(VLOOKUP(B22,[1]Count!A:J,10,FALSE),0))) -> 0 | N22: שעת דיגום 10;;; | O22: =IFERROR(VLOOKUP(B22,[1]Comments!A:B,2,FALSE),"") -> שעת דיגום 10;;;
B23: =IF(AND(B21<>"",ISNUMBER(B21),B22=""),"סך הכל",IF([1]Planning!A26="","",[1]Planning!A26)) -> 7777 | C23: =IFERROR(_xlfn.IFS(B23="סך הכל",[1]Summary!$B$6,[1]Planning!C26<>"",[1]Planning!C26),"") -> עדי קייטרינג | D23: =IFERROR(VLOOKUP(B23,[1]Address!B:G,5,FALSE),"") -> המלאכה 4, אור יהודה | E23: =IFERROR(VLOOKUP(B23,[1]Address!B:L,11,FALSE),"") -> מפעלי מזון ומשקאות | F23: חטף | G23: =IF(B23="סך הכל",[1]Summary!$B$7,IF(F23="","",IF(VLOOKUP(B23,[1]WQ_UnitID!B:C,2,FALSE)=0,"",VLOOKUP(B23,[1]WQ_UnitID!B:C,2,FALSE)))) -> 1923.169664 | H23: 4 | I23: 4 | J23: =IF(F23="","",(IF(ISNUMBER(MATCH(B23,[1]ExcPermit!$H$8:$H$1000,0)),"כן","לא"))) -> לא | K23: =IF(B23="סך הכל",[1]Summary!$B$10,IF(F23="","",IFERROR(VLOOKUP(B23,[1]Count!A:J,8,FALSE),0))) -> 3 | L23: =IF(B23="סך הכל",[1]Summary!$B$11,IF(F23="","",IFERROR(VLOOKUP(B23,[1]Count!A:J,9,FALSE),0))) -> 1 | M23: =IF(B23="סך הכל",[1]Summary!$B$12,IF(F23="","",IFERROR(VLOOKUP(B23,[1]Count!A:J,10,FALSE),0))) -> 0 | O23: =IFERROR(VLOOKUP(B23,[1]Comments!A:B,2,FALSE),"") -> ;;
B24: =IF(AND(B22<>"",ISNUMBER(B22),B23=""),"סך הכל",IF([1]Planning!A27="","",[1]Planning!A27)) -> 28548 | C24: =IFERROR(_xlfn.IFS(B24="סך הכל",[1]Summary!$B$6,[1]Planning!C27<>"",[1]Planning!C27),"") -> תחנת דלק פז אור יהודה | D24: =IFERROR(VLOOKUP(B24,[1]Address!B:G,5,FALSE),"") -> יונתן נתניהו 6, אור יהודה | E24: =IFERROR(VLOOKUP(B24,[1]Address!B:L,11,FALSE),"") -> תחנות תדלוק | F24: חטף | G24: =IF(B24="סך הכל",[1]Summary!$B$7,IF(F24="","",IF(VLOOKUP(B24,[1]WQ_UnitID!B:C,2,FALSE)=0,"",VLOOKUP(B24,[1]WQ_UnitID!B:C,2,FALSE)))) -> 0.2735042735 | H24: 1 | I24: =IF(B24="סך הכל",[1]Summary!$B$9,IF(F24="","",IFERROR(VLOOKUP(B24,[1]Count!A:B,2,FALSE),0))) -> 1 | J24: =IF(F24="","",(IF(ISNUMBER(MATCH(B24,[1]ExcPermit!$H$8:$H$1000,0)),"כן","לא"))) -> לא | K24: =IF(B24="סך הכל",[1]Summary!$B$10,IF(F24="","",IFERROR(VLOOKUP(B24,[1]Count!A:J,8,FALSE),0))) -> 0 | L24: =IF(B24="סך הכל",[1]Summary!$B$11,IF(F24="","",IFERROR(VLOOKUP(B24,[1]Count!A:J,9,FALSE),0))) -> 0 | M24: =IF(B24="סך הכל",[1]Summary!$B$12,IF(F24="","",IFERROR(VLOOKUP(B24,[1]Count!A:J,10,FALSE),0))) -> 1 | O24: =IFERROR(VLOOKUP(B24,[1]Comments!A:B,2,FALSE),"") -> ;
B25: =IF(AND(B23<>"",ISNUMBER(B23),B24=""),"סך הכל",IF([1]Planning!A28="","",[1]Planning!A28)) -> 8277 | C25: =IFERROR(_xlfn.IFS(B25="סך הכל",[1]Summary!$B$6,[1]Planning!C28<>"",[1]Planning!C28),"") -> תחנת תדלוק דור אלון | D25: =IFERROR(VLOOKUP(B25,[1]Address!B:G,5,FALSE),"") -> החרושת 17, א.ת. חדש, אור יהודה | E25: =IFERROR(VLOOKUP(B25,[1]Address!B:L,11,FALSE),"") -> תחנות תדלוק | F25: חטף | G25: =IF(B25="סך הכל",[1]Summary!$B$7,IF(F25="","",IF(VLOOKUP(B25,[1]WQ_UnitID!B:C,2,FALSE)=0,"",VLOOKUP(B25,[1]WQ_UnitID!B:C,2,FALSE)))) -> 46.57056138 | H25: 1 | I25: =IF(B25="סך הכל",[1]Summary!$B$9,IF(F25="","",IFERROR(VLOOKUP(B25,[1]Count!A:B,2,FALSE),0))) -> 1 | J25: =IF(F25="","",(IF(ISNUMBER(MATCH(B25,[1]ExcPermit!$H$8:$H$1000,0)),"כן","לא"))) -> לא | K25: =IF(B25="סך הכל",[1]Summary!$B$10,IF(F25="","",IFERROR(VLOOKUP(B25,[1]Count!A:J,8,FALSE),0))) -> 0 | L25: =IF(B25="סך הכל",[1]Summary!$B$11,IF(F25="","",IFERROR(VLOOKUP(B25,[1]Count!A:J,9,FALSE),0))) -> 0 | M25: =IF(B25="סך הכל",[1]Summary!$B$12,IF(F25="","",IFERROR(VLOOKUP(B25,[1]Count!A:J,10,FALSE),0))) -> 1 | O25: =IFERROR(VLOOKUP(B25,[1]Comments!A:B,2,FALSE),"") -> ;
B26: =IF(AND(B24<>"",ISNUMBER(B24),B25=""),"סך הכל",IF([1]Planning!A29="","",[1]Planning!A29)) -> 8110 | C26: =IFERROR(_xlfn.IFS(B26="סך הכל",[1]Summary!$B$6,[1]Planning!C29<>"",[1]Planning!C29),"") -> תחנת תדלוק סונול קרן | D26: =IFERROR(VLOOKUP(B26,[1]Address!B:G,5,FALSE),"") -> החרושת 2, אור יהודה | E26: =IFERROR(VLOOKUP(B26,[1]Address!B:L,11,FALSE),"") -> תחנות תדלוק | F26: חטף | G26: =IF(B26="סך הכל",[1]Summary!$B$7,IF(F26="","",IF(VLOOKUP(B26,[1]WQ_UnitID!B:C,2,FALSE)=0,"",VLOOKUP(B26,[1]WQ_UnitID!B:C,2,FALSE)))) -> 116.096688 | H26: 1 | I26: =IF(B26="סך הכל",[1]Summary!$B$9,IF(F26="","",IFERROR(VLOOKUP(B26,[1]Count!A:B,2,FALSE),0))) -> 1 | J26: =IF(F26="","",(IF(ISNUMBER(MATCH(B26,[1]ExcPermit!$H$8:$H$1000,0)),"כן","לא"))) -> לא | K26: =IF(B26="סך הכל",[1]Summary!$B$10,IF(F26="","",IFERROR(VLOOKUP(B26,[1]Count!A:J,8,FALSE),0))) -> 0 | L26: =IF(B26="סך הכל",[1]Summary!$B$11,IF(F26="","",IFERROR(VLOOKUP(B26,[1]Count!A:J,9,FALSE),0))) -> 0 | M26: =IF(B26="סך הכל",[1]Summary!$B$12,IF(F26="","",IFERROR(VLOOKUP(B26,[1]Count!A:J,10,FALSE),0))) -> 1 | O26: =IFERROR(VLOOKUP(B26,[1]Comments!A:B,2,FALSE),"") -> ;
B27: =IF(AND(B25<>"",ISNUMBER(B25),B26=""),"סך הכל",IF([1]Planning!A30="","",[1]Planning!A30)) ->  | C27: =IFERROR(_xlfn.IFS(B27="סך הכל",[1]Summary!$B$6,[1]Planning!C30<>"",[1]Planning!C30),"") ->  | D27: =IFERROR(VLOOKUP(B27,[1]Address!B:G,5,FALSE),"") ->  | E27: =IFERROR(VLOOKUP(B27,[1]Address!B:L,11,FALSE),"") ->  | G27: =IF(B27="סך הכל",[1]Summary!$B$7,IF(F27="","",IF(VLOOKUP(B27,[1]WQ_UnitID!B:C,2,FALSE)=0,"",VLOOKUP(B27,[1]WQ_UnitID!B:C,2,FALSE)))) ->  | H27: =IF(B27="סך הכל",[1]Summary!$B$8,IF(F27="","",IFERROR(VLOOKUP(B27,[1]Planning!A:B,2,FALSE),0))) ->  | I27: =IF(B27="סך הכל",[1]Summary!$B$9,IF(F27="","",IFERROR(VLOOKUP(B27,[1]Count!A:B,2,FALSE),0))) ->  | J27: =IF(F27="","",(IF(ISNUMBER(MATCH(B27,[1]ExcPermit!$H$8:$H$1000,0)),"כן","לא"))) ->  | K27: =IF(B27="סך הכל",[1]Summary!$B$10,IF(F27="","",IFERROR(VLOOKUP(B27,[1]Count!A:J,8,FALSE),0))) ->  | L27: =IF(B27="סך הכל",[1]Summary!$B$11,IF(F27="","",IFERROR(VLOOKUP(B27,[1]Count!A:J,9,FALSE),0))) ->  | M27: =IF(B27="סך הכל",[1]Summary!$B$12,IF(F27="","",IFERROR(VLOOKUP(B27,[1]Count!A:J,10,FALSE),0))) ->  | O27: =IFERROR(VLOOKUP(B27,[1]Comments!A:B,2,FALSE),"") -> 
B28: =IF(AND(B26<>"",ISNUMBER(B26),B27=""),"סך הכל",IF([1]Planning!A31="","",[1]Planning!A31)) -> סך הכל | C28: =IFERROR(_xlfn.IFS(B28="סך הכל",[1]Summary!$B$6,[1]Planning!C31<>"",[1]Planning!C31),"") -> 22 מפעלים | D28: =IFERROR(VLOOKUP(B28,[1]Address!B:G,5,FALSE),"") ->  | E28: =IFERROR(VLOOKUP(B28,[1]Address!B:L,11,FALSE),"") ->  | G28: =IF(B28="סך הכל",[1]Summary!$B$7,IF(F28="","",IF(VLOOKUP(B28,[1]WQ_UnitID!B:C,2,FALSE)=0,"",VLOOKUP(B28,[1]WQ_UnitID!B:C,2,FALSE)))) -> 12641.25823 | H28: =IF(B28="סך הכל",[1]Summary!$B$8,IF(F28="","",IFERROR(VLOOKUP(B28,[1]Planning!A:B,2,FALSE),0))) -> 64 | I28: =IF(B28="סך הכל",[1]Summary!$B$9,IF(F28="","",IFERROR(VLOOKUP(B28,[1]Count!A:B,2,FALSE),0))) -> 63 | J28: =IF(F28="","",(IF(ISNUMBER(MATCH(B28,[1]ExcPermit!$H$8:$H$1000,0)),"כן","לא"))) ->  | K28: =IF(B28="סך הכל",[1]Summary!$B$10,IF(F28="","",IFERROR(VLOOKUP(B28,[1]Count!A:J,8,FALSE),0))) -> 33 | L28: =IF(B28="סך הכל",[1]Summary!$B$11,IF(F28="","",IFERROR(VLOOKUP(B28,[1]Count!A:J,9,FALSE),0))) -> 22 | M28: =IF(B28="סך הכל",[1]Summary!$B$12,IF(F28="","",IFERROR(VLOOKUP(B28,[1]Count!A:J,10,FALSE),0))) -> 19 | O28: =IFERROR(VLOOKUP(B28,[1]Comments!A:B,2,FALSE),"") -> 
B29: =IF(AND(B27<>"",ISNUMBER(B27),B28=""),"סך הכל",IF([1]Planning!A32="","",[1]Planning!A32)) ->  | C29: =IFERROR(_xlfn.IFS(B29="סך הכל",[1]Summary!$B$6,[1]Planning!C32<>"",[1]Planning!C32),"") ->  | D29: =IFERROR(VLOOKUP(B29,[1]Address!B:G,5,FALSE),"") ->  | E29: =IFERROR(VLOOKUP(B29,[1]Address!B:L,11,FALSE),"") ->  | G29: =IF(B29="סך הכל",[1]Summary!$B$7,IF(F29="","",IF(VLOOKUP(B29,[1]WQ_UnitID!B:C,2,FALSE)=0,"",VLOOKUP(B29,[1]WQ_UnitID!B:C,2,FALSE)))) ->  | H29: =IF(B29="סך הכל",[1]Summary!$B$8,IF(F29="","",IFERROR(VLOOKUP(B29,[1]Planning!A:B,2,FALSE),0))) ->  | I29: =IF(B29="סך הכל",[1]Summary!$B$9,IF(F29="","",IFERROR(VLOOKUP(B29,[1]Count!A:B,2,FALSE),0))) ->  | J29: =IF(F29="","",(IF(ISNUMBER(MATCH(B29,[1]ExcPermit!$H$8:$H$1000,0)),"כן","לא"))) ->  | K29: =IF(B29="סך הכל",[1]Summary!$B$10,IF(F29="","",IFERROR(VLOOKUP(B29,[1]Count!A:J,8,FALSE),0))) ->  | L29: =IF(B29="סך הכל",[1]Summary!$B$11,IF(F29="","",IFERROR(VLOOKUP(B29,[1]Count!A:J,9,FALSE),0))) ->  | M29: =IF(B29="סך הכל",[1]Summary!$B$12,IF(F29="","",IFERROR(VLOOKUP(B29,[1]Count!A:J,10,FALSE),0))) ->  | O29: =IFERROR(VLOOKUP(B29,[1]Comments!A:B,2,FALSE),"") -> 
B30: =IF(AND(B28<>"",ISNUMBER(B28),B29=""),"סך הכל",IF([1]Planning!A33="","",[1]Planning!A33)) ->  | C30: =IFERROR(_xlfn.IFS(B30="סך הכל",[1]Summary!$B$6,[1]Planning!C33<>"",[1]Planning!C33),"") ->  | D30: =IFERROR(VLOOKUP(B30,[1]Address!B:G,5,FALSE),"") ->  | E30: =IFERROR(VLOOKUP(B30,[1]Address!B:L,11,FALSE),"") ->  | G30: =IF(B30="סך הכל",[1]Summary!$B$7,IF(F30="","",IF(VLOOKUP(B30,[1]WQ_UnitID!B:C,2,FALSE)=0,"",VLOOKUP(B30,[1]WQ_UnitID!B:C,2,FALSE)))) ->  | H30: =IF(B30="סך הכל",[1]Summary!$B$8,IF(F30="","",IFERROR(VLOOKUP(B30,[1]Planning!A:B,2,FALSE),0))) ->  | I30: =IF(B30="סך הכל",[1]Summary!$B$9,IF(F30="","",IFERROR(VLOOKUP(B30,[1]Count!A:B,2,FALSE),0))) ->  | J30: =IF(F30="","",(IF(ISNUMBER(MATCH(B30,[1]ExcPermit!$H$8:$H$1000,0)),"כן","לא"))) ->  | K30: =IF(B30="סך הכל",[1]Summary!$B$10,IF(F30="","",IFERROR(VLOOKUP(B30,[1]Count!A:J,8,FALSE),0))) ->  | L30: =IF(B30="סך הכל",[1]Summary!$B$11,IF(F30="","",IFERROR(VLOOKUP(B30,[1]Count!A:J,9,FALSE),0))) ->  | M30: =IF(B30="סך הכל",[1]Summary!$B$12,IF(F30="","",IFERROR(VLOOKUP(B30,[1]Count!A:J,10,FALSE),0))) ->  | O30: =IFERROR(VLOOKUP(B30,[1]Comments!A:B,2,FALSE),"") -> 
B31: =IF(AND(B29<>"",ISNUMBER(B29),B30=""),"סך הכל",IF([1]Planning!A34="","",[1]Planning!A34)) ->  | C31: =IFERROR(_xlfn.IFS(B31="סך הכל",[1]Summary!$B$6,[1]Planning!C34<>"",[1]Planning!C34),"") ->  | D31: =IFERROR(VLOOKUP(B31,[1]Address!B:G,5,FALSE),"") ->  | E31: =IFERROR(VLOOKUP(B31,[1]Address!B:L,11,FALSE),"") ->  | G31: =IF(B31="סך הכל",[1]Summary!$B$7,IF(F31="","",IF(VLOOKUP(B31,[1]WQ_UnitID!B:C,2,FALSE)=0,"",VLOOKUP(B31,[1]WQ_UnitID!B:C,2,FALSE)))) ->  | H31: =IF(B31="סך הכל",[1]Summary!$B$8,IF(F31="","",IFERROR(VLOOKUP(B31,[1]Planning!A:B,2,FALSE),0))) ->  | I31: =IF(B31="סך הכל",[1]Summary!$B$9,IF(F31="","",IFERROR(VLOOKUP(B31,[1]Count!A:B,2,FALSE),0))) ->  | J31: =IF(F31="","",(IF(ISNUMBER(MATCH(B31,[1]ExcPermit!$H$8:$H$1000,0)),"כן","לא"))) ->  | K31: =IF(B31="סך הכל",[1]Summary!$B$10,IF(F31="","",IFERROR(VLOOKUP(B31,[1]Count!A:J,8,FALSE),0))) ->  | L31: =IF(B31="סך הכל",[1]Summary!$B$11,IF(F31="","",IFERROR(VLOOKUP(B31,[1]Count!A:J,9,FALSE),0))) ->  | M31: =IF(B31="סך הכל",[1]Summary!$B$12,IF(F31="","",IFERROR(VLOOKUP(B31,[1]Count!A:J,10,FALSE),0))) ->  | O31: =IFERROR(VLOOKUP(B31,[1]Comments!A:B,2,FALSE),"") -> 
B32: =IF(AND(B30<>"",ISNUMBER(B30),B31=""),"סך הכל",IF([1]Planning!A35="","",[1]Planning!A35)) ->  | C32: =IFERROR(_xlfn.IFS(B32="סך הכל",[1]Summary!$B$6,[1]Planning!C35<>"",[1]Planning!C35),"") ->  | D32: =IFERROR(VLOOKUP(B32,[1]Address!B:G,5,FALSE),"") ->  | E32: =IFERROR(VLOOKUP(B32,[1]Address!B:L,11,FALSE),"") ->  | G32: =IF(B32="סך הכל",[1]Summary!$B$7,IF(F32="","",IF(VLOOKUP(B32,[1]WQ_UnitID!B:C,2,FALSE)=0,"",VLOOKUP(B32,[1]WQ_UnitID!B:C,2,FALSE)))) ->  | H32: =IF(B32="סך הכל",[1]Summary!$B$8,IF(F32="","",IFERROR(VLOOKUP(B32,[1]Planning!A:B,2,FALSE),0))) ->  | I32: =IF(B32="סך הכל",[1]Summary!$B$9,IF(F32="","",IFERROR(VLOOKUP(B32,[1]Count!A:B,2,FALSE),0))) ->  | J32: =IF(F32="","",(IF(ISNUMBER(MATCH(B32,[1]ExcPermit!$H$8:$H$1000,0)),"כן","לא"))) ->  | K32: =IF(B32="סך הכל",[1]Summary!$B$10,IF(F32="","",IFERROR(VLOOKUP(B32,[1]Count!A:J,8,FALSE),0))) ->  | L32: =IF(B32="סך הכל",[1]Summary!$B$11,IF(F32="","",IFERROR(VLOOKUP(B32,[1]Count!A:J,9,FALSE),0))) ->  | M32: =IF(B32="סך הכל",[1]Summary!$B$12,IF(F32="","",IFERROR(VLOOKUP(B32,[1]Count!A:J,10,FALSE),0))) ->  | O32: =IFERROR(VLOOKUP(B32,[1]Comments!A:B,2,FALSE),"") -> 
B33: =IF(AND(B31<>"",ISNUMBER(B31),B32=""),"סך הכל",IF([1]Planning!A36="","",[1]Planning!A36)) ->  | C33: =IFERROR(_xlfn.IFS(B33="סך הכל",[1]Summary!$B$6,[1]Planning!C36<>"",[1]Planning!C36),"") ->  | D33: =IFERROR(VLOOKUP(B33,[1]Address!B:G,5,FALSE),"") ->  | E33: =IFERROR(VLOOKUP(B33,[1]Address!B:L,11,FALSE),"") ->  | G33: =IF(B33="סך הכל",[1]Summary!$B$7,IF(F33="","",IF(VLOOKUP(B33,[1]WQ_UnitID!B:C,2,FALSE)=0,"",VLOOKUP(B33,[1]WQ_UnitID!B:C,2,FALSE)))) ->  | H33: =IF(B33="סך הכל",[1]Summary!$B$8,IF(F33="","",IFERROR(VLOOKUP(B33,[1]Planning!A:B,2,FALSE),0))) ->  | I33: =IF(B33="סך הכל",[1]Summary!$B$9,IF(F33="","",IFERROR(VLOOKUP(B33,[1]Count!A:B,2,FALSE),0))) ->  | J33: =IF(F33="","",(IF(ISNUMBER(MATCH(B33,[1]ExcPermit!$H$8:$H$1000,0)),"כן","לא"))) ->  | K33: =IF(B33="סך הכל",[1]Summary!$B$10,IF(F33="","",IFERROR(VLOOKUP(B33,[1]Count!A:J,8,FALSE),0))) ->  | L33: =IF(B33="סך הכל",[1]Summary!$B$11,IF(F33="","",IFERROR(VLOOKUP(B33,[1]Count!A:J,9,FALSE),0))) ->  | M33: =IF(B33="סך הכל",[1]Summary!$B$12,IF(F33="","",IFERROR(VLOOKUP(B33,[1]Count!A:J,10,FALSE),0))) ->  | O33: =IFERROR(VLOOKUP(B33,[1]Comments!A:B,2,FALSE),"") -> 
B34: =IF(AND(B32<>"",ISNUMBER(B32),B33=""),"סך הכל",IF([1]Planning!A37="","",[1]Planning!A37)) ->  | C34: =IFERROR(_xlfn.IFS(B34="סך הכל",[1]Summary!$B$6,[1]Planning!C37<>"",[1]Planning!C37),"") ->  | D34: =IFERROR(VLOOKUP(B34,[1]Address!B:G,5,FALSE),"") ->  | E34: =IFERROR(VLOOKUP(B34,[1]Address!B:L,11,FALSE),"") ->  | G34: =IF(B34="סך הכל",[1]Summary!$B$7,IF(F34="","",IF(VLOOKUP(B34,[1]WQ_UnitID!B:C,2,FALSE)=0,"",VLOOKUP(B34,[1]WQ_UnitID!B:C,2,FALSE)))) ->  | H34: =IF(B34="סך הכל",[1]Summary!$B$8,IF(F34="","",IFERROR(VLOOKUP(B34,[1]Planning!A:B,2,FALSE),0))) ->  | I34: =IF(B34="סך הכל",[1]Summary!$B$9,IF(F34="","",IFERROR(VLOOKUP(B34,[1]Count!A:B,2,FALSE),0))) ->  | J34: =IF(F34="","",(IF(ISNUMBER(MATCH(B34,[1]ExcPermit!$H$8:$H$1000,0)),"כן","לא"))) ->  | K34: =IF(B34="סך הכל",[1]Summary!$B$10,IF(F34="","",IFERROR(VLOOKUP(B34,[1]Count!A:J,8,FALSE),0))) ->  | L34: =IF(B34="סך הכל",[1]Summary!$B$11,IF(F34="","",IFERROR(VLOOKUP(B34,[1]Count!A:J,9,FALSE),0))) ->  | M34: =IF(B34="סך הכל",[1]Summary!$B$12,IF(F34="","",IFERROR(VLOOKUP(B34,[1]Count!A:J,10,FALSE),0))) ->  | O34: =IFERROR(VLOOKUP(B34,[1]Comments!A:B,2,FALSE),"") -> 
B35: =IF(AND(B33<>"",ISNUMBER(B33),B34=""),"סך הכל",IF([1]Planning!A38="","",[1]Planning!A38)) ->  | C35: =IFERROR(_xlfn.IFS(B35="סך הכל",[1]Summary!$B$6,[1]Planning!C38<>"",[1]Planning!C38),"") ->  | D35: =IFERROR(VLOOKUP(B35,[1]Address!B:G,5,FALSE),"") ->  | E35: =IFERROR(VLOOKUP(B35,[1]Address!B:L,11,FALSE),"") ->  | G35: =IF(B35="סך הכל",[1]Summary!$B$7,IF(F35="","",IF(VLOOKUP(B35,[1]WQ_UnitID!B:C,2,FALSE)=0,"",VLOOKUP(B35,[1]WQ_UnitID!B:C,2,FALSE)))) ->  | H35: =IF(B35="סך הכל",[1]Summary!$B$8,IF(F35="","",IFERROR(VLOOKUP(B35,[1]Planning!A:B,2,FALSE),0))) ->  | I35: =IF(B35="סך הכל",[1]Summary!$B$9,IF(F35="","",IFERROR(VLOOKUP(B35,[1]Count!A:B,2,FALSE),0))) ->  | J35: =IF(F35="","",(IF(ISNUMBER(MATCH(B35,[1]ExcPermit!$H$8:$H$1000,0)),"כן","לא"))) ->  | K35: =IF(B35="סך הכל",[1]Summary!$B$10,IF(F35="","",IFERROR(VLOOKUP(B35,[1]Count!A:J,8,FALSE),0))) ->  | L35: =IF(B35="סך הכל",[1]Summary!$B$11,IF(F35="","",IFERROR(VLOOKUP(B35,[1]Count!A:J,9,FALSE),0))) ->  | M35: =IF(B35="סך הכל",[1]Summary!$B$12,IF(F35="","",IFERROR(VLOOKUP(B35,[1]Count!A:J,10,FALSE),0))) ->  | O35: =IFERROR(VLOOKUP(B35,[1]Comments!A:B,2,FALSE),"") -> 
B36: =IF(AND(B34<>"",ISNUMBER(B34),B35=""),"סך הכל",IF([1]Planning!A39="","",[1]Planning!A39)) ->  | C36: =IFERROR(_xlfn.IFS(B36="סך הכל",[1]Summary!$B$6,[1]Planning!C39<>"",[1]Planning!C39),"") ->  | D36: =IFERROR(VLOOKUP(B36,[1]Address!B:G,5,FALSE),"") ->  | E36: =IFERROR(VLOOKUP(B36,[1]Address!B:L,11,FALSE),"") ->  | G36: =IF(B36="סך הכל",[1]Summary!$B$7,IF(F36="","",IF(VLOOKUP(B36,[1]WQ_UnitID!B:C,2,FALSE)=0,"",VLOOKUP(B36,[1]WQ_UnitID!B:C,2,FALSE)))) ->  | H36: =IF(B36="סך הכל",[1]Summary!$B$8,IF(F36="","",IFERROR(VLOOKUP(B36,[1]Planning!A:B,2,FALSE),0))) ->  | I36: =IF(B36="סך הכל",[1]Summary!$B$9,IF(F36="","",IFERROR(VLOOKUP(B36,[1]Count!A:B,2,FALSE),0))) ->  | J36: =IF(F36="","",(IF(ISNUMBER(MATCH(B36,[1]ExcPermit!$H$8:$H$1000,0)),"כן","לא"))) ->  | K36: =IF(B36="סך הכל",[1]Summary!$B$10,IF(F36="","",IFERROR(VLOOKUP(B36,[1]Count!A:J,8,FALSE),0))) ->  | L36: =IF(B36="סך הכל",[1]Summary!$B$11,IF(F36="","",IFERROR(VLOOKUP(B36,[1]Count!A:J,9,FALSE),0))) ->  | M36: =IF(B36="סך הכל",[1]Summary!$B$12,IF(F36="","",IFERROR(VLOOKUP(B36,[1]Count!A:J,10,FALSE),0))) ->  | O36: =IFERROR(VLOOKUP(B36,[1]Comments!A:B,2,FALSE),"") -> 
B37: =IF(AND(B35<>"",ISNUMBER(B35),B36=""),"סך הכל",IF([1]Planning!A40="","",[1]Planning!A40)) ->  | C37: =IFERROR(_xlfn.IFS(B37="סך הכל",[1]Summary!$B$6,[1]Planning!C40<>"",[1]Planning!C40),"") ->  | D37: =IFERROR(VLOOKUP(B37,[1]Address!B:G,5,FALSE),"") ->  | E37: =IFERROR(VLOOKUP(B37,[1]Address!B:L,11,FALSE),"") ->  | G37: =IF(B37="סך הכל",[1]Summary!$B$7,IF(F37="","",IF(VLOOKUP(B37,[1]WQ_UnitID!B:C,2,FALSE)=0,"",VLOOKUP(B37,[1]WQ_UnitID!B:C,2,FALSE)))) ->  | H37: =IF(B37="סך הכל",[1]Summary!$B$8,IF(F37="","",IFERROR(VLOOKUP(B37,[1]Planning!A:B,2,FALSE),0))) ->  | I37: =IF(B37="סך הכל",[1]Summary!$B$9,IF(F37="","",IFERROR(VLOOKUP(B37,[1]Count!A:B,2,FALSE),0))) ->  | J37: =IF(F37="","",(IF(ISNUMBER(MATCH(B37,[1]ExcPermit!$H$8:$H$1000,0)),"כן","לא"))) ->  | K37: =IF(B37="סך הכל",[1]Summary!$B$10,IF(F37="","",IFERROR(VLOOKUP(B37,[1]Count!A:J,8,FALSE),0))) ->  | L37: =IF(B37="סך הכל",[1]Summary!$B$11,IF(F37="","",IFERROR(VLOOKUP(B37,[1]Count!A:J,9,FALSE),0))) ->  | M37: =IF(B37="סך הכל",[1]Summary!$B$12,IF(F37="","",IFERROR(VLOOKUP(B37,[1]Count!A:J,10,FALSE),0))) ->  | O37: =IFERROR(VLOOKUP(B37,[1]Comments!A:B,2,FALSE),"") -> 
B38: =IF(AND(B36<>"",ISNUMBER(B36),B37=""),"סך הכל",IF([1]Planning!A41="","",[1]Planning!A41)) ->  | C38: =IFERROR(_xlfn.IFS(B38="סך הכל",[1]Summary!$B$6,[1]Planning!C41<>"",[1]Planning!C41),"") ->  | D38: =IFERROR(VLOOKUP(B38,[1]Address!B:G,5,FALSE),"") ->  | E38: =IFERROR(VLOOKUP(B38,[1]Address!B:L,11,FALSE),"") ->  | G38: =IF(B38="סך הכל",[1]Summary!$B$7,IF(F38="","",IF(VLOOKUP(B38,[1]WQ_UnitID!B:C,2,FALSE)=0,"",VLOOKUP(B38,[1]WQ_UnitID!B:C,2,FALSE)))) ->  | H38: =IF(B38="סך הכל",[1]Summary!$B$8,IF(F38="","",IFERROR(VLOOKUP(B38,[1]Planning!A:B,2,FALSE),0))) ->  | I38: =IF(B38="סך הכל",[1]Summary!$B$9,IF(F38="","",IFERROR(VLOOKUP(B38,[1]Count!A:B,2,FALSE),0))) ->  | J38: =IF(F38="","",(IF(ISNUMBER(MATCH(B38,[1]ExcPermit!$H$8:$H$1000,0)),"כן","לא"))) ->  | K38: =IF(B38="סך הכל",[1]Summary!$B$10,IF(F38="","",IFERROR(VLOOKUP(B38,[1]Count!A:J,8,FALSE),0))) ->  | L38: =IF(B38="סך הכל",[1]Summary!$B$11,IF(F38="","",IFERROR(VLOOKUP(B38,[1]Count!A:J,9,FALSE),0))) ->  | M38: =IF(B38="סך הכל",[1]Summary!$B$12,IF(F38="","",IFERROR(VLOOKUP(B38,[1]Count!A:J,10,FALSE),0))) ->  | O38: =IFERROR(VLOOKUP(B38,[1]Comments!A:B,2,FALSE),"") -> 
B39: =IF(AND(B37<>"",ISNUMBER(B37),B38=""),"סך הכל",IF([1]Planning!A42="","",[1]Planning!A42)) ->  | C39: =IFERROR(_xlfn.IFS(B39="סך הכל",[1]Summary!$B$6,[1]Planning!C42<>"",[1]Planning!C42),"") ->  | D39: =IFERROR(VLOOKUP(B39,[1]Address!B:G,5,FALSE),"") ->  | E39: =IFERROR(VLOOKUP(B39,[1]Address!B:L,11,FALSE),"") ->  | G39: =IF(B39="סך הכל",[1]Summary!$B$7,IF(F39="","",IF(VLOOKUP(B39,[1]WQ_UnitID!B:C,2,FALSE)=0,"",VLOOKUP(B39,[1]WQ_UnitID!B:C,2,FALSE)))) ->  | H39: =IF(B39="סך הכל",[1]Summary!$B$8,IF(F39="","",IFERROR(VLOOKUP(B39,[1]Planning!A:B,2,FALSE),0))) ->  | I39: =IF(B39="סך הכל",[1]Summary!$B$9,IF(F39="","",IFERROR(VLOOKUP(B39,[1]Count!A:B,2,FALSE),0))) ->  | J39: =IF(F39="","",(IF(ISNUMBER(MATCH(B39,[1]ExcPermit!$H$8:$H$1000,0)),"כן","לא"))) ->  | K39: =IF(B39="סך הכל",[1]Summary!$B$10,IF(F39="","",IFERROR(VLOOKUP(B39,[1]Count!A:J,8,FALSE),0))) ->  | L39: =IF(B39="סך הכל",[1]Summary!$B$11,IF(F39="","",IFERROR(VLOOKUP(B39,[1]Count!A:J,9,FALSE),0))) ->  | M39: =IF(B39="סך הכל",[1]Summary!$B$12,IF(F39="","",IFERROR(VLOOKUP(B39,[1]Count!A:J,10,FALSE),0))) ->  | O39: =IFERROR(VLOOKUP(B39,[1]Comments!A:B,2,FALSE),"") -> 
B40: =IF(AND(B38<>"",ISNUMBER(B38),B39=""),"סך הכל",IF([1]Planning!A43="","",[1]Planning!A43)) ->  | C40: =IFERROR(_xlfn.IFS(B40="סך הכל",[1]Summary!$B$6,[1]Planning!C43<>"",[1]Planning!C43),"") ->  | D40: =IFERROR(VLOOKUP(B40,[1]Address!B:G,5,FALSE),"") ->  | E40: =IFERROR(VLOOKUP(B40,[1]Address!B:L,11,FALSE),"") ->  | G40: =IF(B40="סך הכל",[1]Summary!$B$7,IF(F40="","",IF(VLOOKUP(B40,[1]WQ_UnitID!B:C,2,FALSE)=0,"",VLOOKUP(B40,[1]WQ_UnitID!B:C,2,FALSE)))) ->  | H40: =IF(B40="סך הכל",[1]Summary!$B$8,IF(F40="","",IFERROR(VLOOKUP(B40,[1]Planning!A:B,2,FALSE),0))) ->  | I40: =IF(B40="סך הכל",[1]Summary!$B$9,IF(F40="","",IFERROR(VLOOKUP(B40,[1]Count!A:B,2,FALSE),0))) ->  | J40: =IF(F40="","",(IF(ISNUMBER(MATCH(B40,[1]ExcPermit!$H$8:$H$1000,0)),"כן","לא"))) ->  | K40: =IF(B40="סך הכל",[1]Summary!$B$10,IF(F40="","",IFERROR(VLOOKUP(B40,[1]Count!A:J,8,FALSE),0))) ->  | L40: =IF(B40="סך הכל",[1]Summary!$B$11,IF(F40="","",IFERROR(VLOOKUP(B40,[1]Count!A:J,9,FALSE),0))) ->  | M40: =IF(B40="סך הכל",[1]Summary!$B$12,IF(F40="","",IFERROR(VLOOKUP(B40,[1]Count!A:J,10,FALSE),0))) ->  | O40: =IFERROR(VLOOKUP(B40,[1]Comments!A:B,2,FALSE),"") -> 
B41: =IF(AND(B39<>"",ISNUMBER(B39),B40=""),"סך הכל",IF([1]Planning!A44="","",[1]Planning!A44)) ->  | C41: =IFERROR(_xlfn.IFS(B41="סך הכל",[1]Summary!$B$6,[1]Planning!C44<>"",[1]Planning!C44),"") ->  | D41: =IFERROR(VLOOKUP(B41,[1]Address!B:G,5,FALSE),"") ->  | E41: =IFERROR(VLOOKUP(B41,[1]Address!B:L,11,FALSE),"") ->  | G41: =IF(B41="סך הכל",[1]Summary!$B$7,IF(F41="","",IF(VLOOKUP(B41,[1]WQ_UnitID!B:C,2,FALSE)=0,"",VLOOKUP(B41,[1]WQ_UnitID!B:C,2,FALSE)))) ->  | H41: =IF(B41="סך הכל",[1]Summary!$B$8,IF(F41="","",IFERROR(VLOOKUP(B41,[1]Planning!A:B,2,FALSE),0))) ->  | I41: =IF(B41="סך הכל",[1]Summary!$B$9,IF(F41="","",IFERROR(VLOOKUP(B41,[1]Count!A:B,2,FALSE),0))) ->  | J41: =IF(F41="","",(IF(ISNUMBER(MATCH(B41,[1]ExcPermit!$H$8:$H$1000,0)),"כן","לא"))) ->  | K41: =IF(B41="סך הכל",[1]Summary!$B$10,IF(F41="","",IFERROR(VLOOKUP(B41,[1]Count!A:J,8,FALSE),0))) ->  | L41: =IF(B41="סך הכל",[1]Summary!$B$11,IF(F41="","",IFERROR(VLOOKUP(B41,[1]Count!A:J,9,FALSE),0))) ->  | M41: =IF(B41="סך הכל",[1]Summary!$B$12,IF(F41="","",IFERROR(VLOOKUP(B41,[1]Count!A:J,10,FALSE),0))) ->  | O41: =IFERROR(VLOOKUP(B41,[1]Comments!A:B,2,FALSE),"") -> 
B42: =IF(AND(B40<>"",ISNUMBER(B40),B41=""),"סך הכל",IF([1]Planning!A45="","",[1]Planning!A45)) ->  | C42: =IFERROR(_xlfn.IFS(B42="סך הכל",[1]Summary!$B$6,[1]Planning!C45<>"",[1]Planning!C45),"") ->  | D42: =IFERROR(VLOOKUP(B42,[1]Address!B:G,5,FALSE),"") ->  | E42: =IFERROR(VLOOKUP(B42,[1]Address!B:L,11,FALSE),"") ->  | G42: =IF(B42="סך הכל",[1]Summary!$B$7,IF(F42="","",IF(VLOOKUP(B42,[1]WQ_UnitID!B:C,2,FALSE)=0,"",VLOOKUP(B42,[1]WQ_UnitID!B:C,2,FALSE)))) ->  | H42: =IF(B42="סך הכל",[1]Summary!$B$8,IF(F42="","",IFERROR(VLOOKUP(B42,[1]Planning!A:B,2,FALSE),0))) ->  | I42: =IF(B42="סך הכל",[1]Summary!$B$9,IF(F42="","",IFERROR(VLOOKUP(B42,[1]Count!A:B,2,FALSE),0))) ->  | J42: =IF(F42="","",(IF(ISNUMBER(MATCH(B42,[1]ExcPermit!$H$8:$H$1000,0)),"כן","לא"))) ->  | K42: =IF(B42="סך הכל",[1]Summary!$B$10,IF(F42="","",IFERROR(VLOOKUP(B42,[1]Count!A:J,8,FALSE),0))) ->  | L42: =IF(B42="סך הכל",[1]Summary!$B$11,IF(F42="","",IFERROR(VLOOKUP(B42,[1]Count!A:J,9,FALSE),0))) ->  | M42: =IF(B42="סך הכל",[1]Summary!$B$12,IF(F42="","",IFERROR(VLOOKUP(B42,[1]Count!A:J,10,FALSE),0))) ->  | O42: =IFERROR(VLOOKUP(B42,[1]Comments!A:B,2,FALSE),"") -> 
B43: =IF(AND(B41<>"",ISNUMBER(B41),B42=""),"סך הכל",IF([1]Planning!A46="","",[1]Planning!A46)) ->  | C43: =IFERROR(_xlfn.IFS(B43="סך הכל",[1]Summary!$B$6,[1]Planning!C46<>"",[1]Planning!C46),"") ->  | D43: =IFERROR(VLOOKUP(B43,[1]Address!B:G,5,FALSE),"") ->  | E43: =IFERROR(VLOOKUP(B43,[1]Address!B:L,11,FALSE),"") ->  | G43: =IF(B43="סך הכל",[1]Summary!$B$7,IF(F43="","",IF(VLOOKUP(B43,[1]WQ_UnitID!B:C,2,FALSE)=0,"",VLOOKUP(B43,[1]WQ_UnitID!B:C,2,FALSE)))) ->  | H43: =IF(B43="סך הכל",[1]Summary!$B$8,IF(F43="","",IFERROR(VLOOKUP(B43,[1]Planning!A:B,2,FALSE),0))) ->  | I43: =IF(B43="סך הכל",[1]Summary!$B$9,IF(F43="","",IFERROR(VLOOKUP(B43,[1]Count!A:B,2,FALSE),0))) ->  | J43: =IF(F43="","",(IF(ISNUMBER(MATCH(B43,[1]ExcPermit!$H$8:$H$1000,0)),"כן","לא"))) ->  | K43: =IF(B43="סך הכל",[1]Summary!$B$10,IF(F43="","",IFERROR(VLOOKUP(B43,[1]Count!A:J,8,FALSE),0))) ->  | L43: =IF(B43="סך הכל",[1]Summary!$B$11,IF(F43="","",IFERROR(VLOOKUP(B43,[1]Count!A:J,9,FALSE),0))) ->  | M43: =IF(B43="סך הכל",[1]Summary!$B$12,IF(F43="","",IFERROR(VLOOKUP(B43,[1]Count!A:J,10,FALSE),0))) ->  | O43: =IFERROR(VLOOKUP(B43,[1]Comments!A:B,2,FALSE),"") -> 
B44: =IF(AND(B42<>"",ISNUMBER(B42),B43=""),"סך הכל",IF([1]Planning!A47="","",[1]Planning!A47)) ->  | C44: =IFERROR(_xlfn.IFS(B44="סך הכל",[1]Summary!$B$6,[1]Planning!C47<>"",[1]Planning!C47),"") ->  | D44: =IFERROR(VLOOKUP(B44,[1]Address!B:G,5,FALSE),"") ->  | E44: =IFERROR(VLOOKUP(B44,[1]Address!B:L,11,FALSE),"") ->  | G44: =IF(B44="סך הכל",[1]Summary!$B$7,IF(F44="","",IF(VLOOKUP(B44,[1]WQ_UnitID!B:C,2,FALSE)=0,"",VLOOKUP(B44,[1]WQ_UnitID!B:C,2,FALSE)))) ->  | H44: =IF(B44="סך הכל",[1]Summary!$B$8,IF(F44="","",IFERROR(VLOOKUP(B44,[1]Planning!A:B,2,FALSE),0))) ->  | I44: =IF(B44="סך הכל",[1]Summary!$B$9,IF(F44="","",IFERROR(VLOOKUP(B44,[1]Count!A:B,2,FALSE),0))) ->  | J44: =IF(F44="","",(IF(ISNUMBER(MATCH(B44,[1]ExcPermit!$H$8:$H$1000,0)),"כן","לא"))) ->  | K44: =IF(B44="סך הכל",[1]Summary!$B$10,IF(F44="","",IFERROR(VLOOKUP(B44,[1]Count!A:J,8,FALSE),0))) ->  | L44: =IF(B44="סך הכל",[1]Summary!$B$11,IF(F44="","",IFERROR(VLOOKUP(B44,[1]Count!A:J,9,FALSE),0))) ->  | M44: =IF(B44="סך הכל",[1]Summary!$B$12,IF(F44="","",IFERROR(VLOOKUP(B44,[1]Count!A:J,10,FALSE),0))) ->  | O44: =IFERROR(VLOOKUP(B44,[1]Comments!A:B,2,FALSE),"") -> 
B45: =IF(AND(B43<>"",ISNUMBER(B43),B44=""),"סך הכל",IF([1]Planning!A48="","",[1]Planning!A48)) ->  | C45: =IFERROR(_xlfn.IFS(B45="סך הכל",[1]Summary!$B$6,[1]Planning!C48<>"",[1]Planning!C48),"") ->  | D45: =IFERROR(VLOOKUP(B45,[1]Address!B:G,5,FALSE),"") ->  | E45: =IFERROR(VLOOKUP(B45,[1]Address!B:L,11,FALSE),"") ->  | G45: =IF(B45="סך הכל",[1]Summary!$B$7,IF(F45="","",IF(VLOOKUP(B45,[1]WQ_UnitID!B:C,2,FALSE)=0,"",VLOOKUP(B45,[1]WQ_UnitID!B:C,2,FALSE)))) ->  | H45: =IF(B45="סך הכל",[1]Summary!$B$8,IF(F45="","",IFERROR(VLOOKUP(B45,[1]Planning!A:B,2,FALSE),0))) ->  | I45: =IF(B45="סך הכל",[1]Summary!$B$9,IF(F45="","",IFERROR(VLOOKUP(B45,[1]Count!A:B,2,FALSE),0))) ->  | J45: =IF(F45="","",(IF(ISNUMBER(MATCH(B45,[1]ExcPermit!$H$8:$H$1000,0)),"כן","לא"))) ->  | K45: =IF(B45="סך הכל",[1]Summary!$B$10,IF(F45="","",IFERROR(VLOOKUP(B45,[1]Count!A:J,8,FALSE),0))) ->  | L45: =IF(B45="סך הכל",[1]Summary!$B$11,IF(F45="","",IFERROR(VLOOKUP(B45,[1]Count!A:J,9,FALSE),0))) ->  | M45: =IF(B45="סך הכל",[1]Summary!$B$12,IF(F45="","",IFERROR(VLOOKUP(B45,[1]Count!A:J,10,FALSE),0))) ->  | O45: =IFERROR(VLOOKUP(B45,[1]Comments!A:B,2,FALSE),"") -> 
B46: =IF(AND(B44<>"",ISNUMBER(B44),B45=""),"סך הכל",IF([1]Planning!A49="","",[1]Planning!A49)) ->  | C46: =IFERROR(_xlfn.IFS(B46="סך הכל",[1]Summary!$B$6,[1]Planning!C49<>"",[1]Planning!C49),"") ->  | D46: =IFERROR(VLOOKUP(B46,[1]Address!B:G,5,FALSE),"") ->  | E46: =IFERROR(VLOOKUP(B46,[1]Address!B:L,11,FALSE),"") ->  | G46: =IF(B46="סך הכל",[1]Summary!$B$7,IF(F46="","",IF(VLOOKUP(B46,[1]WQ_UnitID!B:C,2,FALSE)=0,"",VLOOKUP(B46,[1]WQ_UnitID!B:C,2,FALSE)))) ->  | H46: =IF(B46="סך הכל",[1]Summary!$B$8,IF(F46="","",IFERROR(VLOOKUP(B46,[1]Planning!A:B,2,FALSE),0))) ->  | I46: =IF(B46="סך הכל",[1]Summary!$B$9,IF(F46="","",IFERROR(VLOOKUP(B46,[1]Count!A:B,2,FALSE),0))) ->  | J46: =IF(F46="","",(IF(ISNUMBER(MATCH(B46,[1]ExcPermit!$H$8:$H$1000,0)),"כן","לא"))) ->  | K46: =IF(B46="סך הכל",[1]Summary!$B$10,IF(F46="","",IFERROR(VLOOKUP(B46,[1]Count!A:J,8,FALSE),0))) ->  | L46: =IF(B46="סך הכל",[1]Summary!$B$11,IF(F46="","",IFERROR(VLOOKUP(B46,[1]Count!A:J,9,FALSE),0))) ->  | M46: =IF(B46="סך הכל",[1]Summary!$B$12,IF(F46="","",IFERROR(VLOOKUP(B46,[1]Count!A:J,10,FALSE),0))) ->  | O46: =IFERROR(VLOOKUP(B46,[1]Comments!A:B,2,FALSE),"") -> 
B47: =IF(AND(B45<>"",ISNUMBER(B45),B46=""),"סך הכל",IF([1]Planning!A50="","",[1]Planning!A50)) ->  | C47: =IFERROR(_xlfn.IFS(B47="סך הכל",[1]Summary!$B$6,[1]Planning!C50<>"",[1]Planning!C50),"") ->  | D47: =IFERROR(VLOOKUP(B47,[1]Address!B:G,5,FALSE),"") ->  | E47: =IFERROR(VLOOKUP(B47,[1]Address!B:L,11,FALSE),"") ->  | G47: =IF(B47="סך הכל",[1]Summary!$B$7,IF(F47="","",IF(VLOOKUP(B47,[1]WQ_UnitID!B:C,2,FALSE)=0,"",VLOOKUP(B47,[1]WQ_UnitID!B:C,2,FALSE)))) ->  | H47: =IF(B47="סך הכל",[1]Summary!$B$8,IF(F47="","",IFERROR(VLOOKUP(B47,[1]Planning!A:B,2,FALSE),0))) ->  | I47: =IF(B47="סך הכל",[1]Summary!$B$9,IF(F47="","",IFERROR(VLOOKUP(B47,[1]Count!A:B,2,FALSE),0))) ->  | J47: =IF(F47="","",(IF(ISNUMBER(MATCH(B47,[1]ExcPermit!$H$8:$H$1000,0)),"כן","לא"))) ->  | K47: =IF(B47="סך הכל",[1]Summary!$B$10,IF(F47="","",IFERROR(VLOOKUP(B47,[1]Count!A:J,8,FALSE),0))) ->  | L47: =IF(B47="סך הכל",[1]Summary!$B$11,IF(F47="","",IFERROR(VLOOKUP(B47,[1]Count!A:J,9,FALSE),0))) ->  | M47: =IF(B47="סך הכל",[1]Summary!$B$12,IF(F47="","",IFERROR(VLOOKUP(B47,[1]Count!A:J,10,FALSE),0))) ->  | O47: =IFERROR(VLOOKUP(B47,[1]Comments!A:B,2,FALSE),"") -> 
B48: =IF(AND(B46<>"",ISNUMBER(B46),B47=""),"סך הכל",IF([1]Planning!A51="","",[1]Planning!A51)) ->  | C48: =IFERROR(_xlfn.IFS(B48="סך הכל",[1]Summary!$B$6,[1]Planning!C51<>"",[1]Planning!C51),"") ->  | D48: =IFERROR(VLOOKUP(B48,[1]Address!B:G,5,FALSE),"") ->  | E48: =IFERROR(VLOOKUP(B48,[1]Address!B:L,11,FALSE),"") ->  | G48: =IF(B48="סך הכל",[1]Summary!$B$7,IF(F48="","",IF(VLOOKUP(B48,[1]WQ_UnitID!B:C,2,FALSE)=0,"",VLOOKUP(B48,[1]WQ_UnitID!B:C,2,FALSE)))) ->  | H48: =IF(B48="סך הכל",[1]Summary!$B$8,IF(F48="","",IFERROR(VLOOKUP(B48,[1]Planning!A:B,2,FALSE),0))) ->  | I48: =IF(B48="סך הכל",[1]Summary!$B$9,IF(F48="","",IFERROR(VLOOKUP(B48,[1]Count!A:B,2,FALSE),0))) ->  | J48: =IF(F48="","",(IF(ISNUMBER(MATCH(B48,[1]ExcPermit!$H$8:$H$1000,0)),"כן","לא"))) ->  | K48: =IF(B48="סך הכל",[1]Summary!$B$10,IF(F48="","",IFERROR(VLOOKUP(B48,[1]Count!A:J,8,FALSE),0))) ->  | L48: =IF(B48="סך הכל",[1]Summary!$B$11,IF(F48="","",IFERROR(VLOOKUP(B48,[1]Count!A:J,9,FALSE),0))) ->  | M48: =IF(B48="סך הכל",[1]Summary!$B$12,IF(F48="","",IFERROR(VLOOKUP(B48,[1]Count!A:J,10,FALSE),0))) ->  | O48: =IFERROR(VLOOKUP(B48,[1]Comments!A:B,2,FALSE),"") -> 
B49: =IF(AND(B47<>"",ISNUMBER(B47),B48=""),"סך הכל",IF([1]Planning!A52="","",[1]Planning!A52)) ->  | C49: =IFERROR(_xlfn.IFS(B49="סך הכל",[1]Summary!$B$6,[1]Planning!C52<>"",[1]Planning!C52),"") ->  | D49: =IFERROR(VLOOKUP(B49,[1]Address!B:G,5,FALSE),"") ->  | E49: =IFERROR(VLOOKUP(B49,[1]Address!B:L,11,FALSE),"") ->  | G49: =IF(B49="סך הכל",[1]Summary!$B$7,IF(F49="","",IF(VLOOKUP(B49,[1]WQ_UnitID!B:C,2,FALSE)=0,"",VLOOKUP(B49,[1]WQ_UnitID!B:C,2,FALSE)))) ->  | H49: =IF(B49="סך הכל",[1]Summary!$B$8,IF(F49="","",IFERROR(VLOOKUP(B49,[1]Planning!A:B,2,FALSE),0))) ->  | I49: =IF(B49="סך הכל",[1]Summary!$B$9,IF(F49="","",IFERROR(VLOOKUP(B49,[1]Count!A:B,2,FALSE),0))) ->  | J49: =IF(F49="","",(IF(ISNUMBER(MATCH(B49,[1]ExcPermit!$H$8:$H$1000,0)),"כן","לא"))) ->  | K49: =IF(B49="סך הכל",[1]Summary!$B$10,IF(F49="","",IFERROR(VLOOKUP(B49,[1]Count!A:J,8,FALSE),0))) ->  | L49: =IF(B49="סך הכל",[1]Summary!$B$11,IF(F49="","",IFERROR(VLOOKUP(B49,[1]Count!A:J,9,FALSE),0))) ->  | M49: =IF(B49="סך הכל",[1]Summary!$B$12,IF(F49="","",IFERROR(VLOOKUP(B49,[1]Count!A:J,10,FALSE),0))) ->  | O49: =IFERROR(VLOOKUP(B49,[1]Comments!A:B,2,FALSE),"") -> 
B50: =IF(AND(B48<>"",ISNUMBER(B48),B49=""),"סך הכל",IF([1]Planning!A53="","",[1]Planning!A53)) ->  | C50: =IFERROR(_xlfn.IFS(B50="סך הכל",[1]Summary!$B$6,[1]Planning!C53<>"",[1]Planning!C53),"") ->  | D50: =IFERROR(VLOOKUP(B50,[1]Address!B:G,5,FALSE),"") ->  | E50: =IFERROR(VLOOKUP(B50,[1]Address!B:L,11,FALSE),"") ->  | G50: =IF(B50="סך הכל",[1]Summary!$B$7,IF(F50="","",IF(VLOOKUP(B50,[1]WQ_UnitID!B:C,2,FALSE)=0,"",VLOOKUP(B50,[1]WQ_UnitID!B:C,2,FALSE)))) ->  | H50: =IF(B50="סך הכל",[1]Summary!$B$8,IF(F50="","",IFERROR(VLOOKUP(B50,[1]Planning!A:B,2,FALSE),0))) ->  | I50: =IF(B50="סך הכל",[1]Summary!$B$9,IF(F50="","",IFERROR(VLOOKUP(B50,[1]Count!A:B,2,FALSE),0))) ->  | J50: =IF(F50="","",(IF(ISNUMBER(MATCH(B50,[1]ExcPermit!$H$8:$H$1000,0)),"כן","לא"))) ->  | K50: =IF(B50="סך הכל",[1]Summary!$B$10,IF(F50="","",IFERROR(VLOOKUP(B50,[1]Count!A:J,8,FALSE),0))) ->  | L50: =IF(B50="סך הכל",[1]Summary!$B$11,IF(F50="","",IFERROR(VLOOKUP(B50,[1]Count!A:J,9,FALSE),0))) ->  | M50: =IF(B50="סך הכל",[1]Summary!$B$12,IF(F50="","",IFERROR(VLOOKUP(B50,[1]Count!A:J,10,FALSE),0))) ->  | O50: =IFERROR(VLOOKUP(B50,[1]Comments!A:B,2,FALSE),"") -> 
B51: =IF(AND(B49<>"",ISNUMBER(B49),B50=""),"סך הכל",IF([1]Planning!A54="","",[1]Planning!A54)) ->  | C51: =IFERROR(_xlfn.IFS(B51="סך הכל",[1]Summary!$B$6,[1]Planning!C54<>"",[1]Planning!C54),"") ->  | D51: =IFERROR(VLOOKUP(B51,[1]Address!B:G,5,FALSE),"") ->  | E51: =IFERROR(VLOOKUP(B51,[1]Address!B:L,11,FALSE),"") ->  | G51: =IF(B51="סך הכל",[1]Summary!$B$7,IF(F51="","",IF(VLOOKUP(B51,[1]WQ_UnitID!B:C,2,FALSE)=0,"",VLOOKUP(B51,[1]WQ_UnitID!B:C,2,FALSE)))) ->  | H51: =IF(B51="סך הכל",[1]Summary!$B$8,IF(F51="","",IFERROR(VLOOKUP(B51,[1]Planning!A:B,2,FALSE),0))) ->  | I51: =IF(B51="סך הכל",[1]Summary!$B$9,IF(F51="","",IFERROR(VLOOKUP(B51,[1]Count!A:B,2,FALSE),0))) ->  | J51: =IF(F51="","",(IF(ISNUMBER(MATCH(B51,[1]ExcPermit!$H$8:$H$1000,0)),"כן","לא"))) ->  | K51: =IF(B51="סך הכל",[1]Summary!$B$10,IF(F51="","",IFERROR(VLOOKUP(B51,[1]Count!A:J,8,FALSE),0))) ->  | L51: =IF(B51="סך הכל",[1]Summary!$B$11,IF(F51="","",IFERROR(VLOOKUP(B51,[1]Count!A:J,9,FALSE),0))) ->  | M51: =IF(B51="סך הכל",[1]Summary!$B$12,IF(F51="","",IFERROR(VLOOKUP(B51,[1]Count!A:J,10,FALSE),0))) ->  | O51: =IFERROR(VLOOKUP(B51,[1]Comments!A:B,2,FALSE),"") -> 
B52: =IF(AND(B50<>"",ISNUMBER(B50),B51=""),"סך הכל",IF([1]Planning!A55="","",[1]Planning!A55)) ->  | C52: =IFERROR(_xlfn.IFS(B52="סך הכל",[1]Summary!$B$6,[1]Planning!C55<>"",[1]Planning!C55),"") ->  | D52: =IFERROR(VLOOKUP(B52,[1]Address!B:G,5,FALSE),"") ->  | E52: =IFERROR(VLOOKUP(B52,[1]Address!B:L,11,FALSE),"") ->  | G52: =IF(B52="סך הכל",[1]Summary!$B$7,IF(F52="","",IF(VLOOKUP(B52,[1]WQ_UnitID!B:C,2,FALSE)=0,"",VLOOKUP(B52,[1]WQ_UnitID!B:C,2,FALSE)))) ->  | H52: =IF(B52="סך הכל",[1]Summary!$B$8,IF(F52="","",IFERROR(VLOOKUP(B52,[1]Planning!A:B,2,FALSE),0))) ->  | I52: =IF(B52="סך הכל",[1]Summary!$B$9,IF(F52="","",IFERROR(VLOOKUP(B52,[1]Count!A:B,2,FALSE),0))) ->  | J52: =IF(F52="","",(IF(ISNUMBER(MATCH(B52,[1]ExcPermit!$H$8:$H$1000,0)),"כן","לא"))) ->  | K52: =IF(B52="סך הכל",[1]Summary!$B$10,IF(F52="","",IFERROR(VLOOKUP(B52,[1]Count!A:J,8,FALSE),0))) ->  | L52: =IF(B52="סך הכל",[1]Summary!$B$11,IF(F52="","",IFERROR(VLOOKUP(B52,[1]Count!A:J,9,FALSE),0))) ->  | M52: =IF(B52="סך הכל",[1]Summary!$B$12,IF(F52="","",IFERROR(VLOOKUP(B52,[1]Count!A:J,10,FALSE),0))) ->  | O52: =IFERROR(VLOOKUP(B52,[1]Comments!A:B,2,FALSE),"") -> 
B53: =IF(AND(B51<>"",ISNUMBER(B51),B52=""),"סך הכל",IF([1]Planning!A56="","",[1]Planning!A56)) ->  | C53: =IFERROR(_xlfn.IFS(B53="סך הכל",[1]Summary!$B$6,[1]Planning!C56<>"",[1]Planning!C56),"") ->  | D53: =IFERROR(VLOOKUP(B53,[1]Address!B:G,5,FALSE),"") ->  | E53: =IFERROR(VLOOKUP(B53,[1]Address!B:L,11,FALSE),"") ->  | G53: =IF(B53="סך הכל",[1]Summary!$B$7,IF(F53="","",IF(VLOOKUP(B53,[1]WQ_UnitID!B:C,2,FALSE)=0,"",VLOOKUP(B53,[1]WQ_UnitID!B:C,2,FALSE)))) ->  | H53: =IF(B53="סך הכל",[1]Summary!$B$8,IF(F53="","",IFERROR(VLOOKUP(B53,[1]Planning!A:B,2,FALSE),0))) ->  | I53: =IF(B53="סך הכל",[1]Summary!$B$9,IF(F53="","",IFERROR(VLOOKUP(B53,[1]Count!A:B,2,FALSE),0))) ->  | J53: =IF(F53="","",(IF(ISNUMBER(MATCH(B53,[1]ExcPermit!$H$8:$H$1000,0)),"כן","לא"))) ->  | K53: =IF(B53="סך הכל",[1]Summary!$B$10,IF(F53="","",IFERROR(VLOOKUP(B53,[1]Count!A:J,8,FALSE),0))) ->  | L53: =IF(B53="סך הכל",[1]Summary!$B$11,IF(F53="","",IFERROR(VLOOKUP(B53,[1]Count!A:J,9,FALSE),0))) ->  | M53: =IF(B53="סך הכל",[1]Summary!$B$12,IF(F53="","",IFERROR(VLOOKUP(B53,[1]Count!A:J,10,FALSE),0))) ->  | O53: =IFERROR(VLOOKUP(B53,[1]Comments!A:B,2,FALSE),"") -> 
B54: =IF(AND(B52<>"",ISNUMBER(B52),B53=""),"סך הכל",IF([1]Planning!A57="","",[1]Planning!A57)) ->  | C54: =IFERROR(_xlfn.IFS(B54="סך הכל",[1]Summary!$B$6,[1]Planning!C57<>"",[1]Planning!C57),"") ->  | D54: =IFERROR(VLOOKUP(B54,[1]Address!B:G,5,FALSE),"") ->  | E54: =IFERROR(VLOOKUP(B54,[1]Address!B:L,11,FALSE),"") ->  | G54: =IF(B54="סך הכל",[1]Summary!$B$7,IF(F54="","",IF(VLOOKUP(B54,[1]WQ_UnitID!B:C,2,FALSE)=0,"",VLOOKUP(B54,[1]WQ_UnitID!B:C,2,FALSE)))) ->  | H54: =IF(B54="סך הכל",[1]Summary!$B$8,IF(F54="","",IFERROR(VLOOKUP(B54,[1]Planning!A:B,2,FALSE),0))) ->  | I54: =IF(B54="סך הכל",[1]Summary!$B$9,IF(F54="","",IFERROR(VLOOKUP(B54,[1]Count!A:B,2,FALSE),0))) ->  | J54: =IF(F54="","",(IF(ISNUMBER(MATCH(B54,[1]ExcPermit!$H$8:$H$1000,0)),"כן","לא"))) ->  | K54: =IF(B54="סך הכל",[1]Summary!$B$10,IF(F54="","",IFERROR(VLOOKUP(B54,[1]Count!A:J,8,FALSE),0))) ->  | L54: =IF(B54="סך הכל",[1]Summary!$B$11,IF(F54="","",IFERROR(VLOOKUP(B54,[1]Count!A:J,9,FALSE),0))) ->  | M54: =IF(B54="סך הכל",[1]Summary!$B$12,IF(F54="","",IFERROR(VLOOKUP(B54,[1]Count!A:J,10,FALSE),0))) ->  | O54: =IFERROR(VLOOKUP(B54,[1]Comments!A:B,2,FALSE),"") -> 
B55: =IF(AND(B53<>"",ISNUMBER(B53),B54=""),"סך הכל",IF([1]Planning!A58="","",[1]Planning!A58)) ->  | C55: =IFERROR(_xlfn.IFS(B55="סך הכל",[1]Summary!$B$6,[1]Planning!C58<>"",[1]Planning!C58),"") ->  | D55: =IFERROR(VLOOKUP(B55,[1]Address!B:G,5,FALSE),"") ->  | E55: =IFERROR(VLOOKUP(B55,[1]Address!B:L,11,FALSE),"") ->  | G55: =IF(B55="סך הכל",[1]Summary!$B$7,IF(F55="","",IF(VLOOKUP(B55,[1]WQ_UnitID!B:C,2,FALSE)=0,"",VLOOKUP(B55,[1]WQ_UnitID!B:C,2,FALSE)))) ->  | H55: =IF(B55="סך הכל",[1]Summary!$B$8,IF(F55="","",IFERROR(VLOOKUP(B55,[1]Planning!A:B,2,FALSE),0))) ->  | I55: =IF(B55="סך הכל",[1]Summary!$B$9,IF(F55="","",IFERROR(VLOOKUP(B55,[1]Count!A:B,2,FALSE),0))) ->  | J55: =IF(F55="","",(IF(ISNUMBER(MATCH(B55,[1]ExcPermit!$H$8:$H$1000,0)),"כן","לא"))) ->  | K55: =IF(B55="סך הכל",[1]Summary!$B$10,IF(F55="","",IFERROR(VLOOKUP(B55,[1]Count!A:J,8,FALSE),0))) ->  | L55: =IF(B55="סך הכל",[1]Summary!$B$11,IF(F55="","",IFERROR(VLOOKUP(B55,[1]Count!A:J,9,FALSE),0))) ->  | M55: =IF(B55="סך הכל",[1]Summary!$B$12,IF(F55="","",IFERROR(VLOOKUP(B55,[1]Count!A:J,10,FALSE),0))) ->  | O55: =IFERROR(VLOOKUP(B55,[1]Comments!A:B,2,FALSE),"") -> 
B56: =IF(AND(B54<>"",ISNUMBER(B54),B55=""),"סך הכל",IF([1]Planning!A59="","",[1]Planning!A59)) ->  | C56: =IFERROR(_xlfn.IFS(B56="סך הכל",[1]Summary!$B$6,[1]Planning!C59<>"",[1]Planning!C59),"") ->  | D56: =IFERROR(VLOOKUP(B56,[1]Address!B:G,5,FALSE),"") ->  | E56: =IFERROR(VLOOKUP(B56,[1]Address!B:L,11,FALSE),"") ->  | G56: =IF(B56="סך הכל",[1]Summary!$B$7,IF(F56="","",IF(VLOOKUP(B56,[1]WQ_UnitID!B:C,2,FALSE)=0,"",VLOOKUP(B56,[1]WQ_UnitID!B:C,2,FALSE)))) ->  | H56: =IF(B56="סך הכל",[1]Summary!$B$8,IF(F56="","",IFERROR(VLOOKUP(B56,[1]Planning!A:B,2,FALSE),0))) ->  | I56: =IF(B56="סך הכל",[1]Summary!$B$9,IF(F56="","",IFERROR(VLOOKUP(B56,[1]Count!A:B,2,FALSE),0))) ->  | J56: =IF(F56="","",(IF(ISNUMBER(MATCH(B56,[1]ExcPermit!$H$8:$H$1000,0)),"כן","לא"))) ->  | K56: =IF(B56="סך הכל",[1]Summary!$B$10,IF(F56="","",IFERROR(VLOOKUP(B56,[1]Count!A:J,8,FALSE),0))) ->  | L56: =IF(B56="סך הכל",[1]Summary!$B$11,IF(F56="","",IFERROR(VLOOKUP(B56,[1]Count!A:J,9,FALSE),0))) ->  | M56: =IF(B56="סך הכל",[1]Summary!$B$12,IF(F56="","",IFERROR(VLOOKUP(B56,[1]Count!A:J,10,FALSE),0))) ->  | O56: =IFERROR(VLOOKUP(B56,[1]Comments!A:B,2,FALSE),"") -> 
B57: =IF(AND(B55<>"",ISNUMBER(B55),B56=""),"סך הכל",IF([1]Planning!A60="","",[1]Planning!A60)) ->  | C57: =IFERROR(_xlfn.IFS(B57="סך הכל",[1]Summary!$B$6,[1]Planning!C60<>"",[1]Planning!C60),"") ->  | D57: =IFERROR(VLOOKUP(B57,[1]Address!B:G,5,FALSE),"") ->  | E57: =IFERROR(VLOOKUP(B57,[1]Address!B:L,11,FALSE),"") ->  | G57: =IF(B57="סך הכל",[1]Summary!$B$7,IF(F57="","",IF(VLOOKUP(B57,[1]WQ_UnitID!B:C,2,FALSE)=0,"",VLOOKUP(B57,[1]WQ_UnitID!B:C,2,FALSE)))) ->  | H57: =IF(B57="סך הכל",[1]Summary!$B$8,IF(F57="","",IFERROR(VLOOKUP(B57,[1]Planning!A:B,2,FALSE),0))) ->  | I57: =IF(B57="סך הכל",[1]Summary!$B$9,IF(F57="","",IFERROR(VLOOKUP(B57,[1]Count!A:B,2,FALSE),0))) ->  | J57: =IF(F57="","",(IF(ISNUMBER(MATCH(B57,[1]ExcPermit!$H$8:$H$1000,0)),"כן","לא"))) ->  | K57: =IF(B57="סך הכל",[1]Summary!$B$10,IF(F57="","",IFERROR(VLOOKUP(B57,[1]Count!A:J,8,FALSE),0))) ->  | L57: =IF(B57="סך הכל",[1]Summary!$B$11,IF(F57="","",IFERROR(VLOOKUP(B57,[1]Count!A:J,9,FALSE),0))) ->  | M57: =IF(B57="סך הכל",[1]Summary!$B$12,IF(F57="","",IFERROR(VLOOKUP(B57,[1]Count!A:J,10,FALSE),0))) ->  | O57: =IFERROR(VLOOKUP(B57,[1]Comments!A:B,2,FALSE),"") -> 
B58: =IF(AND(B56<>"",ISNUMBER(B56),B57=""),"סך הכל",IF([1]Planning!A61="","",[1]Planning!A61)) ->  | C58: =IFERROR(_xlfn.IFS(B58="סך הכל",[1]Summary!$B$6,[1]Planning!C61<>"",[1]Planning!C61),"") ->  | D58: =IFERROR(VLOOKUP(B58,[1]Address!B:G,5,FALSE),"") ->  | E58: =IFERROR(VLOOKUP(B58,[1]Address!B:L,11,FALSE),"") ->  | G58: =IF(B58="סך הכל",[1]Summary!$B$7,IF(F58="","",IF(VLOOKUP(B58,[1]WQ_UnitID!B:C,2,FALSE)=0,"",VLOOKUP(B58,[1]WQ_UnitID!B:C,2,FALSE)))) ->  | H58: =IF(B58="סך הכל",[1]Summary!$B$8,IF(F58="","",IFERROR(VLOOKUP(B58,[1]Planning!A:B,2,FALSE),0))) ->  | I58: =IF(B58="סך הכל",[1]Summary!$B$9,IF(F58="","",IFERROR(VLOOKUP(B58,[1]Count!A:B,2,FALSE),0))) ->  | J58: =IF(F58="","",(IF(ISNUMBER(MATCH(B58,[1]ExcPermit!$H$8:$H$1000,0)),"כן","לא"))) ->  | K58: =IF(B58="סך הכל",[1]Summary!$B$10,IF(F58="","",IFERROR(VLOOKUP(B58,[1]Count!A:J,8,FALSE),0))) ->  | L58: =IF(B58="סך הכל",[1]Summary!$B$11,IF(F58="","",IFERROR(VLOOKUP(B58,[1]Count!A:J,9,FALSE),0))) ->  | M58: =IF(B58="סך הכל",[1]Summary!$B$12,IF(F58="","",IFERROR(VLOOKUP(B58,[1]Count!A:J,10,FALSE),0))) ->  | O58: =IFERROR(VLOOKUP(B58,[1]Comments!A:B,2,FALSE),"") -> 
B59: =IF(AND(B57<>"",ISNUMBER(B57),B58=""),"סך הכל",IF([1]Planning!A62="","",[1]Planning!A62)) ->  | C59: =IFERROR(_xlfn.IFS(B59="סך הכל",[1]Summary!$B$6,[1]Planning!C62<>"",[1]Planning!C62),"") ->  | D59: =IFERROR(VLOOKUP(B59,[1]Address!B:G,5,FALSE),"") ->  | E59: =IFERROR(VLOOKUP(B59,[1]Address!B:L,11,FALSE),"") ->  | G59: =IF(B59="סך הכל",[1]Summary!$B$7,IF(F59="","",IF(VLOOKUP(B59,[1]WQ_UnitID!B:C,2,FALSE)=0,"",VLOOKUP(B59,[1]WQ_UnitID!B:C,2,FALSE)))) ->  | H59: =IF(B59="סך הכל",[1]Summary!$B$8,IF(F59="","",IFERROR(VLOOKUP(B59,[1]Planning!A:B,2,FALSE),0))) ->  | I59: =IF(B59="סך הכל",[1]Summary!$B$9,IF(F59="","",IFERROR(VLOOKUP(B59,[1]Count!A:B,2,FALSE),0))) ->  | J59: =IF(F59="","",(IF(ISNUMBER(MATCH(B59,[1]ExcPermit!$H$8:$H$1000,0)),"כן","לא"))) ->  | K59: =IF(B59="סך הכל",[1]Summary!$B$10,IF(F59="","",IFERROR(VLOOKUP(B59,[1]Count!A:J,8,FALSE),0))) ->  | L59: =IF(B59="סך הכל",[1]Summary!$B$11,IF(F59="","",IFERROR(VLOOKUP(B59,[1]Count!A:J,9,FALSE),0))) ->  | M59: =IF(B59="סך הכל",[1]Summary!$B$12,IF(F59="","",IFERROR(VLOOKUP(B59,[1]Count!A:J,10,FALSE),0))) ->  | O59: =IFERROR(VLOOKUP(B59,[1]Comments!A:B,2,FALSE),"") -> 
B60: =IF(AND(B58<>"",ISNUMBER(B58),B59=""),"סך הכל",IF([1]Planning!A63="","",[1]Planning!A63)) ->  | C60: =IFERROR(_xlfn.IFS(B60="סך הכל",[1]Summary!$B$6,[1]Planning!C63<>"",[1]Planning!C63),"") ->  | D60: =IFERROR(VLOOKUP(B60,[1]Address!B:G,5,FALSE),"") ->  | E60: =IFERROR(VLOOKUP(B60,[1]Address!B:L,11,FALSE),"") ->  | G60: =IF(B60="סך הכל",[1]Summary!$B$7,IF(F60="","",IF(VLOOKUP(B60,[1]WQ_UnitID!B:C,2,FALSE)=0,"",VLOOKUP(B60,[1]WQ_UnitID!B:C,2,FALSE)))) ->  | H60: =IF(B60="סך הכל",[1]Summary!$B$8,IF(F60="","",IFERROR(VLOOKUP(B60,[1]Planning!A:B,2,FALSE),0))) ->  | I60: =IF(B60="סך הכל",[1]Summary!$B$9,IF(F60="","",IFERROR(VLOOKUP(B60,[1]Count!A:B,2,FALSE),0))) ->  | J60: =IF(F60="","",(IF(ISNUMBER(MATCH(B60,[1]ExcPermit!$H$8:$H$1000,0)),"כן","לא"))) ->  | K60: =IF(B60="סך הכל",[1]Summary!$B$10,IF(F60="","",IFERROR(VLOOKUP(B60,[1]Count!A:J,8,FALSE),0))) ->  | L60: =IF(B60="סך הכל",[1]Summary!$B$11,IF(F60="","",IFERROR(VLOOKUP(B60,[1]Count!A:J,9,FALSE),0))) ->  | M60: =IF(B60="סך הכל",[1]Summary!$B$12,IF(F60="","",IFERROR(VLOOKUP(B60,[1]Count!A:J,10,FALSE),0))) ->  | O60: =IFERROR(VLOOKUP(B60,[1]Comments!A:B,2,FALSE),"") -> 
B61: =IF(AND(B59<>"",ISNUMBER(B59),B60=""),"סך הכל",IF([1]Planning!A64="","",[1]Planning!A64)) ->  | C61: =IFERROR(_xlfn.IFS(B61="סך הכל",[1]Summary!$B$6,[1]Planning!C64<>"",[1]Planning!C64),"") ->  | D61: =IFERROR(VLOOKUP(B61,[1]Address!B:G,5,FALSE),"") ->  | E61: =IFERROR(VLOOKUP(B61,[1]Address!B:L,11,FALSE),"") ->  | G61: =IF(B61="סך הכל",[1]Summary!$B$7,IF(F61="","",IF(VLOOKUP(B61,[1]WQ_UnitID!B:C,2,FALSE)=0,"",VLOOKUP(B61,[1]WQ_UnitID!B:C,2,FALSE)))) ->  | H61: =IF(B61="סך הכל",[1]Summary!$B$8,IF(F61="","",IFERROR(VLOOKUP(B61,[1]Planning!A:B,2,FALSE),0))) ->  | I61: =IF(B61="סך הכל",[1]Summary!$B$9,IF(F61="","",IFERROR(VLOOKUP(B61,[1]Count!A:B,2,FALSE),0))) ->  | J61: =IF(F61="","",(IF(ISNUMBER(MATCH(B61,[1]ExcPermit!$H$8:$H$1000,0)),"כן","לא"))) ->  | K61: =IF(B61="סך הכל",[1]Summary!$B$10,IF(F61="","",IFERROR(VLOOKUP(B61,[1]Count!A:J,8,FALSE),0))) ->  | L61: =IF(B61="סך הכל",[1]Summary!$B$11,IF(F61="","",IFERROR(VLOOKUP(B61,[1]Count!A:J,9,FALSE),0))) ->  | M61: =IF(B61="סך הכל",[1]Summary!$B$12,IF(F61="","",IFERROR(VLOOKUP(B61,[1]Count!A:J,10,FALSE),0))) ->  | O61: =IFERROR(VLOOKUP(B61,[1]Comments!A:B,2,FALSE),"") -> 
B62: =IF(AND(B60<>"",ISNUMBER(B60),B61=""),"סך הכל",IF([1]Planning!A65="","",[1]Planning!A65)) ->  | C62: =IFERROR(_xlfn.IFS(B62="סך הכל",[1]Summary!$B$6,[1]Planning!C65<>"",[1]Planning!C65),"") ->  | D62: =IFERROR(VLOOKUP(B62,[1]Address!B:G,5,FALSE),"") ->  | E62: =IFERROR(VLOOKUP(B62,[1]Address!B:L,11,FALSE),"") ->  | G62: =IF(B62="סך הכל",[1]Summary!$B$7,IF(F62="","",IF(VLOOKUP(B62,[1]WQ_UnitID!B:C,2,FALSE)=0,"",VLOOKUP(B62,[1]WQ_UnitID!B:C,2,FALSE)))) ->  | H62: =IF(B62="סך הכל",[1]Summary!$B$8,IF(F62="","",IFERROR(VLOOKUP(B62,[1]Planning!A:B,2,FALSE),0))) ->  | I62: =IF(B62="סך הכל",[1]Summary!$B$9,IF(F62="","",IFERROR(VLOOKUP(B62,[1]Count!A:B,2,FALSE),0))) ->  | J62: =IF(F62="","",(IF(ISNUMBER(MATCH(B62,[1]ExcPermit!$H$8:$H$1000,0)),"כן","לא"))) ->  | K62: =IF(B62="סך הכל",[1]Summary!$B$10,IF(F62="","",IFERROR(VLOOKUP(B62,[1]Count!A:J,8,FALSE),0))) ->  | L62: =IF(B62="סך הכל",[1]Summary!$B$11,IF(F62="","",IFERROR(VLOOKUP(B62,[1]Count!A:J,9,FALSE),0))) ->  | M62: =IF(B62="סך הכל",[1]Summary!$B$12,IF(F62="","",IFERROR(VLOOKUP(B62,[1]Count!A:J,10,FALSE),0))) ->  | O62: =IFERROR(VLOOKUP(B62,[1]Comments!A:B,2,FALSE),"") -> 
B63: =IF(AND(B61<>"",ISNUMBER(B61),B62=""),"סך הכל",IF([1]Planning!A66="","",[1]Planning!A66)) ->  | C63: =IFERROR(_xlfn.IFS(B63="סך הכל",[1]Summary!$B$6,[1]Planning!C66<>"",[1]Planning!C66),"") ->  | D63: =IFERROR(VLOOKUP(B63,[1]Address!B:G,5,FALSE),"") ->  | E63: =IFERROR(VLOOKUP(B63,[1]Address!B:L,11,FALSE),"") ->  | G63: =IF(B63="סך הכל",[1]Summary!$B$7,IF(F63="","",IF(VLOOKUP(B63,[1]WQ_UnitID!B:C,2,FALSE)=0,"",VLOOKUP(B63,[1]WQ_UnitID!B:C,2,FALSE)))) ->  | H63: =IF(B63="סך הכל",[1]Summary!$B$8,IF(F63="","",IFERROR(VLOOKUP(B63,[1]Planning!A:B,2,FALSE),0))) ->  | I63: =IF(B63="סך הכל",[1]Summary!$B$9,IF(F63="","",IFERROR(VLOOKUP(B63,[1]Count!A:B,2,FALSE),0))) ->  | J63: =IF(F63="","",(IF(ISNUMBER(MATCH(B63,[1]ExcPermit!$H$8:$H$1000,0)),"כן","לא"))) ->  | K63: =IF(B63="סך הכל",[1]Summary!$B$10,IF(F63="","",IFERROR(VLOOKUP(B63,[1]Count!A:J,8,FALSE),0))) ->  | L63: =IF(B63="סך הכל",[1]Summary!$B$11,IF(F63="","",IFERROR(VLOOKUP(B63,[1]Count!A:J,9,FALSE),0))) ->  | M63: =IF(B63="סך הכל",[1]Summary!$B$12,IF(F63="","",IFERROR(VLOOKUP(B63,[1]Count!A:J,10,FALSE),0))) ->  | O63: =IFERROR(VLOOKUP(B63,[1]Comments!A:B,2,FALSE),"") -> 
B64: =IF(AND(B62<>"",ISNUMBER(B62),B63=""),"סך הכל",IF([1]Planning!A67="","",[1]Planning!A67)) ->  | C64: =IFERROR(_xlfn.IFS(B64="סך הכל",[1]Summary!$B$6,[1]Planning!C67<>"",[1]Planning!C67),"") ->  | D64: =IFERROR(VLOOKUP(B64,[1]Address!B:G,5,FALSE),"") ->  | E64: =IFERROR(VLOOKUP(B64,[1]Address!B:L,11,FALSE),"") ->  | G64: =IF(B64="סך הכל",[1]Summary!$B$7,IF(F64="","",IF(VLOOKUP(B64,[1]WQ_UnitID!B:C,2,FALSE)=0,"",VLOOKUP(B64,[1]WQ_UnitID!B:C,2,FALSE)))) ->  | H64: =IF(B64="סך הכל",[1]Summary!$B$8,IF(F64="","",IFERROR(VLOOKUP(B64,[1]Planning!A:B,2,FALSE),0))) ->  | I64: =IF(B64="סך הכל",[1]Summary!$B$9,IF(F64="","",IFERROR(VLOOKUP(B64,[1]Count!A:B,2,FALSE),0))) ->  | J64: =IF(F64="","",(IF(ISNUMBER(MATCH(B64,[1]ExcPermit!$H$8:$H$1000,0)),"כן","לא"))) ->  | K64: =IF(B64="סך הכל",[1]Summary!$B$10,IF(F64="","",IFERROR(VLOOKUP(B64,[1]Count!A:J,8,FALSE),0))) ->  | L64: =IF(B64="סך הכל",[1]Summary!$B$11,IF(F64="","",IFERROR(VLOOKUP(B64,[1]Count!A:J,9,FALSE),0))) ->  | M64: =IF(B64="סך הכל",[1]Summary!$B$12,IF(F64="","",IFERROR(VLOOKUP(B64,[1]Count!A:J,10,FALSE),0))) ->  | O64: =IFERROR(VLOOKUP(B64,[1]Comments!A:B,2,FALSE),"") -> 
B65: =IF(AND(B63<>"",ISNUMBER(B63),B64=""),"סך הכל",IF([1]Planning!A68="","",[1]Planning!A68)) ->  | C65: =IFERROR(_xlfn.IFS(B65="סך הכל",[1]Summary!$B$6,[1]Planning!C68<>"",[1]Planning!C68),"") ->  | D65: =IFERROR(VLOOKUP(B65,[1]Address!B:G,5,FALSE),"") ->  | E65: =IFERROR(VLOOKUP(B65,[1]Address!B:L,11,FALSE),"") ->  | G65: =IF(B65="סך הכל",[1]Summary!$B$7,IF(F65="","",IF(VLOOKUP(B65,[1]WQ_UnitID!B:C,2,FALSE)=0,"",VLOOKUP(B65,[1]WQ_UnitID!B:C,2,FALSE)))) ->  | H65: =IF(B65="סך הכל",[1]Summary!$B$8,IF(F65="","",IFERROR(VLOOKUP(B65,[1]Planning!A:B,2,FALSE),0))) ->  | I65: =IF(B65="סך הכל",[1]Summary!$B$9,IF(F65="","",IFERROR(VLOOKUP(B65,[1]Count!A:B,2,FALSE),0))) ->  | J65: =IF(F65="","",(IF(ISNUMBER(MATCH(B65,[1]ExcPermit!$H$8:$H$1000,0)),"כן","לא"))) ->  | K65: =IF(B65="סך הכל",[1]Summary!$B$10,IF(F65="","",IFERROR(VLOOKUP(B65,[1]Count!A:J,8,FALSE),0))) ->  | L65: =IF(B65="סך הכל",[1]Summary!$B$11,IF(F65="","",IFERROR(VLOOKUP(B65,[1]Count!A:J,9,FALSE),0))) ->  | M65: =IF(B65="סך הכל",[1]Summary!$B$12,IF(F65="","",IFERROR(VLOOKUP(B65,[1]Count!A:J,10,FALSE),0))) ->  | O65: =IFERROR(VLOOKUP(B65,[1]Comments!A:B,2,FALSE),"") -> 
B66: =IF(AND(B64<>"",ISNUMBER(B64),B65=""),"סך הכל",IF([1]Planning!A69="","",[1]Planning!A69)) ->  | C66: =IFERROR(_xlfn.IFS(B66="סך הכל",[1]Summary!$B$6,[1]Planning!C69<>"",[1]Planning!C69),"") ->  | D66: =IFERROR(VLOOKUP(B66,[1]Address!B:G,5,FALSE),"") ->  | E66: =IFERROR(VLOOKUP(B66,[1]Address!B:L,11,FALSE),"") ->  | G66: =IF(B66="סך הכל",[1]Summary!$B$7,IF(F66="","",IF(VLOOKUP(B66,[1]WQ_UnitID!B:C,2,FALSE)=0,"",VLOOKUP(B66,[1]WQ_UnitID!B:C,2,FALSE)))) ->  | H66: =IF(B66="סך הכל",[1]Summary!$B$8,IF(F66="","",IFERROR(VLOOKUP(B66,[1]Planning!A:B,2,FALSE),0))) ->  | I66: =IF(B66="סך הכל",[1]Summary!$B$9,IF(F66="","",IFERROR(VLOOKUP(B66,[1]Count!A:B,2,FALSE),0))) ->  | J66: =IF(F66="","",(IF(ISNUMBER(MATCH(B66,[1]ExcPermit!$H$8:$H$1000,0)),"כן","לא"))) ->  | K66: =IF(B66="סך הכל",[1]Summary!$B$10,IF(F66="","",IFERROR(VLOOKUP(B66,[1]Count!A:J,8,FALSE),0))) ->  | L66: =IF(B66="סך הכל",[1]Summary!$B$11,IF(F66="","",IFERROR(VLOOKUP(B66,[1]Count!A:J,9,FALSE),0))) ->  | M66: =IF(B66="סך הכל",[1]Summary!$B$12,IF(F66="","",IFERROR(VLOOKUP(B66,[1]Count!A:J,10,FALSE),0))) ->  | O66: =IFERROR(VLOOKUP(B66,[1]Comments!A:B,2,FALSE),"") -> 
B67: =IF(AND(B65<>"",ISNUMBER(B65),B66=""),"סך הכל",IF([1]Planning!A70="","",[1]Planning!A70)) ->  | C67: =IFERROR(_xlfn.IFS(B67="סך הכל",[1]Summary!$B$6,[1]Planning!C70<>"",[1]Planning!C70),"") ->  | D67: =IFERROR(VLOOKUP(B67,[1]Address!B:G,5,FALSE),"") ->  | E67: =IFERROR(VLOOKUP(B67,[1]Address!B:L,11,FALSE),"") ->  | G67: =IF(B67="סך הכל",[1]Summary!$B$7,IF(F67="","",IF(VLOOKUP(B67,[1]WQ_UnitID!B:C,2,FALSE)=0,"",VLOOKUP(B67,[1]WQ_UnitID!B:C,2,FALSE)))) ->  | H67: =IF(B67="סך הכל",[1]Summary!$B$8,IF(F67="","",IFERROR(VLOOKUP(B67,[1]Planning!A:B,2,FALSE),0))) ->  | I67: =IF(B67="סך הכל",[1]Summary!$B$9,IF(F67="","",IFERROR(VLOOKUP(B67,[1]Count!A:B,2,FALSE),0))) ->  | J67: =IF(F67="","",(IF(ISNUMBER(MATCH(B67,[1]ExcPermit!$H$8:$H$1000,0)),"כן","לא"))) ->  | K67: =IF(B67="סך הכל",[1]Summary!$B$10,IF(F67="","",IFERROR(VLOOKUP(B67,[1]Count!A:J,8,FALSE),0))) ->  | L67: =IF(B67="סך הכל",[1]Summary!$B$11,IF(F67="","",IFERROR(VLOOKUP(B67,[1]Count!A:J,9,FALSE),0))) ->  | M67: =IF(B67="סך הכל",[1]Summary!$B$12,IF(F67="","",IFERROR(VLOOKUP(B67,[1]Count!A:J,10,FALSE),0))) ->  | O67: =IFERROR(VLOOKUP(B67,[1]Comments!A:B,2,FALSE),"") -> 
B68: =IF(AND(B66<>"",ISNUMBER(B66),B67=""),"סך הכל",IF([1]Planning!A71="","",[1]Planning!A71)) ->  | C68: =IFERROR(_xlfn.IFS(B68="סך הכל",[1]Summary!$B$6,[1]Planning!C71<>"",[1]Planning!C71),"") ->  | D68: =IFERROR(VLOOKUP(B68,[1]Address!B:G,5,FALSE),"") ->  | E68: =IFERROR(VLOOKUP(B68,[1]Address!B:L,11,FALSE),"") ->  | G68: =IF(B68="סך הכל",[1]Summary!$B$7,IF(F68="","",IF(VLOOKUP(B68,[1]WQ_UnitID!B:C,2,FALSE)=0,"",VLOOKUP(B68,[1]WQ_UnitID!B:C,2,FALSE)))) ->  | H68: =IF(B68="סך הכל",[1]Summary!$B$8,IF(F68="","",IFERROR(VLOOKUP(B68,[1]Planning!A:B,2,FALSE),0))) ->  | I68: =IF(B68="סך הכל",[1]Summary!$B$9,IF(F68="","",IFERROR(VLOOKUP(B68,[1]Count!A:B,2,FALSE),0))) ->  | J68: =IF(F68="","",(IF(ISNUMBER(MATCH(B68,[1]ExcPermit!$H$8:$H$1000,0)),"כן","לא"))) ->  | K68: =IF(B68="סך הכל",[1]Summary!$B$10,IF(F68="","",IFERROR(VLOOKUP(B68,[1]Count!A:J,8,FALSE),0))) ->  | L68: =IF(B68="סך הכל",[1]Summary!$B$11,IF(F68="","",IFERROR(VLOOKUP(B68,[1]Count!A:J,9,FALSE),0))) ->  | M68: =IF(B68="סך הכל",[1]Summary!$B$12,IF(F68="","",IFERROR(VLOOKUP(B68,[1]Count!A:J,10,FALSE),0))) ->  | O68: =IFERROR(VLOOKUP(B68,[1]Comments!A:B,2,FALSE),"") -> 
B69: =IF(AND(B67<>"",ISNUMBER(B67),B68=""),"סך הכל",IF([1]Planning!A72="","",[1]Planning!A72)) ->  | C69: =IFERROR(_xlfn.IFS(B69="סך הכל",[1]Summary!$B$6,[1]Planning!C72<>"",[1]Planning!C72),"") ->  | D69: =IFERROR(VLOOKUP(B69,[1]Address!B:G,5,FALSE),"") ->  | E69: =IFERROR(VLOOKUP(B69,[1]Address!B:L,11,FALSE),"") ->  | F69: =IF(ISNUMBER(B69),"חטף","") ->  | G69: =IF(B69="סך הכל",[1]Summary!$B$7,IF(F69="","",IF(VLOOKUP(B69,[1]WQ_UnitID!B:C,2,FALSE)=0,"",VLOOKUP(B69,[1]WQ_UnitID!B:C,2,FALSE)))) ->  | H69: =IF(B69="סך הכל",[1]Summary!$B$8,IF(F69="","",IFERROR(VLOOKUP(B69,[1]Planning!A:B,2,FALSE),0))) ->  | I69: =IF(B69="סך הכל",[1]Summary!$B$9,IF(F69="","",IFERROR(VLOOKUP(B69,[1]Count!A:B,2,FALSE),0))) ->  | J69: =IF(F69="","",(IF(ISNUMBER(MATCH(B69,[1]ExcPermit!$H$8:$H$1000,0)),"כן","לא"))) ->  | K69: =IF(B69="סך הכל",[1]Summary!$B$10,IF(F69="","",IFERROR(VLOOKUP(B69,[1]Count!A:J,8,FALSE),0))) ->  | L69: =IF(B69="סך הכל",[1]Summary!$B$11,IF(F69="","",IFERROR(VLOOKUP(B69,[1]Count!A:J,9,FALSE),0))) ->  | M69: =IF(B69="סך הכל",[1]Summary!$B$12,IF(F69="","",IFERROR(VLOOKUP(B69,[1]Count!A:J,10,FALSE),0))) ->  | O69: =IFERROR(VLOOKUP(B69,[1]Comments!A:B,2,FALSE),"") -> 
B70: =IF(AND(B68<>"",ISNUMBER(B68),B69=""),"סך הכל",IF([1]Planning!A73="","",[1]Planning!A73)) ->  | C70: =IFERROR(_xlfn.IFS(B70="סך הכל",[1]Summary!$B$6,[1]Planning!C73<>"",[1]Planning!C73),"") ->  | D70: =IFERROR(VLOOKUP(B70,[1]Address!B:G,5,FALSE),"") ->  | E70: =IFERROR(VLOOKUP(B70,[1]Address!B:L,11,FALSE),"") ->  | G70: =IF(B70="סך הכל",[1]Summary!$B$7,IF(F70="","",IF(VLOOKUP(B70,[1]WQ_UnitID!B:C,2,FALSE)=0,"",VLOOKUP(B70,[1]WQ_UnitID!B:C,2,FALSE)))) ->  | H70: =IF(B70="סך הכל",[1]Summary!$B$8,IF(F70="","",IFERROR(VLOOKUP(B70,[1]Planning!A:B,2,FALSE),0))) ->  | I70: =IF(B70="סך הכל",[1]Summary!$B$9,IF(F70="","",IFERROR(VLOOKUP(B70,[1]Count!A:B,2,FALSE),0))) ->  | J70: =IF(F70="","",(IF(ISNUMBER(MATCH(B70,[1]ExcPermit!$H$8:$H$1000,0)),"כן","לא"))) ->  | K70: =IF(B70="סך הכל",[1]Summary!$B$10,IF(F70="","",IFERROR(VLOOKUP(B70,[1]Count!A:J,8,FALSE),0))) ->  | L70: =IF(B70="סך הכל",[1]Summary!$B$11,IF(F70="","",IFERROR(VLOOKUP(B70,[1]Count!A:J,9,FALSE),0))) ->  | M70: =IF(B70="סך הכל",[1]Summary!$B$12,IF(F70="","",IFERROR(VLOOKUP(B70,[1]Count!A:J,10,FALSE),0))) ->  | N70: =IF(O70=0,"",O70) ->  | O70: =IFERROR(VLOOKUP(B70,[1]Comments!A:B,2,FALSE),"") -> 
B71: =IF(AND(B69<>"",ISNUMBER(B69),B70=""),"סך הכל",IF([1]Planning!A74="","",[1]Planning!A74)) ->  | C71: =IFERROR(_xlfn.IFS(B71="סך הכל",[1]Summary!$B$6,[1]Planning!C74<>"",[1]Planning!C74),"") ->  | D71: =IFERROR(VLOOKUP(B71,[1]Address!B:G,5,FALSE),"") ->  | E71: =IFERROR(VLOOKUP(B71,[1]Address!B:L,11,FALSE),"") ->  | G71: =IF(B71="סך הכל",[1]Summary!$B$7,IF(F71="","",IF(VLOOKUP(B71,[1]WQ_UnitID!B:C,2,FALSE)=0,"",VLOOKUP(B71,[1]WQ_UnitID!B:C,2,FALSE)))) ->  | H71: =IF(B71="סך הכל",[1]Summary!$B$8,IF(F71="","",IFERROR(VLOOKUP(B71,[1]Planning!A:B,2,FALSE),0))) ->  | I71: =IF(B71="סך הכל",[1]Summary!$B$9,IF(F71="","",IFERROR(VLOOKUP(B71,[1]Count!A:B,2,FALSE),0))) ->  | J71: =IF(F71="","",(IF(ISNUMBER(MATCH(B71,[1]ExcPermit!$H$8:$H$1000,0)),"כן","לא"))) ->  | K71: =IF(B71="סך הכל",[1]Summary!$B$10,IF(F71="","",IFERROR(VLOOKUP(B71,[1]Count!A:J,8,FALSE),0))) ->  | L71: =IF(B71="סך הכל",[1]Summary!$B$11,IF(F71="","",IFERROR(VLOOKUP(B71,[1]Count!A:J,9,FALSE),0))) ->  | M71: =IF(B71="סך הכל",[1]Summary!$B$12,IF(F71="","",IFERROR(VLOOKUP(B71,[1]Count!A:J,10,FALSE),0))) ->  | O71: =IFERROR(VLOOKUP(B71,[1]Comments!A:B,2,FALSE),"") -> 
B72: =IF(AND(B70<>"",ISNUMBER(B70),B71=""),"סך הכל",IF([1]Planning!A75="","",[1]Planning!A75)) ->  | C72: =IFERROR(_xlfn.IFS(B72="סך הכל",[1]Summary!$B$6,[1]Planning!C75<>"",[1]Planning!C75),"") ->  | D72: =IFERROR(VLOOKUP(B72,[1]Address!B:G,5,FALSE),"") ->  | E72: =IFERROR(VLOOKUP(B72,[1]Address!B:L,11,FALSE),"") ->  | G72: =IF(B72="סך הכל",[1]Summary!$B$7,IF(F72="","",IF(VLOOKUP(B72,[1]WQ_UnitID!B:C,2,FALSE)=0,"",VLOOKUP(B72,[1]WQ_UnitID!B:C,2,FALSE)))) ->  | H72: =IF(B72="סך הכל",[1]Summary!$B$8,IF(F72="","",IFERROR(VLOOKUP(B72,[1]Planning!A:B,2,FALSE),0))) ->  | I72: =IF(B72="סך הכל",[1]Summary!$B$9,IF(F72="","",IFERROR(VLOOKUP(B72,[1]Count!A:B,2,FALSE),0))) ->  | J72: =IF(F72="","",(IF(ISNUMBER(MATCH(B72,[1]ExcPermit!$H$8:$H$1000,0)),"כן","לא"))) ->  | K72: =IF(B72="סך הכל",[1]Summary!$B$10,IF(F72="","",IFERROR(VLOOKUP(B72,[1]Count!A:J,8,FALSE),0))) ->  | L72: =IF(B72="סך הכל",[1]Summary!$B$11,IF(F72="","",IFERROR(VLOOKUP(B72,[1]Count!A:J,9,FALSE),0))) ->  | M72: =IF(B72="סך הכל",[1]Summary!$B$12,IF(F72="","",IFERROR(VLOOKUP(B72,[1]Count!A:J,10,FALSE),0))) ->  | O72: =IFERROR(VLOOKUP(B72,[1]Comments!A:B,2,FALSE),"") -> 
B73: =IF(AND(B71<>"",ISNUMBER(B71),B72=""),"סך הכל",IF([1]Planning!A76="","",[1]Planning!A76)) ->  | C73: =IFERROR(_xlfn.IFS(B73="סך הכל",[1]Summary!$B$6,[1]Planning!C76<>"",[1]Planning!C76),"") ->  | D73: =IFERROR(VLOOKUP(B73,[1]Address!B:G,5,FALSE),"") ->  | E73: =IFERROR(VLOOKUP(B73,[1]Address!B:L,11,FALSE),"") ->  | G73: =IF(B73="סך הכל",[1]Summary!$B$7,IF(F73="","",IF(VLOOKUP(B73,[1]WQ_UnitID!B:C,2,FALSE)=0,"",VLOOKUP(B73,[1]WQ_UnitID!B:C,2,FALSE)))) ->  | H73: =IF(B73="סך הכל",[1]Summary!$B$8,IF(F73="","",IFERROR(VLOOKUP(B73,[1]Planning!A:B,2,FALSE),0))) ->  | I73: =IF(B73="סך הכל",[1]Summary!$B$9,IF(F73="","",IFERROR(VLOOKUP(B73,[1]Count!A:B,2,FALSE),0))) ->  | J73: =IF(F73="","",(IF(ISNUMBER(MATCH(B73,[1]ExcPermit!$H$8:$H$1000,0)),"כן","לא"))) ->  | K73: =IF(B73="סך הכל",[1]Summary!$B$10,IF(F73="","",IFERROR(VLOOKUP(B73,[1]Count!A:J,8,FALSE),0))) ->  | L73: =IF(B73="סך הכל",[1]Summary!$B$11,IF(F73="","",IFERROR(VLOOKUP(B73,[1]Count!A:J,9,FALSE),0))) ->  | M73: =IF(B73="סך הכל",[1]Summary!$B$12,IF(F73="","",IFERROR(VLOOKUP(B73,[1]Count!A:J,10,FALSE),0))) ->  | O73: =IFERROR(VLOOKUP(B73,[1]Comments!A:B,2,FALSE),"") -> 
B74: =IF(AND(B72<>"",ISNUMBER(B72),B73=""),"סך הכל",IF([1]Planning!A77="","",[1]Planning!A77)) ->  | C74: =IFERROR(_xlfn.IFS(B74="סך הכל",[1]Summary!$B$6,[1]Planning!C77<>"",[1]Planning!C77),"") ->  | D74: =IFERROR(VLOOKUP(B74,[1]Address!B:G,5,FALSE),"") ->  | E74: =IFERROR(VLOOKUP(B74,[1]Address!B:L,11,FALSE),"") ->  | G74: =IF(B74="סך הכל",[1]Summary!$B$7,IF(F74="","",IF(VLOOKUP(B74,[1]WQ_UnitID!B:C,2,FALSE)=0,"",VLOOKUP(B74,[1]WQ_UnitID!B:C,2,FALSE)))) ->  | H74: =IF(B74="סך הכל",[1]Summary!$B$8,IF(F74="","",IFERROR(VLOOKUP(B74,[1]Planning!A:B,2,FALSE),0))) ->  | I74: =IF(B74="סך הכל",[1]Summary!$B$9,IF(F74="","",IFERROR(VLOOKUP(B74,[1]Count!A:B,2,FALSE),0))) ->  | J74: =IF(F74="","",(IF(ISNUMBER(MATCH(B74,[1]ExcPermit!$H$8:$H$1000,0)),"כן","לא"))) ->  | K74: =IF(B74="סך הכל",[1]Summary!$B$10,IF(F74="","",IFERROR(VLOOKUP(B74,[1]Count!A:J,8,FALSE),0))) ->  | L74: =IF(B74="סך הכל",[1]Summary!$B$11,IF(F74="","",IFERROR(VLOOKUP(B74,[1]Count!A:J,9,FALSE),0))) ->  | M74: =IF(B74="סך הכל",[1]Summary!$B$12,IF(F74="","",IFERROR(VLOOKUP(B74,[1]Count!A:J,10,FALSE),0))) ->  | O74: =IFERROR(VLOOKUP(B74,[1]Comments!A:B,2,FALSE),"") -> 
B75: =IF(AND(B73<>"",ISNUMBER(B73),B74=""),"סך הכל",IF([1]Planning!A78="","",[1]Planning!A78)) ->  | C75: =IFERROR(_xlfn.IFS(B75="סך הכל",[1]Summary!$B$6,[1]Planning!C78<>"",[1]Planning!C78),"") ->  | D75: =IFERROR(VLOOKUP(B75,[1]Address!B:G,5,FALSE),"") ->  | E75: =IFERROR(VLOOKUP(B75,[1]Address!B:L,11,FALSE),"") ->  | G75: =IF(B75="סך הכל",[1]Summary!$B$7,IF(F75="","",IF(VLOOKUP(B75,[1]WQ_UnitID!B:C,2,FALSE)=0,"",VLOOKUP(B75,[1]WQ_UnitID!B:C,2,FALSE)))) ->  | H75: =IF(B75="סך הכל",[1]Summary!$B$8,IF(F75="","",IFERROR(VLOOKUP(B75,[1]Planning!A:B,2,FALSE),0))) ->  | I75: =IF(B75="סך הכל",[1]Summary!$B$9,IF(F75="","",IFERROR(VLOOKUP(B75,[1]Count!A:B,2,FALSE),0))) ->  | J75: =IF(F75="","",(IF(ISNUMBER(MATCH(B75,[1]ExcPermit!$H$8:$H$1000,0)),"כן","לא"))) ->  | K75: =IF(B75="סך הכל",[1]Summary!$B$10,IF(F75="","",IFERROR(VLOOKUP(B75,[1]Count!A:J,8,FALSE),0))) ->  | L75: =IF(B75="סך הכל",[1]Summary!$B$11,IF(F75="","",IFERROR(VLOOKUP(B75,[1]Count!A:J,9,FALSE),0))) ->  | M75: =IF(B75="סך הכל",[1]Summary!$B$12,IF(F75="","",IFERROR(VLOOKUP(B75,[1]Count!A:J,10,FALSE),0))) ->  | O75: =IFERROR(VLOOKUP(B75,[1]Comments!A:B,2,FALSE),"") -> 
B76: =IF(AND(B74<>"",ISNUMBER(B74),B75=""),"סך הכל",IF([1]Planning!A79="","",[1]Planning!A79)) ->  | C76: =IFERROR(_xlfn.IFS(B76="סך הכל",[1]Summary!$B$6,[1]Planning!C79<>"",[1]Planning!C79),"") ->  | D76: =IFERROR(VLOOKUP(B76,[1]Address!B:G,5,FALSE),"") ->  | E76: =IFERROR(VLOOKUP(B76,[1]Address!B:L,11,FALSE),"") ->  | G76: =IF(B76="סך הכל",[1]Summary!$B$7,IF(F76="","",IF(VLOOKUP(B76,[1]WQ_UnitID!B:C,2,FALSE)=0,"",VLOOKUP(B76,[1]WQ_UnitID!B:C,2,FALSE)))) ->  | H76: =IF(B76="סך הכל",[1]Summary!$B$8,IF(F76="","",IFERROR(VLOOKUP(B76,[1]Planning!A:B,2,FALSE),0))) ->  | I76: =IF(B76="סך הכל",[1]Summary!$B$9,IF(F76="","",IFERROR(VLOOKUP(B76,[1]Count!A:B,2,FALSE),0))) ->  | J76: =IF(F76="","",(IF(ISNUMBER(MATCH(B76,[1]ExcPermit!$H$8:$H$1000,0)),"כן","לא"))) ->  | K76: =IF(B76="סך הכל",[1]Summary!$B$10,IF(F76="","",IFERROR(VLOOKUP(B76,[1]Count!A:J,8,FALSE),0))) ->  | L76: =IF(B76="סך הכל",[1]Summary!$B$11,IF(F76="","",IFERROR(VLOOKUP(B76,[1]Count!A:J,9,FALSE),0))) ->  | M76: =IF(B76="סך הכל",[1]Summary!$B$12,IF(F76="","",IFERROR(VLOOKUP(B76,[1]Count!A:J,10,FALSE),0))) ->  | O76: =IFERROR(VLOOKUP(B76,[1]Comments!A:B,2,FALSE),"") -> 
B77: =IF(AND(B75<>"",ISNUMBER(B75),B76=""),"סך הכל",IF([1]Planning!A80="","",[1]Planning!A80)) ->  | C77: =IFERROR(_xlfn.IFS(B77="סך הכל",[1]Summary!$B$6,[1]Planning!C80<>"",[1]Planning!C80),"") ->  | D77: =IFERROR(VLOOKUP(B77,[1]Address!B:G,5,FALSE),"") ->  | E77: =IFERROR(VLOOKUP(B77,[1]Address!B:L,11,FALSE),"") ->  | G77: =IF(B77="סך הכל",[1]Summary!$B$7,IF(F77="","",IF(VLOOKUP(B77,[1]WQ_UnitID!B:C,2,FALSE)=0,"",VLOOKUP(B77,[1]WQ_UnitID!B:C,2,FALSE)))) ->  | H77: =IF(B77="סך הכל",[1]Summary!$B$8,IF(F77="","",IFERROR(VLOOKUP(B77,[1]Planning!A:B,2,FALSE),0))) ->  | I77: =IF(B77="סך הכל",[1]Summary!$B$9,IF(F77="","",IFERROR(VLOOKUP(B77,[1]Count!A:B,2,FALSE),0))) ->  | J77: =IF(F77="","",(IF(ISNUMBER(MATCH(B77,[1]ExcPermit!$H$8:$H$1000,0)),"כן","לא"))) ->  | K77: =IF(B77="סך הכל",[1]Summary!$B$10,IF(F77="","",IFERROR(VLOOKUP(B77,[1]Count!A:J,8,FALSE),0))) ->  | L77: =IF(B77="סך הכל",[1]Summary!$B$11,IF(F77="","",IFERROR(VLOOKUP(B77,[1]Count!A:J,9,FALSE),0))) ->  | M77: =IF(B77="סך הכל",[1]Summary!$B$12,IF(F77="","",IFERROR(VLOOKUP(B77,[1]Count!A:J,10,FALSE),0))) ->  | O77: =IFERROR(VLOOKUP(B77,[1]Comments!A:B,2,FALSE),"") -> 
B78: =IF(AND(B76<>"",ISNUMBER(B76),B77=""),"סך הכל",IF([1]Planning!A81="","",[1]Planning!A81)) ->  | C78: =IFERROR(_xlfn.IFS(B78="סך הכל",[1]Summary!$B$6,[1]Planning!C81<>"",[1]Planning!C81),"") ->  | D78: =IFERROR(VLOOKUP(B78,[1]Address!B:G,5,FALSE),"") ->  | E78: =IFERROR(VLOOKUP(B78,[1]Address!B:L,11,FALSE),"") ->  | G78: =IF(B78="סך הכל",[1]Summary!$B$7,IF(F78="","",IF(VLOOKUP(B78,[1]WQ_UnitID!B:C,2,FALSE)=0,"",VLOOKUP(B78,[1]WQ_UnitID!B:C,2,FALSE)))) ->  | H78: =IF(B78="סך הכל",[1]Summary!$B$8,IF(F78="","",IFERROR(VLOOKUP(B78,[1]Planning!A:B,2,FALSE),0))) ->  | I78: =IF(B78="סך הכל",[1]Summary!$B$9,IF(F78="","",IFERROR(VLOOKUP(B78,[1]Count!A:B,2,FALSE),0))) ->  | J78: =IF(F78="","",(IF(ISNUMBER(MATCH(B78,[1]ExcPermit!$H$8:$H$1000,0)),"כן","לא"))) ->  | K78: =IF(B78="סך הכל",[1]Summary!$B$10,IF(F78="","",IFERROR(VLOOKUP(B78,[1]Count!A:J,8,FALSE),0))) ->  | L78: =IF(B78="סך הכל",[1]Summary!$B$11,IF(F78="","",IFERROR(VLOOKUP(B78,[1]Count!A:J,9,FALSE),0))) ->  | M78: =IF(B78="סך הכל",[1]Summary!$B$12,IF(F78="","",IFERROR(VLOOKUP(B78,[1]Count!A:J,10,FALSE),0))) ->  | O78: =IFERROR(VLOOKUP(B78,[1]Comments!A:B,2,FALSE),"") -> 
B79: =IF(AND(B77<>"",ISNUMBER(B77),B78=""),"סך הכל",IF([1]Planning!A82="","",[1]Planning!A82)) ->  | C79: =IFERROR(_xlfn.IFS(B79="סך הכל",[1]Summary!$B$6,[1]Planning!C82<>"",[1]Planning!C82),"") ->  | D79: =IFERROR(VLOOKUP(B79,[1]Address!B:G,5,FALSE),"") ->  | E79: =IFERROR(VLOOKUP(B79,[1]Address!B:L,11,FALSE),"") ->  | G79: =IF(B79="סך הכל",[1]Summary!$B$7,IF(F79="","",IF(VLOOKUP(B79,[1]WQ_UnitID!B:C,2,FALSE)=0,"",VLOOKUP(B79,[1]WQ_UnitID!B:C,2,FALSE)))) ->  | H79: =IF(B79="סך הכל",[1]Summary!$B$8,IF(F79="","",IFERROR(VLOOKUP(B79,[1]Planning!A:B,2,FALSE),0))) ->  | I79: =IF(B79="סך הכל",[1]Summary!$B$9,IF(F79="","",IFERROR(VLOOKUP(B79,[1]Count!A:B,2,FALSE),0))) ->  | J79: =IF(F79="","",(IF(ISNUMBER(MATCH(B79,[1]ExcPermit!$H$8:$H$1000,0)),"כן","לא"))) ->  | K79: =IF(B79="סך הכל",[1]Summary!$B$10,IF(F79="","",IFERROR(VLOOKUP(B79,[1]Count!A:J,8,FALSE),0))) ->  | L79: =IF(B79="סך הכל",[1]Summary!$B$11,IF(F79="","",IFERROR(VLOOKUP(B79,[1]Count!A:J,9,FALSE),0))) ->  | M79: =IF(B79="סך הכל",[1]Summary!$B$12,IF(F79="","",IFERROR(VLOOKUP(B79,[1]Count!A:J,10,FALSE),0))) ->  | O79: =IFERROR(VLOOKUP(B79,[1]Comments!A:B,2,FALSE),"") -> 
B80: =IF(AND(B78<>"",ISNUMBER(B78),B79=""),"סך הכל",IF([1]Planning!A83="","",[1]Planning!A83)) ->  | C80: =IFERROR(_xlfn.IFS(B80="סך הכל",[1]Summary!$B$6,[1]Planning!C83<>"",[1]Planning!C83),"") ->  | D80: =IFERROR(VLOOKUP(B80,[1]Address!B:G,5,FALSE),"") ->  | E80: =IFERROR(VLOOKUP(B80,[1]Address!B:L,11,FALSE),"") ->  | G80: =IF(B80="סך הכל",[1]Summary!$B$7,IF(F80="","",IF(VLOOKUP(B80,[1]WQ_UnitID!B:C,2,FALSE)=0,"",VLOOKUP(B80,[1]WQ_UnitID!B:C,2,FALSE)))) ->  | H80: =IF(B80="סך הכל",[1]Summary!$B$8,IF(F80="","",IFERROR(VLOOKUP(B80,[1]Planning!A:B,2,FALSE),0))) ->  | I80: =IF(B80="סך הכל",[1]Summary!$B$9,IF(F80="","",IFERROR(VLOOKUP(B80,[1]Count!A:B,2,FALSE),0))) ->  | J80: =IF(F80="","",(IF(ISNUMBER(MATCH(B80,[1]ExcPermit!$H$8:$H$1000,0)),"כן","לא"))) ->  | K80: =IF(B80="סך הכל",[1]Summary!$B$10,IF(F80="","",IFERROR(VLOOKUP(B80,[1]Count!A:J,8,FALSE),0))) ->  | L80: =IF(B80="סך הכל",[1]Summary!$B$11,IF(F80="","",IFERROR(VLOOKUP(B80,[1]Count!A:J,9,FALSE),0))) ->  | M80: =IF(B80="סך הכל",[1]Summary!$B$12,IF(F80="","",IFERROR(VLOOKUP(B80,[1]Count!A:J,10,FALSE),0))) ->  | O80: =IFERROR(VLOOKUP(B80,[1]Comments!A:B,2,FALSE),"") -> 
B81: =IF(AND(B79<>"",ISNUMBER(B79),B80=""),"סך הכל",IF([1]Planning!A84="","",[1]Planning!A84)) ->  | C81: =IFERROR(_xlfn.IFS(B81="סך הכל",[1]Summary!$B$6,[1]Planning!C84<>"",[1]Planning!C84),"") ->  | D81: =IFERROR(VLOOKUP(B81,[1]Address!B:G,5,FALSE),"") ->  | E81: =IFERROR(VLOOKUP(B81,[1]Address!B:L,11,FALSE),"") ->  | G81: =IF(B81="סך הכל",[1]Summary!$B$7,IF(F81="","",IF(VLOOKUP(B81,[1]WQ_UnitID!B:C,2,FALSE)=0,"",VLOOKUP(B81,[1]WQ_UnitID!B:C,2,FALSE)))) ->  | H81: =IF(B81="סך הכל",[1]Summary!$B$8,IF(F81="","",IFERROR(VLOOKUP(B81,[1]Planning!A:B,2,FALSE),0))) ->  | I81: =IF(B81="סך הכל",[1]Summary!$B$9,IF(F81="","",IFERROR(VLOOKUP(B81,[1]Count!A:B,2,FALSE),0))) ->  | J81: =IF(F81="","",(IF(ISNUMBER(MATCH(B81,[1]ExcPermit!$H$8:$H$1000,0)),"כן","לא"))) ->  | K81: =IF(B81="סך הכל",[1]Summary!$B$10,IF(F81="","",IFERROR(VLOOKUP(B81,[1]Count!A:J,8,FALSE),0))) ->  | L81: =IF(B81="סך הכל",[1]Summary!$B$11,IF(F81="","",IFERROR(VLOOKUP(B81,[1]Count!A:J,9,FALSE),0))) ->  | M81: =IF(B81="סך הכל",[1]Summary!$B$12,IF(F81="","",IFERROR(VLOOKUP(B81,[1]Count!A:J,10,FALSE),0))) ->  | O81: =IFERROR(VLOOKUP(B81,[1]Comments!A:B,2,FALSE),"") -> 
B82: =IF(AND(B80<>"",ISNUMBER(B80),B81=""),"סך הכל",IF([1]Planning!A85="","",[1]Planning!A85)) ->  | C82: =IFERROR(_xlfn.IFS(B82="סך הכל",[1]Summary!$B$6,[1]Planning!C85<>"",[1]Planning!C85),"") ->  | D82: =IFERROR(VLOOKUP(B82,[1]Address!B:G,5,FALSE),"") ->  | E82: =IFERROR(VLOOKUP(B82,[1]Address!B:L,11,FALSE),"") ->  | G82: =IF(B82="סך הכל",[1]Summary!$B$7,IF(F82="","",IF(VLOOKUP(B82,[1]WQ_UnitID!B:C,2,FALSE)=0,"",VLOOKUP(B82,[1]WQ_UnitID!B:C,2,FALSE)))) ->  | H82: =IF(B82="סך הכל",[1]Summary!$B$8,IF(F82="","",IFERROR(VLOOKUP(B82,[1]Planning!A:B,2,FALSE),0))) ->  | I82: =IF(B82="סך הכל",[1]Summary!$B$9,IF(F82="","",IFERROR(VLOOKUP(B82,[1]Count!A:B,2,FALSE),0))) ->  | J82: =IF(F82="","",(IF(ISNUMBER(MATCH(B82,[1]ExcPermit!$H$8:$H$1000,0)),"כן","לא"))) ->  | K82: =IF(B82="סך הכל",[1]Summary!$B$10,IF(F82="","",IFERROR(VLOOKUP(B82,[1]Count!A:J,8,FALSE),0))) ->  | L82: =IF(B82="סך הכל",[1]Summary!$B$11,IF(F82="","",IFERROR(VLOOKUP(B82,[1]Count!A:J,9,FALSE),0))) ->  | M82: =IF(B82="סך הכל",[1]Summary!$B$12,IF(F82="","",IFERROR(VLOOKUP(B82,[1]Count!A:J,10,FALSE),0))) ->  | O82: =IFERROR(VLOOKUP(B82,[1]Comments!A:B,2,FALSE),"") -> 
B83: =IF(AND(B81<>"",ISNUMBER(B81),B82=""),"סך הכל",IF([1]Planning!A86="","",[1]Planning!A86)) ->  | C83: =IFERROR(_xlfn.IFS(B83="סך הכל",[1]Summary!$B$6,[1]Planning!C86<>"",[1]Planning!C86),"") ->  | D83: =IFERROR(VLOOKUP(B83,[1]Address!B:G,5,FALSE),"") ->  | E83: =IFERROR(VLOOKUP(B83,[1]Address!B:L,11,FALSE),"") ->  | G83: =IF(B83="סך הכל",[1]Summary!$B$7,IF(F83="","",IF(VLOOKUP(B83,[1]WQ_UnitID!B:C,2,FALSE)=0,"",VLOOKUP(B83,[1]WQ_UnitID!B:C,2,FALSE)))) ->  | H83: =IF(B83="סך הכל",[1]Summary!$B$8,IF(F83="","",IFERROR(VLOOKUP(B83,[1]Planning!A:B,2,FALSE),0))) ->  | I83: =IF(B83="סך הכל",[1]Summary!$B$9,IF(F83="","",IFERROR(VLOOKUP(B83,[1]Count!A:B,2,FALSE),0))) ->  | J83: =IF(F83="","",(IF(ISNUMBER(MATCH(B83,[1]ExcPermit!$H$8:$H$1000,0)),"כן","לא"))) ->  | K83: =IF(B83="סך הכל",[1]Summary!$B$10,IF(F83="","",IFERROR(VLOOKUP(B83,[1]Count!A:J,8,FALSE),0))) ->  | L83: =IF(B83="סך הכל",[1]Summary!$B$11,IF(F83="","",IFERROR(VLOOKUP(B83,[1]Count!A:J,9,FALSE),0))) ->  | M83: =IF(B83="סך הכל",[1]Summary!$B$12,IF(F83="","",IFERROR(VLOOKUP(B83,[1]Count!A:J,10,FALSE),0))) ->  | O83: =IFERROR(VLOOKUP(B83,[1]Comments!A:B,2,FALSE),"") -> 
B84: =IF(AND(B82<>"",ISNUMBER(B82),B83=""),"סך הכל",IF([1]Planning!A87="","",[1]Planning!A87)) ->  | C84: =IFERROR(_xlfn.IFS(B84="סך הכל",[1]Summary!$B$6,[1]Planning!C87<>"",[1]Planning!C87),"") ->  | D84: =IFERROR(VLOOKUP(B84,[1]Address!B:G,5,FALSE),"") ->  | E84: =IFERROR(VLOOKUP(B84,[1]Address!B:L,11,FALSE),"") ->  | G84: =IF(B84="סך הכל",[1]Summary!$B$7,IF(F84="","",IF(VLOOKUP(B84,[1]WQ_UnitID!B:C,2,FALSE)=0,"",VLOOKUP(B84,[1]WQ_UnitID!B:C,2,FALSE)))) ->  | H84: =IF(B84="סך הכל",[1]Summary!$B$8,IF(F84="","",IFERROR(VLOOKUP(B84,[1]Planning!A:B,2,FALSE),0))) ->  | I84: =IF(B84="סך הכל",[1]Summary!$B$9,IF(F84="","",IFERROR(VLOOKUP(B84,[1]Count!A:B,2,FALSE),0))) ->  | J84: =IF(F84="","",(IF(ISNUMBER(MATCH(B84,[1]ExcPermit!$H$8:$H$1000,0)),"כן","לא"))) ->  | K84: =IF(B84="סך הכל",[1]Summary!$B$10,IF(F84="","",IFERROR(VLOOKUP(B84,[1]Count!A:J,8,FALSE),0))) ->  | L84: =IF(B84="סך הכל",[1]Summary!$B$11,IF(F84="","",IFERROR(VLOOKUP(B84,[1]Count!A:J,9,FALSE),0))) ->  | M84: =IF(B84="סך הכל",[1]Summary!$B$12,IF(F84="","",IFERROR(VLOOKUP(B84,[1]Count!A:J,10,FALSE),0))) ->  | O84: =IFERROR(VLOOKUP(B84,[1]Comments!A:B,2,FALSE),"") -> 
B85: =IF(AND(B83<>"",ISNUMBER(B83),B84=""),"סך הכל",IF([1]Planning!A88="","",[1]Planning!A88)) ->  | C85: =IFERROR(_xlfn.IFS(B85="סך הכל",[1]Summary!$B$6,[1]Planning!C88<>"",[1]Planning!C88),"") ->  | D85: =IFERROR(VLOOKUP(B85,[1]Address!B:G,5,FALSE),"") ->  | E85: =IFERROR(VLOOKUP(B85,[1]Address!B:L,11,FALSE),"") ->  | G85: =IF(B85="סך הכל",[1]Summary!$B$7,IF(F85="","",IF(VLOOKUP(B85,[1]WQ_UnitID!B:C,2,FALSE)=0,"",VLOOKUP(B85,[1]WQ_UnitID!B:C,2,FALSE)))) ->  | H85: =IF(B85="סך הכל",[1]Summary!$B$8,IF(F85="","",IFERROR(VLOOKUP(B85,[1]Planning!A:B,2,FALSE),0))) ->  | I85: =IF(B85="סך הכל",[1]Summary!$B$9,IF(F85="","",IFERROR(VLOOKUP(B85,[1]Count!A:B,2,FALSE),0))) ->  | J85: =IF(F85="","",(IF(ISNUMBER(MATCH(B85,[1]ExcPermit!$H$8:$H$1000,0)),"כן","לא"))) ->  | K85: =IF(B85="סך הכל",[1]Summary!$B$10,IF(F85="","",IFERROR(VLOOKUP(B85,[1]Count!A:J,8,FALSE),0))) ->  | L85: =IF(B85="סך הכל",[1]Summary!$B$11,IF(F85="","",IFERROR(VLOOKUP(B85,[1]Count!A:J,9,FALSE),0))) ->  | M85: =IF(B85="סך הכל",[1]Summary!$B$12,IF(F85="","",IFERROR(VLOOKUP(B85,[1]Count!A:J,10,FALSE),0))) ->  | O85: =IFERROR(VLOOKUP(B85,[1]Comments!A:B,2,FALSE),"") -> 
B86: =IF(AND(B84<>"",ISNUMBER(B84),B85=""),"סך הכל",IF([1]Planning!A89="","",[1]Planning!A89)) ->  | C86: =IFERROR(_xlfn.IFS(B86="סך הכל",[1]Summary!$B$6,[1]Planning!C89<>"",[1]Planning!C89),"") ->  | D86: =IFERROR(VLOOKUP(B86,[1]Address!B:G,5,FALSE),"") ->  | E86: =IFERROR(VLOOKUP(B86,[1]Address!B:L,11,FALSE),"") ->  | G86: =IF(B86="סך הכל",[1]Summary!$B$7,IF(F86="","",IF(VLOOKUP(B86,[1]WQ_UnitID!B:C,2,FALSE)=0,"",VLOOKUP(B86,[1]WQ_UnitID!B:C,2,FALSE)))) ->  | H86: =IF(B86="סך הכל",[1]Summary!$B$8,IF(F86="","",IFERROR(VLOOKUP(B86,[1]Planning!A:B,2,FALSE),0))) ->  | I86: =IF(B86="סך הכל",[1]Summary!$B$9,IF(F86="","",IFERROR(VLOOKUP(B86,[1]Count!A:B,2,FALSE),0))) ->  | J86: =IF(F86="","",(IF(ISNUMBER(MATCH(B86,[1]ExcPermit!$H$8:$H$1000,0)),"כן","לא"))) ->  | K86: =IF(B86="סך הכל",[1]Summary!$B$10,IF(F86="","",IFERROR(VLOOKUP(B86,[1]Count!A:J,8,FALSE),0))) ->  | L86: =IF(B86="סך הכל",[1]Summary!$B$11,IF(F86="","",IFERROR(VLOOKUP(B86,[1]Count!A:J,9,FALSE),0))) ->  | M86: =IF(B86="סך הכל",[1]Summary!$B$12,IF(F86="","",IFERROR(VLOOKUP(B86,[1]Count!A:J,10,FALSE),0))) ->  | O86: =IFERROR(VLOOKUP(B86,[1]Comments!A:B,2,FALSE),"") -> 
B87: =IF(AND(B85<>"",ISNUMBER(B85),B86=""),"סך הכל",IF([1]Planning!A90="","",[1]Planning!A90)) ->  | C87: =IFERROR(_xlfn.IFS(B87="סך הכל",[1]Summary!$B$6,[1]Planning!C90<>"",[1]Planning!C90),"") ->  | D87: =IFERROR(VLOOKUP(B87,[1]Address!B:G,5,FALSE),"") ->  | E87: =IFERROR(VLOOKUP(B87,[1]Address!B:L,11,FALSE),"") ->  | G87: =IF(B87="סך הכל",[1]Summary!$B$7,IF(F87="","",IF(VLOOKUP(B87,[1]WQ_UnitID!B:C,2,FALSE)=0,"",VLOOKUP(B87,[1]WQ_UnitID!B:C,2,FALSE)))) ->  | H87: =IF(B87="סך הכל",[1]Summary!$B$8,IF(F87="","",IFERROR(VLOOKUP(B87,[1]Planning!A:B,2,FALSE),0))) ->  | I87: =IF(B87="סך הכל",[1]Summary!$B$9,IF(F87="","",IFERROR(VLOOKUP(B87,[1]Count!A:B,2,FALSE),0))) ->  | J87: =IF(F87="","",(IF(ISNUMBER(MATCH(B87,[1]ExcPermit!$H$8:$H$1000,0)),"כן","לא"))) ->  | K87: =IF(B87="סך הכל",[1]Summary!$B$10,IF(F87="","",IFERROR(VLOOKUP(B87,[1]Count!A:J,8,FALSE),0))) ->  | L87: =IF(B87="סך הכל",[1]Summary!$B$11,IF(F87="","",IFERROR(VLOOKUP(B87,[1]Count!A:J,9,FALSE),0))) ->  | M87: =IF(B87="סך הכל",[1]Summary!$B$12,IF(F87="","",IFERROR(VLOOKUP(B87,[1]Count!A:J,10,FALSE),0))) ->  | O87: =IFERROR(VLOOKUP(B87,[1]Comments!A:B,2,FALSE),"") -> 
B88: =IF(AND(B86<>"",ISNUMBER(B86),B87=""),"סך הכל",IF([1]Planning!A91="","",[1]Planning!A91)) ->  | C88: =IFERROR(_xlfn.IFS(B88="סך הכל",[1]Summary!$B$6,[1]Planning!C91<>"",[1]Planning!C91),"") ->  | D88: =IFERROR(VLOOKUP(B88,[1]Address!B:G,5,FALSE),"") ->  | E88: =IFERROR(VLOOKUP(B88,[1]Address!B:L,11,FALSE),"") ->  | G88: =IF(B88="סך הכל",[1]Summary!$B$7,IF(F88="","",IF(VLOOKUP(B88,[1]WQ_UnitID!B:C,2,FALSE)=0,"",VLOOKUP(B88,[1]WQ_UnitID!B:C,2,FALSE)))) ->  | H88: =IF(B88="סך הכל",[1]Summary!$B$8,IF(F88="","",IFERROR(VLOOKUP(B88,[1]Planning!A:B,2,FALSE),0))) ->  | I88: =IF(B88="סך הכל",[1]Summary!$B$9,IF(F88="","",IFERROR(VLOOKUP(B88,[1]Count!A:B,2,FALSE),0))) ->  | J88: =IF(F88="","",(IF(ISNUMBER(MATCH(B88,[1]ExcPermit!$H$8:$H$1000,0)),"כן","לא"))) ->  | K88: =IF(B88="סך הכל",[1]Summary!$B$10,IF(F88="","",IFERROR(VLOOKUP(B88,[1]Count!A:J,8,FALSE),0))) ->  | L88: =IF(B88="סך הכל",[1]Summary!$B$11,IF(F88="","",IFERROR(VLOOKUP(B88,[1]Count!A:J,9,FALSE),0))) ->  | M88: =IF(B88="סך הכל",[1]Summary!$B$12,IF(F88="","",IFERROR(VLOOKUP(B88,[1]Count!A:J,10,FALSE),0))) ->  | O88: =IFERROR(VLOOKUP(B88,[1]Comments!A:B,2,FALSE),"") -> 
B89: =IF(AND(B87<>"",ISNUMBER(B87),B88=""),"סך הכל",IF([1]Planning!A92="","",[1]Planning!A92)) ->  | C89: =IFERROR(_xlfn.IFS(B89="סך הכל",[1]Summary!$B$6,[1]Planning!C92<>"",[1]Planning!C92),"") ->  | D89: =IFERROR(VLOOKUP(B89,[1]Address!B:G,5,FALSE),"") ->  | E89: =IFERROR(VLOOKUP(B89,[1]Address!B:L,11,FALSE),"") ->  | G89: =IF(B89="סך הכל",[1]Summary!$B$7,IF(F89="","",IF(VLOOKUP(B89,[1]WQ_UnitID!B:C,2,FALSE)=0,"",VLOOKUP(B89,[1]WQ_UnitID!B:C,2,FALSE)))) ->  | H89: =IF(B89="סך הכל",[1]Summary!$B$8,IF(F89="","",IFERROR(VLOOKUP(B89,[1]Planning!A:B,2,FALSE),0))) ->  | I89: =IF(B89="סך הכל",[1]Summary!$B$9,IF(F89="","",IFERROR(VLOOKUP(B89,[1]Count!A:B,2,FALSE),0))) ->  | J89: =IF(F89="","",(IF(ISNUMBER(MATCH(B89,[1]ExcPermit!$H$8:$H$1000,0)),"כן","לא"))) ->  | K89: =IF(B89="סך הכל",[1]Summary!$B$10,IF(F89="","",IFERROR(VLOOKUP(B89,[1]Count!A:J,8,FALSE),0))) ->  | L89: =IF(B89="סך הכל",[1]Summary!$B$11,IF(F89="","",IFERROR(VLOOKUP(B89,[1]Count!A:J,9,FALSE),0))) ->  | M89: =IF(B89="סך הכל",[1]Summary!$B$12,IF(F89="","",IFERROR(VLOOKUP(B89,[1]Count!A:J,10,FALSE),0))) ->  | O89: =IFERROR(VLOOKUP(B89,[1]Comments!A:B,2,FALSE),"") -> 
B90: =IF(AND(B88<>"",ISNUMBER(B88),B89=""),"סך הכל",IF([1]Planning!A93="","",[1]Planning!A93)) ->  | C90: =IFERROR(_xlfn.IFS(B90="סך הכל",[1]Summary!$B$6,[1]Planning!C93<>"",[1]Planning!C93),"") ->  | D90: =IFERROR(VLOOKUP(B90,[1]Address!B:G,5,FALSE),"") ->  | E90: =IFERROR(VLOOKUP(B90,[1]Address!B:L,11,FALSE),"") ->  | G90: =IF(B90="סך הכל",[1]Summary!$B$7,IF(F90="","",IF(VLOOKUP(B90,[1]WQ_UnitID!B:C,2,FALSE)=0,"",VLOOKUP(B90,[1]WQ_UnitID!B:C,2,FALSE)))) ->  | H90: =IF(B90="סך הכל",[1]Summary!$B$8,IF(F90="","",IFERROR(VLOOKUP(B90,[1]Planning!A:B,2,FALSE),0))) ->  | I90: =IF(B90="סך הכל",[1]Summary!$B$9,IF(F90="","",IFERROR(VLOOKUP(B90,[1]Count!A:B,2,FALSE),0))) ->  | J90: =IF(F90="","",(IF(ISNUMBER(MATCH(B90,[1]ExcPermit!$H$8:$H$1000,0)),"כן","לא"))) ->  | K90: =IF(B90="סך הכל",[1]Summary!$B$10,IF(F90="","",IFERROR(VLOOKUP(B90,[1]Count!A:J,8,FALSE),0))) ->  | L90: =IF(B90="סך הכל",[1]Summary!$B$11,IF(F90="","",IFERROR(VLOOKUP(B90,[1]Count!A:J,9,FALSE),0))) ->  | M90: =IF(B90="סך הכל",[1]Summary!$B$12,IF(F90="","",IFERROR(VLOOKUP(B90,[1]Count!A:J,10,FALSE),0))) ->  | O90: =IFERROR(VLOOKUP(B90,[1]Comments!A:B,2,FALSE),"") -> 
B91: =IF(AND(B89<>"",ISNUMBER(B89),B90=""),"סך הכל",IF([1]Planning!A94="","",[1]Planning!A94)) ->  | C91: =IFERROR(_xlfn.IFS(B91="סך הכל",[1]Summary!$B$6,[1]Planning!C94<>"",[1]Planning!C94),"") ->  | D91: =IFERROR(VLOOKUP(B91,[1]Address!B:G,5,FALSE),"") ->  | E91: =IFERROR(VLOOKUP(B91,[1]Address!B:L,11,FALSE),"") ->  | G91: =IF(B91="סך הכל",[1]Summary!$B$7,IF(F91="","",IF(VLOOKUP(B91,[1]WQ_UnitID!B:C,2,FALSE)=0,"",VLOOKUP(B91,[1]WQ_UnitID!B:C,2,FALSE)))) ->  | H91: =IF(B91="סך הכל",[1]Summary!$B$8,IF(F91="","",IFERROR(VLOOKUP(B91,[1]Planning!A:B,2,FALSE),0))) ->  | I91: =IF(B91="סך הכל",[1]Summary!$B$9,IF(F91="","",IFERROR(VLOOKUP(B91,[1]Count!A:B,2,FALSE),0))) ->  | J91: =IF(F91="","",(IF(ISNUMBER(MATCH(B91,[1]ExcPermit!$H$8:$H$1000,0)),"כן","לא"))) ->  | K91: =IF(B91="סך הכל",[1]Summary!$B$10,IF(F91="","",IFERROR(VLOOKUP(B91,[1]Count!A:J,8,FALSE),0))) ->  | L91: =IF(B91="סך הכל",[1]Summary!$B$11,IF(F91="","",IFERROR(VLOOKUP(B91,[1]Count!A:J,9,FALSE),0))) ->  | M91: =IF(B91="סך הכל",[1]Summary!$B$12,IF(F91="","",IFERROR(VLOOKUP(B91,[1]Count!A:J,10,FALSE),0))) ->  | O91: =IFERROR(VLOOKUP(B91,[1]Comments!A:B,2,FALSE),"") -> 
B92: =IF(AND(B90<>"",ISNUMBER(B90),B91=""),"סך הכל",IF([1]Planning!A95="","",[1]Planning!A95)) ->  | C92: =IFERROR(_xlfn.IFS(B92="סך הכל",[1]Summary!$B$6,[1]Planning!C95<>"",[1]Planning!C95),"") ->  | D92: =IFERROR(VLOOKUP(B92,[1]Address!B:G,5,FALSE),"") ->  | E92: =IFERROR(VLOOKUP(B92,[1]Address!B:L,11,FALSE),"") ->  | G92: =IF(B92="סך הכל",[1]Summary!$B$7,IF(F92="","",IF(VLOOKUP(B92,[1]WQ_UnitID!B:C,2,FALSE)=0,"",VLOOKUP(B92,[1]WQ_UnitID!B:C,2,FALSE)))) ->  | H92: =IF(B92="סך הכל",[1]Summary!$B$8,IF(F92="","",IFERROR(VLOOKUP(B92,[1]Planning!A:B,2,FALSE),0))) ->  | I92: =IF(B92="סך הכל",[1]Summary!$B$9,IF(F92="","",IFERROR(VLOOKUP(B92,[1]Count!A:B,2,FALSE),0))) ->  | J92: =IF(F92="","",(IF(ISNUMBER(MATCH(B92,[1]ExcPermit!$H$8:$H$1000,0)),"כן","לא"))) ->  | K92: =IF(B92="סך הכל",[1]Summary!$B$10,IF(F92="","",IFERROR(VLOOKUP(B92,[1]Count!A:J,8,FALSE),0))) ->  | L92: =IF(B92="סך הכל",[1]Summary!$B$11,IF(F92="","",IFERROR(VLOOKUP(B92,[1]Count!A:J,9,FALSE),0))) ->  | M92: =IF(B92="סך הכל",[1]Summary!$B$12,IF(F92="","",IFERROR(VLOOKUP(B92,[1]Count!A:J,10,FALSE),0))) ->  | O92: =IFERROR(VLOOKUP(B92,[1]Comments!A:B,2,FALSE),"") -> 
B93: =IF(AND(B91<>"",ISNUMBER(B91),B92=""),"סך הכל",IF([1]Planning!A96="","",[1]Planning!A96)) ->  | C93: =IFERROR(_xlfn.IFS(B93="סך הכל",[1]Summary!$B$6,[1]Planning!C96<>"",[1]Planning!C96),"") ->  | D93: =IFERROR(VLOOKUP(B93,[1]Address!B:G,5,FALSE),"") ->  | E93: =IFERROR(VLOOKUP(B93,[1]Address!B:L,11,FALSE),"") ->  | G93: =IF(B93="סך הכל",[1]Summary!$B$7,IF(F93="","",IF(VLOOKUP(B93,[1]WQ_UnitID!B:C,2,FALSE)=0,"",VLOOKUP(B93,[1]WQ_UnitID!B:C,2,FALSE)))) ->  | H93: =IF(B93="סך הכל",[1]Summary!$B$8,IF(F93="","",IFERROR(VLOOKUP(B93,[1]Planning!A:B,2,FALSE),0))) ->  | I93: =IF(B93="סך הכל",[1]Summary!$B$9,IF(F93="","",IFERROR(VLOOKUP(B93,[1]Count!A:B,2,FALSE),0))) ->  | J93: =IF(F93="","",(IF(ISNUMBER(MATCH(B93,[1]ExcPermit!$H$8:$H$1000,0)),"כן","לא"))) ->  | K93: =IF(B93="סך הכל",[1]Summary!$B$10,IF(F93="","",IFERROR(VLOOKUP(B93,[1]Count!A:J,8,FALSE),0))) ->  | L93: =IF(B93="סך הכל",[1]Summary!$B$11,IF(F93="","",IFERROR(VLOOKUP(B93,[1]Count!A:J,9,FALSE),0))) ->  | M93: =IF(B93="סך הכל",[1]Summary!$B$12,IF(F93="","",IFERROR(VLOOKUP(B93,[1]Count!A:J,10,FALSE),0))) ->  | O93: =IFERROR(VLOOKUP(B93,[1]Comments!A:B,2,FALSE),"") -> 
B94: =IF(AND(B92<>"",ISNUMBER(B92),B93=""),"סך הכל",IF([1]Planning!A97="","",[1]Planning!A97)) ->  | C94: =IFERROR(_xlfn.IFS(B94="סך הכל",[1]Summary!$B$6,[1]Planning!C97<>"",[1]Planning!C97),"") ->  | D94: =IFERROR(VLOOKUP(B94,[1]Address!B:G,5,FALSE),"") ->  | E94: =IFERROR(VLOOKUP(B94,[1]Address!B:L,11,FALSE),"") ->  | G94: =IF(B94="סך הכל",[1]Summary!$B$7,IF(F94="","",IF(VLOOKUP(B94,[1]WQ_UnitID!B:C,2,FALSE)=0,"",VLOOKUP(B94,[1]WQ_UnitID!B:C,2,FALSE)))) ->  | H94: =IF(B94="סך הכל",[1]Summary!$B$8,IF(F94="","",IFERROR(VLOOKUP(B94,[1]Planning!A:B,2,FALSE),0))) ->  | I94: =IF(B94="סך הכל",[1]Summary!$B$9,IF(F94="","",IFERROR(VLOOKUP(B94,[1]Count!A:B,2,FALSE),0))) ->  | J94: =IF(F94="","",(IF(ISNUMBER(MATCH(B94,[1]ExcPermit!$H$8:$H$1000,0)),"כן","לא"))) ->  | K94: =IF(B94="סך הכל",[1]Summary!$B$10,IF(F94="","",IFERROR(VLOOKUP(B94,[1]Count!A:J,8,FALSE),0))) ->  | L94: =IF(B94="סך הכל",[1]Summary!$B$11,IF(F94="","",IFERROR(VLOOKUP(B94,[1]Count!A:J,9,FALSE),0))) ->  | M94: =IF(B94="סך הכל",[1]Summary!$B$12,IF(F94="","",IFERROR(VLOOKUP(B94,[1]Count!A:J,10,FALSE),0))) ->  | O94: =IFERROR(VLOOKUP(B94,[1]Comments!A:B,2,FALSE),"") -> 
B95: =IF(AND(B93<>"",ISNUMBER(B93),B94=""),"סך הכל",IF([1]Planning!A98="","",[1]Planning!A98)) ->  | C95: =IFERROR(_xlfn.IFS(B95="סך הכל",[1]Summary!$B$6,[1]Planning!C98<>"",[1]Planning!C98),"") ->  | D95: =IFERROR(VLOOKUP(B95,[1]Address!B:G,5,FALSE),"") ->  | E95: =IFERROR(VLOOKUP(B95,[1]Address!B:L,11,FALSE),"") ->  | G95: =IF(B95="סך הכל",[1]Summary!$B$7,IF(F95="","",IF(VLOOKUP(B95,[1]WQ_UnitID!B:C,2,FALSE)=0,"",VLOOKUP(B95,[1]WQ_UnitID!B:C,2,FALSE)))) ->  | H95: =IF(B95="סך הכל",[1]Summary!$B$8,IF(F95="","",IFERROR(VLOOKUP(B95,[1]Planning!A:B,2,FALSE),0))) ->  | I95: =IF(B95="סך הכל",[1]Summary!$B$9,IF(F95="","",IFERROR(VLOOKUP(B95,[1]Count!A:B,2,FALSE),0))) ->  | J95: =IF(F95="","",(IF(ISNUMBER(MATCH(B95,[1]ExcPermit!$H$8:$H$1000,0)),"כן","לא"))) ->  | K95: =IF(B95="סך הכל",[1]Summary!$B$10,IF(F95="","",IFERROR(VLOOKUP(B95,[1]Count!A:J,8,FALSE),0))) ->  | L95: =IF(B95="סך הכל",[1]Summary!$B$11,IF(F95="","",IFERROR(VLOOKUP(B95,[1]Count!A:J,9,FALSE),0))) ->  | M95: =IF(B95="סך הכל",[1]Summary!$B$12,IF(F95="","",IFERROR(VLOOKUP(B95,[1]Count!A:J,10,FALSE),0))) ->  | O95: =IFERROR(VLOOKUP(B95,[1]Comments!A:B,2,FALSE),"") -> 
B96: =IF(AND(B94<>"",ISNUMBER(B94),B95=""),"סך הכל",IF([1]Planning!A99="","",[1]Planning!A99)) ->  | C96: =IFERROR(_xlfn.IFS(B96="סך הכל",[1]Summary!$B$6,[1]Planning!C99<>"",[1]Planning!C99),"") ->  | D96: =IFERROR(VLOOKUP(B96,[1]Address!B:G,5,FALSE),"") ->  | E96: =IFERROR(VLOOKUP(B96,[1]Address!B:L,11,FALSE),"") ->  | G96: =IF(B96="סך הכל",[1]Summary!$B$7,IF(F96="","",IF(VLOOKUP(B96,[1]WQ_UnitID!B:C,2,FALSE)=0,"",VLOOKUP(B96,[1]WQ_UnitID!B:C,2,FALSE)))) ->  | H96: =IF(B96="סך הכל",[1]Summary!$B$8,IF(F96="","",IFERROR(VLOOKUP(B96,[1]Planning!A:B,2,FALSE),0))) ->  | I96: =IF(B96="סך הכל",[1]Summary!$B$9,IF(F96="","",IFERROR(VLOOKUP(B96,[1]Count!A:B,2,FALSE),0))) ->  | J96: =IF(F96="","",(IF(ISNUMBER(MATCH(B96,[1]ExcPermit!$H$8:$H$1000,0)),"כן","לא"))) ->  | K96: =IF(B96="סך הכל",[1]Summary!$B$10,IF(F96="","",IFERROR(VLOOKUP(B96,[1]Count!A:J,8,FALSE),0))) ->  | L96: =IF(B96="סך הכל",[1]Summary!$B$11,IF(F96="","",IFERROR(VLOOKUP(B96,[1]Count!A:J,9,FALSE),0))) ->  | M96: =IF(B96="סך הכל",[1]Summary!$B$12,IF(F96="","",IFERROR(VLOOKUP(B96,[1]Count!A:J,10,FALSE),0))) ->  | O96: =IFERROR(VLOOKUP(B96,[1]Comments!A:B,2,FALSE),"") -> 
B97: =IF(AND(B95<>"",ISNUMBER(B95),B96=""),"סך הכל",IF([1]Planning!A100="","",[1]Planning!A100)) ->  | C97: =IFERROR(_xlfn.IFS(B97="סך הכל",[1]Summary!$B$6,[1]Planning!C100<>"",[1]Planning!C100),"") ->  | D97: =IFERROR(VLOOKUP(B97,[1]Address!B:G,5,FALSE),"") ->  | E97: =IFERROR(VLOOKUP(B97,[1]Address!B:L,11,FALSE),"") ->  | G97: =IF(B97="סך הכל",[1]Summary!$B$7,IF(F97="","",IF(VLOOKUP(B97,[1]WQ_UnitID!B:C,2,FALSE)=0,"",VLOOKUP(B97,[1]WQ_UnitID!B:C,2,FALSE)))) ->  | H97: =IF(B97="סך הכל",[1]Summary!$B$8,IF(F97="","",IFERROR(VLOOKUP(B97,[1]Planning!A:B,2,FALSE),0))) ->  | I97: =IF(B97="סך הכל",[1]Summary!$B$9,IF(F97="","",IFERROR(VLOOKUP(B97,[1]Count!A:B,2,FALSE),0))) ->  | J97: =IF(F97="","",(IF(ISNUMBER(MATCH(B97,[1]ExcPermit!$H$8:$H$1000,0)),"כן","לא"))) ->  | K97: =IF(B97="סך הכל",[1]Summary!$B$10,IF(F97="","",IFERROR(VLOOKUP(B97,[1]Count!A:J,8,FALSE),0))) ->  | L97: =IF(B97="סך הכל",[1]Summary!$B$11,IF(F97="","",IFERROR(VLOOKUP(B97,[1]Count!A:J,9,FALSE),0))) ->  | M97: =IF(B97="סך הכל",[1]Summary!$B$12,IF(F97="","",IFERROR(VLOOKUP(B97,[1]Count!A:J,10,FALSE),0))) ->  | O97: =IFERROR(VLOOKUP(B97,[1]Comments!A:B,2,FALSE),"") -> 
B98: =IF(AND(B96<>"",ISNUMBER(B96),B97=""),"סך הכל",IF([1]Planning!A101="","",[1]Planning!A101)) ->  | C98: =IFERROR(_xlfn.IFS(B98="סך הכל",[1]Summary!$B$6,[1]Planning!C101<>"",[1]Planning!C101),"") ->  | D98: =IFERROR(VLOOKUP(B98,[1]Address!B:G,5,FALSE),"") ->  | E98: =IFERROR(VLOOKUP(B98,[1]Address!B:L,11,FALSE),"") ->  | G98: =IF(B98="סך הכל",[1]Summary!$B$7,IF(F98="","",IF(VLOOKUP(B98,[1]WQ_UnitID!B:C,2,FALSE)=0,"",VLOOKUP(B98,[1]WQ_UnitID!B:C,2,FALSE)))) ->  | H98: =IF(B98="סך הכל",[1]Summary!$B$8,IF(F98="","",IFERROR(VLOOKUP(B98,[1]Planning!A:B,2,FALSE),0))) ->  | I98: =IF(B98="סך הכל",[1]Summary!$B$9,IF(F98="","",IFERROR(VLOOKUP(B98,[1]Count!A:B,2,FALSE),0))) ->  | J98: =IF(F98="","",(IF(ISNUMBER(MATCH(B98,[1]ExcPermit!$H$8:$H$1000,0)),"כן","לא"))) ->  | K98: =IF(B98="סך הכל",[1]Summary!$B$10,IF(F98="","",IFERROR(VLOOKUP(B98,[1]Count!A:J,8,FALSE),0))) ->  | L98: =IF(B98="סך הכל",[1]Summary!$B$11,IF(F98="","",IFERROR(VLOOKUP(B98,[1]Count!A:J,9,FALSE),0))) ->  | M98: =IF(B98="סך הכל",[1]Summary!$B$12,IF(F98="","",IFERROR(VLOOKUP(B98,[1]Count!A:J,10,FALSE),0))) ->  | O98: =IFERROR(VLOOKUP(B98,[1]Comments!A:B,2,FALSE),"") -> 
B99: =IF(AND(B97<>"",ISNUMBER(B97),B98=""),"סך הכל",IF([1]Planning!A102="","",[1]Planning!A102)) ->  | C99: =IFERROR(_xlfn.IFS(B99="סך הכל",[1]Summary!$B$6,[1]Planning!C102<>"",[1]Planning!C102),"") ->  | D99: =IFERROR(VLOOKUP(B99,[1]Address!B:G,5,FALSE),"") ->  | E99: =IFERROR(VLOOKUP(B99,[1]Address!B:L,11,FALSE),"") ->  | G99: =IF(B99="סך הכל",[1]Summary!$B$7,IF(F99="","",IF(VLOOKUP(B99,[1]WQ_UnitID!B:C,2,FALSE)=0,"",VLOOKUP(B99,[1]WQ_UnitID!B:C,2,FALSE)))) ->  | H99: =IF(B99="סך הכל",[1]Summary!$B$8,IF(F99="","",IFERROR(VLOOKUP(B99,[1]Planning!A:B,2,FALSE),0))) ->  | I99: =IF(B99="סך הכל",[1]Summary!$B$9,IF(F99="","",IFERROR(VLOOKUP(B99,[1]Count!A:B,2,FALSE),0))) ->  | J99: =IF(F99="","",(IF(ISNUMBER(MATCH(B99,[1]ExcPermit!$H$8:$H$1000,0)),"כן","לא"))) ->  | K99: =IF(B99="סך הכל",[1]Summary!$B$10,IF(F99="","",IFERROR(VLOOKUP(B99,[1]Count!A:J,8,FALSE),0))) ->  | L99: =IF(B99="סך הכל",[1]Summary!$B$11,IF(F99="","",IFERROR(VLOOKUP(B99,[1]Count!A:J,9,FALSE),0))) ->  | M99: =IF(B99="סך הכל",[1]Summary!$B$12,IF(F99="","",IFERROR(VLOOKUP(B99,[1]Count!A:J,10,FALSE),0))) ->  | O99: =IFERROR(VLOOKUP(B99,[1]Comments!A:B,2,FALSE),"") -> 
B100: =IF(AND(B98<>"",ISNUMBER(B98),B99=""),"סך הכל",IF([1]Planning!A103="","",[1]Planning!A103)) ->  | C100: =IFERROR(_xlfn.IFS(B100="סך הכל",[1]Summary!$B$6,[1]Planning!C103<>"",[1]Planning!C103),"") ->  | D100: =IFERROR(VLOOKUP(B100,[1]Address!B:G,5,FALSE),"") ->  | E100: =IFERROR(VLOOKUP(B100,[1]Address!B:L,11,FALSE),"") ->  | G100: =IF(B100="סך הכל",[1]Summary!$B$7,IF(F100="","",IF(VLOOKUP(B100,[1]WQ_UnitID!B:C,2,FALSE)=0,"",VLOOKUP(B100,[1]WQ_UnitID!B:C,2,FALSE)))) ->  | H100: =IF(B100="סך הכל",[1]Summary!$B$8,IF(F100="","",IFERROR(VLOOKUP(B100,[1]Planning!A:B,2,FALSE),0))) ->  | I100: =IF(B100="סך הכל",[1]Summary!$B$9,IF(F100="","",IFERROR(VLOOKUP(B100,[1]Count!A:B,2,FALSE),0))) ->  | J100: =IF(F100="","",(IF(ISNUMBER(MATCH(B100,[1]ExcPermit!$H$8:$H$1000,0)),"כן","לא"))) ->  | K100: =IF(B100="סך הכל",[1]Summary!$B$10,IF(F100="","",IFERROR(VLOOKUP(B100,[1]Count!A:J,8,FALSE),0))) ->  | L100: =IF(B100="סך הכל",[1]Summary!$B$11,IF(F100="","",IFERROR(VLOOKUP(B100,[1]Count!A:J,9,FALSE),0))) ->  | M100: =IF(B100="סך הכל",[1]Summary!$B$12,IF(F100="","",IFERROR(VLOOKUP(B100,[1]Count!A:J,10,FALSE),0))) ->  | O100: =IFERROR(VLOOKUP(B100,[1]Comments!A:B,2,FALSE),"") -> 
B101: =IF(AND(B99<>"",ISNUMBER(B99),B100=""),"סך הכל",IF([1]Planning!A104="","",[1]Planning!A104)) ->  | C101: =IFERROR(_xlfn.IFS(B101="סך הכל",[1]Summary!$B$6,[1]Planning!C104<>"",[1]Planning!C104),"") ->  | D101: =IFERROR(VLOOKUP(B101,[1]Address!B:G,5,FALSE),"") ->  | E101: =IFERROR(VLOOKUP(B101,[1]Address!B:L,11,FALSE),"") ->  | G101: =IF(B101="סך הכל",[1]Summary!$B$7,IF(F101="","",IF(VLOOKUP(B101,[1]WQ_UnitID!B:C,2,FALSE)=0,"",VLOOKUP(B101,[1]WQ_UnitID!B:C,2,FALSE)))) ->  | H101: =IF(B101="סך הכל",[1]Summary!$B$8,IF(F101="","",IFERROR(VLOOKUP(B101,[1]Planning!A:B,2,FALSE),0))) ->  | I101: =IF(B101="סך הכל",[1]Summary!$B$9,IF(F101="","",IFERROR(VLOOKUP(B101,[1]Count!A:B,2,FALSE),0))) ->  | J101: =IF(F101="","",(IF(ISNUMBER(MATCH(B101,[1]ExcPermit!$H$8:$H$1000,0)),"כן","לא"))) ->  | K101: =IF(B101="סך הכל",[1]Summary!$B$10,IF(F101="","",IFERROR(VLOOKUP(B101,[1]Count!A:J,8,FALSE),0))) ->  | L101: =IF(B101="סך הכל",[1]Summary!$B$11,IF(F101="","",IFERROR(VLOOKUP(B101,[1]Count!A:J,9,FALSE),0))) ->  | M101: =IF(B101="סך הכל",[1]Summary!$B$12,IF(F101="","",IFERROR(VLOOKUP(B101,[1]Count!A:J,10,FALSE),0))) ->  | O101: =IFERROR(VLOOKUP(B101,[1]Comments!A:B,2,FALSE),"") -> 
B102: =IF(AND(B100<>"",ISNUMBER(B100),B101=""),"סך הכל",IF([1]Planning!A105="","",[1]Planning!A105)) ->  | C102: =IFERROR(_xlfn.IFS(B102="סך הכל",[1]Summary!$B$6,[1]Planning!C105<>"",[1]Planning!C105),"") ->  | D102: =IFERROR(VLOOKUP(B102,[1]Address!B:G,5,FALSE),"") ->  | E102: =IFERROR(VLOOKUP(B102,[1]Address!B:L,11,FALSE),"") ->  | G102: =IF(B102="סך הכל",[1]Summary!$B$7,IF(F102="","",IF(VLOOKUP(B102,[1]WQ_UnitID!B:C,2,FALSE)=0,"",VLOOKUP(B102,[1]WQ_UnitID!B:C,2,FALSE)))) ->  | H102: =IF(B102="סך הכל",[1]Summary!$B$8,IF(F102="","",IFERROR(VLOOKUP(B102,[1]Planning!A:B,2,FALSE),0))) ->  | I102: =IF(B102="סך הכל",[1]Summary!$B$9,IF(F102="","",IFERROR(VLOOKUP(B102,[1]Count!A:B,2,FALSE),0))) ->  | J102: =IF(F102="","",(IF(ISNUMBER(MATCH(B102,[1]ExcPermit!$H$8:$H$1000,0)),"כן","לא"))) ->  | K102: =IF(B102="סך הכל",[1]Summary!$B$10,IF(F102="","",IFERROR(VLOOKUP(B102,[1]Count!A:J,8,FALSE),0))) ->  | L102: =IF(B102="סך הכל",[1]Summary!$B$11,IF(F102="","",IFERROR(VLOOKUP(B102,[1]Count!A:J,9,FALSE),0))) ->  | M102: =IF(B102="סך הכל",[1]Summary!$B$12,IF(F102="","",IFERROR(VLOOKUP(B102,[1]Count!A:J,10,FALSE),0))) ->  | O102: =IFERROR(VLOOKUP(B102,[1]Comments!A:B,2,FALSE),"") -> 
B103: =IF(AND(B101<>"",ISNUMBER(B101),B102=""),"סך הכל",IF([1]Planning!A106="","",[1]Planning!A106)) ->  | C103: =IFERROR(_xlfn.IFS(B103="סך הכל",[1]Summary!$B$6,[1]Planning!C106<>"",[1]Planning!C106),"") ->  | D103: =IFERROR(VLOOKUP(B103,[1]Address!B:G,5,FALSE),"") ->  | E103: =IFERROR(VLOOKUP(B103,[1]Address!B:L,11,FALSE),"") ->  | G103: =IF(B103="סך הכל",[1]Summary!$B$7,IF(F103="","",IF(VLOOKUP(B103,[1]WQ_UnitID!B:C,2,FALSE)=0,"",VLOOKUP(B103,[1]WQ_UnitID!B:C,2,FALSE)))) ->  | H103: =IF(B103="סך הכל",[1]Summary!$B$8,IF(F103="","",IFERROR(VLOOKUP(B103,[1]Planning!A:B,2,FALSE),0))) ->  | I103: =IF(B103="סך הכל",[1]Summary!$B$9,IF(F103="","",IFERROR(VLOOKUP(B103,[1]Count!A:B,2,FALSE),0))) ->  | J103: =IF(F103="","",(IF(ISNUMBER(MATCH(B103,[1]ExcPermit!$H$8:$H$1000,0)),"כן","לא"))) ->  | K103: =IF(B103="סך הכל",[1]Summary!$B$10,IF(F103="","",IFERROR(VLOOKUP(B103,[1]Count!A:J,8,FALSE),0))) ->  | L103: =IF(B103="סך הכל",[1]Summary!$B$11,IF(F103="","",IFERROR(VLOOKUP(B103,[1]Count!A:J,9,FALSE),0))) ->  | M103: =IF(B103="סך הכל",[1]Summary!$B$12,IF(F103="","",IFERROR(VLOOKUP(B103,[1]Count!A:J,10,FALSE),0))) ->  | O103: =IFERROR(VLOOKUP(B103,[1]Comments!A:B,2,FALSE),"") -> 
B104: =IF(AND(B102<>"",ISNUMBER(B102),B103=""),"סך הכל",IF([1]Planning!A107="","",[1]Planning!A107)) ->  | C104: =IFERROR(_xlfn.IFS(B104="סך הכל",[1]Summary!$B$6,[1]Planning!C107<>"",[1]Planning!C107),"") ->  | D104: =IFERROR(VLOOKUP(B104,[1]Address!B:G,5,FALSE),"") ->  | E104: =IFERROR(VLOOKUP(B104,[1]Address!B:L,11,FALSE),"") ->  | G104: =IF(B104="סך הכל",[1]Summary!$B$7,IF(F104="","",IF(VLOOKUP(B104,[1]WQ_UnitID!B:C,2,FALSE)=0,"",VLOOKUP(B104,[1]WQ_UnitID!B:C,2,FALSE)))) ->  | H104: =IF(B104="סך הכל",[1]Summary!$B$8,IF(F104="","",IFERROR(VLOOKUP(B104,[1]Planning!A:B,2,FALSE),0))) ->  | I104: =IF(B104="סך הכל",[1]Summary!$B$9,IF(F104="","",IFERROR(VLOOKUP(B104,[1]Count!A:B,2,FALSE),0))) ->  | J104: =IF(F104="","",(IF(ISNUMBER(MATCH(B104,[1]ExcPermit!$H$8:$H$1000,0)),"כן","לא"))) ->  | K104: =IF(B104="סך הכל",[1]Summary!$B$10,IF(F104="","",IFERROR(VLOOKUP(B104,[1]Count!A:J,8,FALSE),0))) ->  | L104: =IF(B104="סך הכל",[1]Summary!$B$11,IF(F104="","",IFERROR(VLOOKUP(B104,[1]Count!A:J,9,FALSE),0))) ->  | M104: =IF(B104="סך הכל",[1]Summary!$B$12,IF(F104="","",IFERROR(VLOOKUP(B104,[1]Count!A:J,10,FALSE),0))) ->  | O104: =IFERROR(VLOOKUP(B104,[1]Comments!A:B,2,FALSE),"") -> 
B105: =IF(AND(B103<>"",ISNUMBER(B103),B104=""),"סך הכל",IF([1]Planning!A108="","",[1]Planning!A108)) ->  | C105: =IFERROR(_xlfn.IFS(B105="סך הכל",[1]Summary!$B$6,[1]Planning!C108<>"",[1]Planning!C108),"") ->  | D105: =IFERROR(VLOOKUP(B105,[1]Address!B:G,5,FALSE),"") ->  | E105: =IFERROR(VLOOKUP(B105,[1]Address!B:L,11,FALSE),"") ->  | G105: =IF(B105="סך הכל",[1]Summary!$B$7,IF(F105="","",IF(VLOOKUP(B105,[1]WQ_UnitID!B:C,2,FALSE)=0,"",VLOOKUP(B105,[1]WQ_UnitID!B:C,2,FALSE)))) ->  | H105: =IF(B105="סך הכל",[1]Summary!$B$8,IF(F105="","",IFERROR(VLOOKUP(B105,[1]Planning!A:B,2,FALSE),0))) ->  | I105: =IF(B105="סך הכל",[1]Summary!$B$9,IF(F105="","",IFERROR(VLOOKUP(B105,[1]Count!A:B,2,FALSE),0))) ->  | J105: =IF(F105="","",(IF(ISNUMBER(MATCH(B105,[1]ExcPermit!$H$8:$H$1000,0)),"כן","לא"))) ->  | K105: =IF(B105="סך הכל",[1]Summary!$B$10,IF(F105="","",IFERROR(VLOOKUP(B105,[1]Count!A:J,8,FALSE),0))) ->  | L105: =IF(B105="סך הכל",[1]Summary!$B$11,IF(F105="","",IFERROR(VLOOKUP(B105,[1]Count!A:J,9,FALSE),0))) ->  | M105: =IF(B105="סך הכל",[1]Summary!$B$12,IF(F105="","",IFERROR(VLOOKUP(B105,[1]Count!A:J,10,FALSE),0))) ->  | O105: =IFERROR(VLOOKUP(B105,[1]Comments!A:B,2,FALSE),"") -> 
B106: =IF(AND(B104<>"",ISNUMBER(B104),B105=""),"סך הכל",IF([1]Planning!A109="","",[1]Planning!A109)) ->  | C106: =IFERROR(_xlfn.IFS(B106="סך הכל",[1]Summary!$B$6,[1]Planning!C109<>"",[1]Planning!C109),"") ->  | D106: =IFERROR(VLOOKUP(B106,[1]Address!B:G,5,FALSE),"") ->  | E106: =IFERROR(VLOOKUP(B106,[1]Address!B:L,11,FALSE),"") ->  | G106: =IF(B106="סך הכל",[1]Summary!$B$7,IF(F106="","",IF(VLOOKUP(B106,[1]WQ_UnitID!B:C,2,FALSE)=0,"",VLOOKUP(B106,[1]WQ_UnitID!B:C,2,FALSE)))) ->  | H106: =IF(B106="סך הכל",[1]Summary!$B$8,IF(F106="","",IFERROR(VLOOKUP(B106,[1]Planning!A:B,2,FALSE),0))) ->  | I106: =IF(B106="סך הכל",[1]Summary!$B$9,IF(F106="","",IFERROR(VLOOKUP(B106,[1]Count!A:B,2,FALSE),0))) ->  | J106: =IF(F106="","",(IF(ISNUMBER(MATCH(B106,[1]ExcPermit!$H$8:$H$1000,0)),"כן","לא"))) ->  | K106: =IF(B106="סך הכל",[1]Summary!$B$10,IF(F106="","",IFERROR(VLOOKUP(B106,[1]Count!A:J,8,FALSE),0))) ->  | L106: =IF(B106="סך הכל",[1]Summary!$B$11,IF(F106="","",IFERROR(VLOOKUP(B106,[1]Count!A:J,9,FALSE),0))) ->  | M106: =IF(B106="סך הכל",[1]Summary!$B$12,IF(F106="","",IFERROR(VLOOKUP(B106,[1]Count!A:J,10,FALSE),0))) ->  | O106: =IFERROR(VLOOKUP(B106,[1]Comments!A:B,2,FALSE),"") -> 
B107: =IF(AND(B105<>"",ISNUMBER(B105),B106=""),"סך הכל",IF([1]Planning!A110="","",[1]Planning!A110)) ->  | C107: =IFERROR(_xlfn.IFS(B107="סך הכל",[1]Summary!$B$6,[1]Planning!C110<>"",[1]Planning!C110),"") ->  | D107: =IFERROR(VLOOKUP(B107,[1]Address!B:G,5,FALSE),"") ->  | E107: =IFERROR(VLOOKUP(B107,[1]Address!B:L,11,FALSE),"") ->  | G107: =IF(B107="סך הכל",[1]Summary!$B$7,IF(F107="","",IF(VLOOKUP(B107,[1]WQ_UnitID!B:C,2,FALSE)=0,"",VLOOKUP(B107,[1]WQ_UnitID!B:C,2,FALSE)))) ->  | H107: =IF(B107="סך הכל",[1]Summary!$B$8,IF(F107="","",IFERROR(VLOOKUP(B107,[1]Planning!A:B,2,FALSE),0))) ->  | I107: =IF(B107="סך הכל",[1]Summary!$B$9,IF(F107="","",IFERROR(VLOOKUP(B107,[1]Count!A:B,2,FALSE),0))) ->  | J107: =IF(F107="","",(IF(ISNUMBER(MATCH(B107,[1]ExcPermit!$H$8:$H$1000,0)),"כן","לא"))) ->  | K107: =IF(B107="סך הכל",[1]Summary!$B$10,IF(F107="","",IFERROR(VLOOKUP(B107,[1]Count!A:J,8,FALSE),0))) ->  | L107: =IF(B107="סך הכל",[1]Summary!$B$11,IF(F107="","",IFERROR(VLOOKUP(B107,[1]Count!A:J,9,FALSE),0))) ->  | M107: =IF(B107="סך הכל",[1]Summary!$B$12,IF(F107="","",IFERROR(VLOOKUP(B107,[1]Count!A:J,10,FALSE),0))) ->  | O107: =IFERROR(VLOOKUP(B107,[1]Comments!A:B,2,FALSE),"") -> 
B108: =IF(AND(B106<>"",ISNUMBER(B106),B107=""),"סך הכל",IF([1]Planning!A111="","",[1]Planning!A111)) ->  | C108: =IFERROR(_xlfn.IFS(B108="סך הכל",[1]Summary!$B$6,[1]Planning!C111<>"",[1]Planning!C111),"") ->  | D108: =IFERROR(VLOOKUP(B108,[1]Address!B:G,5,FALSE),"") ->  | E108: =IFERROR(VLOOKUP(B108,[1]Address!B:L,11,FALSE),"") ->  | G108: =IF(B108="סך הכל",[1]Summary!$B$7,IF(F108="","",IF(VLOOKUP(B108,[1]WQ_UnitID!B:C,2,FALSE)=0,"",VLOOKUP(B108,[1]WQ_UnitID!B:C,2,FALSE)))) ->  | H108: =IF(B108="סך הכל",[1]Summary!$B$8,IF(F108="","",IFERROR(VLOOKUP(B108,[1]Planning!A:B,2,FALSE),0))) ->  | I108: =IF(B108="סך הכל",[1]Summary!$B$9,IF(F108="","",IFERROR(VLOOKUP(B108,[1]Count!A:B,2,FALSE),0))) ->  | J108: =IF(F108="","",(IF(ISNUMBER(MATCH(B108,[1]ExcPermit!$H$8:$H$1000,0)),"כן","לא"))) ->  | K108: =IF(B108="סך הכל",[1]Summary!$B$10,IF(F108="","",IFERROR(VLOOKUP(B108,[1]Count!A:J,8,FALSE),0))) ->  | L108: =IF(B108="סך הכל",[1]Summary!$B$11,IF(F108="","",IFERROR(VLOOKUP(B108,[1]Count!A:J,9,FALSE),0))) ->  | M108: =IF(B108="סך הכל",[1]Summary!$B$12,IF(F108="","",IFERROR(VLOOKUP(B108,[1]Count!A:J,10,FALSE),0))) ->  | O108: =IFERROR(VLOOKUP(B108,[1]Comments!A:B,2,FALSE),"") -> 
B109: =IF(AND(B107<>"",ISNUMBER(B107),B108=""),"סך הכל",IF([1]Planning!A112="","",[1]Planning!A112)) ->  | C109: =IFERROR(_xlfn.IFS(B109="סך הכל",[1]Summary!$B$6,[1]Planning!C112<>"",[1]Planning!C112),"") ->  | D109: =IFERROR(VLOOKUP(B109,[1]Address!B:G,5,FALSE),"") ->  | E109: =IFERROR(VLOOKUP(B109,[1]Address!B:L,11,FALSE),"") ->  | G109: =IF(B109="סך הכל",[1]Summary!$B$7,IF(F109="","",IF(VLOOKUP(B109,[1]WQ_UnitID!B:C,2,FALSE)=0,"",VLOOKUP(B109,[1]WQ_UnitID!B:C,2,FALSE)))) ->  | H109: =IF(B109="סך הכל",[1]Summary!$B$8,IF(F109="","",IFERROR(VLOOKUP(B109,[1]Planning!A:B,2,FALSE),0))) ->  | I109: =IF(B109="סך הכל",[1]Summary!$B$9,IF(F109="","",IFERROR(VLOOKUP(B109,[1]Count!A:B,2,FALSE),0))) ->  | J109: =IF(F109="","",(IF(ISNUMBER(MATCH(B109,[1]ExcPermit!$H$8:$H$1000,0)),"כן","לא"))) ->  | K109: =IF(B109="סך הכל",[1]Summary!$B$10,IF(F109="","",IFERROR(VLOOKUP(B109,[1]Count!A:J,8,FALSE),0))) ->  | L109: =IF(B109="סך הכל",[1]Summary!$B$11,IF(F109="","",IFERROR(VLOOKUP(B109,[1]Count!A:J,9,FALSE),0))) ->  | M109: =IF(B109="סך הכל",[1]Summary!$B$12,IF(F109="","",IFERROR(VLOOKUP(B109,[1]Count!A:J,10,FALSE),0))) ->  | O109: =IFERROR(VLOOKUP(B109,[1]Comments!A:B,2,FALSE),"") -> 
B110: =IF(AND(B108<>"",ISNUMBER(B108),B109=""),"סך הכל",IF([1]Planning!A113="","",[1]Planning!A113)) ->  | C110: =IFERROR(_xlfn.IFS(B110="סך הכל",[1]Summary!$B$6,[1]Planning!C113<>"",[1]Planning!C113),"") ->  | D110: =IFERROR(VLOOKUP(B110,[1]Address!B:G,5,FALSE),"") ->  | E110: =IFERROR(VLOOKUP(B110,[1]Address!B:L,11,FALSE),"") ->  | G110: =IF(B110="סך הכל",[1]Summary!$B$7,IF(F110="","",IF(VLOOKUP(B110,[1]WQ_UnitID!B:C,2,FALSE)=0,"",VLOOKUP(B110,[1]WQ_UnitID!B:C,2,FALSE)))) ->  | H110: =IF(B110="סך הכל",[1]Summary!$B$8,IF(F110="","",IFERROR(VLOOKUP(B110,[1]Planning!A:B,2,FALSE),0))) ->  | I110: =IF(B110="סך הכל",[1]Summary!$B$9,IF(F110="","",IFERROR(VLOOKUP(B110,[1]Count!A:B,2,FALSE),0))) ->  | J110: =IF(F110="","",(IF(ISNUMBER(MATCH(B110,[1]ExcPermit!$H$8:$H$1000,0)),"כן","לא"))) ->  | K110: =IF(B110="סך הכל",[1]Summary!$B$10,IF(F110="","",IFERROR(VLOOKUP(B110,[1]Count!A:J,8,FALSE),0))) ->  | L110: =IF(B110="סך הכל",[1]Summary!$B$11,IF(F110="","",IFERROR(VLOOKUP(B110,[1]Count!A:J,9,FALSE),0))) ->  | M110: =IF(B110="סך הכל",[1]Summary!$B$12,IF(F110="","",IFERROR(VLOOKUP(B110,[1]Count!A:J,10,FALSE),0))) ->  | O110: =IFERROR(VLOOKUP(B110,[1]Comments!A:B,2,FALSE),"") -> 
B111: =IF(AND(B109<>"",ISNUMBER(B109),B110=""),"סך הכל",IF([1]Planning!A114="","",[1]Planning!A114)) ->  | C111: =IFERROR(_xlfn.IFS(B111="סך הכל",[1]Summary!$B$6,[1]Planning!C114<>"",[1]Planning!C114),"") ->  | D111: =IFERROR(VLOOKUP(B111,[1]Address!B:G,5,FALSE),"") ->  | E111: =IFERROR(VLOOKUP(B111,[1]Address!B:L,11,FALSE),"") ->  | G111: =IF(B111="סך הכל",[1]Summary!$B$7,IF(F111="","",IF(VLOOKUP(B111,[1]WQ_UnitID!B:C,2,FALSE)=0,"",VLOOKUP(B111,[1]WQ_UnitID!B:C,2,FALSE)))) ->  | H111: =IF(B111="סך הכל",[1]Summary!$B$8,IF(F111="","",IFERROR(VLOOKUP(B111,[1]Planning!A:B,2,FALSE),0))) ->  | I111: =IF(B111="סך הכל",[1]Summary!$B$9,IF(F111="","",IFERROR(VLOOKUP(B111,[1]Count!A:B,2,FALSE),0))) ->  | J111: =IF(F111="","",(IF(ISNUMBER(MATCH(B111,[1]ExcPermit!$H$8:$H$1000,0)),"כן","לא"))) ->  | K111: =IF(B111="סך הכל",[1]Summary!$B$10,IF(F111="","",IFERROR(VLOOKUP(B111,[1]Count!A:J,8,FALSE),0))) ->  | L111: =IF(B111="סך הכל",[1]Summary!$B$11,IF(F111="","",IFERROR(VLOOKUP(B111,[1]Count!A:J,9,FALSE),0))) ->  | M111: =IF(B111="סך הכל",[1]Summary!$B$12,IF(F111="","",IFERROR(VLOOKUP(B111,[1]Count!A:J,10,FALSE),0))) ->  | O111: =IFERROR(VLOOKUP(B111,[1]Comments!A:B,2,FALSE),"") -> 
B112: =IF(AND(B110<>"",ISNUMBER(B110),B111=""),"סך הכל",IF([1]Planning!A115="","",[1]Planning!A115)) ->  | C112: =IFERROR(_xlfn.IFS(B112="סך הכל",[1]Summary!$B$6,[1]Planning!C115<>"",[1]Planning!C115),"") ->  | D112: =IFERROR(VLOOKUP(B112,[1]Address!B:G,5,FALSE),"") ->  | E112: =IFERROR(VLOOKUP(B112,[1]Address!B:L,11,FALSE),"") ->  | G112: =IF(B112="סך הכל",[1]Summary!$B$7,IF(F112="","",IF(VLOOKUP(B112,[1]WQ_UnitID!B:C,2,FALSE)=0,"",VLOOKUP(B112,[1]WQ_UnitID!B:C,2,FALSE)))) ->  | H112: =IF(B112="סך הכל",[1]Summary!$B$8,IF(F112="","",IFERROR(VLOOKUP(B112,[1]Planning!A:B,2,FALSE),0))) ->  | I112: =IF(B112="סך הכל",[1]Summary!$B$9,IF(F112="","",IFERROR(VLOOKUP(B112,[1]Count!A:B,2,FALSE),0))) ->  | J112: =IF(F112="","",(IF(ISNUMBER(MATCH(B112,[1]ExcPermit!$H$8:$H$1000,0)),"כן","לא"))) ->  | K112: =IF(B112="סך הכל",[1]Summary!$B$10,IF(F112="","",IFERROR(VLOOKUP(B112,[1]Count!A:J,8,FALSE),0))) ->  | L112: =IF(B112="סך הכל",[1]Summary!$B$11,IF(F112="","",IFERROR(VLOOKUP(B112,[1]Count!A:J,9,FALSE),0))) ->  | M112: =IF(B112="סך הכל",[1]Summary!$B$12,IF(F112="","",IFERROR(VLOOKUP(B112,[1]Count!A:J,10,FALSE),0))) ->  | O112: =IFERROR(VLOOKUP(B112,[1]Comments!A:B,2,FALSE),"") -> 
B113: =IF(AND(B111<>"",ISNUMBER(B111),B112=""),"סך הכל",IF([1]Planning!A116="","",[1]Planning!A116)) ->  | C113: =IFERROR(_xlfn.IFS(B113="סך הכל",[1]Summary!$B$6,[1]Planning!C116<>"",[1]Planning!C116),"") ->  | D113: =IFERROR(VLOOKUP(B113,[1]Address!B:G,5,FALSE),"") ->  | E113: =IFERROR(VLOOKUP(B113,[1]Address!B:L,11,FALSE),"") ->  | G113: =IF(B113="סך הכל",[1]Summary!$B$7,IF(F113="","",IF(VLOOKUP(B113,[1]WQ_UnitID!B:C,2,FALSE)=0,"",VLOOKUP(B113,[1]WQ_UnitID!B:C,2,FALSE)))) ->  | H113: =IF(B113="סך הכל",[1]Summary!$B$8,IF(F113="","",IFERROR(VLOOKUP(B113,[1]Planning!A:B,2,FALSE),0))) ->  | I113: =IF(B113="סך הכל",[1]Summary!$B$9,IF(F113="","",IFERROR(VLOOKUP(B113,[1]Count!A:B,2,FALSE),0))) ->  | J113: =IF(F113="","",(IF(ISNUMBER(MATCH(B113,[1]ExcPermit!$H$8:$H$1000,0)),"כן","לא"))) ->  | K113: =IF(B113="סך הכל",[1]Summary!$B$10,IF(F113="","",IFERROR(VLOOKUP(B113,[1]Count!A:J,8,FALSE),0))) ->  | L113: =IF(B113="סך הכל",[1]Summary!$B$11,IF(F113="","",IFERROR(VLOOKUP(B113,[1]Count!A:J,9,FALSE),0))) ->  | M113: =IF(B113="סך הכל",[1]Summary!$B$12,IF(F113="","",IFERROR(VLOOKUP(B113,[1]Count!A:J,10,FALSE),0))) ->  | O113: =IFERROR(VLOOKUP(B113,[1]Comments!A:B,2,FALSE),"") -> 
B114: =IF(AND(B112<>"",ISNUMBER(B112),B113=""),"סך הכל",IF([1]Planning!A117="","",[1]Planning!A117)) ->  | C114: =IFERROR(_xlfn.IFS(B114="סך הכל",[1]Summary!$B$6,[1]Planning!C117<>"",[1]Planning!C117),"") ->  | D114: =IFERROR(VLOOKUP(B114,[1]Address!B:G,5,FALSE),"") ->  | E114: =IFERROR(VLOOKUP(B114,[1]Address!B:L,11,FALSE),"") ->  | G114: =IF(B114="סך הכל",[1]Summary!$B$7,IF(F114="","",IF(VLOOKUP(B114,[1]WQ_UnitID!B:C,2,FALSE)=0,"",VLOOKUP(B114,[1]WQ_UnitID!B:C,2,FALSE)))) ->  | H114: =IF(B114="סך הכל",[1]Summary!$B$8,IF(F114="","",IFERROR(VLOOKUP(B114,[1]Planning!A:B,2,FALSE),0))) ->  | I114: =IF(B114="סך הכל",[1]Summary!$B$9,IF(F114="","",IFERROR(VLOOKUP(B114,[1]Count!A:B,2,FALSE),0))) ->  | J114: =IF(F114="","",(IF(ISNUMBER(MATCH(B114,[1]ExcPermit!$H$8:$H$1000,0)),"כן","לא"))) ->  | K114: =IF(B114="סך הכל",[1]Summary!$B$10,IF(F114="","",IFERROR(VLOOKUP(B114,[1]Count!A:J,8,FALSE),0))) ->  | L114: =IF(B114="סך הכל",[1]Summary!$B$11,IF(F114="","",IFERROR(VLOOKUP(B114,[1]Count!A:J,9,FALSE),0))) ->  | M114: =IF(B114="סך הכל",[1]Summary!$B$12,IF(F114="","",IFERROR(VLOOKUP(B114,[1]Count!A:J,10,FALSE),0))) ->  | O114: =IFERROR(VLOOKUP(B114,[1]Comments!A:B,2,FALSE),"") -> 
B115: =IF(AND(B113<>"",ISNUMBER(B113),B114=""),"סך הכל",IF([1]Planning!A118="","",[1]Planning!A118)) ->  | C115: =IFERROR(_xlfn.IFS(B115="סך הכל",[1]Summary!$B$6,[1]Planning!C118<>"",[1]Planning!C118),"") ->  | D115: =IFERROR(VLOOKUP(B115,[1]Address!B:G,5,FALSE),"") ->  | E115: =IFERROR(VLOOKUP(B115,[1]Address!B:L,11,FALSE),"") ->  | G115: =IF(B115="סך הכל",[1]Summary!$B$7,IF(F115="","",IF(VLOOKUP(B115,[1]WQ_UnitID!B:C,2,FALSE)=0,"",VLOOKUP(B115,[1]WQ_UnitID!B:C,2,FALSE)))) ->  | H115: =IF(B115="סך הכל",[1]Summary!$B$8,IF(F115="","",IFERROR(VLOOKUP(B115,[1]Planning!A:B,2,FALSE),0))) ->  | I115: =IF(B115="סך הכל",[1]Summary!$B$9,IF(F115="","",IFERROR(VLOOKUP(B115,[1]Count!A:B,2,FALSE),0))) ->  | J115: =IF(F115="","",(IF(ISNUMBER(MATCH(B115,[1]ExcPermit!$H$8:$H$1000,0)),"כן","לא"))) ->  | K115: =IF(B115="סך הכל",[1]Summary!$B$10,IF(F115="","",IFERROR(VLOOKUP(B115,[1]Count!A:J,8,FALSE),0))) ->  | L115: =IF(B115="סך הכל",[1]Summary!$B$11,IF(F115="","",IFERROR(VLOOKUP(B115,[1]Count!A:J,9,FALSE),0))) ->  | M115: =IF(B115="סך הכל",[1]Summary!$B$12,IF(F115="","",IFERROR(VLOOKUP(B115,[1]Count!A:J,10,FALSE),0))) ->  | O115: =IFERROR(VLOOKUP(B115,[1]Comments!A:B,2,FALSE),"") -> 
B116: =IF(AND(B114<>"",ISNUMBER(B114),B115=""),"סך הכל",IF([1]Planning!A119="","",[1]Planning!A119)) ->  | C116: =IFERROR(_xlfn.IFS(B116="סך הכל",[1]Summary!$B$6,[1]Planning!C119<>"",[1]Planning!C119),"") ->  | D116: =IFERROR(VLOOKUP(B116,[1]Address!B:G,5,FALSE),"") ->  | E116: =IFERROR(VLOOKUP(B116,[1]Address!B:L,11,FALSE),"") ->  | G116: =IF(B116="סך הכל",[1]Summary!$B$7,IF(F116="","",IF(VLOOKUP(B116,[1]WQ_UnitID!B:C,2,FALSE)=0,"",VLOOKUP(B116,[1]WQ_UnitID!B:C,2,FALSE)))) ->  | H116: =IF(B116="סך הכל",[1]Summary!$B$8,IF(F116="","",IFERROR(VLOOKUP(B116,[1]Planning!A:B,2,FALSE),0))) ->  | I116: =IF(B116="סך הכל",[1]Summary!$B$9,IF(F116="","",IFERROR(VLOOKUP(B116,[1]Count!A:B,2,FALSE),0))) ->  | J116: =IF(F116="","",(IF(ISNUMBER(MATCH(B116,[1]ExcPermit!$H$8:$H$1000,0)),"כן","לא"))) ->  | K116: =IF(B116="סך הכל",[1]Summary!$B$10,IF(F116="","",IFERROR(VLOOKUP(B116,[1]Count!A:J,8,FALSE),0))) ->  | L116: =IF(B116="סך הכל",[1]Summary!$B$11,IF(F116="","",IFERROR(VLOOKUP(B116,[1]Count!A:J,9,FALSE),0))) ->  | M116: =IF(B116="סך הכל",[1]Summary!$B$12,IF(F116="","",IFERROR(VLOOKUP(B116,[1]Count!A:J,10,FALSE),0))) ->  | O116: =IFERROR(VLOOKUP(B116,[1]Comments!A:B,2,FALSE),"") -> 
B117: =IF(AND(B115<>"",ISNUMBER(B115),B116=""),"סך הכל",IF([1]Planning!A120="","",[1]Planning!A120)) ->  | C117: =IFERROR(_xlfn.IFS(B117="סך הכל",[1]Summary!$B$6,[1]Planning!C120<>"",[1]Planning!C120),"") ->  | D117: =IFERROR(VLOOKUP(B117,[1]Address!B:G,5,FALSE),"") ->  | E117: =IFERROR(VLOOKUP(B117,[1]Address!B:L,11,FALSE),"") ->  | G117: =IF(B117="סך הכל",[1]Summary!$B$7,IF(F117="","",IF(VLOOKUP(B117,[1]WQ_UnitID!B:C,2,FALSE)=0,"",VLOOKUP(B117,[1]WQ_UnitID!B:C,2,FALSE)))) ->  | H117: =IF(B117="סך הכל",[1]Summary!$B$8,IF(F117="","",IFERROR(VLOOKUP(B117,[1]Planning!A:B,2,FALSE),0))) ->  | I117: =IF(B117="סך הכל",[1]Summary!$B$9,IF(F117="","",IFERROR(VLOOKUP(B117,[1]Count!A:B,2,FALSE),0))) ->  | J117: =IF(F117="","",(IF(ISNUMBER(MATCH(B117,[1]ExcPermit!$H$8:$H$1000,0)),"כן","לא"))) ->  | K117: =IF(B117="סך הכל",[1]Summary!$B$10,IF(F117="","",IFERROR(VLOOKUP(B117,[1]Count!A:J,8,FALSE),0))) ->  | L117: =IF(B117="סך הכל",[1]Summary!$B$11,IF(F117="","",IFERROR(VLOOKUP(B117,[1]Count!A:J,9,FALSE),0))) ->  | M117: =IF(B117="סך הכל",[1]Summary!$B$12,IF(F117="","",IFERROR(VLOOKUP(B117,[1]Count!A:J,10,FALSE),0))) ->  | O117: =IFERROR(VLOOKUP(B117,[1]Comments!A:B,2,FALSE),"") -> 
B118: =IF(AND(B116<>"",ISNUMBER(B116),B117=""),"סך הכל",IF([1]Planning!A121="","",[1]Planning!A121)) ->  | C118: =IFERROR(_xlfn.IFS(B118="סך הכל",[1]Summary!$B$6,[1]Planning!C121<>"",[1]Planning!C121),"") ->  | D118: =IFERROR(VLOOKUP(B118,[1]Address!B:G,5,FALSE),"") ->  | E118: =IFERROR(VLOOKUP(B118,[1]Address!B:L,11,FALSE),"") ->  | G118: =IF(B118="סך הכל",[1]Summary!$B$7,IF(F118="","",IF(VLOOKUP(B118,[1]WQ_UnitID!B:C,2,FALSE)=0,"",VLOOKUP(B118,[1]WQ_UnitID!B:C,2,FALSE)))) ->  | H118: =IF(B118="סך הכל",[1]Summary!$B$8,IF(F118="","",IFERROR(VLOOKUP(B118,[1]Planning!A:B,2,FALSE),0))) ->  | I118: =IF(B118="סך הכל",[1]Summary!$B$9,IF(F118="","",IFERROR(VLOOKUP(B118,[1]Count!A:B,2,FALSE),0))) ->  | J118: =IF(F118="","",(IF(ISNUMBER(MATCH(B118,[1]ExcPermit!$H$8:$H$1000,0)),"כן","לא"))) ->  | K118: =IF(B118="סך הכל",[1]Summary!$B$10,IF(F118="","",IFERROR(VLOOKUP(B118,[1]Count!A:J,8,FALSE),0))) ->  | L118: =IF(B118="סך הכל",[1]Summary!$B$11,IF(F118="","",IFERROR(VLOOKUP(B118,[1]Count!A:J,9,FALSE),0))) ->  | M118: =IF(B118="סך הכל",[1]Summary!$B$12,IF(F118="","",IFERROR(VLOOKUP(B118,[1]Count!A:J,10,FALSE),0))) ->  | O118: =IFERROR(VLOOKUP(B118,[1]Comments!A:B,2,FALSE),"") -> 
B119: =IF(AND(B117<>"",ISNUMBER(B117),B118=""),"סך הכל",IF([1]Planning!A122="","",[1]Planning!A122)) ->  | C119: =IFERROR(_xlfn.IFS(B119="סך הכל",[1]Summary!$B$6,[1]Planning!C122<>"",[1]Planning!C122),"") ->  | D119: =IFERROR(VLOOKUP(B119,[1]Address!B:G,5,FALSE),"") ->  | E119: =IFERROR(VLOOKUP(B119,[1]Address!B:L,11,FALSE),"") ->  | G119: =IF(B119="סך הכל",[1]Summary!$B$7,IF(F119="","",IF(VLOOKUP(B119,[1]WQ_UnitID!B:C,2,FALSE)=0,"",VLOOKUP(B119,[1]WQ_UnitID!B:C,2,FALSE)))) ->  | H119: =IF(B119="סך הכל",[1]Summary!$B$8,IF(F119="","",IFERROR(VLOOKUP(B119,[1]Planning!A:B,2,FALSE),0))) ->  | I119: =IF(B119="סך הכל",[1]Summary!$B$9,IF(F119="","",IFERROR(VLOOKUP(B119,[1]Count!A:B,2,FALSE),0))) ->  | J119: =IF(F119="","",(IF(ISNUMBER(MATCH(B119,[1]ExcPermit!$H$8:$H$1000,0)),"כן","לא"))) ->  | K119: =IF(B119="סך הכל",[1]Summary!$B$10,IF(F119="","",IFERROR(VLOOKUP(B119,[1]Count!A:J,8,FALSE),0))) ->  | L119: =IF(B119="סך הכל",[1]Summary!$B$11,IF(F119="","",IFERROR(VLOOKUP(B119,[1]Count!A:J,9,FALSE),0))) ->  | M119: =IF(B119="סך הכל",[1]Summary!$B$12,IF(F119="","",IFERROR(VLOOKUP(B119,[1]Count!A:J,10,FALSE),0))) ->  | O119: =IFERROR(VLOOKUP(B119,[1]Comments!A:B,2,FALSE),"") -> 
B120: =IF(AND(B118<>"",ISNUMBER(B118),B119=""),"סך הכל",IF([1]Planning!A123="","",[1]Planning!A123)) ->  | C120: =IFERROR(_xlfn.IFS(B120="סך הכל",[1]Summary!$B$6,[1]Planning!C123<>"",[1]Planning!C123),"") ->  | D120: =IFERROR(VLOOKUP(B120,[1]Address!B:G,5,FALSE),"") ->  | E120: =IFERROR(VLOOKUP(B120,[1]Address!B:L,11,FALSE),"") ->  | G120: =IF(B120="סך הכל",[1]Summary!$B$7,IF(F120="","",IF(VLOOKUP(B120,[1]WQ_UnitID!B:C,2,FALSE)=0,"",VLOOKUP(B120,[1]WQ_UnitID!B:C,2,FALSE)))) ->  | H120: =IF(B120="סך הכל",[1]Summary!$B$8,IF(F120="","",IFERROR(VLOOKUP(B120,[1]Planning!A:B,2,FALSE),0))) ->  | I120: =IF(B120="סך הכל",[1]Summary!$B$9,IF(F120="","",IFERROR(VLOOKUP(B120,[1]Count!A:B,2,FALSE),0))) ->  | J120: =IF(F120="","",(IF(ISNUMBER(MATCH(B120,[1]ExcPermit!$H$8:$H$1000,0)),"כן","לא"))) ->  | K120: =IF(B120="סך הכל",[1]Summary!$B$10,IF(F120="","",IFERROR(VLOOKUP(B120,[1]Count!A:J,8,FALSE),0))) ->  | L120: =IF(B120="סך הכל",[1]Summary!$B$11,IF(F120="","",IFERROR(VLOOKUP(B120,[1]Count!A:J,9,FALSE),0))) ->  | M120: =IF(B120="סך הכל",[1]Summary!$B$12,IF(F120="","",IFERROR(VLOOKUP(B120,[1]Count!A:J,10,FALSE),0))) ->  | O120: =IFERROR(VLOOKUP(B120,[1]Comments!A:B,2,FALSE),"") -> 
B121: =IF(AND(B119<>"",ISNUMBER(B119),B120=""),"סך הכל",IF([1]Planning!A124="","",[1]Planning!A124)) ->  | C121: =IFERROR(_xlfn.IFS(B121="סך הכל",[1]Summary!$B$6,[1]Planning!C124<>"",[1]Planning!C124),"") ->  | D121: =IFERROR(VLOOKUP(B121,[1]Address!B:G,5,FALSE),"") ->  | E121: =IFERROR(VLOOKUP(B121,[1]Address!B:L,11,FALSE),"") ->  | G121: =IF(B121="סך הכל",[1]Summary!$B$7,IF(F121="","",IF(VLOOKUP(B121,[1]WQ_UnitID!B:C,2,FALSE)=0,"",VLOOKUP(B121,[1]WQ_UnitID!B:C,2,FALSE)))) ->  | H121: =IF(B121="סך הכל",[1]Summary!$B$8,IF(F121="","",IFERROR(VLOOKUP(B121,[1]Planning!A:B,2,FALSE),0))) ->  | I121: =IF(B121="סך הכל",[1]Summary!$B$9,IF(F121="","",IFERROR(VLOOKUP(B121,[1]Count!A:B,2,FALSE),0))) ->  | J121: =IF(F121="","",(IF(ISNUMBER(MATCH(B121,[1]ExcPermit!$H$8:$H$1000,0)),"כן","לא"))) ->  | K121: =IF(B121="סך הכל",[1]Summary!$B$10,IF(F121="","",IFERROR(VLOOKUP(B121,[1]Count!A:J,8,FALSE),0))) ->  | L121: =IF(B121="סך הכל",[1]Summary!$B$11,IF(F121="","",IFERROR(VLOOKUP(B121,[1]Count!A:J,9,FALSE),0))) ->  | M121: =IF(B121="סך הכל",[1]Summary!$B$12,IF(F121="","",IFERROR(VLOOKUP(B121,[1]Count!A:J,10,FALSE),0))) ->  | O121: =IFERROR(VLOOKUP(B121,[1]Comments!A:B,2,FALSE),"") -> 
B122: =IF(AND(B120<>"",ISNUMBER(B120),B121=""),"סך הכל",IF([1]Planning!A125="","",[1]Planning!A125)) ->  | C122: =IFERROR(_xlfn.IFS(B122="סך הכל",[1]Summary!$B$6,[1]Planning!C125<>"",[1]Planning!C125),"") ->  | D122: =IFERROR(VLOOKUP(B122,[1]Address!B:G,5,FALSE),"") ->  | E122: =IFERROR(VLOOKUP(B122,[1]Address!B:L,11,FALSE),"") ->  | G122: =IF(B122="סך הכל",[1]Summary!$B$7,IF(F122="","",IF(VLOOKUP(B122,[1]WQ_UnitID!B:C,2,FALSE)=0,"",VLOOKUP(B122,[1]WQ_UnitID!B:C,2,FALSE)))) ->  | H122: =IF(B122="סך הכל",[1]Summary!$B$8,IF(F122="","",IFERROR(VLOOKUP(B122,[1]Planning!A:B,2,FALSE),0))) ->  | I122: =IF(B122="סך הכל",[1]Summary!$B$9,IF(F122="","",IFERROR(VLOOKUP(B122,[1]Count!A:B,2,FALSE),0))) ->  | J122: =IF(F122="","",(IF(ISNUMBER(MATCH(B122,[1]ExcPermit!$H$8:$H$1000,0)),"כן","לא"))) ->  | K122: =IF(B122="סך הכל",[1]Summary!$B$10,IF(F122="","",IFERROR(VLOOKUP(B122,[1]Count!A:J,8,FALSE),0))) ->  | L122: =IF(B122="סך הכל",[1]Summary!$B$11,IF(F122="","",IFERROR(VLOOKUP(B122,[1]Count!A:J,9,FALSE),0))) ->  | M122: =IF(B122="סך הכל",[1]Summary!$B$12,IF(F122="","",IFERROR(VLOOKUP(B122,[1]Count!A:J,10,FALSE),0))) ->  | O122: =IFERROR(VLOOKUP(B122,[1]Comments!A:B,2,FALSE),"") -> 
B123: =IF(AND(B121<>"",ISNUMBER(B121),B122=""),"סך הכל",IF([1]Planning!A126="","",[1]Planning!A126)) ->  | C123: =IFERROR(_xlfn.IFS(B123="סך הכל",[1]Summary!$B$6,[1]Planning!C126<>"",[1]Planning!C126),"") ->  | D123: =IFERROR(VLOOKUP(B123,[1]Address!B:G,5,FALSE),"") ->  | E123: =IFERROR(VLOOKUP(B123,[1]Address!B:L,11,FALSE),"") ->  | G123: =IF(B123="סך הכל",[1]Summary!$B$7,IF(F123="","",IF(VLOOKUP(B123,[1]WQ_UnitID!B:C,2,FALSE)=0,"",VLOOKUP(B123,[1]WQ_UnitID!B:C,2,FALSE)))) ->  | H123: =IF(B123="סך הכל",[1]Summary!$B$8,IF(F123="","",IFERROR(VLOOKUP(B123,[1]Planning!A:B,2,FALSE),0))) ->  | I123: =IF(B123="סך הכל",[1]Summary!$B$9,IF(F123="","",IFERROR(VLOOKUP(B123,[1]Count!A:B,2,FALSE),0))) ->  | J123: =IF(F123="","",(IF(ISNUMBER(MATCH(B123,[1]ExcPermit!$H$8:$H$1000,0)),"כן","לא"))) ->  | K123: =IF(B123="סך הכל",[1]Summary!$B$10,IF(F123="","",IFERROR(VLOOKUP(B123,[1]Count!A:J,8,FALSE),0))) ->  | L123: =IF(B123="סך הכל",[1]Summary!$B$11,IF(F123="","",IFERROR(VLOOKUP(B123,[1]Count!A:J,9,FALSE),0))) ->  | M123: =IF(B123="סך הכל",[1]Summary!$B$12,IF(F123="","",IFERROR(VLOOKUP(B123,[1]Count!A:J,10,FALSE),0))) ->  | O123: =IFERROR(VLOOKUP(B123,[1]Comments!A:B,2,FALSE),"") -> 
B124: =IF(AND(B122<>"",ISNUMBER(B122),B123=""),"סך הכל",IF([1]Planning!A127="","",[1]Planning!A127)) ->  | C124: =IFERROR(_xlfn.IFS(B124="סך הכל",[1]Summary!$B$6,[1]Planning!C127<>"",[1]Planning!C127),"") ->  | D124: =IFERROR(VLOOKUP(B124,[1]Address!B:G,5,FALSE),"") ->  | E124: =IFERROR(VLOOKUP(B124,[1]Address!B:L,11,FALSE),"") ->  | G124: =IF(B124="סך הכל",[1]Summary!$B$7,IF(F124="","",IF(VLOOKUP(B124,[1]WQ_UnitID!B:C,2,FALSE)=0,"",VLOOKUP(B124,[1]WQ_UnitID!B:C,2,FALSE)))) ->  | H124: =IF(B124="סך הכל",[1]Summary!$B$8,IF(F124="","",IFERROR(VLOOKUP(B124,[1]Planning!A:B,2,FALSE),0))) ->  | I124: =IF(B124="סך הכל",[1]Summary!$B$9,IF(F124="","",IFERROR(VLOOKUP(B124,[1]Count!A:B,2,FALSE),0))) ->  | J124: =IF(F124="","",(IF(ISNUMBER(MATCH(B124,[1]ExcPermit!$H$8:$H$1000,0)),"כן","לא"))) ->  | K124: =IF(B124="סך הכל",[1]Summary!$B$10,IF(F124="","",IFERROR(VLOOKUP(B124,[1]Count!A:J,8,FALSE),0))) ->  | L124: =IF(B124="סך הכל",[1]Summary!$B$11,IF(F124="","",IFERROR(VLOOKUP(B124,[1]Count!A:J,9,FALSE),0))) ->  | M124: =IF(B124="סך הכל",[1]Summary!$B$12,IF(F124="","",IFERROR(VLOOKUP(B124,[1]Count!A:J,10,FALSE),0))) ->  | O124: =IFERROR(VLOOKUP(B124,[1]Comments!A:B,2,FALSE),"") -> 
B125: =IF(AND(B123<>"",ISNUMBER(B123),B124=""),"סך הכל",IF([1]Planning!A128="","",[1]Planning!A128)) ->  | C125: =IFERROR(_xlfn.IFS(B125="סך הכל",[1]Summary!$B$6,[1]Planning!C128<>"",[1]Planning!C128),"") ->  | D125: =IFERROR(VLOOKUP(B125,[1]Address!B:G,5,FALSE),"") ->  | E125: =IFERROR(VLOOKUP(B125,[1]Address!B:L,11,FALSE),"") ->  | G125: =IF(B125="סך הכל",[1]Summary!$B$7,IF(F125="","",IF(VLOOKUP(B125,[1]WQ_UnitID!B:C,2,FALSE)=0,"",VLOOKUP(B125,[1]WQ_UnitID!B:C,2,FALSE)))) ->  | H125: =IF(B125="סך הכל",[1]Summary!$B$8,IF(F125="","",IFERROR(VLOOKUP(B125,[1]Planning!A:B,2,FALSE),0))) ->  | I125: =IF(B125="סך הכל",[1]Summary!$B$9,IF(F125="","",IFERROR(VLOOKUP(B125,[1]Count!A:B,2,FALSE),0))) ->  | J125: =IF(F125="","",(IF(ISNUMBER(MATCH(B125,[1]ExcPermit!$H$8:$H$1000,0)),"כן","לא"))) ->  | K125: =IF(B125="סך הכל",[1]Summary!$B$10,IF(F125="","",IFERROR(VLOOKUP(B125,[1]Count!A:J,8,FALSE),0))) ->  | L125: =IF(B125="סך הכל",[1]Summary!$B$11,IF(F125="","",IFERROR(VLOOKUP(B125,[1]Count!A:J,9,FALSE),0))) ->  | M125: =IF(B125="סך הכל",[1]Summary!$B$12,IF(F125="","",IFERROR(VLOOKUP(B125,[1]Count!A:J,10,FALSE),0))) ->  | O125: =IFERROR(VLOOKUP(B125,[1]Comments!A:B,2,FALSE),"") -> 
B126: =IF(AND(B124<>"",ISNUMBER(B124),B125=""),"סך הכל",IF([1]Planning!A129="","",[1]Planning!A129)) ->  | C126: =IFERROR(_xlfn.IFS(B126="סך הכל",[1]Summary!$B$6,[1]Planning!C129<>"",[1]Planning!C129),"") ->  | D126: =IFERROR(VLOOKUP(B126,[1]Address!B:G,5,FALSE),"") ->  | E126: =IFERROR(VLOOKUP(B126,[1]Address!B:L,11,FALSE),"") ->  | G126: =IF(B126="סך הכל",[1]Summary!$B$7,IF(F126="","",IF(VLOOKUP(B126,[1]WQ_UnitID!B:C,2,FALSE)=0,"",VLOOKUP(B126,[1]WQ_UnitID!B:C,2,FALSE)))) ->  | H126: =IF(B126="סך הכל",[1]Summary!$B$8,IF(F126="","",IFERROR(VLOOKUP(B126,[1]Planning!A:B,2,FALSE),0))) ->  | I126: =IF(B126="סך הכל",[1]Summary!$B$9,IF(F126="","",IFERROR(VLOOKUP(B126,[1]Count!A:B,2,FALSE),0))) ->  | J126: =IF(F126="","",(IF(ISNUMBER(MATCH(B126,[1]ExcPermit!$H$8:$H$1000,0)),"כן","לא"))) ->  | K126: =IF(B126="סך הכל",[1]Summary!$B$10,IF(F126="","",IFERROR(VLOOKUP(B126,[1]Count!A:J,8,FALSE),0))) ->  | L126: =IF(B126="סך הכל",[1]Summary!$B$11,IF(F126="","",IFERROR(VLOOKUP(B126,[1]Count!A:J,9,FALSE),0))) ->  | M126: =IF(B126="סך הכל",[1]Summary!$B$12,IF(F126="","",IFERROR(VLOOKUP(B126,[1]Count!A:J,10,FALSE),0))) ->  | O126: =IFERROR(VLOOKUP(B126,[1]Comments!A:B,2,FALSE),"") -> 
B127: =IF(AND(B125<>"",ISNUMBER(B125),B126=""),"סך הכל",IF([1]Planning!A130="","",[1]Planning!A130)) ->  | C127: =IFERROR(_xlfn.IFS(B127="סך הכל",[1]Summary!$B$6,[1]Planning!C130<>"",[1]Planning!C130),"") ->  | D127: =IFERROR(VLOOKUP(B127,[1]Address!B:G,5,FALSE),"") ->  | E127: =IFERROR(VLOOKUP(B127,[1]Address!B:L,11,FALSE),"") ->  | G127: =IF(B127="סך הכל",[1]Summary!$B$7,IF(F127="","",IF(VLOOKUP(B127,[1]WQ_UnitID!B:C,2,FALSE)=0,"",VLOOKUP(B127,[1]WQ_UnitID!B:C,2,FALSE)))) ->  | H127: =IF(B127="סך הכל",[1]Summary!$B$8,IF(F127="","",IFERROR(VLOOKUP(B127,[1]Planning!A:B,2,FALSE),0))) ->  | I127: =IF(B127="סך הכל",[1]Summary!$B$9,IF(F127="","",IFERROR(VLOOKUP(B127,[1]Count!A:B,2,FALSE),0))) ->  | J127: =IF(F127="","",(IF(ISNUMBER(MATCH(B127,[1]ExcPermit!$H$8:$H$1000,0)),"כן","לא"))) ->  | K127: =IF(B127="סך הכל",[1]Summary!$B$10,IF(F127="","",IFERROR(VLOOKUP(B127,[1]Count!A:J,8,FALSE),0))) ->  | L127: =IF(B127="סך הכל",[1]Summary!$B$11,IF(F127="","",IFERROR(VLOOKUP(B127,[1]Count!A:J,9,FALSE),0))) ->  | M127: =IF(B127="סך הכל",[1]Summary!$B$12,IF(F127="","",IFERROR(VLOOKUP(B127,[1]Count!A:J,10,FALSE),0))) ->  | O127: =IFERROR(VLOOKUP(B127,[1]Comments!A:B,2,FALSE),"") -> 
B128: =IF(AND(B126<>"",ISNUMBER(B126),B127=""),"סך הכל",IF([1]Planning!A131="","",[1]Planning!A131)) ->  | C128: =IFERROR(_xlfn.IFS(B128="סך הכל",[1]Summary!$B$6,[1]Planning!C131<>"",[1]Planning!C131),"") ->  | D128: =IFERROR(VLOOKUP(B128,[1]Address!B:G,5,FALSE),"") ->  | E128: =IFERROR(VLOOKUP(B128,[1]Address!B:L,11,FALSE),"") ->  | G128: =IF(B128="סך הכל",[1]Summary!$B$7,IF(F128="","",IF(VLOOKUP(B128,[1]WQ_UnitID!B:C,2,FALSE)=0,"",VLOOKUP(B128,[1]WQ_UnitID!B:C,2,FALSE)))) ->  | H128: =IF(B128="סך הכל",[1]Summary!$B$8,IF(F128="","",IFERROR(VLOOKUP(B128,[1]Planning!A:B,2,FALSE),0))) ->  | I128: =IF(B128="סך הכל",[1]Summary!$B$9,IF(F128="","",IFERROR(VLOOKUP(B128,[1]Count!A:B,2,FALSE),0))) ->  | J128: =IF(F128="","",(IF(ISNUMBER(MATCH(B128,[1]ExcPermit!$H$8:$H$1000,0)),"כן","לא"))) ->  | K128: =IF(B128="סך הכל",[1]Summary!$B$10,IF(F128="","",IFERROR(VLOOKUP(B128,[1]Count!A:J,8,FALSE),0))) ->  | L128: =IF(B128="סך הכל",[1]Summary!$B$11,IF(F128="","",IFERROR(VLOOKUP(B128,[1]Count!A:J,9,FALSE),0))) ->  | M128: =IF(B128="סך הכל",[1]Summary!$B$12,IF(F128="","",IFERROR(VLOOKUP(B128,[1]Count!A:J,10,FALSE),0))) ->  | O128: =IFERROR(VLOOKUP(B128,[1]Comments!A:B,2,FALSE),"") -> 
B129: =IF(AND(B127<>"",ISNUMBER(B127),B128=""),"סך הכל",IF([1]Planning!A132="","",[1]Planning!A132)) ->  | C129: =IFERROR(_xlfn.IFS(B129="סך הכל",[1]Summary!$B$6,[1]Planning!C132<>"",[1]Planning!C132),"") ->  | D129: =IFERROR(VLOOKUP(B129,[1]Address!B:G,5,FALSE),"") ->  | E129: =IFERROR(VLOOKUP(B129,[1]Address!B:L,11,FALSE),"") ->  | G129: =IF(B129="סך הכל",[1]Summary!$B$7,IF(F129="","",IF(VLOOKUP(B129,[1]WQ_UnitID!B:C,2,FALSE)=0,"",VLOOKUP(B129,[1]WQ_UnitID!B:C,2,FALSE)))) ->  | H129: =IF(B129="סך הכל",[1]Summary!$B$8,IF(F129="","",IFERROR(VLOOKUP(B129,[1]Planning!A:B,2,FALSE),0))) ->  | I129: =IF(B129="סך הכל",[1]Summary!$B$9,IF(F129="","",IFERROR(VLOOKUP(B129,[1]Count!A:B,2,FALSE),0))) ->  | J129: =IF(F129="","",(IF(ISNUMBER(MATCH(B129,[1]ExcPermit!$H$8:$H$1000,0)),"כן","לא"))) ->  | K129: =IF(B129="סך הכל",[1]Summary!$B$10,IF(F129="","",IFERROR(VLOOKUP(B129,[1]Count!A:J,8,FALSE),0))) ->  | L129: =IF(B129="סך הכל",[1]Summary!$B$11,IF(F129="","",IFERROR(VLOOKUP(B129,[1]Count!A:J,9,FALSE),0))) ->  | M129: =IF(B129="סך הכל",[1]Summary!$B$12,IF(F129="","",IFERROR(VLOOKUP(B129,[1]Count!A:J,10,FALSE),0))) ->  | O129: =IFERROR(VLOOKUP(B129,[1]Comments!A:B,2,FALSE),"") -> 
B130: =IF(AND(B128<>"",ISNUMBER(B128),B129=""),"סך הכל",IF([1]Planning!A133="","",[1]Planning!A133)) ->  | C130: =IFERROR(_xlfn.IFS(B130="סך הכל",[1]Summary!$B$6,[1]Planning!C133<>"",[1]Planning!C133),"") ->  | D130: =IFERROR(VLOOKUP(B130,[1]Address!B:G,5,FALSE),"") ->  | E130: =IFERROR(VLOOKUP(B130,[1]Address!B:L,11,FALSE),"") ->  | G130: =IF(B130="סך הכל",[1]Summary!$B$7,IF(F130="","",IF(VLOOKUP(B130,[1]WQ_UnitID!B:C,2,FALSE)=0,"",VLOOKUP(B130,[1]WQ_UnitID!B:C,2,FALSE)))) ->  | H130: =IF(B130="סך הכל",[1]Summary!$B$8,IF(F130="","",IFERROR(VLOOKUP(B130,[1]Planning!A:B,2,FALSE),0))) ->  | I130: =IF(B130="סך הכל",[1]Summary!$B$9,IF(F130="","",IFERROR(VLOOKUP(B130,[1]Count!A:B,2,FALSE),0))) ->  | J130: =IF(F130="","",(IF(ISNUMBER(MATCH(B130,[1]ExcPermit!$H$8:$H$1000,0)),"כן","לא"))) ->  | K130: =IF(B130="סך הכל",[1]Summary!$B$10,IF(F130="","",IFERROR(VLOOKUP(B130,[1]Count!A:J,8,FALSE),0))) ->  | L130: =IF(B130="סך הכל",[1]Summary!$B$11,IF(F130="","",IFERROR(VLOOKUP(B130,[1]Count!A:J,9,FALSE),0))) ->  | M130: =IF(B130="סך הכל",[1]Summary!$B$12,IF(F130="","",IFERROR(VLOOKUP(B130,[1]Count!A:J,10,FALSE),0))) ->  | O130: =IFERROR(VLOOKUP(B130,[1]Comments!A:B,2,FALSE),"") -> 
B131: =IF(AND(B129<>"",ISNUMBER(B129),B130=""),"סך הכל",IF([1]Planning!A134="","",[1]Planning!A134)) ->  | C131: =IFERROR(_xlfn.IFS(B131="סך הכל",[1]Summary!$B$6,[1]Planning!C134<>"",[1]Planning!C134),"") ->  | D131: =IFERROR(VLOOKUP(B131,[1]Address!B:G,5,FALSE),"") ->  | E131: =IFERROR(VLOOKUP(B131,[1]Address!B:L,11,FALSE),"") ->  | G131: =IF(B131="סך הכל",[1]Summary!$B$7,IF(F131="","",IF(VLOOKUP(B131,[1]WQ_UnitID!B:C,2,FALSE)=0,"",VLOOKUP(B131,[1]WQ_UnitID!B:C,2,FALSE)))) ->  | H131: =IF(B131="סך הכל",[1]Summary!$B$8,IF(F131="","",IFERROR(VLOOKUP(B131,[1]Planning!A:B,2,FALSE),0))) ->  | I131: =IF(B131="סך הכל",[1]Summary!$B$9,IF(F131="","",IFERROR(VLOOKUP(B131,[1]Count!A:B,2,FALSE),0))) ->  | J131: =IF(F131="","",(IF(ISNUMBER(MATCH(B131,[1]ExcPermit!$H$8:$H$1000,0)),"כן","לא"))) ->  | K131: =IF(B131="סך הכל",[1]Summary!$B$10,IF(F131="","",IFERROR(VLOOKUP(B131,[1]Count!A:J,8,FALSE),0))) ->  | L131: =IF(B131="סך הכל",[1]Summary!$B$11,IF(F131="","",IFERROR(VLOOKUP(B131,[1]Count!A:J,9,FALSE),0))) ->  | M131: =IF(B131="סך הכל",[1]Summary!$B$12,IF(F131="","",IFERROR(VLOOKUP(B131,[1]Count!A:J,10,FALSE),0))) ->  | O131: =IFERROR(VLOOKUP(B131,[1]Comments!A:B,2,FALSE),"") -> 
B132: =IF(AND(B130<>"",ISNUMBER(B130),B131=""),"סך הכל",IF([1]Planning!A135="","",[1]Planning!A135)) ->  | C132: =IFERROR(_xlfn.IFS(B132="סך הכל",[1]Summary!$B$6,[1]Planning!C135<>"",[1]Planning!C135),"") ->  | D132: =IFERROR(VLOOKUP(B132,[1]Address!B:G,5,FALSE),"") ->  | E132: =IFERROR(VLOOKUP(B132,[1]Address!B:L,11,FALSE),"") ->  | G132: =IF(B132="סך הכל",[1]Summary!$B$7,IF(F132="","",IF(VLOOKUP(B132,[1]WQ_UnitID!B:C,2,FALSE)=0,"",VLOOKUP(B132,[1]WQ_UnitID!B:C,2,FALSE)))) ->  | H132: =IF(B132="סך הכל",[1]Summary!$B$8,IF(F132="","",IFERROR(VLOOKUP(B132,[1]Planning!A:B,2,FALSE),0))) ->  | I132: =IF(B132="סך הכל",[1]Summary!$B$9,IF(F132="","",IFERROR(VLOOKUP(B132,[1]Count!A:B,2,FALSE),0))) ->  | J132: =IF(F132="","",(IF(ISNUMBER(MATCH(B132,[1]ExcPermit!$H$8:$H$1000,0)),"כן","לא"))) ->  | K132: =IF(B132="סך הכל",[1]Summary!$B$10,IF(F132="","",IFERROR(VLOOKUP(B132,[1]Count!A:J,8,FALSE),0))) ->  | L132: =IF(B132="סך הכל",[1]Summary!$B$11,IF(F132="","",IFERROR(VLOOKUP(B132,[1]Count!A:J,9,FALSE),0))) ->  | M132: =IF(B132="סך הכל",[1]Summary!$B$12,IF(F132="","",IFERROR(VLOOKUP(B132,[1]Count!A:J,10,FALSE),0))) ->  | O132: =IFERROR(VLOOKUP(B132,[1]Comments!A:B,2,FALSE),"") -> 
B133: =IF(AND(B131<>"",ISNUMBER(B131),B132=""),"סך הכל",IF([1]Planning!A136="","",[1]Planning!A136)) ->  | C133: =IFERROR(_xlfn.IFS(B133="סך הכל",[1]Summary!$B$6,[1]Planning!C136<>"",[1]Planning!C136),"") ->  | D133: =IFERROR(VLOOKUP(B133,[1]Address!B:G,5,FALSE),"") ->  | E133: =IFERROR(VLOOKUP(B133,[1]Address!B:L,11,FALSE),"") ->  | F133: =IF(ISNUMBER(B133),"חטף","") ->  | G133: =IF(B133="סך הכל",[1]Summary!$B$7,IF(F133="","",IF(VLOOKUP(B133,[1]WQ_UnitID!B:C,2,FALSE)=0,"",VLOOKUP(B133,[1]WQ_UnitID!B:C,2,FALSE)))) ->  | H133: =IF(B133="סך הכל",[1]Summary!$B$8,IF(F133="","",IFERROR(VLOOKUP(B133,[1]Planning!A:B,2,FALSE),0))) ->  | I133: =IF(B133="סך הכל",[1]Summary!$B$9,IF(F133="","",IFERROR(VLOOKUP(B133,[1]Count!A:B,2,FALSE),0))) ->  | J133: =IF(F133="","",(IF(ISNUMBER(MATCH(B133,[1]ExcPermit!$H$8:$H$1000,0)),"כן","לא"))) ->  | K133: =IF(B133="סך הכל",[1]Summary!$B$10,IF(F133="","",IFERROR(VLOOKUP(B133,[1]Count!A:J,8,FALSE),0))) ->  | L133: =IF(B133="סך הכל",[1]Summary!$B$11,IF(F133="","",IFERROR(VLOOKUP(B133,[1]Count!A:J,9,FALSE),0))) ->  | M133: =IF(B133="סך הכל",[1]Summary!$B$12,IF(F133="","",IFERROR(VLOOKUP(B133,[1]Count!A:J,10,FALSE),0))) ->  | O133: =IFERROR(VLOOKUP(B133,[1]Comments!A:B,2,FALSE),"") -> 
B134: =IF(AND(B132<>"",ISNUMBER(B132),B133=""),"סך הכל",IF([1]Planning!A137="","",[1]Planning!A137)) ->  | C134: =IFERROR(_xlfn.IFS(B134="סך הכל",[1]Summary!$B$6,[1]Planning!C137<>"",[1]Planning!C137),"") ->  | D134: =IFERROR(VLOOKUP(B134,[1]Address!B:G,5,FALSE),"") ->  | E134: =IFERROR(VLOOKUP(B134,[1]Address!B:L,11,FALSE),"") ->  | G134: =IF(B134="סך הכל",[1]Summary!$B$7,IF(F134="","",IF(VLOOKUP(B134,[1]WQ_UnitID!B:C,2,FALSE)=0,"",VLOOKUP(B134,[1]WQ_UnitID!B:C,2,FALSE)))) ->  | H134: =IF(B134="סך הכל",[1]Summary!$B$8,IF(F134="","",IFERROR(VLOOKUP(B134,[1]Planning!A:B,2,FALSE),0))) ->  | I134: =IF(B134="סך הכל",[1]Summary!$B$9,IF(F134="","",IFERROR(VLOOKUP(B134,[1]Count!A:B,2,FALSE),0))) ->  | J134: =IF(F134="","",(IF(ISNUMBER(MATCH(B134,[1]ExcPermit!$H$8:$H$1000,0)),"כן","לא"))) ->  | K134: =IF(B134="סך הכל",[1]Summary!$B$10,IF(F134="","",IFERROR(VLOOKUP(B134,[1]Count!A:J,8,FALSE),0))) ->  | L134: =IF(B134="סך הכל",[1]Summary!$B$11,IF(F134="","",IFERROR(VLOOKUP(B134,[1]Count!A:J,9,FALSE),0))) ->  | M134: =IF(B134="סך הכל",[1]Summary!$B$12,IF(F134="","",IFERROR(VLOOKUP(B134,[1]Count!A:J,10,FALSE),0))) ->  | N134: =IF(O134=0,"",O134) ->  | O134: =IFERROR(VLOOKUP(B134,[1]Comments!A:B,2,FALSE),"") -> 
B135: =IF(AND(B133<>"",ISNUMBER(B133),B134=""),"סך הכל",IF([1]Planning!A138="","",[1]Planning!A138)) ->  | C135: =IFERROR(_xlfn.IFS(B135="סך הכל",[1]Summary!$B$6,[1]Planning!C138<>"",[1]Planning!C138),"") ->  | D135: =IFERROR(VLOOKUP(B135,[1]Address!B:G,5,FALSE),"") ->  | E135: =IFERROR(VLOOKUP(B135,[1]Address!B:L,11,FALSE),"") ->  | G135: =IF(B135="סך הכל",[1]Summary!$B$7,IF(F135="","",IF(VLOOKUP(B135,[1]WQ_UnitID!B:C,2,FALSE)=0,"",VLOOKUP(B135,[1]WQ_UnitID!B:C,2,FALSE)))) ->  | H135: =IF(B135="סך הכל",[1]Summary!$B$8,IF(F135="","",IFERROR(VLOOKUP(B135,[1]Planning!A:B,2,FALSE),0))) ->  | I135: =IF(B135="סך הכל",[1]Summary!$B$9,IF(F135="","",IFERROR(VLOOKUP(B135,[1]Count!A:B,2,FALSE),0))) ->  | J135: =IF(F135="","",(IF(ISNUMBER(MATCH(B135,[1]ExcPermit!$H$8:$H$1000,0)),"כן","לא"))) ->  | K135: =IF(B135="סך הכל",[1]Summary!$B$10,IF(F135="","",IFERROR(VLOOKUP(B135,[1]Count!A:J,8,FALSE),0))) ->  | L135: =IF(B135="סך הכל",[1]Summary!$B$11,IF(F135="","",IFERROR(VLOOKUP(B135,[1]Count!A:J,9,FALSE),0))) ->  | M135: =IF(B135="סך הכל",[1]Summary!$B$12,IF(F135="","",IFERROR(VLOOKUP(B135,[1]Count!A:J,10,FALSE),0))) ->  | O135: =IFERROR(VLOOKUP(B135,[1]Comments!A:B,2,FALSE),"") -> 
B136: =IF(AND(B134<>"",ISNUMBER(B134),B135=""),"סך הכל",IF([1]Planning!A139="","",[1]Planning!A139)) ->  | C136: =IFERROR(_xlfn.IFS(B136="סך הכל",[1]Summary!$B$6,[1]Planning!C139<>"",[1]Planning!C139),"") ->  | D136: =IFERROR(VLOOKUP(B136,[1]Address!B:G,5,FALSE),"") ->  | E136: =IFERROR(VLOOKUP(B136,[1]Address!B:L,11,FALSE),"") ->  | G136: =IF(B136="סך הכל",[1]Summary!$B$7,IF(F136="","",IF(VLOOKUP(B136,[1]WQ_UnitID!B:C,2,FALSE)=0,"",VLOOKUP(B136,[1]WQ_UnitID!B:C,2,FALSE)))) ->  | H136: =IF(B136="סך הכל",[1]Summary!$B$8,IF(F136="","",IFERROR(VLOOKUP(B136,[1]Planning!A:B,2,FALSE),0))) ->  | I136: =IF(B136="סך הכל",[1]Summary!$B$9,IF(F136="","",IFERROR(VLOOKUP(B136,[1]Count!A:B,2,FALSE),0))) ->  | J136: =IF(F136="","",(IF(ISNUMBER(MATCH(B136,[1]ExcPermit!$H$8:$H$1000,0)),"כן","לא"))) ->  | K136: =IF(B136="סך הכל",[1]Summary!$B$10,IF(F136="","",IFERROR(VLOOKUP(B136,[1]Count!A:J,8,FALSE),0))) ->  | L136: =IF(B136="סך הכל",[1]Summary!$B$11,IF(F136="","",IFERROR(VLOOKUP(B136,[1]Count!A:J,9,FALSE),0))) ->  | M136: =IF(B136="סך הכל",[1]Summary!$B$12,IF(F136="","",IFERROR(VLOOKUP(B136,[1]Count!A:J,10,FALSE),0))) ->  | O136: =IFERROR(VLOOKUP(B136,[1]Comments!A:B,2,FALSE),"") -> 
B137: =IF(AND(B135<>"",ISNUMBER(B135),B136=""),"סך הכל",IF([1]Planning!A140="","",[1]Planning!A140)) ->  | C137: =IFERROR(_xlfn.IFS(B137="סך הכל",[1]Summary!$B$6,[1]Planning!C140<>"",[1]Planning!C140),"") ->  | D137: =IFERROR(VLOOKUP(B137,[1]Address!B:G,5,FALSE),"") ->  | E137: =IFERROR(VLOOKUP(B137,[1]Address!B:L,11,FALSE),"") ->  | G137: =IF(B137="סך הכל",[1]Summary!$B$7,IF(F137="","",IF(VLOOKUP(B137,[1]WQ_UnitID!B:C,2,FALSE)=0,"",VLOOKUP(B137,[1]WQ_UnitID!B:C,2,FALSE)))) ->  | H137: =IF(B137="סך הכל",[1]Summary!$B$8,IF(F137="","",IFERROR(VLOOKUP(B137,[1]Planning!A:B,2,FALSE),0))) ->  | I137: =IF(B137="סך הכל",[1]Summary!$B$9,IF(F137="","",IFERROR(VLOOKUP(B137,[1]Count!A:B,2,FALSE),0))) ->  | J137: =IF(F137="","",(IF(ISNUMBER(MATCH(B137,[1]ExcPermit!$H$8:$H$1000,0)),"כן","לא"))) ->  | K137: =IF(B137="סך הכל",[1]Summary!$B$10,IF(F137="","",IFERROR(VLOOKUP(B137,[1]Count!A:J,8,FALSE),0))) ->  | L137: =IF(B137="סך הכל",[1]Summary!$B$11,IF(F137="","",IFERROR(VLOOKUP(B137,[1]Count!A:J,9,FALSE),0))) ->  | M137: =IF(B137="סך הכל",[1]Summary!$B$12,IF(F137="","",IFERROR(VLOOKUP(B137,[1]Count!A:J,10,FALSE),0))) ->  | O137: =IFERROR(VLOOKUP(B137,[1]Comments!A:B,2,FALSE),"") -> 
B138: =IF(AND(B136<>"",ISNUMBER(B136),B137=""),"סך הכל",IF([1]Planning!A141="","",[1]Planning!A141)) ->  | C138: =IFERROR(_xlfn.IFS(B138="סך הכל",[1]Summary!$B$6,[1]Planning!C141<>"",[1]Planning!C141),"") ->  | D138: =IFERROR(VLOOKUP(B138,[1]Address!B:G,5,FALSE),"") ->  | E138: =IFERROR(VLOOKUP(B138,[1]Address!B:L,11,FALSE),"") ->  | G138: =IF(B138="סך הכל",[1]Summary!$B$7,IF(F138="","",IF(VLOOKUP(B138,[1]WQ_UnitID!B:C,2,FALSE)=0,"",VLOOKUP(B138,[1]WQ_UnitID!B:C,2,FALSE)))) ->  | H138: =IF(B138="סך הכל",[1]Summary!$B$8,IF(F138="","",IFERROR(VLOOKUP(B138,[1]Planning!A:B,2,FALSE),0))) ->  | I138: =IF(B138="סך הכל",[1]Summary!$B$9,IF(F138="","",IFERROR(VLOOKUP(B138,[1]Count!A:B,2,FALSE),0))) ->  | J138: =IF(F138="","",(IF(ISNUMBER(MATCH(B138,[1]ExcPermit!$H$8:$H$1000,0)),"כן","לא"))) ->  | K138: =IF(B138="סך הכל",[1]Summary!$B$10,IF(F138="","",IFERROR(VLOOKUP(B138,[1]Count!A:J,8,FALSE),0))) ->  | L138: =IF(B138="סך הכל",[1]Summary!$B$11,IF(F138="","",IFERROR(VLOOKUP(B138,[1]Count!A:J,9,FALSE),0))) ->  | M138: =IF(B138="סך הכל",[1]Summary!$B$12,IF(F138="","",IFERROR(VLOOKUP(B138,[1]Count!A:J,10,FALSE),0))) ->  | O138: =IFERROR(VLOOKUP(B138,[1]Comments!A:B,2,FALSE),"") -> 
B139: =IF(AND(B137<>"",ISNUMBER(B137),B138=""),"סך הכל",IF([1]Planning!A142="","",[1]Planning!A142)) ->  | C139: =IFERROR(_xlfn.IFS(B139="סך הכל",[1]Summary!$B$6,[1]Planning!C142<>"",[1]Planning!C142),"") ->  | D139: =IFERROR(VLOOKUP(B139,[1]Address!B:G,5,FALSE),"") ->  | E139: =IFERROR(VLOOKUP(B139,[1]Address!B:L,11,FALSE),"") ->  | G139: =IF(B139="סך הכל",[1]Summary!$B$7,IF(F139="","",IF(VLOOKUP(B139,[1]WQ_UnitID!B:C,2,FALSE)=0,"",VLOOKUP(B139,[1]WQ_UnitID!B:C,2,FALSE)))) ->  | H139: =IF(B139="סך הכל",[1]Summary!$B$8,IF(F139="","",IFERROR(VLOOKUP(B139,[1]Planning!A:B,2,FALSE),0))) ->  | I139: =IF(B139="סך הכל",[1]Summary!$B$9,IF(F139="","",IFERROR(VLOOKUP(B139,[1]Count!A:B,2,FALSE),0))) ->  | J139: =IF(F139="","",(IF(ISNUMBER(MATCH(B139,[1]ExcPermit!$H$8:$H$1000,0)),"כן","לא"))) ->  | K139: =IF(B139="סך הכל",[1]Summary!$B$10,IF(F139="","",IFERROR(VLOOKUP(B139,[1]Count!A:J,8,FALSE),0))) ->  | L139: =IF(B139="סך הכל",[1]Summary!$B$11,IF(F139="","",IFERROR(VLOOKUP(B139,[1]Count!A:J,9,FALSE),0))) ->  | M139: =IF(B139="סך הכל",[1]Summary!$B$12,IF(F139="","",IFERROR(VLOOKUP(B139,[1]Count!A:J,10,FALSE),0))) ->  | O139: =IFERROR(VLOOKUP(B139,[1]Comments!A:B,2,FALSE),"") -> 
B140: =IF(AND(B138<>"",ISNUMBER(B138),B139=""),"סך הכל",IF([1]Planning!A143="","",[1]Planning!A143)) ->  | C140: =IFERROR(_xlfn.IFS(B140="סך הכל",[1]Summary!$B$6,[1]Planning!C143<>"",[1]Planning!C143),"") ->  | D140: =IFERROR(VLOOKUP(B140,[1]Address!B:G,5,FALSE),"") ->  | E140: =IFERROR(VLOOKUP(B140,[1]Address!B:L,11,FALSE),"") ->  | G140: =IF(B140="סך הכל",[1]Summary!$B$7,IF(F140="","",IF(VLOOKUP(B140,[1]WQ_UnitID!B:C,2,FALSE)=0,"",VLOOKUP(B140,[1]WQ_UnitID!B:C,2,FALSE)))) ->  | H140: =IF(B140="סך הכל",[1]Summary!$B$8,IF(F140="","",IFERROR(VLOOKUP(B140,[1]Planning!A:B,2,FALSE),0))) ->  | I140: =IF(B140="סך הכל",[1]Summary!$B$9,IF(F140="","",IFERROR(VLOOKUP(B140,[1]Count!A:B,2,FALSE),0))) ->  | J140: =IF(F140="","",(IF(ISNUMBER(MATCH(B140,[1]ExcPermit!$H$8:$H$1000,0)),"כן","לא"))) ->  | K140: =IF(B140="סך הכל",[1]Summary!$B$10,IF(F140="","",IFERROR(VLOOKUP(B140,[1]Count!A:J,8,FALSE),0))) ->  | L140: =IF(B140="סך הכל",[1]Summary!$B$11,IF(F140="","",IFERROR(VLOOKUP(B140,[1]Count!A:J,9,FALSE),0))) ->  | M140: =IF(B140="סך הכל",[1]Summary!$B$12,IF(F140="","",IFERROR(VLOOKUP(B140,[1]Count!A:J,10,FALSE),0))) ->  | O140: =IFERROR(VLOOKUP(B140,[1]Comments!A:B,2,FALSE),"") -> 
B141: =IF(AND(B139<>"",ISNUMBER(B139),B140=""),"סך הכל",IF([1]Planning!A144="","",[1]Planning!A144)) ->  | C141: =IFERROR(_xlfn.IFS(B141="סך הכל",[1]Summary!$B$6,[1]Planning!C144<>"",[1]Planning!C144),"") ->  | D141: =IFERROR(VLOOKUP(B141,[1]Address!B:G,5,FALSE),"") ->  | E141: =IFERROR(VLOOKUP(B141,[1]Address!B:L,11,FALSE),"") ->  | G141: =IF(B141="סך הכל",[1]Summary!$B$7,IF(F141="","",IF(VLOOKUP(B141,[1]WQ_UnitID!B:C,2,FALSE)=0,"",VLOOKUP(B141,[1]WQ_UnitID!B:C,2,FALSE)))) ->  | H141: =IF(B141="סך הכל",[1]Summary!$B$8,IF(F141="","",IFERROR(VLOOKUP(B141,[1]Planning!A:B,2,FALSE),0))) ->  | I141: =IF(B141="סך הכל",[1]Summary!$B$9,IF(F141="","",IFERROR(VLOOKUP(B141,[1]Count!A:B,2,FALSE),0))) ->  | J141: =IF(F141="","",(IF(ISNUMBER(MATCH(B141,[1]ExcPermit!$H$8:$H$1000,0)),"כן","לא"))) ->  | K141: =IF(B141="סך הכל",[1]Summary!$B$10,IF(F141="","",IFERROR(VLOOKUP(B141,[1]Count!A:J,8,FALSE),0))) ->  | L141: =IF(B141="סך הכל",[1]Summary!$B$11,IF(F141="","",IFERROR(VLOOKUP(B141,[1]Count!A:J,9,FALSE),0))) ->  | M141: =IF(B141="סך הכל",[1]Summary!$B$12,IF(F141="","",IFERROR(VLOOKUP(B141,[1]Count!A:J,10,FALSE),0))) ->  | O141: =IFERROR(VLOOKUP(B141,[1]Comments!A:B,2,FALSE),"") -> 
B142: =IF(AND(B140<>"",ISNUMBER(B140),B141=""),"סך הכל",IF([1]Planning!A145="","",[1]Planning!A145)) ->  | C142: =IFERROR(_xlfn.IFS(B142="סך הכל",[1]Summary!$B$6,[1]Planning!C145<>"",[1]Planning!C145),"") ->  | D142: =IFERROR(VLOOKUP(B142,[1]Address!B:G,5,FALSE),"") ->  | E142: =IFERROR(VLOOKUP(B142,[1]Address!B:L,11,FALSE),"") ->  | G142: =IF(B142="סך הכל",[1]Summary!$B$7,IF(F142="","",IF(VLOOKUP(B142,[1]WQ_UnitID!B:C,2,FALSE)=0,"",VLOOKUP(B142,[1]WQ_UnitID!B:C,2,FALSE)))) ->  | H142: =IF(B142="סך הכל",[1]Summary!$B$8,IF(F142="","",IFERROR(VLOOKUP(B142,[1]Planning!A:B,2,FALSE),0))) ->  | I142: =IF(B142="סך הכל",[1]Summary!$B$9,IF(F142="","",IFERROR(VLOOKUP(B142,[1]Count!A:B,2,FALSE),0))) ->  | J142: =IF(F142="","",(IF(ISNUMBER(MATCH(B142,[1]ExcPermit!$H$8:$H$1000,0)),"כן","לא"))) ->  | K142: =IF(B142="סך הכל",[1]Summary!$B$10,IF(F142="","",IFERROR(VLOOKUP(B142,[1]Count!A:J,8,FALSE),0))) ->  | L142: =IF(B142="סך הכל",[1]Summary!$B$11,IF(F142="","",IFERROR(VLOOKUP(B142,[1]Count!A:J,9,FALSE),0))) ->  | M142: =IF(B142="סך הכל",[1]Summary!$B$12,IF(F142="","",IFERROR(VLOOKUP(B142,[1]Count!A:J,10,FALSE),0))) ->  | O142: =IFERROR(VLOOKUP(B142,[1]Comments!A:B,2,FALSE),"") -> 
B143: =IF(AND(B141<>"",ISNUMBER(B141),B142=""),"סך הכל",IF([1]Planning!A146="","",[1]Planning!A146)) ->  | C143: =IFERROR(_xlfn.IFS(B143="סך הכל",[1]Summary!$B$6,[1]Planning!C146<>"",[1]Planning!C146),"") ->  | D143: =IFERROR(VLOOKUP(B143,[1]Address!B:G,5,FALSE),"") ->  | E143: =IFERROR(VLOOKUP(B143,[1]Address!B:L,11,FALSE),"") ->  | G143: =IF(B143="סך הכל",[1]Summary!$B$7,IF(F143="","",IF(VLOOKUP(B143,[1]WQ_UnitID!B:C,2,FALSE)=0,"",VLOOKUP(B143,[1]WQ_UnitID!B:C,2,FALSE)))) ->  | H143: =IF(B143="סך הכל",[1]Summary!$B$8,IF(F143="","",IFERROR(VLOOKUP(B143,[1]Planning!A:B,2,FALSE),0))) ->  | I143: =IF(B143="סך הכל",[1]Summary!$B$9,IF(F143="","",IFERROR(VLOOKUP(B143,[1]Count!A:B,2,FALSE),0))) ->  | J143: =IF(F143="","",(IF(ISNUMBER(MATCH(B143,[1]ExcPermit!$H$8:$H$1000,0)),"כן","לא"))) ->  | K143: =IF(B143="סך הכל",[1]Summary!$B$10,IF(F143="","",IFERROR(VLOOKUP(B143,[1]Count!A:J,8,FALSE),0))) ->  | L143: =IF(B143="סך הכל",[1]Summary!$B$11,IF(F143="","",IFERROR(VLOOKUP(B143,[1]Count!A:J,9,FALSE),0))) ->  | M143: =IF(B143="סך הכל",[1]Summary!$B$12,IF(F143="","",IFERROR(VLOOKUP(B143,[1]Count!A:J,10,FALSE),0))) ->  | O143: =IFERROR(VLOOKUP(B143,[1]Comments!A:B,2,FALSE),"") -> 
B144: =IF(AND(B142<>"",ISNUMBER(B142),B143=""),"סך הכל",IF([1]Planning!A147="","",[1]Planning!A147)) ->  | C144: =IFERROR(_xlfn.IFS(B144="סך הכל",[1]Summary!$B$6,[1]Planning!C147<>"",[1]Planning!C147),"") ->  | D144: =IFERROR(VLOOKUP(B144,[1]Address!B:G,5,FALSE),"") ->  | E144: =IFERROR(VLOOKUP(B144,[1]Address!B:L,11,FALSE),"") ->  | G144: =IF(B144="סך הכל",[1]Summary!$B$7,IF(F144="","",IF(VLOOKUP(B144,[1]WQ_UnitID!B:C,2,FALSE)=0,"",VLOOKUP(B144,[1]WQ_UnitID!B:C,2,FALSE)))) ->  | H144: =IF(B144="סך הכל",[1]Summary!$B$8,IF(F144="","",IFERROR(VLOOKUP(B144,[1]Planning!A:B,2,FALSE),0))) ->  | I144: =IF(B144="סך הכל",[1]Summary!$B$9,IF(F144="","",IFERROR(VLOOKUP(B144,[1]Count!A:B,2,FALSE),0))) ->  | J144: =IF(F144="","",(IF(ISNUMBER(MATCH(B144,[1]ExcPermit!$H$8:$H$1000,0)),"כן","לא"))) ->  | K144: =IF(B144="סך הכל",[1]Summary!$B$10,IF(F144="","",IFERROR(VLOOKUP(B144,[1]Count!A:J,8,FALSE),0))) ->  | L144: =IF(B144="סך הכל",[1]Summary!$B$11,IF(F144="","",IFERROR(VLOOKUP(B144,[1]Count!A:J,9,FALSE),0))) ->  | M144: =IF(B144="סך הכל",[1]Summary!$B$12,IF(F144="","",IFERROR(VLOOKUP(B144,[1]Count!A:J,10,FALSE),0))) ->  | O144: =IFERROR(VLOOKUP(B144,[1]Comments!A:B,2,FALSE),"") -> 
B145: =IF(AND(B143<>"",ISNUMBER(B143),B144=""),"סך הכל",IF([1]Planning!A148="","",[1]Planning!A148)) ->  | C145: =IFERROR(_xlfn.IFS(B145="סך הכל",[1]Summary!$B$6,[1]Planning!C148<>"",[1]Planning!C148),"") ->  | D145: =IFERROR(VLOOKUP(B145,[1]Address!B:G,5,FALSE),"") ->  | E145: =IFERROR(VLOOKUP(B145,[1]Address!B:L,11,FALSE),"") ->  | G145: =IF(B145="סך הכל",[1]Summary!$B$7,IF(F145="","",IF(VLOOKUP(B145,[1]WQ_UnitID!B:C,2,FALSE)=0,"",VLOOKUP(B145,[1]WQ_UnitID!B:C,2,FALSE)))) ->  | H145: =IF(B145="סך הכל",[1]Summary!$B$8,IF(F145="","",IFERROR(VLOOKUP(B145,[1]Planning!A:B,2,FALSE),0))) ->  | I145: =IF(B145="סך הכל",[1]Summary!$B$9,IF(F145="","",IFERROR(VLOOKUP(B145,[1]Count!A:B,2,FALSE),0))) ->  | J145: =IF(F145="","",(IF(ISNUMBER(MATCH(B145,[1]ExcPermit!$H$8:$H$1000,0)),"כן","לא"))) ->  | K145: =IF(B145="סך הכל",[1]Summary!$B$10,IF(F145="","",IFERROR(VLOOKUP(B145,[1]Count!A:J,8,FALSE),0))) ->  | L145: =IF(B145="סך הכל",[1]Summary!$B$11,IF(F145="","",IFERROR(VLOOKUP(B145,[1]Count!A:J,9,FALSE),0))) ->  | M145: =IF(B145="סך הכל",[1]Summary!$B$12,IF(F145="","",IFERROR(VLOOKUP(B145,[1]Count!A:J,10,FALSE),0))) ->  | O145: =IFERROR(VLOOKUP(B145,[1]Comments!A:B,2,FALSE),"") -> 
B146: =IF(AND(B144<>"",ISNUMBER(B144),B145=""),"סך הכל",IF([1]Planning!A149="","",[1]Planning!A149)) ->  | C146: =IFERROR(_xlfn.IFS(B146="סך הכל",[1]Summary!$B$6,[1]Planning!C149<>"",[1]Planning!C149),"") ->  | D146: =IFERROR(VLOOKUP(B146,[1]Address!B:G,5,FALSE),"") ->  | E146: =IFERROR(VLOOKUP(B146,[1]Address!B:L,11,FALSE),"") ->  | G146: =IF(B146="סך הכל",[1]Summary!$B$7,IF(F146="","",IF(VLOOKUP(B146,[1]WQ_UnitID!B:C,2,FALSE)=0,"",VLOOKUP(B146,[1]WQ_UnitID!B:C,2,FALSE)))) ->  | H146: =IF(B146="סך הכל",[1]Summary!$B$8,IF(F146="","",IFERROR(VLOOKUP(B146,[1]Planning!A:B,2,FALSE),0))) ->  | I146: =IF(B146="סך הכל",[1]Summary!$B$9,IF(F146="","",IFERROR(VLOOKUP(B146,[1]Count!A:B,2,FALSE),0))) ->  | J146: =IF(F146="","",(IF(ISNUMBER(MATCH(B146,[1]ExcPermit!$H$8:$H$1000,0)),"כן","לא"))) ->  | K146: =IF(B146="סך הכל",[1]Summary!$B$10,IF(F146="","",IFERROR(VLOOKUP(B146,[1]Count!A:J,8,FALSE),0))) ->  | L146: =IF(B146="סך הכל",[1]Summary!$B$11,IF(F146="","",IFERROR(VLOOKUP(B146,[1]Count!A:J,9,FALSE),0))) ->  | M146: =IF(B146="סך הכל",[1]Summary!$B$12,IF(F146="","",IFERROR(VLOOKUP(B146,[1]Count!A:J,10,FALSE),0))) ->  | O146: =IFERROR(VLOOKUP(B146,[1]Comments!A:B,2,FALSE),"") -> 
B147: =IF(AND(B145<>"",ISNUMBER(B145),B146=""),"סך הכל",IF([1]Planning!A150="","",[1]Planning!A150)) ->  | C147: =IFERROR(_xlfn.IFS(B147="סך הכל",[1]Summary!$B$6,[1]Planning!C150<>"",[1]Planning!C150),"") ->  | D147: =IFERROR(VLOOKUP(B147,[1]Address!B:G,5,FALSE),"") ->  | E147: =IFERROR(VLOOKUP(B147,[1]Address!B:L,11,FALSE),"") ->  | G147: =IF(B147="סך הכל",[1]Summary!$B$7,IF(F147="","",IF(VLOOKUP(B147,[1]WQ_UnitID!B:C,2,FALSE)=0,"",VLOOKUP(B147,[1]WQ_UnitID!B:C,2,FALSE)))) ->  | H147: =IF(B147="סך הכל",[1]Summary!$B$8,IF(F147="","",IFERROR(VLOOKUP(B147,[1]Planning!A:B,2,FALSE),0))) ->  | I147: =IF(B147="סך הכל",[1]Summary!$B$9,IF(F147="","",IFERROR(VLOOKUP(B147,[1]Count!A:B,2,FALSE),0))) ->  | J147: =IF(F147="","",(IF(ISNUMBER(MATCH(B147,[1]ExcPermit!$H$8:$H$1000,0)),"כן","לא"))) ->  | K147: =IF(B147="סך הכל",[1]Summary!$B$10,IF(F147="","",IFERROR(VLOOKUP(B147,[1]Count!A:J,8,FALSE),0))) ->  | L147: =IF(B147="סך הכל",[1]Summary!$B$11,IF(F147="","",IFERROR(VLOOKUP(B147,[1]Count!A:J,9,FALSE),0))) ->  | M147: =IF(B147="סך הכל",[1]Summary!$B$12,IF(F147="","",IFERROR(VLOOKUP(B147,[1]Count!A:J,10,FALSE),0))) ->  | O147: =IFERROR(VLOOKUP(B147,[1]Comments!A:B,2,FALSE),"") -> 
B148: =IF(AND(B146<>"",ISNUMBER(B146),B147=""),"סך הכל",IF([1]Planning!A151="","",[1]Planning!A151)) ->  | C148: =IFERROR(_xlfn.IFS(B148="סך הכל",[1]Summary!$B$6,[1]Planning!C151<>"",[1]Planning!C151),"") ->  | D148: =IFERROR(VLOOKUP(B148,[1]Address!B:G,5,FALSE),"") ->  | E148: =IFERROR(VLOOKUP(B148,[1]Address!B:L,11,FALSE),"") ->  | G148: =IF(B148="סך הכל",[1]Summary!$B$7,IF(F148="","",IF(VLOOKUP(B148,[1]WQ_UnitID!B:C,2,FALSE)=0,"",VLOOKUP(B148,[1]WQ_UnitID!B:C,2,FALSE)))) ->  | H148: =IF(B148="סך הכל",[1]Summary!$B$8,IF(F148="","",IFERROR(VLOOKUP(B148,[1]Planning!A:B,2,FALSE),0))) ->  | I148: =IF(B148="סך הכל",[1]Summary!$B$9,IF(F148="","",IFERROR(VLOOKUP(B148,[1]Count!A:B,2,FALSE),0))) ->  | J148: =IF(F148="","",(IF(ISNUMBER(MATCH(B148,[1]ExcPermit!$H$8:$H$1000,0)),"כן","לא"))) ->  | K148: =IF(B148="סך הכל",[1]Summary!$B$10,IF(F148="","",IFERROR(VLOOKUP(B148,[1]Count!A:J,8,FALSE),0))) ->  | L148: =IF(B148="סך הכל",[1]Summary!$B$11,IF(F148="","",IFERROR(VLOOKUP(B148,[1]Count!A:J,9,FALSE),0))) ->  | M148: =IF(B148="סך הכל",[1]Summary!$B$12,IF(F148="","",IFERROR(VLOOKUP(B148,[1]Count!A:J,10,FALSE),0))) ->  | O148: =IFERROR(VLOOKUP(B148,[1]Comments!A:B,2,FALSE),"") -> 
B149: =IF(AND(B147<>"",ISNUMBER(B147),B148=""),"סך הכל",IF([1]Planning!A152="","",[1]Planning!A152)) ->  | C149: =IFERROR(_xlfn.IFS(B149="סך הכל",[1]Summary!$B$6,[1]Planning!C152<>"",[1]Planning!C152),"") ->  | D149: =IFERROR(VLOOKUP(B149,[1]Address!B:G,5,FALSE),"") ->  | E149: =IFERROR(VLOOKUP(B149,[1]Address!B:L,11,FALSE),"") ->  | G149: =IF(B149="סך הכל",[1]Summary!$B$7,IF(F149="","",IF(VLOOKUP(B149,[1]WQ_UnitID!B:C,2,FALSE)=0,"",VLOOKUP(B149,[1]WQ_UnitID!B:C,2,FALSE)))) ->  | H149: =IF(B149="סך הכל",[1]Summary!$B$8,IF(F149="","",IFERROR(VLOOKUP(B149,[1]Planning!A:B,2,FALSE),0))) ->  | I149: =IF(B149="סך הכל",[1]Summary!$B$9,IF(F149="","",IFERROR(VLOOKUP(B149,[1]Count!A:B,2,FALSE),0))) ->  | J149: =IF(F149="","",(IF(ISNUMBER(MATCH(B149,[1]ExcPermit!$H$8:$H$1000,0)),"כן","לא"))) ->  | K149: =IF(B149="סך הכל",[1]Summary!$B$10,IF(F149="","",IFERROR(VLOOKUP(B149,[1]Count!A:J,8,FALSE),0))) ->  | L149: =IF(B149="סך הכל",[1]Summary!$B$11,IF(F149="","",IFERROR(VLOOKUP(B149,[1]Count!A:J,9,FALSE),0))) ->  | M149: =IF(B149="סך הכל",[1]Summary!$B$12,IF(F149="","",IFERROR(VLOOKUP(B149,[1]Count!A:J,10,FALSE),0))) ->  | O149: =IFERROR(VLOOKUP(B149,[1]Comments!A:B,2,FALSE),"") -> 
B150: =IF(AND(B148<>"",ISNUMBER(B148),B149=""),"סך הכל",IF([1]Planning!A153="","",[1]Planning!A153)) ->  | C150: =IFERROR(_xlfn.IFS(B150="סך הכל",[1]Summary!$B$6,[1]Planning!C153<>"",[1]Planning!C153),"") ->  | D150: =IFERROR(VLOOKUP(B150,[1]Address!B:G,5,FALSE),"") ->  | E150: =IFERROR(VLOOKUP(B150,[1]Address!B:L,11,FALSE),"") ->  | G150: =IF(B150="סך הכל",[1]Summary!$B$7,IF(F150="","",IF(VLOOKUP(B150,[1]WQ_UnitID!B:C,2,FALSE)=0,"",VLOOKUP(B150,[1]WQ_UnitID!B:C,2,FALSE)))) ->  | H150: =IF(B150="סך הכל",[1]Summary!$B$8,IF(F150="","",IFERROR(VLOOKUP(B150,[1]Planning!A:B,2,FALSE),0))) ->  | I150: =IF(B150="סך הכל",[1]Summary!$B$9,IF(F150="","",IFERROR(VLOOKUP(B150,[1]Count!A:B,2,FALSE),0))) ->  | J150: =IF(F150="","",(IF(ISNUMBER(MATCH(B150,[1]ExcPermit!$H$8:$H$1000,0)),"כן","לא"))) ->  | K150: =IF(B150="סך הכל",[1]Summary!$B$10,IF(F150="","",IFERROR(VLOOKUP(B150,[1]Count!A:J,8,FALSE),0))) ->  | L150: =IF(B150="סך הכל",[1]Summary!$B$11,IF(F150="","",IFERROR(VLOOKUP(B150,[1]Count!A:J,9,FALSE),0))) ->  | M150: =IF(B150="סך הכל",[1]Summary!$B$12,IF(F150="","",IFERROR(VLOOKUP(B150,[1]Count!A:J,10,FALSE),0))) ->  | O150: =IFERROR(VLOOKUP(B150,[1]Comments!A:B,2,FALSE),"") -> 
B151: =IF(AND(B149<>"",ISNUMBER(B149),B150=""),"סך הכל",IF([1]Planning!A154="","",[1]Planning!A154)) ->  | C151: =IFERROR(_xlfn.IFS(B151="סך הכל",[1]Summary!$B$6,[1]Planning!C154<>"",[1]Planning!C154),"") ->  | D151: =IFERROR(VLOOKUP(B151,[1]Address!B:G,5,FALSE),"") ->  | E151: =IFERROR(VLOOKUP(B151,[1]Address!B:L,11,FALSE),"") ->  | G151: =IF(B151="סך הכל",[1]Summary!$B$7,IF(F151="","",IF(VLOOKUP(B151,[1]WQ_UnitID!B:C,2,FALSE)=0,"",VLOOKUP(B151,[1]WQ_UnitID!B:C,2,FALSE)))) ->  | H151: =IF(B151="סך הכל",[1]Summary!$B$8,IF(F151="","",IFERROR(VLOOKUP(B151,[1]Planning!A:B,2,FALSE),0))) ->  | I151: =IF(B151="סך הכל",[1]Summary!$B$9,IF(F151="","",IFERROR(VLOOKUP(B151,[1]Count!A:B,2,FALSE),0))) ->  | J151: =IF(F151="","",(IF(ISNUMBER(MATCH(B151,[1]ExcPermit!$H$8:$H$1000,0)),"כן","לא"))) ->  | K151: =IF(B151="סך הכל",[1]Summary!$B$10,IF(F151="","",IFERROR(VLOOKUP(B151,[1]Count!A:J,8,FALSE),0))) ->  | L151: =IF(B151="סך הכל",[1]Summary!$B$11,IF(F151="","",IFERROR(VLOOKUP(B151,[1]Count!A:J,9,FALSE),0))) ->  | M151: =IF(B151="סך הכל",[1]Summary!$B$12,IF(F151="","",IFERROR(VLOOKUP(B151,[1]Count!A:J,10,FALSE),0))) ->  | O151: =IFERROR(VLOOKUP(B151,[1]Comments!A:B,2,FALSE),"") -> 
B152: =IF(AND(B150<>"",ISNUMBER(B150),B151=""),"סך הכל",IF([1]Planning!A155="","",[1]Planning!A155)) ->  | C152: =IFERROR(_xlfn.IFS(B152="סך הכל",[1]Summary!$B$6,[1]Planning!C155<>"",[1]Planning!C155),"") ->  | D152: =IFERROR(VLOOKUP(B152,[1]Address!B:G,5,FALSE),"") ->  | E152: =IFERROR(VLOOKUP(B152,[1]Address!B:L,11,FALSE),"") ->  | G152: =IF(B152="סך הכל",[1]Summary!$B$7,IF(F152="","",IF(VLOOKUP(B152,[1]WQ_UnitID!B:C,2,FALSE)=0,"",VLOOKUP(B152,[1]WQ_UnitID!B:C,2,FALSE)))) ->  | H152: =IF(B152="סך הכל",[1]Summary!$B$8,IF(F152="","",IFERROR(VLOOKUP(B152,[1]Planning!A:B,2,FALSE),0))) ->  | I152: =IF(B152="סך הכל",[1]Summary!$B$9,IF(F152="","",IFERROR(VLOOKUP(B152,[1]Count!A:B,2,FALSE),0))) ->  | J152: =IF(F152="","",(IF(ISNUMBER(MATCH(B152,[1]ExcPermit!$H$8:$H$1000,0)),"כן","לא"))) ->  | K152: =IF(B152="סך הכל",[1]Summary!$B$10,IF(F152="","",IFERROR(VLOOKUP(B152,[1]Count!A:J,8,FALSE),0))) ->  | L152: =IF(B152="סך הכל",[1]Summary!$B$11,IF(F152="","",IFERROR(VLOOKUP(B152,[1]Count!A:J,9,FALSE),0))) ->  | M152: =IF(B152="סך הכל",[1]Summary!$B$12,IF(F152="","",IFERROR(VLOOKUP(B152,[1]Count!A:J,10,FALSE),0))) ->  | O152: =IFERROR(VLOOKUP(B152,[1]Comments!A:B,2,FALSE),"") -> 
B153: =IF(AND(B151<>"",ISNUMBER(B151),B152=""),"סך הכל",IF([1]Planning!A156="","",[1]Planning!A156)) ->  | C153: =IFERROR(_xlfn.IFS(B153="סך הכל",[1]Summary!$B$6,[1]Planning!C156<>"",[1]Planning!C156),"") ->  | D153: =IFERROR(VLOOKUP(B153,[1]Address!B:G,5,FALSE),"") ->  | E153: =IFERROR(VLOOKUP(B153,[1]Address!B:L,11,FALSE),"") ->  | G153: =IF(B153="סך הכל",[1]Summary!$B$7,IF(F153="","",IF(VLOOKUP(B153,[1]WQ_UnitID!B:C,2,FALSE)=0,"",VLOOKUP(B153,[1]WQ_UnitID!B:C,2,FALSE)))) ->  | H153: =IF(B153="סך הכל",[1]Summary!$B$8,IF(F153="","",IFERROR(VLOOKUP(B153,[1]Planning!A:B,2,FALSE),0))) ->  | I153: =IF(B153="סך הכל",[1]Summary!$B$9,IF(F153="","",IFERROR(VLOOKUP(B153,[1]Count!A:B,2,FALSE),0))) ->  | J153: =IF(F153="","",(IF(ISNUMBER(MATCH(B153,[1]ExcPermit!$H$8:$H$1000,0)),"כן","לא"))) ->  | K153: =IF(B153="סך הכל",[1]Summary!$B$10,IF(F153="","",IFERROR(VLOOKUP(B153,[1]Count!A:J,8,FALSE),0))) ->  | L153: =IF(B153="סך הכל",[1]Summary!$B$11,IF(F153="","",IFERROR(VLOOKUP(B153,[1]Count!A:J,9,FALSE),0))) ->  | M153: =IF(B153="סך הכל",[1]Summary!$B$12,IF(F153="","",IFERROR(VLOOKUP(B153,[1]Count!A:J,10,FALSE),0))) ->  | O153: =IFERROR(VLOOKUP(B153,[1]Comments!A:B,2,FALSE),"") -> 
B154: =IF(AND(B152<>"",ISNUMBER(B152),B153=""),"סך הכל",IF([1]Planning!A157="","",[1]Planning!A157)) ->  | C154: =IFERROR(_xlfn.IFS(B154="סך הכל",[1]Summary!$B$6,[1]Planning!C157<>"",[1]Planning!C157),"") ->  | D154: =IFERROR(VLOOKUP(B154,[1]Address!B:G,5,FALSE),"") ->  | E154: =IFERROR(VLOOKUP(B154,[1]Address!B:L,11,FALSE),"") ->  | G154: =IF(B154="סך הכל",[1]Summary!$B$7,IF(F154="","",IF(VLOOKUP(B154,[1]WQ_UnitID!B:C,2,FALSE)=0,"",VLOOKUP(B154,[1]WQ_UnitID!B:C,2,FALSE)))) ->  | H154: =IF(B154="סך הכל",[1]Summary!$B$8,IF(F154="","",IFERROR(VLOOKUP(B154,[1]Planning!A:B,2,FALSE),0))) ->  | I154: =IF(B154="סך הכל",[1]Summary!$B$9,IF(F154="","",IFERROR(VLOOKUP(B154,[1]Count!A:B,2,FALSE),0))) ->  | J154: =IF(F154="","",(IF(ISNUMBER(MATCH(B154,[1]ExcPermit!$H$8:$H$1000,0)),"כן","לא"))) ->  | K154: =IF(B154="סך הכל",[1]Summary!$B$10,IF(F154="","",IFERROR(VLOOKUP(B154,[1]Count!A:J,8,FALSE),0))) ->  | L154: =IF(B154="סך הכל",[1]Summary!$B$11,IF(F154="","",IFERROR(VLOOKUP(B154,[1]Count!A:J,9,FALSE),0))) ->  | M154: =IF(B154="סך הכל",[1]Summary!$B$12,IF(F154="","",IFERROR(VLOOKUP(B154,[1]Count!A:J,10,FALSE),0))) ->  | O154: =IFERROR(VLOOKUP(B154,[1]Comments!A:B,2,FALSE),"") -> 
B155: =IF(AND(B153<>"",ISNUMBER(B153),B154=""),"סך הכל",IF([1]Planning!A158="","",[1]Planning!A158)) ->  | C155: =IFERROR(_xlfn.IFS(B155="סך הכל",[1]Summary!$B$6,[1]Planning!C158<>"",[1]Planning!C158),"") ->  | D155: =IFERROR(VLOOKUP(B155,[1]Address!B:G,5,FALSE),"") ->  | E155: =IFERROR(VLOOKUP(B155,[1]Address!B:L,11,FALSE),"") ->  | G155: =IF(B155="סך הכל",[1]Summary!$B$7,IF(F155="","",IF(VLOOKUP(B155,[1]WQ_UnitID!B:C,2,FALSE)=0,"",VLOOKUP(B155,[1]WQ_UnitID!B:C,2,FALSE)))) ->  | H155: =IF(B155="סך הכל",[1]Summary!$B$8,IF(F155="","",IFERROR(VLOOKUP(B155,[1]Planning!A:B,2,FALSE),0))) ->  | I155: =IF(B155="סך הכל",[1]Summary!$B$9,IF(F155="","",IFERROR(VLOOKUP(B155,[1]Count!A:B,2,FALSE),0))) ->  | J155: =IF(F155="","",(IF(ISNUMBER(MATCH(B155,[1]ExcPermit!$H$8:$H$1000,0)),"כן","לא"))) ->  | K155: =IF(B155="סך הכל",[1]Summary!$B$10,IF(F155="","",IFERROR(VLOOKUP(B155,[1]Count!A:J,8,FALSE),0))) ->  | L155: =IF(B155="סך הכל",[1]Summary!$B$11,IF(F155="","",IFERROR(VLOOKUP(B155,[1]Count!A:J,9,FALSE),0))) ->  | M155: =IF(B155="סך הכל",[1]Summary!$B$12,IF(F155="","",IFERROR(VLOOKUP(B155,[1]Count!A:J,10,FALSE),0))) ->  | O155: =IFERROR(VLOOKUP(B155,[1]Comments!A:B,2,FALSE),"") -> 
B156: =IF(AND(B154<>"",ISNUMBER(B154),B155=""),"סך הכל",IF([1]Planning!A159="","",[1]Planning!A159)) ->  | C156: =IFERROR(_xlfn.IFS(B156="סך הכל",[1]Summary!$B$6,[1]Planning!C159<>"",[1]Planning!C159),"") ->  | D156: =IFERROR(VLOOKUP(B156,[1]Address!B:G,5,FALSE),"") ->  | E156: =IFERROR(VLOOKUP(B156,[1]Address!B:L,11,FALSE),"") ->  | G156: =IF(B156="סך הכל",[1]Summary!$B$7,IF(F156="","",IF(VLOOKUP(B156,[1]WQ_UnitID!B:C,2,FALSE)=0,"",VLOOKUP(B156,[1]WQ_UnitID!B:C,2,FALSE)))) ->  | H156: =IF(B156="סך הכל",[1]Summary!$B$8,IF(F156="","",IFERROR(VLOOKUP(B156,[1]Planning!A:B,2,FALSE),0))) ->  | I156: =IF(B156="סך הכל",[1]Summary!$B$9,IF(F156="","",IFERROR(VLOOKUP(B156,[1]Count!A:B,2,FALSE),0))) ->  | J156: =IF(F156="","",(IF(ISNUMBER(MATCH(B156,[1]ExcPermit!$H$8:$H$1000,0)),"כן","לא"))) ->  | K156: =IF(B156="סך הכל",[1]Summary!$B$10,IF(F156="","",IFERROR(VLOOKUP(B156,[1]Count!A:J,8,FALSE),0))) ->  | L156: =IF(B156="סך הכל",[1]Summary!$B$11,IF(F156="","",IFERROR(VLOOKUP(B156,[1]Count!A:J,9,FALSE),0))) ->  | M156: =IF(B156="סך הכל",[1]Summary!$B$12,IF(F156="","",IFERROR(VLOOKUP(B156,[1]Count!A:J,10,FALSE),0))) ->  | O156: =IFERROR(VLOOKUP(B156,[1]Comments!A:B,2,FALSE),"") -> 
B157: =IF(AND(B155<>"",ISNUMBER(B155),B156=""),"סך הכל",IF([1]Planning!A160="","",[1]Planning!A160)) ->  | C157: =IFERROR(_xlfn.IFS(B157="סך הכל",[1]Summary!$B$6,[1]Planning!C160<>"",[1]Planning!C160),"") ->  | D157: =IFERROR(VLOOKUP(B157,[1]Address!B:G,5,FALSE),"") ->  | E157: =IFERROR(VLOOKUP(B157,[1]Address!B:L,11,FALSE),"") ->  | G157: =IF(B157="סך הכל",[1]Summary!$B$7,IF(F157="","",IF(VLOOKUP(B157,[1]WQ_UnitID!B:C,2,FALSE)=0,"",VLOOKUP(B157,[1]WQ_UnitID!B:C,2,FALSE)))) ->  | H157: =IF(B157="סך הכל",[1]Summary!$B$8,IF(F157="","",IFERROR(VLOOKUP(B157,[1]Planning!A:B,2,FALSE),0))) ->  | I157: =IF(B157="סך הכל",[1]Summary!$B$9,IF(F157="","",IFERROR(VLOOKUP(B157,[1]Count!A:B,2,FALSE),0))) ->  | J157: =IF(F157="","",(IF(ISNUMBER(MATCH(B157,[1]ExcPermit!$H$8:$H$1000,0)),"כן","לא"))) ->  | K157: =IF(B157="סך הכל",[1]Summary!$B$10,IF(F157="","",IFERROR(VLOOKUP(B157,[1]Count!A:J,8,FALSE),0))) ->  | L157: =IF(B157="סך הכל",[1]Summary!$B$11,IF(F157="","",IFERROR(VLOOKUP(B157,[1]Count!A:J,9,FALSE),0))) ->  | M157: =IF(B157="סך הכל",[1]Summary!$B$12,IF(F157="","",IFERROR(VLOOKUP(B157,[1]Count!A:J,10,FALSE),0))) ->  | O157: =IFERROR(VLOOKUP(B157,[1]Comments!A:B,2,FALSE),"") -> 
B158: =IF(AND(B156<>"",ISNUMBER(B156),B157=""),"סך הכל",IF([1]Planning!A161="","",[1]Planning!A161)) ->  | C158: =IFERROR(_xlfn.IFS(B158="סך הכל",[1]Summary!$B$6,[1]Planning!C161<>"",[1]Planning!C161),"") ->  | D158: =IFERROR(VLOOKUP(B158,[1]Address!B:G,5,FALSE),"") ->  | E158: =IFERROR(VLOOKUP(B158,[1]Address!B:L,11,FALSE),"") ->  | G158: =IF(B158="סך הכל",[1]Summary!$B$7,IF(F158="","",IF(VLOOKUP(B158,[1]WQ_UnitID!B:C,2,FALSE)=0,"",VLOOKUP(B158,[1]WQ_UnitID!B:C,2,FALSE)))) ->  | H158: =IF(B158="סך הכל",[1]Summary!$B$8,IF(F158="","",IFERROR(VLOOKUP(B158,[1]Planning!A:B,2,FALSE),0))) ->  | I158: =IF(B158="סך הכל",[1]Summary!$B$9,IF(F158="","",IFERROR(VLOOKUP(B158,[1]Count!A:B,2,FALSE),0))) ->  | J158: =IF(F158="","",(IF(ISNUMBER(MATCH(B158,[1]ExcPermit!$H$8:$H$1000,0)),"כן","לא"))) ->  | K158: =IF(B158="סך הכל",[1]Summary!$B$10,IF(F158="","",IFERROR(VLOOKUP(B158,[1]Count!A:J,8,FALSE),0))) ->  | L158: =IF(B158="סך הכל",[1]Summary!$B$11,IF(F158="","",IFERROR(VLOOKUP(B158,[1]Count!A:J,9,FALSE),0))) ->  | M158: =IF(B158="סך הכל",[1]Summary!$B$12,IF(F158="","",IFERROR(VLOOKUP(B158,[1]Count!A:J,10,FALSE),0))) ->  | O158: =IFERROR(VLOOKUP(B158,[1]Comments!A:B,2,FALSE),"") -> 
B159: =IF(AND(B157<>"",ISNUMBER(B157),B158=""),"סך הכל",IF([1]Planning!A162="","",[1]Planning!A162)) ->  | C159: =IFERROR(_xlfn.IFS(B159="סך הכל",[1]Summary!$B$6,[1]Planning!C162<>"",[1]Planning!C162),"") ->  | D159: =IFERROR(VLOOKUP(B159,[1]Address!B:G,5,FALSE),"") ->  | E159: =IFERROR(VLOOKUP(B159,[1]Address!B:L,11,FALSE),"") ->  | G159: =IF(B159="סך הכל",[1]Summary!$B$7,IF(F159="","",IF(VLOOKUP(B159,[1]WQ_UnitID!B:C,2,FALSE)=0,"",VLOOKUP(B159,[1]WQ_UnitID!B:C,2,FALSE)))) ->  | H159: =IF(B159="סך הכל",[1]Summary!$B$8,IF(F159="","",IFERROR(VLOOKUP(B159,[1]Planning!A:B,2,FALSE),0))) ->  | I159: =IF(B159="סך הכל",[1]Summary!$B$9,IF(F159="","",IFERROR(VLOOKUP(B159,[1]Count!A:B,2,FALSE),0))) ->  | J159: =IF(F159="","",(IF(ISNUMBER(MATCH(B159,[1]ExcPermit!$H$8:$H$1000,0)),"כן","לא"))) ->  | K159: =IF(B159="סך הכל",[1]Summary!$B$10,IF(F159="","",IFERROR(VLOOKUP(B159,[1]Count!A:J,8,FALSE),0))) ->  | L159: =IF(B159="סך הכל",[1]Summary!$B$11,IF(F159="","",IFERROR(VLOOKUP(B159,[1]Count!A:J,9,FALSE),0))) ->  | M159: =IF(B159="סך הכל",[1]Summary!$B$12,IF(F159="","",IFERROR(VLOOKUP(B159,[1]Count!A:J,10,FALSE),0))) ->  | O159: =IFERROR(VLOOKUP(B159,[1]Comments!A:B,2,FALSE),"") -> 
B160: =IF(AND(B158<>"",ISNUMBER(B158),B159=""),"סך הכל",IF([1]Planning!A163="","",[1]Planning!A163)) ->  | C160: =IFERROR(_xlfn.IFS(B160="סך הכל",[1]Summary!$B$6,[1]Planning!C163<>"",[1]Planning!C163),"") ->  | D160: =IFERROR(VLOOKUP(B160,[1]Address!B:G,5,FALSE),"") ->  | E160: =IFERROR(VLOOKUP(B160,[1]Address!B:L,11,FALSE),"") ->  | G160: =IF(B160="סך הכל",[1]Summary!$B$7,IF(F160="","",IF(VLOOKUP(B160,[1]WQ_UnitID!B:C,2,FALSE)=0,"",VLOOKUP(B160,[1]WQ_UnitID!B:C,2,FALSE)))) ->  | H160: =IF(B160="סך הכל",[1]Summary!$B$8,IF(F160="","",IFERROR(VLOOKUP(B160,[1]Planning!A:B,2,FALSE),0))) ->  | I160: =IF(B160="סך הכל",[1]Summary!$B$9,IF(F160="","",IFERROR(VLOOKUP(B160,[1]Count!A:B,2,FALSE),0))) ->  | J160: =IF(F160="","",(IF(ISNUMBER(MATCH(B160,[1]ExcPermit!$H$8:$H$1000,0)),"כן","לא"))) ->  | K160: =IF(B160="סך הכל",[1]Summary!$B$10,IF(F160="","",IFERROR(VLOOKUP(B160,[1]Count!A:J,8,FALSE),0))) ->  | L160: =IF(B160="סך הכל",[1]Summary!$B$11,IF(F160="","",IFERROR(VLOOKUP(B160,[1]Count!A:J,9,FALSE),0))) ->  | M160: =IF(B160="סך הכל",[1]Summary!$B$12,IF(F160="","",IFERROR(VLOOKUP(B160,[1]Count!A:J,10,FALSE),0))) ->  | O160: =IFERROR(VLOOKUP(B160,[1]Comments!A:B,2,FALSE),"") -> 
B161: =IF(AND(B159<>"",ISNUMBER(B159),B160=""),"סך הכל",IF([1]Planning!A164="","",[1]Planning!A164)) ->  | C161: =IFERROR(_xlfn.IFS(B161="סך הכל",[1]Summary!$B$6,[1]Planning!C164<>"",[1]Planning!C164),"") ->  | D161: =IFERROR(VLOOKUP(B161,[1]Address!B:G,5,FALSE),"") ->  | E161: =IFERROR(VLOOKUP(B161,[1]Address!B:L,11,FALSE),"") ->  | G161: =IF(B161="סך הכל",[1]Summary!$B$7,IF(F161="","",IF(VLOOKUP(B161,[1]WQ_UnitID!B:C,2,FALSE)=0,"",VLOOKUP(B161,[1]WQ_UnitID!B:C,2,FALSE)))) ->  | H161: =IF(B161="סך הכל",[1]Summary!$B$8,IF(F161="","",IFERROR(VLOOKUP(B161,[1]Planning!A:B,2,FALSE),0))) ->  | I161: =IF(B161="סך הכל",[1]Summary!$B$9,IF(F161="","",IFERROR(VLOOKUP(B161,[1]Count!A:B,2,FALSE),0))) ->  | J161: =IF(F161="","",(IF(ISNUMBER(MATCH(B161,[1]ExcPermit!$H$8:$H$1000,0)),"כן","לא"))) ->  | K161: =IF(B161="סך הכל",[1]Summary!$B$10,IF(F161="","",IFERROR(VLOOKUP(B161,[1]Count!A:J,8,FALSE),0))) ->  | L161: =IF(B161="סך הכל",[1]Summary!$B$11,IF(F161="","",IFERROR(VLOOKUP(B161,[1]Count!A:J,9,FALSE),0))) ->  | M161: =IF(B161="סך הכל",[1]Summary!$B$12,IF(F161="","",IFERROR(VLOOKUP(B161,[1]Count!A:J,10,FALSE),0))) ->  | O161: =IFERROR(VLOOKUP(B161,[1]Comments!A:B,2,FALSE),"") -> 
B162: =IF(AND(B160<>"",ISNUMBER(B160),B161=""),"סך הכל",IF([1]Planning!A165="","",[1]Planning!A165)) ->  | C162: =IFERROR(_xlfn.IFS(B162="סך הכל",[1]Summary!$B$6,[1]Planning!C165<>"",[1]Planning!C165),"") ->  | D162: =IFERROR(VLOOKUP(B162,[1]Address!B:G,5,FALSE),"") ->  | E162: =IFERROR(VLOOKUP(B162,[1]Address!B:L,11,FALSE),"") ->  | G162: =IF(B162="סך הכל",[1]Summary!$B$7,IF(F162="","",IF(VLOOKUP(B162,[1]WQ_UnitID!B:C,2,FALSE)=0,"",VLOOKUP(B162,[1]WQ_UnitID!B:C,2,FALSE)))) ->  | H162: =IF(B162="סך הכל",[1]Summary!$B$8,IF(F162="","",IFERROR(VLOOKUP(B162,[1]Planning!A:B,2,FALSE),0))) ->  | I162: =IF(B162="סך הכל",[1]Summary!$B$9,IF(F162="","",IFERROR(VLOOKUP(B162,[1]Count!A:B,2,FALSE),0))) ->  | J162: =IF(F162="","",(IF(ISNUMBER(MATCH(B162,[1]ExcPermit!$H$8:$H$1000,0)),"כן","לא"))) ->  | K162: =IF(B162="סך הכל",[1]Summary!$B$10,IF(F162="","",IFERROR(VLOOKUP(B162,[1]Count!A:J,8,FALSE),0))) ->  | L162: =IF(B162="סך הכל",[1]Summary!$B$11,IF(F162="","",IFERROR(VLOOKUP(B162,[1]Count!A:J,9,FALSE),0))) ->  | M162: =IF(B162="סך הכל",[1]Summary!$B$12,IF(F162="","",IFERROR(VLOOKUP(B162,[1]Count!A:J,10,FALSE),0))) ->  | O162: =IFERROR(VLOOKUP(B162,[1]Comments!A:B,2,FALSE),"") -> 
B163: =IF(AND(B161<>"",ISNUMBER(B161),B162=""),"סך הכל",IF([1]Planning!A166="","",[1]Planning!A166)) ->  | C163: =IFERROR(_xlfn.IFS(B163="סך הכל",[1]Summary!$B$6,[1]Planning!C166<>"",[1]Planning!C166),"") ->  | D163: =IFERROR(VLOOKUP(B163,[1]Address!B:G,5,FALSE),"") ->  | E163: =IFERROR(VLOOKUP(B163,[1]Address!B:L,11,FALSE),"") ->  | G163: =IF(B163="סך הכל",[1]Summary!$B$7,IF(F163="","",IF(VLOOKUP(B163,[1]WQ_UnitID!B:C,2,FALSE)=0,"",VLOOKUP(B163,[1]WQ_UnitID!B:C,2,FALSE)))) ->  | H163: =IF(B163="סך הכל",[1]Summary!$B$8,IF(F163="","",IFERROR(VLOOKUP(B163,[1]Planning!A:B,2,FALSE),0))) ->  | I163: =IF(B163="סך הכל",[1]Summary!$B$9,IF(F163="","",IFERROR(VLOOKUP(B163,[1]Count!A:B,2,FALSE),0))) ->  | J163: =IF(F163="","",(IF(ISNUMBER(MATCH(B163,[1]ExcPermit!$H$8:$H$1000,0)),"כן","לא"))) ->  | K163: =IF(B163="סך הכל",[1]Summary!$B$10,IF(F163="","",IFERROR(VLOOKUP(B163,[1]Count!A:J,8,FALSE),0))) ->  | L163: =IF(B163="סך הכל",[1]Summary!$B$11,IF(F163="","",IFERROR(VLOOKUP(B163,[1]Count!A:J,9,FALSE),0))) ->  | M163: =IF(B163="סך הכל",[1]Summary!$B$12,IF(F163="","",IFERROR(VLOOKUP(B163,[1]Count!A:J,10,FALSE),0))) ->  | O163: =IFERROR(VLOOKUP(B163,[1]Comments!A:B,2,FALSE),"") -> 
B164: =IF(AND(B162<>"",ISNUMBER(B162),B163=""),"סך הכל",IF([1]Planning!A167="","",[1]Planning!A167)) ->  | C164: =IFERROR(_xlfn.IFS(B164="סך הכל",[1]Summary!$B$6,[1]Planning!C167<>"",[1]Planning!C167),"") ->  | D164: =IFERROR(VLOOKUP(B164,[1]Address!B:G,5,FALSE),"") ->  | E164: =IFERROR(VLOOKUP(B164,[1]Address!B:L,11,FALSE),"") ->  | G164: =IF(B164="סך הכל",[1]Summary!$B$7,IF(F164="","",IF(VLOOKUP(B164,[1]WQ_UnitID!B:C,2,FALSE)=0,"",VLOOKUP(B164,[1]WQ_UnitID!B:C,2,FALSE)))) ->  | H164: =IF(B164="סך הכל",[1]Summary!$B$8,IF(F164="","",IFERROR(VLOOKUP(B164,[1]Planning!A:B,2,FALSE),0))) ->  | I164: =IF(B164="סך הכל",[1]Summary!$B$9,IF(F164="","",IFERROR(VLOOKUP(B164,[1]Count!A:B,2,FALSE),0))) ->  | J164: =IF(F164="","",(IF(ISNUMBER(MATCH(B164,[1]ExcPermit!$H$8:$H$1000,0)),"כן","לא"))) ->  | K164: =IF(B164="סך הכל",[1]Summary!$B$10,IF(F164="","",IFERROR(VLOOKUP(B164,[1]Count!A:J,8,FALSE),0))) ->  | L164: =IF(B164="סך הכל",[1]Summary!$B$11,IF(F164="","",IFERROR(VLOOKUP(B164,[1]Count!A:J,9,FALSE),0))) ->  | M164: =IF(B164="סך הכל",[1]Summary!$B$12,IF(F164="","",IFERROR(VLOOKUP(B164,[1]Count!A:J,10,FALSE),0))) ->  | O164: =IFERROR(VLOOKUP(B164,[1]Comments!A:B,2,FALSE),"") -> 
B165: =IF(AND(B163<>"",ISNUMBER(B163),B164=""),"סך הכל",IF([1]Planning!A168="","",[1]Planning!A168)) ->  | C165: =IFERROR(_xlfn.IFS(B165="סך הכל",[1]Summary!$B$6,[1]Planning!C168<>"",[1]Planning!C168),"") ->  | D165: =IFERROR(VLOOKUP(B165,[1]Address!B:G,5,FALSE),"") ->  | E165: =IFERROR(VLOOKUP(B165,[1]Address!B:L,11,FALSE),"") ->  | G165: =IF(B165="סך הכל",[1]Summary!$B$7,IF(F165="","",IF(VLOOKUP(B165,[1]WQ_UnitID!B:C,2,FALSE)=0,"",VLOOKUP(B165,[1]WQ_UnitID!B:C,2,FALSE)))) ->  | H165: =IF(B165="סך הכל",[1]Summary!$B$8,IF(F165="","",IFERROR(VLOOKUP(B165,[1]Planning!A:B,2,FALSE),0))) ->  | I165: =IF(B165="סך הכל",[1]Summary!$B$9,IF(F165="","",IFERROR(VLOOKUP(B165,[1]Count!A:B,2,FALSE),0))) ->  | J165: =IF(F165="","",(IF(ISNUMBER(MATCH(B165,[1]ExcPermit!$H$8:$H$1000,0)),"כן","לא"))) ->  | K165: =IF(B165="סך הכל",[1]Summary!$B$10,IF(F165="","",IFERROR(VLOOKUP(B165,[1]Count!A:J,8,FALSE),0))) ->  | L165: =IF(B165="סך הכל",[1]Summary!$B$11,IF(F165="","",IFERROR(VLOOKUP(B165,[1]Count!A:J,9,FALSE),0))) ->  | M165: =IF(B165="סך הכל",[1]Summary!$B$12,IF(F165="","",IFERROR(VLOOKUP(B165,[1]Count!A:J,10,FALSE),0))) ->  | O165: =IFERROR(VLOOKUP(B165,[1]Comments!A:B,2,FALSE),"") -> 
B166: =IF(AND(B164<>"",ISNUMBER(B164),B165=""),"סך הכל",IF([1]Planning!A169="","",[1]Planning!A169)) ->  | C166: =IFERROR(_xlfn.IFS(B166="סך הכל",[1]Summary!$B$6,[1]Planning!C169<>"",[1]Planning!C169),"") ->  | D166: =IFERROR(VLOOKUP(B166,[1]Address!B:G,5,FALSE),"") ->  | E166: =IFERROR(VLOOKUP(B166,[1]Address!B:L,11,FALSE),"") ->  | G166: =IF(B166="סך הכל",[1]Summary!$B$7,IF(F166="","",IF(VLOOKUP(B166,[1]WQ_UnitID!B:C,2,FALSE)=0,"",VLOOKUP(B166,[1]WQ_UnitID!B:C,2,FALSE)))) ->  | H166: =IF(B166="סך הכל",[1]Summary!$B$8,IF(F166="","",IFERROR(VLOOKUP(B166,[1]Planning!A:B,2,FALSE),0))) ->  | I166: =IF(B166="סך הכל",[1]Summary!$B$9,IF(F166="","",IFERROR(VLOOKUP(B166,[1]Count!A:B,2,FALSE),0))) ->  | J166: =IF(F166="","",(IF(ISNUMBER(MATCH(B166,[1]ExcPermit!$H$8:$H$1000,0)),"כן","לא"))) ->  | K166: =IF(B166="סך הכל",[1]Summary!$B$10,IF(F166="","",IFERROR(VLOOKUP(B166,[1]Count!A:J,8,FALSE),0))) ->  | L166: =IF(B166="סך הכל",[1]Summary!$B$11,IF(F166="","",IFERROR(VLOOKUP(B166,[1]Count!A:J,9,FALSE),0))) ->  | M166: =IF(B166="סך הכל",[1]Summary!$B$12,IF(F166="","",IFERROR(VLOOKUP(B166,[1]Count!A:J,10,FALSE),0))) ->  | O166: =IFERROR(VLOOKUP(B166,[1]Comments!A:B,2,FALSE),"") -> 
B167: =IF(AND(B165<>"",ISNUMBER(B165),B166=""),"סך הכל",IF([1]Planning!A170="","",[1]Planning!A170)) ->  | C167: =IFERROR(_xlfn.IFS(B167="סך הכל",[1]Summary!$B$6,[1]Planning!C170<>"",[1]Planning!C170),"") ->  | D167: =IFERROR(VLOOKUP(B167,[1]Address!B:G,5,FALSE),"") ->  | E167: =IFERROR(VLOOKUP(B167,[1]Address!B:L,11,FALSE),"") ->  | G167: =IF(B167="סך הכל",[1]Summary!$B$7,IF(F167="","",IF(VLOOKUP(B167,[1]WQ_UnitID!B:C,2,FALSE)=0,"",VLOOKUP(B167,[1]WQ_UnitID!B:C,2,FALSE)))) ->  | H167: =IF(B167="סך הכל",[1]Summary!$B$8,IF(F167="","",IFERROR(VLOOKUP(B167,[1]Planning!A:B,2,FALSE),0))) ->  | I167: =IF(B167="סך הכל",[1]Summary!$B$9,IF(F167="","",IFERROR(VLOOKUP(B167,[1]Count!A:B,2,FALSE),0))) ->  | J167: =IF(F167="","",(IF(ISNUMBER(MATCH(B167,[1]ExcPermit!$H$8:$H$1000,0)),"כן","לא"))) ->  | K167: =IF(B167="סך הכל",[1]Summary!$B$10,IF(F167="","",IFERROR(VLOOKUP(B167,[1]Count!A:J,8,FALSE),0))) ->  | L167: =IF(B167="סך הכל",[1]Summary!$B$11,IF(F167="","",IFERROR(VLOOKUP(B167,[1]Count!A:J,9,FALSE),0))) ->  | M167: =IF(B167="סך הכל",[1]Summary!$B$12,IF(F167="","",IFERROR(VLOOKUP(B167,[1]Count!A:J,10,FALSE),0))) ->  | O167: =IFERROR(VLOOKUP(B167,[1]Comments!A:B,2,FALSE),"") -> 
B168: =IF(AND(B166<>"",ISNUMBER(B166),B167=""),"סך הכל",IF([1]Planning!A171="","",[1]Planning!A171)) ->  | C168: =IFERROR(_xlfn.IFS(B168="סך הכל",[1]Summary!$B$6,[1]Planning!C171<>"",[1]Planning!C171),"") ->  | D168: =IFERROR(VLOOKUP(B168,[1]Address!B:G,5,FALSE),"") ->  | E168: =IFERROR(VLOOKUP(B168,[1]Address!B:L,11,FALSE),"") ->  | G168: =IF(B168="סך הכל",[1]Summary!$B$7,IF(F168="","",IF(VLOOKUP(B168,[1]WQ_UnitID!B:C,2,FALSE)=0,"",VLOOKUP(B168,[1]WQ_UnitID!B:C,2,FALSE)))) ->  | H168: =IF(B168="סך הכל",[1]Summary!$B$8,IF(F168="","",IFERROR(VLOOKUP(B168,[1]Planning!A:B,2,FALSE),0))) ->  | I168: =IF(B168="סך הכל",[1]Summary!$B$9,IF(F168="","",IFERROR(VLOOKUP(B168,[1]Count!A:B,2,FALSE),0))) ->  | J168: =IF(F168="","",(IF(ISNUMBER(MATCH(B168,[1]ExcPermit!$H$8:$H$1000,0)),"כן","לא"))) ->  | K168: =IF(B168="סך הכל",[1]Summary!$B$10,IF(F168="","",IFERROR(VLOOKUP(B168,[1]Count!A:J,8,FALSE),0))) ->  | L168: =IF(B168="סך הכל",[1]Summary!$B$11,IF(F168="","",IFERROR(VLOOKUP(B168,[1]Count!A:J,9,FALSE),0))) ->  | M168: =IF(B168="סך הכל",[1]Summary!$B$12,IF(F168="","",IFERROR(VLOOKUP(B168,[1]Count!A:J,10,FALSE),0))) ->  | O168: =IFERROR(VLOOKUP(B168,[1]Comments!A:B,2,FALSE),"") -> 
B169: =IF(AND(B167<>"",ISNUMBER(B167),B168=""),"סך הכל",IF([1]Planning!A172="","",[1]Planning!A172)) ->  | C169: =IFERROR(_xlfn.IFS(B169="סך הכל",[1]Summary!$B$6,[1]Planning!C172<>"",[1]Planning!C172),"") ->  | D169: =IFERROR(VLOOKUP(B169,[1]Address!B:G,5,FALSE),"") ->  | E169: =IFERROR(VLOOKUP(B169,[1]Address!B:L,11,FALSE),"") ->  | G169: =IF(B169="סך הכל",[1]Summary!$B$7,IF(F169="","",IF(VLOOKUP(B169,[1]WQ_UnitID!B:C,2,FALSE)=0,"",VLOOKUP(B169,[1]WQ_UnitID!B:C,2,FALSE)))) ->  | H169: =IF(B169="סך הכל",[1]Summary!$B$8,IF(F169="","",IFERROR(VLOOKUP(B169,[1]Planning!A:B,2,FALSE),0))) ->  | I169: =IF(B169="סך הכל",[1]Summary!$B$9,IF(F169="","",IFERROR(VLOOKUP(B169,[1]Count!A:B,2,FALSE),0))) ->  | J169: =IF(F169="","",(IF(ISNUMBER(MATCH(B169,[1]ExcPermit!$H$8:$H$1000,0)),"כן","לא"))) ->  | K169: =IF(B169="סך הכל",[1]Summary!$B$10,IF(F169="","",IFERROR(VLOOKUP(B169,[1]Count!A:J,8,FALSE),0))) ->  | L169: =IF(B169="סך הכל",[1]Summary!$B$11,IF(F169="","",IFERROR(VLOOKUP(B169,[1]Count!A:J,9,FALSE),0))) ->  | M169: =IF(B169="סך הכל",[1]Summary!$B$12,IF(F169="","",IFERROR(VLOOKUP(B169,[1]Count!A:J,10,FALSE),0))) ->  | O169: =IFERROR(VLOOKUP(B169,[1]Comments!A:B,2,FALSE),"") -> 
B170: =IF(AND(B168<>"",ISNUMBER(B168),B169=""),"סך הכל",IF([1]Planning!A173="","",[1]Planning!A173)) ->  | C170: =IFERROR(_xlfn.IFS(B170="סך הכל",[1]Summary!$B$6,[1]Planning!C173<>"",[1]Planning!C173),"") ->  | D170: =IFERROR(VLOOKUP(B170,[1]Address!B:G,5,FALSE),"") ->  | E170: =IFERROR(VLOOKUP(B170,[1]Address!B:L,11,FALSE),"") ->  | G170: =IF(B170="סך הכל",[1]Summary!$B$7,IF(F170="","",IF(VLOOKUP(B170,[1]WQ_UnitID!B:C,2,FALSE)=0,"",VLOOKUP(B170,[1]WQ_UnitID!B:C,2,FALSE)))) ->  | H170: =IF(B170="סך הכל",[1]Summary!$B$8,IF(F170="","",IFERROR(VLOOKUP(B170,[1]Planning!A:B,2,FALSE),0))) ->  | I170: =IF(B170="סך הכל",[1]Summary!$B$9,IF(F170="","",IFERROR(VLOOKUP(B170,[1]Count!A:B,2,FALSE),0))) ->  | J170: =IF(F170="","",(IF(ISNUMBER(MATCH(B170,[1]ExcPermit!$H$8:$H$1000,0)),"כן","לא"))) ->  | K170: =IF(B170="סך הכל",[1]Summary!$B$10,IF(F170="","",IFERROR(VLOOKUP(B170,[1]Count!A:J,8,FALSE),0))) ->  | L170: =IF(B170="סך הכל",[1]Summary!$B$11,IF(F170="","",IFERROR(VLOOKUP(B170,[1]Count!A:J,9,FALSE),0))) ->  | M170: =IF(B170="סך הכל",[1]Summary!$B$12,IF(F170="","",IFERROR(VLOOKUP(B170,[1]Count!A:J,10,FALSE),0))) ->  | O170: =IFERROR(VLOOKUP(B170,[1]Comments!A:B,2,FALSE),"") -> 
B171: =IF(AND(B169<>"",ISNUMBER(B169),B170=""),"סך הכל",IF([1]Planning!A174="","",[1]Planning!A174)) ->  | C171: =IFERROR(_xlfn.IFS(B171="סך הכל",[1]Summary!$B$6,[1]Planning!C174<>"",[1]Planning!C174),"") ->  | D171: =IFERROR(VLOOKUP(B171,[1]Address!B:G,5,FALSE),"") ->  | E171: =IFERROR(VLOOKUP(B171,[1]Address!B:L,11,FALSE),"") ->  | G171: =IF(B171="סך הכל",[1]Summary!$B$7,IF(F171="","",IF(VLOOKUP(B171,[1]WQ_UnitID!B:C,2,FALSE)=0,"",VLOOKUP(B171,[1]WQ_UnitID!B:C,2,FALSE)))) ->  | H171: =IF(B171="סך הכל",[1]Summary!$B$8,IF(F171="","",IFERROR(VLOOKUP(B171,[1]Planning!A:B,2,FALSE),0))) ->  | I171: =IF(B171="סך הכל",[1]Summary!$B$9,IF(F171="","",IFERROR(VLOOKUP(B171,[1]Count!A:B,2,FALSE),0))) ->  | J171: =IF(F171="","",(IF(ISNUMBER(MATCH(B171,[1]ExcPermit!$H$8:$H$1000,0)),"כן","לא"))) ->  | K171: =IF(B171="סך הכל",[1]Summary!$B$10,IF(F171="","",IFERROR(VLOOKUP(B171,[1]Count!A:J,8,FALSE),0))) ->  | L171: =IF(B171="סך הכל",[1]Summary!$B$11,IF(F171="","",IFERROR(VLOOKUP(B171,[1]Count!A:J,9,FALSE),0))) ->  | M171: =IF(B171="סך הכל",[1]Summary!$B$12,IF(F171="","",IFERROR(VLOOKUP(B171,[1]Count!A:J,10,FALSE),0))) ->  | O171: =IFERROR(VLOOKUP(B171,[1]Comments!A:B,2,FALSE),"") -> 
B172: =IF(AND(B170<>"",ISNUMBER(B170),B171=""),"סך הכל",IF([1]Planning!A175="","",[1]Planning!A175)) ->  | C172: =IFERROR(_xlfn.IFS(B172="סך הכל",[1]Summary!$B$6,[1]Planning!C175<>"",[1]Planning!C175),"") ->  | D172: =IFERROR(VLOOKUP(B172,[1]Address!B:G,5,FALSE),"") ->  | E172: =IFERROR(VLOOKUP(B172,[1]Address!B:L,11,FALSE),"") ->  | G172: =IF(B172="סך הכל",[1]Summary!$B$7,IF(F172="","",IF(VLOOKUP(B172,[1]WQ_UnitID!B:C,2,FALSE)=0,"",VLOOKUP(B172,[1]WQ_UnitID!B:C,2,FALSE)))) ->  | H172: =IF(B172="סך הכל",[1]Summary!$B$8,IF(F172="","",IFERROR(VLOOKUP(B172,[1]Planning!A:B,2,FALSE),0))) ->  | I172: =IF(B172="סך הכל",[1]Summary!$B$9,IF(F172="","",IFERROR(VLOOKUP(B172,[1]Count!A:B,2,FALSE),0))) ->  | J172: =IF(F172="","",(IF(ISNUMBER(MATCH(B172,[1]ExcPermit!$H$8:$H$1000,0)),"כן","לא"))) ->  | K172: =IF(B172="סך הכל",[1]Summary!$B$10,IF(F172="","",IFERROR(VLOOKUP(B172,[1]Count!A:J,8,FALSE),0))) ->  | L172: =IF(B172="סך הכל",[1]Summary!$B$11,IF(F172="","",IFERROR(VLOOKUP(B172,[1]Count!A:J,9,FALSE),0))) ->  | M172: =IF(B172="סך הכל",[1]Summary!$B$12,IF(F172="","",IFERROR(VLOOKUP(B172,[1]Count!A:J,10,FALSE),0))) ->  | O172: =IFERROR(VLOOKUP(B172,[1]Comments!A:B,2,FALSE),"") -> 
B173: =IF(AND(B171<>"",ISNUMBER(B171),B172=""),"סך הכל",IF([1]Planning!A176="","",[1]Planning!A176)) ->  | C173: =IFERROR(_xlfn.IFS(B173="סך הכל",[1]Summary!$B$6,[1]Planning!C176<>"",[1]Planning!C176),"") ->  | D173: =IFERROR(VLOOKUP(B173,[1]Address!B:G,5,FALSE),"") ->  | E173: =IFERROR(VLOOKUP(B173,[1]Address!B:L,11,FALSE),"") ->  | G173: =IF(B173="סך הכל",[1]Summary!$B$7,IF(F173="","",IF(VLOOKUP(B173,[1]WQ_UnitID!B:C,2,FALSE)=0,"",VLOOKUP(B173,[1]WQ_UnitID!B:C,2,FALSE)))) ->  | H173: =IF(B173="סך הכל",[1]Summary!$B$8,IF(F173="","",IFERROR(VLOOKUP(B173,[1]Planning!A:B,2,FALSE),0))) ->  | I173: =IF(B173="סך הכל",[1]Summary!$B$9,IF(F173="","",IFERROR(VLOOKUP(B173,[1]Count!A:B,2,FALSE),0))) ->  | J173: =IF(F173="","",(IF(ISNUMBER(MATCH(B173,[1]ExcPermit!$H$8:$H$1000,0)),"כן","לא"))) ->  | K173: =IF(B173="סך הכל",[1]Summary!$B$10,IF(F173="","",IFERROR(VLOOKUP(B173,[1]Count!A:J,8,FALSE),0))) ->  | L173: =IF(B173="סך הכל",[1]Summary!$B$11,IF(F173="","",IFERROR(VLOOKUP(B173,[1]Count!A:J,9,FALSE),0))) ->  | M173: =IF(B173="סך הכל",[1]Summary!$B$12,IF(F173="","",IFERROR(VLOOKUP(B173,[1]Count!A:J,10,FALSE),0))) ->  | O173: =IFERROR(VLOOKUP(B173,[1]Comments!A:B,2,FALSE),"") -> 
B174: =IF(AND(B172<>"",ISNUMBER(B172),B173=""),"סך הכל",IF([1]Planning!A177="","",[1]Planning!A177)) ->  | C174: =IFERROR(_xlfn.IFS(B174="סך הכל",[1]Summary!$B$6,[1]Planning!C177<>"",[1]Planning!C177),"") ->  | D174: =IFERROR(VLOOKUP(B174,[1]Address!B:G,5,FALSE),"") ->  | E174: =IFERROR(VLOOKUP(B174,[1]Address!B:L,11,FALSE),"") ->  | G174: =IF(B174="סך הכל",[1]Summary!$B$7,IF(F174="","",IF(VLOOKUP(B174,[1]WQ_UnitID!B:C,2,FALSE)=0,"",VLOOKUP(B174,[1]WQ_UnitID!B:C,2,FALSE)))) ->  | H174: =IF(B174="סך הכל",[1]Summary!$B$8,IF(F174="","",IFERROR(VLOOKUP(B174,[1]Planning!A:B,2,FALSE),0))) ->  | I174: =IF(B174="סך הכל",[1]Summary!$B$9,IF(F174="","",IFERROR(VLOOKUP(B174,[1]Count!A:B,2,FALSE),0))) ->  | J174: =IF(F174="","",(IF(ISNUMBER(MATCH(B174,[1]ExcPermit!$H$8:$H$1000,0)),"כן","לא"))) ->  | K174: =IF(B174="סך הכל",[1]Summary!$B$10,IF(F174="","",IFERROR(VLOOKUP(B174,[1]Count!A:J,8,FALSE),0))) ->  | L174: =IF(B174="סך הכל",[1]Summary!$B$11,IF(F174="","",IFERROR(VLOOKUP(B174,[1]Count!A:J,9,FALSE),0))) ->  | M174: =IF(B174="סך הכל",[1]Summary!$B$12,IF(F174="","",IFERROR(VLOOKUP(B174,[1]Count!A:J,10,FALSE),0))) ->  | O174: =IFERROR(VLOOKUP(B174,[1]Comments!A:B,2,FALSE),"") -> 
B175: =IF(AND(B173<>"",ISNUMBER(B173),B174=""),"סך הכל",IF([1]Planning!A178="","",[1]Planning!A178)) ->  | C175: =IFERROR(_xlfn.IFS(B175="סך הכל",[1]Summary!$B$6,[1]Planning!C178<>"",[1]Planning!C178),"") ->  | D175: =IFERROR(VLOOKUP(B175,[1]Address!B:G,5,FALSE),"") ->  | E175: =IFERROR(VLOOKUP(B175,[1]Address!B:L,11,FALSE),"") ->  | G175: =IF(B175="סך הכל",[1]Summary!$B$7,IF(F175="","",IF(VLOOKUP(B175,[1]WQ_UnitID!B:C,2,FALSE)=0,"",VLOOKUP(B175,[1]WQ_UnitID!B:C,2,FALSE)))) ->  | H175: =IF(B175="סך הכל",[1]Summary!$B$8,IF(F175="","",IFERROR(VLOOKUP(B175,[1]Planning!A:B,2,FALSE),0))) ->  | I175: =IF(B175="סך הכל",[1]Summary!$B$9,IF(F175="","",IFERROR(VLOOKUP(B175,[1]Count!A:B,2,FALSE),0))) ->  | J175: =IF(F175="","",(IF(ISNUMBER(MATCH(B175,[1]ExcPermit!$H$8:$H$1000,0)),"כן","לא"))) ->  | K175: =IF(B175="סך הכל",[1]Summary!$B$10,IF(F175="","",IFERROR(VLOOKUP(B175,[1]Count!A:J,8,FALSE),0))) ->  | L175: =IF(B175="סך הכל",[1]Summary!$B$11,IF(F175="","",IFERROR(VLOOKUP(B175,[1]Count!A:J,9,FALSE),0))) ->  | M175: =IF(B175="סך הכל",[1]Summary!$B$12,IF(F175="","",IFERROR(VLOOKUP(B175,[1]Count!A:J,10,FALSE),0))) ->  | O175: =IFERROR(VLOOKUP(B175,[1]Comments!A:B,2,FALSE),"") -> 
B176: =IF(AND(B174<>"",ISNUMBER(B174),B175=""),"סך הכל",IF([1]Planning!A179="","",[1]Planning!A179)) ->  | C176: =IFERROR(_xlfn.IFS(B176="סך הכל",[1]Summary!$B$6,[1]Planning!C179<>"",[1]Planning!C179),"") ->  | D176: =IFERROR(VLOOKUP(B176,[1]Address!B:G,5,FALSE),"") ->  | E176: =IFERROR(VLOOKUP(B176,[1]Address!B:L,11,FALSE),"") ->  | G176: =IF(B176="סך הכל",[1]Summary!$B$7,IF(F176="","",IF(VLOOKUP(B176,[1]WQ_UnitID!B:C,2,FALSE)=0,"",VLOOKUP(B176,[1]WQ_UnitID!B:C,2,FALSE)))) ->  | H176: =IF(B176="סך הכל",[1]Summary!$B$8,IF(F176="","",IFERROR(VLOOKUP(B176,[1]Planning!A:B,2,FALSE),0))) ->  | I176: =IF(B176="סך הכל",[1]Summary!$B$9,IF(F176="","",IFERROR(VLOOKUP(B176,[1]Count!A:B,2,FALSE),0))) ->  | J176: =IF(F176="","",(IF(ISNUMBER(MATCH(B176,[1]ExcPermit!$H$8:$H$1000,0)),"כן","לא"))) ->  | K176: =IF(B176="סך הכל",[1]Summary!$B$10,IF(F176="","",IFERROR(VLOOKUP(B176,[1]Count!A:J,8,FALSE),0))) ->  | L176: =IF(B176="סך הכל",[1]Summary!$B$11,IF(F176="","",IFERROR(VLOOKUP(B176,[1]Count!A:J,9,FALSE),0))) ->  | M176: =IF(B176="סך הכל",[1]Summary!$B$12,IF(F176="","",IFERROR(VLOOKUP(B176,[1]Count!A:J,10,FALSE),0))) ->  | O176: =IFERROR(VLOOKUP(B176,[1]Comments!A:B,2,FALSE),"") -> 
B177: =IF(AND(B175<>"",ISNUMBER(B175),B176=""),"סך הכל",IF([1]Planning!A180="","",[1]Planning!A180)) ->  | C177: =IFERROR(_xlfn.IFS(B177="סך הכל",[1]Summary!$B$6,[1]Planning!C180<>"",[1]Planning!C180),"") ->  | D177: =IFERROR(VLOOKUP(B177,[1]Address!B:G,5,FALSE),"") ->  | E177: =IFERROR(VLOOKUP(B177,[1]Address!B:L,11,FALSE),"") ->  | G177: =IF(B177="סך הכל",[1]Summary!$B$7,IF(F177="","",IF(VLOOKUP(B177,[1]WQ_UnitID!B:C,2,FALSE)=0,"",VLOOKUP(B177,[1]WQ_UnitID!B:C,2,FALSE)))) ->  | H177: =IF(B177="סך הכל",[1]Summary!$B$8,IF(F177="","",IFERROR(VLOOKUP(B177,[1]Planning!A:B,2,FALSE),0))) ->  | I177: =IF(B177="סך הכל",[1]Summary!$B$9,IF(F177="","",IFERROR(VLOOKUP(B177,[1]Count!A:B,2,FALSE),0))) ->  | J177: =IF(F177="","",(IF(ISNUMBER(MATCH(B177,[1]ExcPermit!$H$8:$H$1000,0)),"כן","לא"))) ->  | K177: =IF(B177="סך הכל",[1]Summary!$B$10,IF(F177="","",IFERROR(VLOOKUP(B177,[1]Count!A:J,8,FALSE),0))) ->  | L177: =IF(B177="סך הכל",[1]Summary!$B$11,IF(F177="","",IFERROR(VLOOKUP(B177,[1]Count!A:J,9,FALSE),0))) ->  | M177: =IF(B177="סך הכל",[1]Summary!$B$12,IF(F177="","",IFERROR(VLOOKUP(B177,[1]Count!A:J,10,FALSE),0))) ->  | O177: =IFERROR(VLOOKUP(B177,[1]Comments!A:B,2,FALSE),"") -> 
B178: =IF(AND(B176<>"",ISNUMBER(B176),B177=""),"סך הכל",IF([1]Planning!A181="","",[1]Planning!A181)) ->  | C178: =IFERROR(_xlfn.IFS(B178="סך הכל",[1]Summary!$B$6,[1]Planning!C181<>"",[1]Planning!C181),"") ->  | D178: =IFERROR(VLOOKUP(B178,[1]Address!B:G,5,FALSE),"") ->  | E178: =IFERROR(VLOOKUP(B178,[1]Address!B:L,11,FALSE),"") ->  | G178: =IF(B178="סך הכל",[1]Summary!$B$7,IF(F178="","",IF(VLOOKUP(B178,[1]WQ_UnitID!B:C,2,FALSE)=0,"",VLOOKUP(B178,[1]WQ_UnitID!B:C,2,FALSE)))) ->  | H178: =IF(B178="סך הכל",[1]Summary!$B$8,IF(F178="","",IFERROR(VLOOKUP(B178,[1]Planning!A:B,2,FALSE),0))) ->  | I178: =IF(B178="סך הכל",[1]Summary!$B$9,IF(F178="","",IFERROR(VLOOKUP(B178,[1]Count!A:B,2,FALSE),0))) ->  | J178: =IF(F178="","",(IF(ISNUMBER(MATCH(B178,[1]ExcPermit!$H$8:$H$1000,0)),"כן","לא"))) ->  | K178: =IF(B178="סך הכל",[1]Summary!$B$10,IF(F178="","",IFERROR(VLOOKUP(B178,[1]Count!A:J,8,FALSE),0))) ->  | L178: =IF(B178="סך הכל",[1]Summary!$B$11,IF(F178="","",IFERROR(VLOOKUP(B178,[1]Count!A:J,9,FALSE),0))) ->  | M178: =IF(B178="סך הכל",[1]Summary!$B$12,IF(F178="","",IFERROR(VLOOKUP(B178,[1]Count!A:J,10,FALSE),0))) ->  | O178: =IFERROR(VLOOKUP(B178,[1]Comments!A:B,2,FALSE),"") -> 
B179: =IF(AND(B177<>"",ISNUMBER(B177),B178=""),"סך הכל",IF([1]Planning!A182="","",[1]Planning!A182)) ->  | C179: =IFERROR(_xlfn.IFS(B179="סך הכל",[1]Summary!$B$6,[1]Planning!C182<>"",[1]Planning!C182),"") ->  | D179: =IFERROR(VLOOKUP(B179,[1]Address!B:G,5,FALSE),"") ->  | E179: =IFERROR(VLOOKUP(B179,[1]Address!B:L,11,FALSE),"") ->  | G179: =IF(B179="סך הכל",[1]Summary!$B$7,IF(F179="","",IF(VLOOKUP(B179,[1]WQ_UnitID!B:C,2,FALSE)=0,"",VLOOKUP(B179,[1]WQ_UnitID!B:C,2,FALSE)))) ->  | H179: =IF(B179="סך הכל",[1]Summary!$B$8,IF(F179="","",IFERROR(VLOOKUP(B179,[1]Planning!A:B,2,FALSE),0))) ->  | I179: =IF(B179="סך הכל",[1]Summary!$B$9,IF(F179="","",IFERROR(VLOOKUP(B179,[1]Count!A:B,2,FALSE),0))) ->  | J179: =IF(F179="","",(IF(ISNUMBER(MATCH(B179,[1]ExcPermit!$H$8:$H$1000,0)),"כן","לא"))) ->  | K179: =IF(B179="סך הכל",[1]Summary!$B$10,IF(F179="","",IFERROR(VLOOKUP(B179,[1]Count!A:J,8,FALSE),0))) ->  | L179: =IF(B179="סך הכל",[1]Summary!$B$11,IF(F179="","",IFERROR(VLOOKUP(B179,[1]Count!A:J,9,FALSE),0))) ->  | M179: =IF(B179="סך הכל",[1]Summary!$B$12,IF(F179="","",IFERROR(VLOOKUP(B179,[1]Count!A:J,10,FALSE),0))) ->  | O179: =IFERROR(VLOOKUP(B179,[1]Comments!A:B,2,FALSE),"") -> 
B180: =IF(AND(B178<>"",ISNUMBER(B178),B179=""),"סך הכל",IF([1]Planning!A183="","",[1]Planning!A183)) ->  | C180: =IFERROR(_xlfn.IFS(B180="סך הכל",[1]Summary!$B$6,[1]Planning!C183<>"",[1]Planning!C183),"") ->  | D180: =IFERROR(VLOOKUP(B180,[1]Address!B:G,5,FALSE),"") ->  | E180: =IFERROR(VLOOKUP(B180,[1]Address!B:L,11,FALSE),"") ->  | G180: =IF(B180="סך הכל",[1]Summary!$B$7,IF(F180="","",IF(VLOOKUP(B180,[1]WQ_UnitID!B:C,2,FALSE)=0,"",VLOOKUP(B180,[1]WQ_UnitID!B:C,2,FALSE)))) ->  | H180: =IF(B180="סך הכל",[1]Summary!$B$8,IF(F180="","",IFERROR(VLOOKUP(B180,[1]Planning!A:B,2,FALSE),0))) ->  | I180: =IF(B180="סך הכל",[1]Summary!$B$9,IF(F180="","",IFERROR(VLOOKUP(B180,[1]Count!A:B,2,FALSE),0))) ->  | J180: =IF(F180="","",(IF(ISNUMBER(MATCH(B180,[1]ExcPermit!$H$8:$H$1000,0)),"כן","לא"))) ->  | K180: =IF(B180="סך הכל",[1]Summary!$B$10,IF(F180="","",IFERROR(VLOOKUP(B180,[1]Count!A:J,8,FALSE),0))) ->  | L180: =IF(B180="סך הכל",[1]Summary!$B$11,IF(F180="","",IFERROR(VLOOKUP(B180,[1]Count!A:J,9,FALSE),0))) ->  | M180: =IF(B180="סך הכל",[1]Summary!$B$12,IF(F180="","",IFERROR(VLOOKUP(B180,[1]Count!A:J,10,FALSE),0))) ->  | O180: =IFERROR(VLOOKUP(B180,[1]Comments!A:B,2,FALSE),"") -> 
B181: =IF(AND(B179<>"",ISNUMBER(B179),B180=""),"סך הכל",IF([1]Planning!A184="","",[1]Planning!A184)) ->  | C181: =IFERROR(_xlfn.IFS(B181="סך הכל",[1]Summary!$B$6,[1]Planning!C184<>"",[1]Planning!C184),"") ->  | D181: =IFERROR(VLOOKUP(B181,[1]Address!B:G,5,FALSE),"") ->  | E181: =IFERROR(VLOOKUP(B181,[1]Address!B:L,11,FALSE),"") ->  | G181: =IF(B181="סך הכל",[1]Summary!$B$7,IF(F181="","",IF(VLOOKUP(B181,[1]WQ_UnitID!B:C,2,FALSE)=0,"",VLOOKUP(B181,[1]WQ_UnitID!B:C,2,FALSE)))) ->  | H181: =IF(B181="סך הכל",[1]Summary!$B$8,IF(F181="","",IFERROR(VLOOKUP(B181,[1]Planning!A:B,2,FALSE),0))) ->  | I181: =IF(B181="סך הכל",[1]Summary!$B$9,IF(F181="","",IFERROR(VLOOKUP(B181,[1]Count!A:B,2,FALSE),0))) ->  | J181: =IF(F181="","",(IF(ISNUMBER(MATCH(B181,[1]ExcPermit!$H$8:$H$1000,0)),"כן","לא"))) ->  | K181: =IF(B181="סך הכל",[1]Summary!$B$10,IF(F181="","",IFERROR(VLOOKUP(B181,[1]Count!A:J,8,FALSE),0))) ->  | L181: =IF(B181="סך הכל",[1]Summary!$B$11,IF(F181="","",IFERROR(VLOOKUP(B181,[1]Count!A:J,9,FALSE),0))) ->  | M181: =IF(B181="סך הכל",[1]Summary!$B$12,IF(F181="","",IFERROR(VLOOKUP(B181,[1]Count!A:J,10,FALSE),0))) ->  | O181: =IFERROR(VLOOKUP(B181,[1]Comments!A:B,2,FALSE),"") -> 
B182: =IF(AND(B180<>"",ISNUMBER(B180),B181=""),"סך הכל",IF([1]Planning!A185="","",[1]Planning!A185)) ->  | C182: =IFERROR(_xlfn.IFS(B182="סך הכל",[1]Summary!$B$6,[1]Planning!C185<>"",[1]Planning!C185),"") ->  | D182: =IFERROR(VLOOKUP(B182,[1]Address!B:G,5,FALSE),"") ->  | E182: =IFERROR(VLOOKUP(B182,[1]Address!B:L,11,FALSE),"") ->  | G182: =IF(B182="סך הכל",[1]Summary!$B$7,IF(F182="","",IF(VLOOKUP(B182,[1]WQ_UnitID!B:C,2,FALSE)=0,"",VLOOKUP(B182,[1]WQ_UnitID!B:C,2,FALSE)))) ->  | H182: =IF(B182="סך הכל",[1]Summary!$B$8,IF(F182="","",IFERROR(VLOOKUP(B182,[1]Planning!A:B,2,FALSE),0))) ->  | I182: =IF(B182="סך הכל",[1]Summary!$B$9,IF(F182="","",IFERROR(VLOOKUP(B182,[1]Count!A:B,2,FALSE),0))) ->  | J182: =IF(F182="","",(IF(ISNUMBER(MATCH(B182,[1]ExcPermit!$H$8:$H$1000,0)),"כן","לא"))) ->  | K182: =IF(B182="סך הכל",[1]Summary!$B$10,IF(F182="","",IFERROR(VLOOKUP(B182,[1]Count!A:J,8,FALSE),0))) ->  | L182: =IF(B182="סך הכל",[1]Summary!$B$11,IF(F182="","",IFERROR(VLOOKUP(B182,[1]Count!A:J,9,FALSE),0))) ->  | M182: =IF(B182="סך הכל",[1]Summary!$B$12,IF(F182="","",IFERROR(VLOOKUP(B182,[1]Count!A:J,10,FALSE),0))) ->  | O182: =IFERROR(VLOOKUP(B182,[1]Comments!A:B,2,FALSE),"") -> 
B183: =IF(AND(B181<>"",ISNUMBER(B181),B182=""),"סך הכל",IF([1]Planning!A186="","",[1]Planning!A186)) ->  | C183: =IFERROR(_xlfn.IFS(B183="סך הכל",[1]Summary!$B$6,[1]Planning!C186<>"",[1]Planning!C186),"") ->  | D183: =IFERROR(VLOOKUP(B183,[1]Address!B:G,5,FALSE),"") ->  | E183: =IFERROR(VLOOKUP(B183,[1]Address!B:L,11,FALSE),"") ->  | G183: =IF(B183="סך הכל",[1]Summary!$B$7,IF(F183="","",IF(VLOOKUP(B183,[1]WQ_UnitID!B:C,2,FALSE)=0,"",VLOOKUP(B183,[1]WQ_UnitID!B:C,2,FALSE)))) ->  | H183: =IF(B183="סך הכל",[1]Summary!$B$8,IF(F183="","",IFERROR(VLOOKUP(B183,[1]Planning!A:B,2,FALSE),0))) ->  | I183: =IF(B183="סך הכל",[1]Summary!$B$9,IF(F183="","",IFERROR(VLOOKUP(B183,[1]Count!A:B,2,FALSE),0))) ->  | J183: =IF(F183="","",(IF(ISNUMBER(MATCH(B183,[1]ExcPermit!$H$8:$H$1000,0)),"כן","לא"))) ->  | K183: =IF(B183="סך הכל",[1]Summary!$B$10,IF(F183="","",IFERROR(VLOOKUP(B183,[1]Count!A:J,8,FALSE),0))) ->  | L183: =IF(B183="סך הכל",[1]Summary!$B$11,IF(F183="","",IFERROR(VLOOKUP(B183,[1]Count!A:J,9,FALSE),0))) ->  | M183: =IF(B183="סך הכל",[1]Summary!$B$12,IF(F183="","",IFERROR(VLOOKUP(B183,[1]Count!A:J,10,FALSE),0))) ->  | O183: =IFERROR(VLOOKUP(B183,[1]Comments!A:B,2,FALSE),"") -> 
B184: =IF(AND(B182<>"",ISNUMBER(B182),B183=""),"סך הכל",IF([1]Planning!A187="","",[1]Planning!A187)) ->  | C184: =IFERROR(_xlfn.IFS(B184="סך הכל",[1]Summary!$B$6,[1]Planning!C187<>"",[1]Planning!C187),"") ->  | D184: =IFERROR(VLOOKUP(B184,[1]Address!B:G,5,FALSE),"") ->  | E184: =IFERROR(VLOOKUP(B184,[1]Address!B:L,11,FALSE),"") ->  | G184: =IF(B184="סך הכל",[1]Summary!$B$7,IF(F184="","",IF(VLOOKUP(B184,[1]WQ_UnitID!B:C,2,FALSE)=0,"",VLOOKUP(B184,[1]WQ_UnitID!B:C,2,FALSE)))) ->  | H184: =IF(B184="סך הכל",[1]Summary!$B$8,IF(F184="","",IFERROR(VLOOKUP(B184,[1]Planning!A:B,2,FALSE),0))) ->  | I184: =IF(B184="סך הכל",[1]Summary!$B$9,IF(F184="","",IFERROR(VLOOKUP(B184,[1]Count!A:B,2,FALSE),0))) ->  | J184: =IF(F184="","",(IF(ISNUMBER(MATCH(B184,[1]ExcPermit!$H$8:$H$1000,0)),"כן","לא"))) ->  | K184: =IF(B184="סך הכל",[1]Summary!$B$10,IF(F184="","",IFERROR(VLOOKUP(B184,[1]Count!A:J,8,FALSE),0))) ->  | L184: =IF(B184="סך הכל",[1]Summary!$B$11,IF(F184="","",IFERROR(VLOOKUP(B184,[1]Count!A:J,9,FALSE),0))) ->  | M184: =IF(B184="סך הכל",[1]Summary!$B$12,IF(F184="","",IFERROR(VLOOKUP(B184,[1]Count!A:J,10,FALSE),0))) ->  | O184: =IFERROR(VLOOKUP(B184,[1]Comments!A:B,2,FALSE),"") -> 
B185: =IF(AND(B183<>"",ISNUMBER(B183),B184=""),"סך הכל",IF([1]Planning!A188="","",[1]Planning!A188)) ->  | C185: =IFERROR(_xlfn.IFS(B185="סך הכל",[1]Summary!$B$6,[1]Planning!C188<>"",[1]Planning!C188),"") ->  | D185: =IFERROR(VLOOKUP(B185,[1]Address!B:G,5,FALSE),"") ->  | E185: =IFERROR(VLOOKUP(B185,[1]Address!B:L,11,FALSE),"") ->  | G185: =IF(B185="סך הכל",[1]Summary!$B$7,IF(F185="","",IF(VLOOKUP(B185,[1]WQ_UnitID!B:C,2,FALSE)=0,"",VLOOKUP(B185,[1]WQ_UnitID!B:C,2,FALSE)))) ->  | H185: =IF(B185="סך הכל",[1]Summary!$B$8,IF(F185="","",IFERROR(VLOOKUP(B185,[1]Planning!A:B,2,FALSE),0))) ->  | I185: =IF(B185="סך הכל",[1]Summary!$B$9,IF(F185="","",IFERROR(VLOOKUP(B185,[1]Count!A:B,2,FALSE),0))) ->  | J185: =IF(F185="","",(IF(ISNUMBER(MATCH(B185,[1]ExcPermit!$H$8:$H$1000,0)),"כן","לא"))) ->  | K185: =IF(B185="סך הכל",[1]Summary!$B$10,IF(F185="","",IFERROR(VLOOKUP(B185,[1]Count!A:J,8,FALSE),0))) ->  | L185: =IF(B185="סך הכל",[1]Summary!$B$11,IF(F185="","",IFERROR(VLOOKUP(B185,[1]Count!A:J,9,FALSE),0))) ->  | M185: =IF(B185="סך הכל",[1]Summary!$B$12,IF(F185="","",IFERROR(VLOOKUP(B185,[1]Count!A:J,10,FALSE),0))) ->  | O185: =IFERROR(VLOOKUP(B185,[1]Comments!A:B,2,FALSE),"") -> 
B186: =IF(AND(B184<>"",ISNUMBER(B184),B185=""),"סך הכל",IF([1]Planning!A189="","",[1]Planning!A189)) ->  | C186: =IFERROR(_xlfn.IFS(B186="סך הכל",[1]Summary!$B$6,[1]Planning!C189<>"",[1]Planning!C189),"") ->  | D186: =IFERROR(VLOOKUP(B186,[1]Address!B:G,5,FALSE),"") ->  | E186: =IFERROR(VLOOKUP(B186,[1]Address!B:L,11,FALSE),"") ->  | G186: =IF(B186="סך הכל",[1]Summary!$B$7,IF(F186="","",IF(VLOOKUP(B186,[1]WQ_UnitID!B:C,2,FALSE)=0,"",VLOOKUP(B186,[1]WQ_UnitID!B:C,2,FALSE)))) ->  | H186: =IF(B186="סך הכל",[1]Summary!$B$8,IF(F186="","",IFERROR(VLOOKUP(B186,[1]Planning!A:B,2,FALSE),0))) ->  | I186: =IF(B186="סך הכל",[1]Summary!$B$9,IF(F186="","",IFERROR(VLOOKUP(B186,[1]Count!A:B,2,FALSE),0))) ->  | J186: =IF(F186="","",(IF(ISNUMBER(MATCH(B186,[1]ExcPermit!$H$8:$H$1000,0)),"כן","לא"))) ->  | K186: =IF(B186="סך הכל",[1]Summary!$B$10,IF(F186="","",IFERROR(VLOOKUP(B186,[1]Count!A:J,8,FALSE),0))) ->  | L186: =IF(B186="סך הכל",[1]Summary!$B$11,IF(F186="","",IFERROR(VLOOKUP(B186,[1]Count!A:J,9,FALSE),0))) ->  | M186: =IF(B186="סך הכל",[1]Summary!$B$12,IF(F186="","",IFERROR(VLOOKUP(B186,[1]Count!A:J,10,FALSE),0))) ->  | O186: =IFERROR(VLOOKUP(B186,[1]Comments!A:B,2,FALSE),"") -> 
B187: =IF(AND(B185<>"",ISNUMBER(B185),B186=""),"סך הכל",IF([1]Planning!A190="","",[1]Planning!A190)) ->  | C187: =IFERROR(_xlfn.IFS(B187="סך הכל",[1]Summary!$B$6,[1]Planning!C190<>"",[1]Planning!C190),"") ->  | D187: =IFERROR(VLOOKUP(B187,[1]Address!B:G,5,FALSE),"") ->  | E187: =IFERROR(VLOOKUP(B187,[1]Address!B:L,11,FALSE),"") ->  | G187: =IF(B187="סך הכל",[1]Summary!$B$7,IF(F187="","",IF(VLOOKUP(B187,[1]WQ_UnitID!B:C,2,FALSE)=0,"",VLOOKUP(B187,[1]WQ_UnitID!B:C,2,FALSE)))) ->  | H187: =IF(B187="סך הכל",[1]Summary!$B$8,IF(F187="","",IFERROR(VLOOKUP(B187,[1]Planning!A:B,2,FALSE),0))) ->  | I187: =IF(B187="סך הכל",[1]Summary!$B$9,IF(F187="","",IFERROR(VLOOKUP(B187,[1]Count!A:B,2,FALSE),0))) ->  | J187: =IF(F187="","",(IF(ISNUMBER(MATCH(B187,[1]ExcPermit!$H$8:$H$1000,0)),"כן","לא"))) ->  | K187: =IF(B187="סך הכל",[1]Summary!$B$10,IF(F187="","",IFERROR(VLOOKUP(B187,[1]Count!A:J,8,FALSE),0))) ->  | L187: =IF(B187="סך הכל",[1]Summary!$B$11,IF(F187="","",IFERROR(VLOOKUP(B187,[1]Count!A:J,9,FALSE),0))) ->  | M187: =IF(B187="סך הכל",[1]Summary!$B$12,IF(F187="","",IFERROR(VLOOKUP(B187,[1]Count!A:J,10,FALSE),0))) ->  | O187: =IFERROR(VLOOKUP(B187,[1]Comments!A:B,2,FALSE),"") -> 
B188: =IF(AND(B186<>"",ISNUMBER(B186),B187=""),"סך הכל",IF([1]Planning!A191="","",[1]Planning!A191)) ->  | C188: =IFERROR(_xlfn.IFS(B188="סך הכל",[1]Summary!$B$6,[1]Planning!C191<>"",[1]Planning!C191),"") ->  | D188: =IFERROR(VLOOKUP(B188,[1]Address!B:G,5,FALSE),"") ->  | E188: =IFERROR(VLOOKUP(B188,[1]Address!B:L,11,FALSE),"") ->  | G188: =IF(B188="סך הכל",[1]Summary!$B$7,IF(F188="","",IF(VLOOKUP(B188,[1]WQ_UnitID!B:C,2,FALSE)=0,"",VLOOKUP(B188,[1]WQ_UnitID!B:C,2,FALSE)))) ->  | H188: =IF(B188="סך הכל",[1]Summary!$B$8,IF(F188="","",IFERROR(VLOOKUP(B188,[1]Planning!A:B,2,FALSE),0))) ->  | I188: =IF(B188="סך הכל",[1]Summary!$B$9,IF(F188="","",IFERROR(VLOOKUP(B188,[1]Count!A:B,2,FALSE),0))) ->  | J188: =IF(F188="","",(IF(ISNUMBER(MATCH(B188,[1]ExcPermit!$H$8:$H$1000,0)),"כן","לא"))) ->  | K188: =IF(B188="סך הכל",[1]Summary!$B$10,IF(F188="","",IFERROR(VLOOKUP(B188,[1]Count!A:J,8,FALSE),0))) ->  | L188: =IF(B188="סך הכל",[1]Summary!$B$11,IF(F188="","",IFERROR(VLOOKUP(B188,[1]Count!A:J,9,FALSE),0))) ->  | M188: =IF(B188="סך הכל",[1]Summary!$B$12,IF(F188="","",IFERROR(VLOOKUP(B188,[1]Count!A:J,10,FALSE),0))) ->  | O188: =IFERROR(VLOOKUP(B188,[1]Comments!A:B,2,FALSE),"") -> 
B189: =IF(AND(B187<>"",ISNUMBER(B187),B188=""),"סך הכל",IF([1]Planning!A192="","",[1]Planning!A192)) ->  | C189: =IFERROR(_xlfn.IFS(B189="סך הכל",[1]Summary!$B$6,[1]Planning!C192<>"",[1]Planning!C192),"") ->  | D189: =IFERROR(VLOOKUP(B189,[1]Address!B:G,5,FALSE),"") ->  | E189: =IFERROR(VLOOKUP(B189,[1]Address!B:L,11,FALSE),"") ->  | G189: =IF(B189="סך הכל",[1]Summary!$B$7,IF(F189="","",IF(VLOOKUP(B189,[1]WQ_UnitID!B:C,2,FALSE)=0,"",VLOOKUP(B189,[1]WQ_UnitID!B:C,2,FALSE)))) ->  | H189: =IF(B189="סך הכל",[1]Summary!$B$8,IF(F189="","",IFERROR(VLOOKUP(B189,[1]Planning!A:B,2,FALSE),0))) ->  | I189: =IF(B189="סך הכל",[1]Summary!$B$9,IF(F189="","",IFERROR(VLOOKUP(B189,[1]Count!A:B,2,FALSE),0))) ->  | J189: =IF(F189="","",(IF(ISNUMBER(MATCH(B189,[1]ExcPermit!$H$8:$H$1000,0)),"כן","לא"))) ->  | K189: =IF(B189="סך הכל",[1]Summary!$B$10,IF(F189="","",IFERROR(VLOOKUP(B189,[1]Count!A:J,8,FALSE),0))) ->  | L189: =IF(B189="סך הכל",[1]Summary!$B$11,IF(F189="","",IFERROR(VLOOKUP(B189,[1]Count!A:J,9,FALSE),0))) ->  | M189: =IF(B189="סך הכל",[1]Summary!$B$12,IF(F189="","",IFERROR(VLOOKUP(B189,[1]Count!A:J,10,FALSE),0))) ->  | O189: =IFERROR(VLOOKUP(B189,[1]Comments!A:B,2,FALSE),"") -> 
B190: =IF(AND(B188<>"",ISNUMBER(B188),B189=""),"סך הכל",IF([1]Planning!A193="","",[1]Planning!A193)) ->  | C190: =IFERROR(_xlfn.IFS(B190="סך הכל",[1]Summary!$B$6,[1]Planning!C193<>"",[1]Planning!C193),"") ->  | D190: =IFERROR(VLOOKUP(B190,[1]Address!B:G,5,FALSE),"") ->  | E190: =IFERROR(VLOOKUP(B190,[1]Address!B:L,11,FALSE),"") ->  | G190: =IF(B190="סך הכל",[1]Summary!$B$7,IF(F190="","",IF(VLOOKUP(B190,[1]WQ_UnitID!B:C,2,FALSE)=0,"",VLOOKUP(B190,[1]WQ_UnitID!B:C,2,FALSE)))) ->  | H190: =IF(B190="סך הכל",[1]Summary!$B$8,IF(F190="","",IFERROR(VLOOKUP(B190,[1]Planning!A:B,2,FALSE),0))) ->  | I190: =IF(B190="סך הכל",[1]Summary!$B$9,IF(F190="","",IFERROR(VLOOKUP(B190,[1]Count!A:B,2,FALSE),0))) ->  | J190: =IF(F190="","",(IF(ISNUMBER(MATCH(B190,[1]ExcPermit!$H$8:$H$1000,0)),"כן","לא"))) ->  | K190: =IF(B190="סך הכל",[1]Summary!$B$10,IF(F190="","",IFERROR(VLOOKUP(B190,[1]Count!A:J,8,FALSE),0))) ->  | L190: =IF(B190="סך הכל",[1]Summary!$B$11,IF(F190="","",IFERROR(VLOOKUP(B190,[1]Count!A:J,9,FALSE),0))) ->  | M190: =IF(B190="סך הכל",[1]Summary!$B$12,IF(F190="","",IFERROR(VLOOKUP(B190,[1]Count!A:J,10,FALSE),0))) ->  | O190: =IFERROR(VLOOKUP(B190,[1]Comments!A:B,2,FALSE),"") -> 
B191: =IF(AND(B189<>"",ISNUMBER(B189),B190=""),"סך הכל",IF([1]Planning!A194="","",[1]Planning!A194)) ->  | C191: =IFERROR(_xlfn.IFS(B191="סך הכל",[1]Summary!$B$6,[1]Planning!C194<>"",[1]Planning!C194),"") ->  | D191: =IFERROR(VLOOKUP(B191,[1]Address!B:G,5,FALSE),"") ->  | E191: =IFERROR(VLOOKUP(B191,[1]Address!B:L,11,FALSE),"") ->  | G191: =IF(B191="סך הכל",[1]Summary!$B$7,IF(F191="","",IF(VLOOKUP(B191,[1]WQ_UnitID!B:C,2,FALSE)=0,"",VLOOKUP(B191,[1]WQ_UnitID!B:C,2,FALSE)))) ->  | H191: =IF(B191="סך הכל",[1]Summary!$B$8,IF(F191="","",IFERROR(VLOOKUP(B191,[1]Planning!A:B,2,FALSE),0))) ->  | I191: =IF(B191="סך הכל",[1]Summary!$B$9,IF(F191="","",IFERROR(VLOOKUP(B191,[1]Count!A:B,2,FALSE),0))) ->  | J191: =IF(F191="","",(IF(ISNUMBER(MATCH(B191,[1]ExcPermit!$H$8:$H$1000,0)),"כן","לא"))) ->  | K191: =IF(B191="סך הכל",[1]Summary!$B$10,IF(F191="","",IFERROR(VLOOKUP(B191,[1]Count!A:J,8,FALSE),0))) ->  | L191: =IF(B191="סך הכל",[1]Summary!$B$11,IF(F191="","",IFERROR(VLOOKUP(B191,[1]Count!A:J,9,FALSE),0))) ->  | M191: =IF(B191="סך הכל",[1]Summary!$B$12,IF(F191="","",IFERROR(VLOOKUP(B191,[1]Count!A:J,10,FALSE),0))) ->  | O191: =IFERROR(VLOOKUP(B191,[1]Comments!A:B,2,FALSE),"") -> 
B192: =IF(AND(B190<>"",ISNUMBER(B190),B191=""),"סך הכל",IF([1]Planning!A195="","",[1]Planning!A195)) ->  | C192: =IFERROR(_xlfn.IFS(B192="סך הכל",[1]Summary!$B$6,[1]Planning!C195<>"",[1]Planning!C195),"") ->  | D192: =IFERROR(VLOOKUP(B192,[1]Address!B:G,5,FALSE),"") ->  | E192: =IFERROR(VLOOKUP(B192,[1]Address!B:L,11,FALSE),"") ->  | G192: =IF(B192="סך הכל",[1]Summary!$B$7,IF(F192="","",IF(VLOOKUP(B192,[1]WQ_UnitID!B:C,2,FALSE)=0,"",VLOOKUP(B192,[1]WQ_UnitID!B:C,2,FALSE)))) ->  | H192: =IF(B192="סך הכל",[1]Summary!$B$8,IF(F192="","",IFERROR(VLOOKUP(B192,[1]Planning!A:B,2,FALSE),0))) ->  | I192: =IF(B192="סך הכל",[1]Summary!$B$9,IF(F192="","",IFERROR(VLOOKUP(B192,[1]Count!A:B,2,FALSE),0))) ->  | J192: =IF(F192="","",(IF(ISNUMBER(MATCH(B192,[1]ExcPermit!$H$8:$H$1000,0)),"כן","לא"))) ->  | K192: =IF(B192="סך הכל",[1]Summary!$B$10,IF(F192="","",IFERROR(VLOOKUP(B192,[1]Count!A:J,8,FALSE),0))) ->  | L192: =IF(B192="סך הכל",[1]Summary!$B$11,IF(F192="","",IFERROR(VLOOKUP(B192,[1]Count!A:J,9,FALSE),0))) ->  | M192: =IF(B192="סך הכל",[1]Summary!$B$12,IF(F192="","",IFERROR(VLOOKUP(B192,[1]Count!A:J,10,FALSE),0))) ->  | O192: =IFERROR(VLOOKUP(B192,[1]Comments!A:B,2,FALSE),"") -> 
B193: =IF(AND(B191<>"",ISNUMBER(B191),B192=""),"סך הכל",IF([1]Planning!A196="","",[1]Planning!A196)) ->  | C193: =IFERROR(_xlfn.IFS(B193="סך הכל",[1]Summary!$B$6,[1]Planning!C196<>"",[1]Planning!C196),"") ->  | D193: =IFERROR(VLOOKUP(B193,[1]Address!B:G,5,FALSE),"") ->  | E193: =IFERROR(VLOOKUP(B193,[1]Address!B:L,11,FALSE),"") ->  | G193: =IF(B193="סך הכל",[1]Summary!$B$7,IF(F193="","",IF(VLOOKUP(B193,[1]WQ_UnitID!B:C,2,FALSE)=0,"",VLOOKUP(B193,[1]WQ_UnitID!B:C,2,FALSE)))) ->  | H193: =IF(B193="סך הכל",[1]Summary!$B$8,IF(F193="","",IFERROR(VLOOKUP(B193,[1]Planning!A:B,2,FALSE),0))) ->  | I193: =IF(B193="סך הכל",[1]Summary!$B$9,IF(F193="","",IFERROR(VLOOKUP(B193,[1]Count!A:B,2,FALSE),0))) ->  | J193: =IF(F193="","",(IF(ISNUMBER(MATCH(B193,[1]ExcPermit!$H$8:$H$1000,0)),"כן","לא"))) ->  | K193: =IF(B193="סך הכל",[1]Summary!$B$10,IF(F193="","",IFERROR(VLOOKUP(B193,[1]Count!A:J,8,FALSE),0))) ->  | L193: =IF(B193="סך הכל",[1]Summary!$B$11,IF(F193="","",IFERROR(VLOOKUP(B193,[1]Count!A:J,9,FALSE),0))) ->  | M193: =IF(B193="סך הכל",[1]Summary!$B$12,IF(F193="","",IFERROR(VLOOKUP(B193,[1]Count!A:J,10,FALSE),0))) ->  | O193: =IFERROR(VLOOKUP(B193,[1]Comments!A:B,2,FALSE),"") -> 
B194: =IF(AND(B192<>"",ISNUMBER(B192),B193=""),"סך הכל",IF([1]Planning!A197="","",[1]Planning!A197)) ->  | C194: =IFERROR(_xlfn.IFS(B194="סך הכל",[1]Summary!$B$6,[1]Planning!C197<>"",[1]Planning!C197),"") ->  | D194: =IFERROR(VLOOKUP(B194,[1]Address!B:G,5,FALSE),"") ->  | E194: =IFERROR(VLOOKUP(B194,[1]Address!B:L,11,FALSE),"") ->  | G194: =IF(B194="סך הכל",[1]Summary!$B$7,IF(F194="","",IF(VLOOKUP(B194,[1]WQ_UnitID!B:C,2,FALSE)=0,"",VLOOKUP(B194,[1]WQ_UnitID!B:C,2,FALSE)))) ->  | H194: =IF(B194="סך הכל",[1]Summary!$B$8,IF(F194="","",IFERROR(VLOOKUP(B194,[1]Planning!A:B,2,FALSE),0))) ->  | I194: =IF(B194="סך הכל",[1]Summary!$B$9,IF(F194="","",IFERROR(VLOOKUP(B194,[1]Count!A:B,2,FALSE),0))) ->  | J194: =IF(F194="","",(IF(ISNUMBER(MATCH(B194,[1]ExcPermit!$H$8:$H$1000,0)),"כן","לא"))) ->  | K194: =IF(B194="סך הכל",[1]Summary!$B$10,IF(F194="","",IFERROR(VLOOKUP(B194,[1]Count!A:J,8,FALSE),0))) ->  | L194: =IF(B194="סך הכל",[1]Summary!$B$11,IF(F194="","",IFERROR(VLOOKUP(B194,[1]Count!A:J,9,FALSE),0))) ->  | M194: =IF(B194="סך הכל",[1]Summary!$B$12,IF(F194="","",IFERROR(VLOOKUP(B194,[1]Count!A:J,10,FALSE),0))) ->  | O194: =IFERROR(VLOOKUP(B194,[1]Comments!A:B,2,FALSE),"") -> 
B195: =IF(AND(B193<>"",ISNUMBER(B193),B194=""),"סך הכל",IF([1]Planning!A198="","",[1]Planning!A198)) ->  | C195: =IFERROR(_xlfn.IFS(B195="סך הכל",[1]Summary!$B$6,[1]Planning!C198<>"",[1]Planning!C198),"") ->  | D195: =IFERROR(VLOOKUP(B195,[1]Address!B:G,5,FALSE),"") ->  | E195: =IFERROR(VLOOKUP(B195,[1]Address!B:L,11,FALSE),"") ->  | G195: =IF(B195="סך הכל",[1]Summary!$B$7,IF(F195="","",IF(VLOOKUP(B195,[1]WQ_UnitID!B:C,2,FALSE)=0,"",VLOOKUP(B195,[1]WQ_UnitID!B:C,2,FALSE)))) ->  | H195: =IF(B195="סך הכל",[1]Summary!$B$8,IF(F195="","",IFERROR(VLOOKUP(B195,[1]Planning!A:B,2,FALSE),0))) ->  | I195: =IF(B195="סך הכל",[1]Summary!$B$9,IF(F195="","",IFERROR(VLOOKUP(B195,[1]Count!A:B,2,FALSE),0))) ->  | J195: =IF(F195="","",(IF(ISNUMBER(MATCH(B195,[1]ExcPermit!$H$8:$H$1000,0)),"כן","לא"))) ->  | K195: =IF(B195="סך הכל",[1]Summary!$B$10,IF(F195="","",IFERROR(VLOOKUP(B195,[1]Count!A:J,8,FALSE),0))) ->  | L195: =IF(B195="סך הכל",[1]Summary!$B$11,IF(F195="","",IFERROR(VLOOKUP(B195,[1]Count!A:J,9,FALSE),0))) ->  | M195: =IF(B195="סך הכל",[1]Summary!$B$12,IF(F195="","",IFERROR(VLOOKUP(B195,[1]Count!A:J,10,FALSE),0))) ->  | O195: =IFERROR(VLOOKUP(B195,[1]Comments!A:B,2,FALSE),"") -> 
B196: =IF(AND(B194<>"",ISNUMBER(B194),B195=""),"סך הכל",IF([1]Planning!A199="","",[1]Planning!A199)) ->  | C196: =IFERROR(_xlfn.IFS(B196="סך הכל",[1]Summary!$B$6,[1]Planning!C199<>"",[1]Planning!C199),"") ->  | D196: =IFERROR(VLOOKUP(B196,[1]Address!B:G,5,FALSE),"") ->  | E196: =IFERROR(VLOOKUP(B196,[1]Address!B:L,11,FALSE),"") ->  | G196: =IF(B196="סך הכל",[1]Summary!$B$7,IF(F196="","",IF(VLOOKUP(B196,[1]WQ_UnitID!B:C,2,FALSE)=0,"",VLOOKUP(B196,[1]WQ_UnitID!B:C,2,FALSE)))) ->  | H196: =IF(B196="סך הכל",[1]Summary!$B$8,IF(F196="","",IFERROR(VLOOKUP(B196,[1]Planning!A:B,2,FALSE),0))) ->  | I196: =IF(B196="סך הכל",[1]Summary!$B$9,IF(F196="","",IFERROR(VLOOKUP(B196,[1]Count!A:B,2,FALSE),0))) ->  | J196: =IF(F196="","",(IF(ISNUMBER(MATCH(B196,[1]ExcPermit!$H$8:$H$1000,0)),"כן","לא"))) ->  | K196: =IF(B196="סך הכל",[1]Summary!$B$10,IF(F196="","",IFERROR(VLOOKUP(B196,[1]Count!A:J,8,FALSE),0))) ->  | L196: =IF(B196="סך הכל",[1]Summary!$B$11,IF(F196="","",IFERROR(VLOOKUP(B196,[1]Count!A:J,9,FALSE),0))) ->  | M196: =IF(B196="סך הכל",[1]Summary!$B$12,IF(F196="","",IFERROR(VLOOKUP(B196,[1]Count!A:J,10,FALSE),0))) ->  | O196: =IFERROR(VLOOKUP(B196,[1]Comments!A:B,2,FALSE),"") -> 
B197: =IF(AND(B195<>"",ISNUMBER(B195),B196=""),"סך הכל",IF([1]Planning!A200="","",[1]Planning!A200)) ->  | C197: =IFERROR(_xlfn.IFS(B197="סך הכל",[1]Summary!$B$6,[1]Planning!C200<>"",[1]Planning!C200),"") ->  | D197: =IFERROR(VLOOKUP(B197,[1]Address!B:G,5,FALSE),"") ->  | E197: =IFERROR(VLOOKUP(B197,[1]Address!B:L,11,FALSE),"") ->  | F197: =IF(ISNUMBER(B197),"חטף","") ->  | G197: =IF(B197="סך הכל",[1]Summary!$B$7,IF(F197="","",IF(VLOOKUP(B197,[1]WQ_UnitID!B:C,2,FALSE)=0,"",VLOOKUP(B197,[1]WQ_UnitID!B:C,2,FALSE)))) ->  | H197: =IF(B197="סך הכל",[1]Summary!$B$8,IF(F197="","",IFERROR(VLOOKUP(B197,[1]Planning!A:B,2,FALSE),0))) ->  | I197: =IF(B197="סך הכל",[1]Summary!$B$9,IF(F197="","",IFERROR(VLOOKUP(B197,[1]Count!A:B,2,FALSE),0))) ->  | J197: =IF(F197="","",(IF(ISNUMBER(MATCH(B197,[1]ExcPermit!$H$8:$H$1000,0)),"כן","לא"))) ->  | K197: =IF(B197="סך הכל",[1]Summary!$B$10,IF(F197="","",IFERROR(VLOOKUP(B197,[1]Count!A:J,8,FALSE),0))) ->  | L197: =IF(B197="סך הכל",[1]Summary!$B$11,IF(F197="","",IFERROR(VLOOKUP(B197,[1]Count!A:J,9,FALSE),0))) ->  | M197: =IF(B197="סך הכל",[1]Summary!$B$12,IF(F197="","",IFERROR(VLOOKUP(B197,[1]Count!A:J,10,FALSE),0))) ->  | O197: =IFERROR(VLOOKUP(B197,[1]Comments!A:B,2,FALSE),"") -> 
B198: =IF(AND(B196<>"",ISNUMBER(B196),B197=""),"סך הכל",IF([1]Planning!A201="","",[1]Planning!A201)) ->  | C198: =IFERROR(_xlfn.IFS(B198="סך הכל",[1]Summary!$B$6,[1]Planning!C201<>"",[1]Planning!C201),"") ->  | D198: =IFERROR(VLOOKUP(B198,[1]Address!B:G,5,FALSE),"") ->  | E198: =IFERROR(VLOOKUP(B198,[1]Address!B:L,11,FALSE),"") ->  | G198: =IF(B198="סך הכל",[1]Summary!$B$7,IF(F198="","",IF(VLOOKUP(B198,[1]WQ_UnitID!B:C,2,FALSE)=0,"",VLOOKUP(B198,[1]WQ_UnitID!B:C,2,FALSE)))) ->  | H198: =IF(B198="סך הכל",[1]Summary!$B$8,IF(F198="","",IFERROR(VLOOKUP(B198,[1]Planning!A:B,2,FALSE),0))) ->  | I198: =IF(B198="סך הכל",[1]Summary!$B$9,IF(F198="","",IFERROR(VLOOKUP(B198,[1]Count!A:B,2,FALSE),0))) ->  | J198: =IF(F198="","",(IF(ISNUMBER(MATCH(B198,[1]ExcPermit!$H$8:$H$1000,0)),"כן","לא"))) ->  | K198: =IF(B198="סך הכל",[1]Summary!$B$10,IF(F198="","",IFERROR(VLOOKUP(B198,[1]Count!A:J,8,FALSE),0))) ->  | L198: =IF(B198="סך הכל",[1]Summary!$B$11,IF(F198="","",IFERROR(VLOOKUP(B198,[1]Count!A:J,9,FALSE),0))) ->  | M198: =IF(B198="סך הכל",[1]Summary!$B$12,IF(F198="","",IFERROR(VLOOKUP(B198,[1]Count!A:J,10,FALSE),0))) ->  | N198: =IF(O198=0,"",O198) ->  | O198: =IFERROR(VLOOKUP(B198,[1]Comments!A:B,2,FALSE),"") -> 
B199: =IF(AND(B197<>"",ISNUMBER(B197),B198=""),"סך הכל",IF([1]Planning!A202="","",[1]Planning!A202)) ->  | C199: =IFERROR(_xlfn.IFS(B199="סך הכל",[1]Summary!$B$6,[1]Planning!C202<>"",[1]Planning!C202),"") ->  | D199: =IFERROR(VLOOKUP(B199,[1]Address!B:G,5,FALSE),"") ->  | E199: =IFERROR(VLOOKUP(B199,[1]Address!B:L,11,FALSE),"") ->  | G199: =IF(B199="סך הכל",[1]Summary!$B$7,IF(F199="","",IF(VLOOKUP(B199,[1]WQ_UnitID!B:C,2,FALSE)=0,"",VLOOKUP(B199,[1]WQ_UnitID!B:C,2,FALSE)))) ->  | H199: =IF(B199="סך הכל",[1]Summary!$B$8,IF(F199="","",IFERROR(VLOOKUP(B199,[1]Planning!A:B,2,FALSE),0))) ->  | I199: =IF(B199="סך הכל",[1]Summary!$B$9,IF(F199="","",IFERROR(VLOOKUP(B199,[1]Count!A:B,2,FALSE),0))) ->  | J199: =IF(F199="","",(IF(ISNUMBER(MATCH(B199,[1]ExcPermit!$H$8:$H$1000,0)),"כן","לא"))) ->  | K199: =IF(B199="סך הכל",[1]Summary!$B$10,IF(F199="","",IFERROR(VLOOKUP(B199,[1]Count!A:J,8,FALSE),0))) ->  | L199: =IF(B199="סך הכל",[1]Summary!$B$11,IF(F199="","",IFERROR(VLOOKUP(B199,[1]Count!A:J,9,FALSE),0))) ->  | M199: =IF(B199="סך הכל",[1]Summary!$B$12,IF(F199="","",IFERROR(VLOOKUP(B199,[1]Count!A:J,10,FALSE),0))) ->  | O199: =IFERROR(VLOOKUP(B199,[1]Comments!A:B,2,FALSE),"") -> 
B200: =IF(AND(B198<>"",ISNUMBER(B198),B199=""),"סך הכל",IF([1]Planning!A203="","",[1]Planning!A203)) ->  | C200: =IFERROR(_xlfn.IFS(B200="סך הכל",[1]Summary!$B$6,[1]Planning!C203<>"",[1]Planning!C203),"") ->  | D200: =IFERROR(VLOOKUP(B200,[1]Address!B:G,5,FALSE),"") ->  | E200: =IFERROR(VLOOKUP(B200,[1]Address!B:L,11,FALSE),"") ->  | G200: =IF(B200="סך הכל",[1]Summary!$B$7,IF(F200="","",IF(VLOOKUP(B200,[1]WQ_UnitID!B:C,2,FALSE)=0,"",VLOOKUP(B200,[1]WQ_UnitID!B:C,2,FALSE)))) ->  | H200: =IF(B200="סך הכל",[1]Summary!$B$8,IF(F200="","",IFERROR(VLOOKUP(B200,[1]Planning!A:B,2,FALSE),0))) ->  | I200: =IF(B200="סך הכל",[1]Summary!$B$9,IF(F200="","",IFERROR(VLOOKUP(B200,[1]Count!A:B,2,FALSE),0))) ->  | J200: =IF(F200="","",(IF(ISNUMBER(MATCH(B200,[1]ExcPermit!$H$8:$H$1000,0)),"כן","לא"))) ->  | K200: =IF(B200="סך הכל",[1]Summary!$B$10,IF(F200="","",IFERROR(VLOOKUP(B200,[1]Count!A:J,8,FALSE),0))) ->  | L200: =IF(B200="סך הכל",[1]Summary!$B$11,IF(F200="","",IFERROR(VLOOKUP(B200,[1]Count!A:J,9,FALSE),0))) ->  | M200: =IF(B200="סך הכל",[1]Summary!$B$12,IF(F200="","",IFERROR(VLOOKUP(B200,[1]Count!A:J,10,FALSE),0))) ->  | O200: =IFERROR(VLOOKUP(B200,[1]Comments!A:B,2,FALSE),"") -> 
B201: =IF(AND(B199<>"",ISNUMBER(B199),B200=""),"סך הכל",IF([1]Planning!A204="","",[1]Planning!A204)) ->  | C201: =IFERROR(_xlfn.IFS(B201="סך הכל",[1]Summary!$B$6,[1]Planning!C204<>"",[1]Planning!C204),"") ->  | D201: =IFERROR(VLOOKUP(B201,[1]Address!B:G,5,FALSE),"") ->  | E201: =IFERROR(VLOOKUP(B201,[1]Address!B:L,11,FALSE),"") ->  | G201: =IF(B201="סך הכל",[1]Summary!$B$7,IF(F201="","",IF(VLOOKUP(B201,[1]WQ_UnitID!B:C,2,FALSE)=0,"",VLOOKUP(B201,[1]WQ_UnitID!B:C,2,FALSE)))) ->  | H201: =IF(B201="סך הכל",[1]Summary!$B$8,IF(F201="","",IFERROR(VLOOKUP(B201,[1]Planning!A:B,2,FALSE),0))) ->  | I201: =IF(B201="סך הכל",[1]Summary!$B$9,IF(F201="","",IFERROR(VLOOKUP(B201,[1]Count!A:B,2,FALSE),0))) ->  | J201: =IF(F201="","",(IF(ISNUMBER(MATCH(B201,[1]ExcPermit!$H$8:$H$1000,0)),"כן","לא"))) ->  | K201: =IF(B201="סך הכל",[1]Summary!$B$10,IF(F201="","",IFERROR(VLOOKUP(B201,[1]Count!A:J,8,FALSE),0))) ->  | L201: =IF(B201="סך הכל",[1]Summary!$B$11,IF(F201="","",IFERROR(VLOOKUP(B201,[1]Count!A:J,9,FALSE),0))) ->  | M201: =IF(B201="סך הכל",[1]Summary!$B$12,IF(F201="","",IFERROR(VLOOKUP(B201,[1]Count!A:J,10,FALSE),0))) ->  | O201: =IFERROR(VLOOKUP(B201,[1]Comments!A:B,2,FALSE),"") -> 
... 399 more rows

Sheet דיווח חריגים
C1: ='[1]מסך פתיחה'!$C$3 -> דוח איכות סביבה הפקה | D1: דיווח חריגים | E1: ='[1]מסך פתיחה'!D7 -> מ01/01/2022 00:00:00עד01/01/2023 00:00:00 | I1: =#REF! -> 
C2: ='[1]מסך פתיחה'!$C$4 -> אור - יהודה - מי שקמה
F3: ריכוז מירבי המותר הזרמה על פי הסכם (מג"ל \ ערך) | J3: ממוצע ריכוזים בפועל (מג"ל \ ערך)
B4: אקודן | C4: שם מפעל | D4: מגזר תעשייתי | E4: כמות מים/שפכים שנתית (מ"ק) | F4: COD | G4: TSS | H4: חנקן קלדל | I4: זרחן | J4: COD | K4: TSS | L4: חנקן קילדל | M4: זרחן
B5: =IF(ISNUMBER('[1]דיווח דיגומים'!B5),'[1]דיווח דיגומים'!B5,"") -> 8146 | C5: =IF(ISNUMBER('[1]דיווח דיגומים'!B5),'[1]דיווח דיגומים'!C5,"") -> אולמי אקסייט (גני סאם) | D5: =IF('[1]דיווח דיגומים'!E5="","",'[1]דיווח דיגומים'!E5) -> אולמות אירועים, מסעדות, קניונים | E5: =IF(B5="","",IF(VLOOKUP(B5,[1]WQ_UnitID!B:C,2,FALSE)=0,"",VLOOKUP(B5,[1]WQ_UnitID!B:C,2,FALSE))) ->  | F5: =IF(B5="","",[1]ExcLimit!$B$8) -> 800 | G5: =IF(B5="","",IF(D5=[1]Index!$R$24,"",[1]ExcLimit!$C$8)) -> 400 | H5: =IF(B5="","",[1]ExcLimit!$D$8) -> 50 | I5: =IF(B5="","",[1]ExcLimit!$E$8) -> 15 | J5: =IFERROR(VLOOKUP(B5,[1]ExcCalc!O:S,2,FALSE),"") ->  | K5: =IFERROR(VLOOKUP(B5,[1]ExcCalc!O:S,3,FALSE),"") ->  | L5: =IFERROR(VLOOKUP(B5,[1]ExcCalc!O:S,4,FALSE),"") ->  | M5: =IFERROR(VLOOKUP(B5,[1]ExcCalc!O:S,5,FALSE),"") -> 
B6: =IF(ISNUMBER('[1]דיווח דיגומים'!B6),'[1]דיווח דיגומים'!B6,"") -> 30305 | C6: =IF(ISNUMBER('[1]דיווח דיגומים'!B6),'[1]דיווח דיגומים'!C6,"") -> אולמי דניאל | D6: =IF('[1]דיווח דיגומים'!E6="","",'[1]דיווח דיגומים'!E6) -> אולמות אירועים, מסעדות, קניונים | E6: =IF(B6="","",IF(VLOOKUP(B6,[1]WQ_UnitID!B:C,2,FALSE)=0,"",VLOOKUP(B6,[1]WQ_UnitID!B:C,2,FALSE))) -> 2038.006799 | F6: =IF(B6="","",[1]ExcLimit!$B$8) -> 800 | G6: =IF(B6="","",IF(D6=[1]Index!$R$24,"",[1]ExcLimit!$C$8)) -> 400 | H6: =IF(B6="","",[1]ExcLimit!$D$8) -> 50 | I6: =IF(B6="","",[1]ExcLimit!$E$8) -> 15 | J6: =IFERROR(VLOOKUP(B6,[1]ExcCalc!O:S,2,FALSE),"") -> 5446.25 | K6: =IFERROR(VLOOKUP(B6,[1]ExcCalc!O:S,3,FALSE),"") -> 1138.25 | L6: =IFERROR(VLOOKUP(B6,[1]ExcCalc!O:S,4,FALSE),"") ->  | M6: =IFERROR(VLOOKUP(B6,[1]ExcCalc!O:S,5,FALSE),"") -> 
B7: =IF(ISNUMBER('[1]דיווח דיגומים'!B7),'[1]דיווח דיגומים'!B7,"") -> 32580 | C7: =IF(ISNUMBER('[1]דיווח דיגומים'!B7),'[1]דיווח דיגומים'!C7,"") -> אטליז שרעבי | D7: =IF('[1]דיווח דיגומים'!E7="","",'[1]דיווח דיגומים'!E7) -> משחטות, בתי מטבחיים, בתי נחירה, עיבוד דגים | E7: =IF(B7="","",IF(VLOOKUP(B7,[1]WQ_UnitID!B:C,2,FALSE)=0,"",VLOOKUP(B7,[1]WQ_UnitID!B:C,2,FALSE))) -> 70.00487045 | F7: =IF(B7="","",[1]ExcLimit!$B$8) -> 800 | G7: =IF(B7="","",IF(D7=[1]Index!$R$24,"",[1]ExcLimit!$C$8)) -> 400 | H7: =IF(B7="","",[1]ExcLimit!$D$8) -> 50 | I7: =IF(B7="","",[1]ExcLimit!$E$8) -> 15 | J7: =IFERROR(VLOOKUP(B7,[1]ExcCalc!O:S,2,FALSE),"") -> 990.25 | K7: =IFERROR(VLOOKUP(B7,[1]ExcCalc!O:S,3,FALSE),"") -> 116 | L7: =IFERROR(VLOOKUP(B7,[1]ExcCalc!O:S,4,FALSE),"") -> 46.48333333 | M7: =IFERROR(VLOOKUP(B7,[1]ExcCalc!O:S,5,FALSE),"") -> 31.32205
B8: =IF(ISNUMBER('[1]דיווח דיגומים'!B8),'[1]דיווח דיגומים'!B8,"") -> 8272 | C8: =IF(ISNUMBER('[1]דיווח דיגומים'!B8),'[1]דיווח דיגומים'!C8,"") -> אצל התורכי | D8: =IF('[1]דיווח דיגומים'!E8="","",'[1]דיווח דיגומים'!E8) -> אולמות אירועים, מסעדות, קניונים | E8: =IF(B8="","",IF(VLOOKUP(B8,[1]WQ_UnitID!B:C,2,FALSE)=0,"",VLOOKUP(B8,[1]WQ_UnitID!B:C,2,FALSE))) -> 425.1191798 | F8: =IF(B8="","",[1]ExcLimit!$B$8) -> 800 | G8: =IF(B8="","",IF(D8=[1]Index!$R$24,"",[1]ExcLimit!$C$8)) -> 400 | H8: =IF(B8="","",[1]ExcLimit!$D$8) -> 50 | I8: =IF(B8="","",[1]ExcLimit!$E$8) -> 15 | J8: =IFERROR(VLOOKUP(B8,[1]ExcCalc!O:S,2,FALSE),"") -> 2033.333333 | K8: =IFERROR(VLOOKUP(B8,[1]ExcCalc!O:S,3,FALSE),"") -> 363 | L8: =IFERROR(VLOOKUP(B8,[1]ExcCalc!O:S,4,FALSE),"") ->  | M8: =IFERROR(VLOOKUP(B8,[1]ExcCalc!O:S,5,FALSE),"") -> 
B9: =IF(ISNUMBER('[1]דיווח דיגומים'!B9),'[1]דיווח דיגומים'!B9,"") -> 30030 | C9: =IF(ISNUMBER('[1]דיווח דיגומים'!B9),'[1]דיווח דיגומים'!C9,"") -> בית סיעודי - צומת סביון | D9: =IF('[1]דיווח דיגומים'!E9="","",'[1]דיווח דיגומים'!E9) -> בתי מלון | E9: =IF(B9="","",IF(VLOOKUP(B9,[1]WQ_UnitID!B:C,2,FALSE)=0,"",VLOOKUP(B9,[1]WQ_UnitID!B:C,2,FALSE))) -> 2165.116711 | F9: =IF(B9="","",[1]ExcLimit!$B$8) -> 800 | G9: =IF(B9="","",IF(D9=[1]Index!$R$24,"",[1]ExcLimit!$C$8)) -> 400 | H9: =IF(B9="","",[1]ExcLimit!$D$8) -> 50 | I9: =IF(B9="","",[1]ExcLimit!$E$8) -> 15 | J9: =IFERROR(VLOOKUP(B9,[1]ExcCalc!O:S,2,FALSE),"") -> 730.25 | K9: =IFERROR(VLOOKUP(B9,[1]ExcCalc!O:S,3,FALSE),"") -> 245.75 | L9: =IFERROR(VLOOKUP(B9,[1]ExcCalc!O:S,4,FALSE),"") ->  | M9: =IFERROR(VLOOKUP(B9,[1]ExcCalc!O:S,5,FALSE),"") -> 
B10: =IF(ISNUMBER('[1]דיווח דיגומים'!B10),'[1]דיווח דיגומים'!B10,"") -> 38345 | C10: =IF(ISNUMBER('[1]דיווח דיגומים'!B10),'[1]דיווח דיגומים'!C10,"") -> דור אנרגיה בישר | D10: =IF('[1]דיווח דיגומים'!E10="","",'[1]דיווח דיגומים'!E10) -> תחנות תדלוק | E10: =IF(B10="","",IF(VLOOKUP(B10,[1]WQ_UnitID!B:C,2,FALSE)=0,"",VLOOKUP(B10,[1]WQ_UnitID!B:C,2,FALSE))) ->  | F10: =IF(B10="","",[1]ExcLimit!$B$8) -> 800 | G10: =IF(B10="","",IF(D10=[1]Index!$R$24,"",[1]ExcLimit!$C$8)) -> 400 | H10: =IF(B10="","",[1]ExcLimit!$D$8) -> 50 | I10: =IF(B10="","",[1]ExcLimit!$E$8) -> 15 | J10: =IFERROR(VLOOKUP(B10,[1]ExcCalc!O:S,2,FALSE),"") ->  | K10: =IFERROR(VLOOKUP(B10,[1]ExcCalc!O:S,3,FALSE),"") ->  | L10: =IFERROR(VLOOKUP(B10,[1]ExcCalc!O:S,4,FALSE),"") ->  | M10: =IFERROR(VLOOKUP(B10,[1]ExcCalc!O:S,5,FALSE),"") -> 
B11: =IF(ISNUMBER('[1]דיווח דיגומים'!B11),'[1]דיווח דיגומים'!B11,"") -> 31558 | C11: =IF(ISNUMBER('[1]דיווח דיגומים'!B11),'[1]דיווח דיגומים'!C11,"") -> האחים שקורי בשרים | D11: =IF('[1]דיווח דיגומים'!E11="","",'[1]דיווח דיגומים'!E11) -> משחטות, בתי מטבחיים, בתי נחירה, עיבוד דגים | E11: =IF(B11="","",IF(VLOOKUP(B11,[1]WQ_UnitID!B:C,2,FALSE)=0,"",VLOOKUP(B11,[1]WQ_UnitID!B:C,2,FALSE))) -> 151.1089801 | F11: =IF(B11="","",[1]ExcLimit!$B$8) -> 800 | G11: =IF(B11="","",IF(D11=[1]Index!$R$24,"",[1]ExcLimit!$C$8)) -> 400 | H11: =IF(B11="","",[1]ExcLimit!$D$8) -> 50 | I11: =IF(B11="","",[1]ExcLimit!$E$8) -> 15 | J11: =IFERROR(VLOOKUP(B11,[1]ExcCalc!O:S,2,FALSE),"") -> 2028.75 | K11: =IFERROR(VLOOKUP(B11,[1]ExcCalc!O:S,3,FALSE),"") -> 274.25 | L11: =IFERROR(VLOOKUP(B11,[1]ExcCalc!O:S,4,FALSE),"") -> 124.6525 | M11: =IFERROR(VLOOKUP(B11,[1]ExcCalc!O:S,5,FALSE),"") -> 19.61875
B12: =IF(ISNUMBER('[1]דיווח דיגומים'!B12),'[1]דיווח דיגומים'!B12,"") -> 8122 | C12: =IF(ISNUMBER('[1]דיווח דיגומים'!B12),'[1]דיווח דיגומים'!C12,"") -> הרמיטאג' (ברייט הול) | D12: =IF('[1]דיווח דיגומים'!E12="","",'[1]דיווח דיגומים'!E12) -> אולמות אירועים, מסעדות, קניונים | E12: =IF(B12="","",IF(VLOOKUP(B12,[1]WQ_UnitID!B:C,2,FALSE)=0,"",VLOOKUP(B12,[1]WQ_UnitID!B:C,2,FALSE))) ->  | F12: =IF(B12="","",[1]ExcLimit!$B$8) -> 800 | G12: =IF(B12="","",IF(D12=[1]Index!$R$24,"",[1]ExcLimit!$C$8)) -> 400 | H12: =IF(B12="","",[1]ExcLimit!$D$8) -> 50 | I12: =IF(B12="","",[1]ExcLimit!$E$8) -> 15 | J12: =IFERROR(VLOOKUP(B12,[1]ExcCalc!O:S,2,FALSE),"") ->  | K12: =IFERROR(VLOOKUP(B12,[1]ExcCalc!O:S,3,FALSE),"") ->  | L12: =IFERROR(VLOOKUP(B12,[1]ExcCalc!O:S,4,FALSE),"") ->  | M12: =IFERROR(VLOOKUP(B12,[1]ExcCalc!O:S,5,FALSE),"") -> 
B13: =IF(ISNUMBER('[1]דיווח דיגומים'!B13),'[1]דיווח דיגומים'!B13,"") -> 8416 | C13: =IF(ISNUMBER('[1]דיווח דיגומים'!B13),'[1]דיווח דיגומים'!C13,"") -> חיים לגזיאל מעדני בשר | D13: =IF('[1]דיווח דיגומים'!E13="","",'[1]דיווח דיגומים'!E13) -> משחטות, בתי מטבחיים, בתי נחירה, עיבוד דגים | E13: =IF(B13="","",IF(VLOOKUP(B13,[1]WQ_UnitID!B:C,2,FALSE)=0,"",VLOOKUP(B13,[1]WQ_UnitID!B:C,2,FALSE))) -> 156.8030033 | F13: =IF(B13="","",[1]ExcLimit!$B$8) -> 800 | G13: =IF(B13="","",IF(D13=[1]Index!$R$24,"",[1]ExcLimit!$C$8)) -> 400 | H13: =IF(B13="","",[1]ExcLimit!$D$8) -> 50 | I13: =IF(B13="","",[1]ExcLimit!$E$8) -> 15 | J13: =IFERROR(VLOOKUP(B13,[1]ExcCalc!O:S,2,FALSE),"") -> 1402.5 | K13: =IFERROR(VLOOKUP(B13,[1]ExcCalc!O:S,3,FALSE),"") -> 137 | L13: =IFERROR(VLOOKUP(B13,[1]ExcCalc!O:S,4,FALSE),"") -> 26.8675 | M13: =IFERROR(VLOOKUP(B13,[1]ExcCalc!O:S,5,FALSE),"") -> 6.46325
B14: =IF(ISNUMBER('[1]דיווח דיגומים'!B14),'[1]דיווח דיגומים'!B14,"") -> 32586 | C14: =IF(ISNUMBER('[1]דיווח דיגומים'!B14),'[1]דיווח דיגומים'!C14,"") -> מאפיית ברכת הארץ | D14: =IF('[1]דיווח דיגומים'!E14="","",'[1]דיווח דיגומים'!E14) -> מפעלי מזון ומשקאות | E14: =IF(B14="","",IF(VLOOKUP(B14,[1]WQ_UnitID!B:C,2,FALSE)=0,"",VLOOKUP(B14,[1]WQ_UnitID!B:C,2,FALSE))) -> 12.16666667 | F14: =IF(B14="","",[1]ExcLimit!$B$8) -> 800 | G14: =IF(B14="","",IF(D14=[1]Index!$R$24,"",[1]ExcLimit!$C$8)) -> 400 | H14: =IF(B14="","",[1]ExcLimit!$D$8) -> 50 | I14: =IF(B14="","",[1]ExcLimit!$E$8) -> 15 | J14: =IFERROR(VLOOKUP(B14,[1]ExcCalc!O:S,2,FALSE),"") ->  | K14: =IFERROR(VLOOKUP(B14,[1]ExcCalc!O:S,3,FALSE),"") ->  | L14: =IFERROR(VLOOKUP(B14,[1]ExcCalc!O:S,4,FALSE),"") ->  | M14: =IFERROR(VLOOKUP(B14,[1]ExcCalc!O:S,5,FALSE),"") -> 
B15: =IF(ISNUMBER('[1]דיווח דיגומים'!B15),'[1]דיווח דיגומים'!B15,"") -> 32583 | C15: =IF(ISNUMBER('[1]דיווח דיגומים'!B15),'[1]דיווח דיגומים'!C15,"") -> מאפיית הכוהנים | D15: =IF('[1]דיווח דיגומים'!E15="","",'[1]דיווח דיגומים'!E15) -> מפעלי מזון ומשקאות | E15: =IF(B15="","",IF(VLOOKUP(B15,[1]WQ_UnitID!B:C,2,FALSE)=0,"",VLOOKUP(B15,[1]WQ_UnitID!B:C,2,FALSE))) -> 86.61016949 | F15: =IF(B15="","",[1]ExcLimit!$B$8) -> 800 | G15: =IF(B15="","",IF(D15=[1]Index!$R$24,"",[1]ExcLimit!$C$8)) -> 400 | H15: =IF(B15="","",[1]ExcLimit!$D$8) -> 50 | I15: =IF(B15="","",[1]ExcLimit!$E$8) -> 15 | J15: =IFERROR(VLOOKUP(B15,[1]ExcCalc!O:S,2,FALSE),"") -> 2760 | K15: =IFERROR(VLOOKUP(B15,[1]ExcCalc!O:S,3,FALSE),"") -> 402 | L15: =IFERROR(VLOOKUP(B15,[1]ExcCalc!O:S,4,FALSE),"") -> 58.22 | M15: =IFERROR(VLOOKUP(B15,[1]ExcCalc!O:S,5,FALSE),"") -> 14.683
B16: =IF(ISNUMBER('[1]דיווח דיגומים'!B16),'[1]דיווח דיגומים'!B16,"") -> 7993 | C16: =IF(ISNUMBER('[1]דיווח דיגומים'!B16),'[1]דיווח דיגומים'!C16,"") -> מאפית וינסטו השלום | D16: =IF('[1]דיווח דיגומים'!E16="","",'[1]דיווח דיגומים'!E16) -> מפעלי מזון ומשקאות | E16: =IF(B16="","",IF(VLOOKUP(B16,[1]WQ_UnitID!B:C,2,FALSE)=0,"",VLOOKUP(B16,[1]WQ_UnitID!B:C,2,FALSE))) -> 389.9396245 | F16: =IF(B16="","",[1]ExcLimit!$B$8) -> 800 | G16: =IF(B16="","",IF(D16=[1]Index!$R$24,"",[1]ExcLimit!$C$8)) -> 400 | H16: =IF(B16="","",[1]ExcLimit!$D$8) -> 50 | I16: =IF(B16="","",[1]ExcLimit!$E$8) -> 15 | J16: =IFERROR(VLOOKUP(B16,[1]ExcCalc!O:S,2,FALSE),"") -> 592.6666667 | K16: =IFERROR(VLOOKUP(B16,[1]ExcCalc!O:S,3,FALSE),"") -> 512.6666667 | L16: =IFERROR(VLOOKUP(B16,[1]ExcCalc!O:S,4,FALSE),"") -> 51.39 | M16: =IFERROR(VLOOKUP(B16,[1]ExcCalc!O:S,5,FALSE),"") -> 4.443333333
B17: =IF(ISNUMBER('[1]דיווח דיגומים'!B17),'[1]דיווח דיגומים'!B17,"") -> 29048 | C17: =IF(ISNUMBER('[1]דיווח דיגומים'!B17),'[1]דיווח דיגומים'!C17,"") -> מגדלי הים התיכון | D17: =IF('[1]דיווח דיגומים'!E17="","",'[1]דיווח דיגומים'!E17) -> בתי מלון | E17: =IF(B17="","",IF(VLOOKUP(B17,[1]WQ_UnitID!B:C,2,FALSE)=0,"",VLOOKUP(B17,[1]WQ_UnitID!B:C,2,FALSE))) -> 2756.808874 | F17: =IF(B17="","",[1]ExcLimit!$B$8) -> 800 | G17: =IF(B17="","",IF(D17=[1]Index!$R$24,"",[1]ExcLimit!$C$8)) -> 400 | H17: =IF(B17="","",[1]ExcLimit!$D$8) -> 50 | I17: =IF(B17="","",[1]ExcLimit!$E$8) -> 15 | J17: =IFERROR(VLOOKUP(B17,[1]ExcCalc!O:S,2,FALSE),"") -> 669.5 | K17: =IFERROR(VLOOKUP(B17,[1]ExcCalc!O:S,3,FALSE),"") -> 244.5 | L17: =IFERROR(VLOOKUP(B17,[1]ExcCalc!O:S,4,FALSE),"") ->  | M17: =IFERROR(VLOOKUP(B17,[1]ExcCalc!O:S,5,FALSE),"") -> 
B18: =IF(ISNUMBER('[1]דיווח דיגומים'!B18),'[1]דיווח דיגומים'!B18,"") -> 8332 | C18: =IF(ISNUMBER('[1]דיווח דיגומים'!B18),'[1]דיווח דיגומים'!C18,"") -> מוסך א.מ.ואחיו | D18: =IF('[1]דיווח דיגומים'!E18="","",'[1]דיווח דיגומים'!E18) -> מוסכים | E18: =IF(B18="","",IF(VLOOKUP(B18,[1]WQ_UnitID!B:C,2,FALSE)=0,"",VLOOKUP(B18,[1]WQ_UnitID!B:C,2,FALSE))) -> 20.50561798 | F18: =IF(B18="","",[1]ExcLimit!$B$8) -> 800 | G18: =IF(B18="","",IF(D18=[1]Index!$R$24,"",[1]ExcLimit!$C$8)) -> 400 | H18: =IF(B18="","",[1]ExcLimit!$D$8) -> 50 | I18: =IF(B18="","",[1]ExcLimit!$E$8) -> 15 | J18: =IFERROR(VLOOKUP(B18,[1]ExcCalc!O:S,2,FALSE),"") ->  | K18: =IFERROR(VLOOKUP(B18,[1]ExcCalc!O:S,3,FALSE),"") -> 57 | L18: =IFERROR(VLOOKUP(B18,[1]ExcCalc!O:S,4,FALSE),"") ->  | M18: =IFERROR(VLOOKUP(B18,[1]ExcCalc!O:S,5,FALSE),"") -> 
B19: =IF(ISNUMBER('[1]דיווח דיגומים'!B19),'[1]דיווח דיגומים'!B19,"") -> 7937 | C19: =IF(ISNUMBER('[1]דיווח דיגומים'!B19),'[1]דיווח דיגומים'!C19,"") -> מוסך וולבו חנן שפיק | D19: =IF('[1]דיווח דיגומים'!E19="","",'[1]דיווח דיגומים'!E19) -> מוסכים | E19: =IF(B19="","",IF(VLOOKUP(B19,[1]WQ_UnitID!B:C,2,FALSE)=0,"",VLOOKUP(B19,[1]WQ_UnitID!B:C,2,FALSE))) -> 96.17215423 | F19: =IF(B19="","",[1]ExcLimit!$B$8) -> 800 | G19: =IF(B19="","",IF(D19=[1]Index!$R$24,"",[1]ExcLimit!$C$8)) -> 400 | H19: =IF(B19="","",[1]ExcLimit!$D$8) -> 50 | I19: =IF(B19="","",[1]ExcLimit!$E$8) -> 15 | J19: =IFERROR(VLOOKUP(B19,[1]ExcCalc!O:S,2,FALSE),"") ->  | K19: =IFERROR(VLOOKUP(B19,[1]ExcCalc!O:S,3,FALSE),"") -> 93.75 | L19: =IFERROR(VLOOKUP(B19,[1]ExcCalc!O:S,4,FALSE),"") ->  | M19: =IFERROR(VLOOKUP(B19,[1]ExcCalc!O:S,5,FALSE),"") -> 
B20: =IF(ISNUMBER('[1]דיווח דיגומים'!B20),'[1]דיווח דיגומים'!B20,"") -> 30932 | C20: =IF(ISNUMBER('[1]דיווח דיגומים'!B20),'[1]דיווח דיגומים'!C20,"") -> מסעדת פארוק | D20: =IF('[1]דיווח דיגומים'!E20="","",'[1]דיווח דיגומים'!E20) -> אולמות אירועים, מסעדות, קניונים | E20: =IF(B20="","",IF(VLOOKUP(B20,[1]WQ_UnitID!B:C,2,FALSE)=0,"",VLOOKUP(B20,[1]WQ_UnitID!B:C,2,FALSE))) -> 545.1559619 | F20: =IF(B20="","",[1]ExcLimit!$B$8) -> 800 | G20: =IF(B20="","",IF(D20=[1]Index!$R$24,"",[1]ExcLimit!$C$8)) -> 400 | H20: =IF(B20="","",[1]ExcLimit!$D$8) -> 50 | I20: =IF(B20="","",[1]ExcLimit!$E$8) -> 15 | J20: =IFERROR(VLOOKUP(B20,[1]ExcCalc!O:S,2,FALSE),"") -> 1626.333333 | K20: =IFERROR(VLOOKUP(B20,[1]ExcCalc!O:S,3,FALSE),"") -> 889.6666667 | L20: =IFERROR(VLOOKUP(B20,[1]ExcCalc!O:S,4,FALSE),"") ->  | M20: =IFERROR(VLOOKUP(B20,[1]ExcCalc!O:S,5,FALSE),"") -> 
B21: =IF(ISNUMBER('[1]דיווח דיגומים'!B21),'[1]דיווח דיגומים'!B21,"") -> 8198 | C21: =IF(ISNUMBER('[1]דיווח דיגומים'!B21),'[1]דיווח דיגומים'!C21,"") -> מפגש אנטבה | D21: =IF('[1]דיווח דיגומים'!E21="","",'[1]דיווח דיגומים'!E21) -> אולמות אירועים, מסעדות, קניונים | E21: =IF(B21="","",IF(VLOOKUP(B21,[1]WQ_UnitID!B:C,2,FALSE)=0,"",VLOOKUP(B21,[1]WQ_UnitID!B:C,2,FALSE))) -> 793.6394588 | F21: =IF(B21="","",[1]ExcLimit!$B$8) -> 800 | G21: =IF(B21="","",IF(D21=[1]Index!$R$24,"",[1]ExcLimit!$C$8)) -> 400 | H21: =IF(B21="","",[1]ExcLimit!$D$8) -> 50 | I21: =IF(B21="","",[1]ExcLimit!$E$8) -> 15 | J21: =IFERROR(VLOOKUP(B21,[1]ExcCalc!O:S,2,FALSE),"") -> 1708.333333 | K21: =IFERROR(VLOOKUP(B21,[1]ExcCalc!O:S,3,FALSE),"") -> 350 | L21: =IFERROR(VLOOKUP(B21,[1]ExcCalc!O:S,4,FALSE),"") ->  | M21: =IFERROR(VLOOKUP(B21,[1]ExcCalc!O:S,5,FALSE),"") -> 
B22: =IF(ISNUMBER('[1]דיווח דיגומים'!B22),'[1]דיווח דיגומים'!B22,"") -> 29453 | C22: =IF(ISNUMBER('[1]דיווח דיגומים'!B22),'[1]דיווח דיגומים'!C22,"") -> סיטי סטאר | D22: =IF('[1]דיווח דיגומים'!E22="","",'[1]דיווח דיגומים'!E22) -> אולמות אירועים, מסעדות, קניונים | E22: =IF(B22="","",IF(VLOOKUP(B22,[1]WQ_UnitID!B:C,2,FALSE)=0,"",VLOOKUP(B22,[1]WQ_UnitID!B:C,2,FALSE))) -> 847.9897411 | F22: =IF(B22="","",[1]ExcLimit!$B$8) -> 800 | G22: =IF(B22="","",IF(D22=[1]Index!$R$24,"",[1]ExcLimit!$C$8)) -> 400 | H22: =IF(B22="","",[1]ExcLimit!$D$8) -> 50 | I22: =IF(B22="","",[1]ExcLimit!$E$8) -> 15 | J22: =IFERROR(VLOOKUP(B22,[1]ExcCalc!O:S,2,FALSE),"") -> 2108.5 | K22: =IFERROR(VLOOKUP(B22,[1]ExcCalc!O:S,3,FALSE),"") -> 232.75 | L22: =IFERROR(VLOOKUP(B22,[1]ExcCalc!O:S,4,FALSE),"") ->  | M22: =IFERROR(VLOOKUP(B22,[1]ExcCalc!O:S,5,FALSE),"") -> 
B23: =IF(ISNUMBER('[1]דיווח דיגומים'!B23),'[1]דיווח דיגומים'!B23,"") -> 7777 | C23: =IF(ISNUMBER('[1]דיווח דיגומים'!B23),'[1]דיווח דיגומים'!C23,"") -> עדי קייטרינג | D23: =IF('[1]דיווח דיגומים'!E23="","",'[1]דיווח דיגומים'!E23) -> מפעלי מזון ומשקאות | E23: =IF(B23="","",IF(VLOOKUP(B23,[1]WQ_UnitID!B:C,2,FALSE)=0,"",VLOOKUP(B23,[1]WQ_UnitID!B:C,2,FALSE))) -> 1923.169664 | F23: =IF(B23="","",[1]ExcLimit!$B$8) -> 800 | G23: =IF(B23="","",IF(D23=[1]Index!$R$24,"",[1]ExcLimit!$C$8)) -> 400 | H23: =IF(B23="","",[1]ExcLimit!$D$8) -> 50 | I23: =IF(B23="","",[1]ExcLimit!$E$8) -> 15 | J23: =IFERROR(VLOOKUP(B23,[1]ExcCalc!O:S,2,FALSE),"") -> 2466.666667 | K23: =IFERROR(VLOOKUP(B23,[1]ExcCalc!O:S,3,FALSE),"") -> 611.6666667 | L23: =IFERROR(VLOOKUP(B23,[1]ExcCalc!O:S,4,FALSE),"") -> 160.92 | M23: =IFERROR(VLOOKUP(B23,[1]ExcCalc!O:S,5,FALSE),"") -> 59.02566667
B24: =IF(ISNUMBER('[1]דיווח דיגומים'!B24),'[1]דיווח דיגומים'!B24,"") -> 28548 | C24: =IF(ISNUMBER('[1]דיווח דיגומים'!B24),'[1]דיווח דיגומים'!C24,"") -> תחנת דלק פז אור יהודה | D24: =IF('[1]דיווח דיגומים'!E24="","",'[1]דיווח דיגומים'!E24) -> תחנות תדלוק | E24: =IF(B24="","",IF(VLOOKUP(B24,[1]WQ_UnitID!B:C,2,FALSE)=0,"",VLOOKUP(B24,[1]WQ_UnitID!B:C,2,FALSE))) -> 0.2735042735 | F24: =IF(B24="","",[1]ExcLimit!$B$8) -> 800 | G24: =IF(B24="","",IF(D24=[1]Index!$R$24,"",[1]ExcLimit!$C$8)) -> 400 | H24: =IF(B24="","",[1]ExcLimit!$D$8) -> 50 | I24: =IF(B24="","",[1]ExcLimit!$E$8) -> 15 | J24: =IFERROR(VLOOKUP(B24,[1]ExcCalc!O:S,2,FALSE),"") -> 58 | K24: =IFERROR(VLOOKUP(B24,[1]ExcCalc!O:S,3,FALSE),"") ->  | L24: =IFERROR(VLOOKUP(B24,[1]ExcCalc!O:S,4,FALSE),"") ->  | M24: =IFERROR(VLOOKUP(B24,[1]ExcCalc!O:S,5,FALSE),"") -> 
B25: =IF(ISNUMBER('[1]דיווח דיגומים'!B25),'[1]דיווח דיגומים'!B25,"") -> 8277 | C25: =IF(ISNUMBER('[1]דיווח דיגומים'!B25),'[1]דיווח דיגומים'!C25,"") -> תחנת תדלוק דור אלון | D25: =IF('[1]דיווח דיגומים'!E25="","",'[1]דיווח דיגומים'!E25) -> תחנות תדלוק | E25: =IF(B25="","",IF(VLOOKUP(B25,[1]WQ_UnitID!B:C,2,FALSE)=0,"",VLOOKUP(B25,[1]WQ_UnitID!B:C,2,FALSE))) -> 46.57056138 | F25: =IF(B25="","",[1]ExcLimit!$B$8) -> 800 | G25: =IF(B25="","",IF(D25=[1]Index!$R$24,"",[1]ExcLimit!$C$8)) -> 400 | H25: =IF(B25="","",[1]ExcLimit!$D$8) -> 50 | I25: =IF(B25="","",[1]ExcLimit!$E$8) -> 15 | J25: =IFERROR(VLOOKUP(B25,[1]ExcCalc!O:S,2,FALSE),"") -> 208 | K25: =IFERROR(VLOOKUP(B25,[1]ExcCalc!O:S,3,FALSE),"") ->  | L25: =IFERROR(VLOOKUP(B25,[1]ExcCalc!O:S,4,FALSE),"") ->  | M25: =IFERROR(VLOOKUP(B25,[1]ExcCalc!O:S,5,FALSE),"") -> 
B26: =IF(ISNUMBER('[1]דיווח דיגומים'!B26),'[1]דיווח דיגומים'!B26,"") -> 8110 | C26: =IF(ISNUMBER('[1]דיווח דיגומים'!B26),'[1]דיווח דיגומים'!C26,"") -> תחנת תדלוק סונול קרן | D26: =IF('[1]דיווח דיגומים'!E26="","",'[1]דיווח דיגומים'!E26) -> תחנות תדלוק | E26: =IF(B26="","",IF(VLOOKUP(B26,[1]WQ_UnitID!B:C,2,FALSE)=0,"",VLOOKUP(B26,[1]WQ_UnitID!B:C,2,FALSE))) -> 116.096688 | F26: =IF(B26="","",[1]ExcLimit!$B$8) -> 800 | G26: =IF(B26="","",IF(D26=[1]Index!$R$24,"",[1]ExcLimit!$C$8)) -> 400 | H26: =IF(B26="","",[1]ExcLimit!$D$8) -> 50 | I26: =IF(B26="","",[1]ExcLimit!$E$8) -> 15 | J26: =IFERROR(VLOOKUP(B26,[1]ExcCalc!O:S,2,FALSE),"") -> 96 | K26: =IFERROR(VLOOKUP(B26,[1]ExcCalc!O:S,3,FALSE),"") ->  | L26: =IFERROR(VLOOKUP(B26,[1]ExcCalc!O:S,4,FALSE),"") ->  | M26: =IFERROR(VLOOKUP(B26,[1]ExcCalc!O:S,5,FALSE),"") -> 
B27: =IF(ISNUMBER('[1]דיווח דיגומים'!B27),'[1]דיווח דיגומים'!B27,"") ->  | C27: =IF(ISNUMBER('[1]דיווח דיגומים'!B27),'[1]דיווח דיגומים'!C27,"") ->  | D27: =IF('[1]דיווח דיגומים'!E27="","",'[1]דיווח דיגומים'!E27) ->  | E27: =IF(B27="","",IF(VLOOKUP(B27,[1]WQ_UnitID!B:C,2,FALSE)=0,"",VLOOKUP(B27,[1]WQ_UnitID!B:C,2,FALSE))) ->  | F27: =IF(B27="","",[1]ExcLimit!$B$8) ->  | G27: =IF(B27="","",IF(D27=[1]Index!$R$24,"",[1]ExcLimit!$C$8)) ->  | H27: =IF(B27="","",[1]ExcLimit!$D$8) ->  | I27: =IF(B27="","",[1]ExcLimit!$E$8) ->  | J27: =IFERROR(VLOOKUP(B27,[1]ExcCalc!O:S,2,FALSE),"") ->  | K27: =IFERROR(VLOOKUP(B27,[1]ExcCalc!O:S,3,FALSE),"") ->  | L27: =IFERROR(VLOOKUP(B27,[1]ExcCalc!O:S,4,FALSE),"") ->  | M27: =IFERROR(VLOOKUP(B27,[1]ExcCalc!O:S,5,FALSE),"") -> 
B28: =IF(ISNUMBER('[1]דיווח דיגומים'!B28),'[1]דיווח דיגומים'!B28,"") ->  | C28: =IF(ISNUMBER('[1]דיווח דיגומים'!B28),'[1]דיווח דיגומים'!C28,"") ->  | D28: =IF('[1]דיווח דיגומים'!E28="","",'[1]דיווח דיגומים'!E28) ->  | E28: =IF(B28="","",IF(VLOOKUP(B28,[1]WQ_UnitID!B:C,2,FALSE)=0,"",VLOOKUP(B28,[1]WQ_UnitID!B:C,2,FALSE))) ->  | F28: =IF(B28="","",[1]ExcLimit!$B$8) ->  | G28: =IF(B28="","",IF(D28=[1]Index!$R$24,"",[1]ExcLimit!$C$8)) ->  | H28: =IF(B28="","",[1]ExcLimit!$D$8) ->  | I28: =IF(B28="","",[1]ExcLimit!$E$8) ->  | J28: =IFERROR(VLOOKUP(B28,[1]ExcCalc!O:S,2,FALSE),"") ->  | K28: =IFERROR(VLOOKUP(B28,[1]ExcCalc!O:S,3,FALSE),"") ->  | L28: =IFERROR(VLOOKUP(B28,[1]ExcCalc!O:S,4,FALSE),"") ->  | M28: =IFERROR(VLOOKUP(B28,[1]ExcCalc!O:S,5,FALSE),"") -> 
B29: =IF(ISNUMBER('[1]דיווח דיגומים'!B29),'[1]דיווח דיגומים'!B29,"") ->  | C29: =IF(ISNUMBER('[1]דיווח דיגומים'!B29),'[1]דיווח דיגומים'!C29,"") ->  | D29: =IF('[1]דיווח דיגומים'!E29="","",'[1]דיווח דיגומים'!E29) ->  | E29: =IF(B29="","",IF(VLOOKUP(B29,[1]WQ_UnitID!B:C,2,FALSE)=0,"",VLOOKUP(B29,[1]WQ_UnitID!B:C,2,FALSE))) ->  | F29: =IF(B29="","",[1]ExcLimit!$B$8) ->  | G29: =IF(B29="","",IF(D29=[1]Index!$R$24,"",[1]ExcLimit!$C$8)) ->  | H29: =IF(B29="","",[1]ExcLimit!$D$8) ->  | I29: =IF(B29="","",[1]ExcLimit!$E$8) ->  | J29: =IFERROR(VLOOKUP(B29,[1]ExcCalc!O:S,2,FALSE),"") ->  | K29: =IFERROR(VLOOKUP(B29,[1]ExcCalc!O:S,3,FALSE),"") ->  | L29: =IFERROR(VLOOKUP(B29,[1]ExcCalc!O:S,4,FALSE),"") ->  | M29: =IFERROR(VLOOKUP(B29,[1]ExcCalc!O:S,5,FALSE),"") -> 
B30: =IF(ISNUMBER('[1]דיווח דיגומים'!B30),'[1]דיווח דיגומים'!B30,"") ->  | C30: =IF(ISNUMBER('[1]דיווח דיגומים'!B30),'[1]דיווח דיגומים'!C30,"") ->  | D30: =IF('[1]דיווח דיגומים'!E30="","",'[1]דיווח דיגומים'!E30) ->  | E30: =IF(B30="","",IF(VLOOKUP(B30,[1]WQ_UnitID!B:C,2,FALSE)=0,"",VLOOKUP(B30,[1]WQ_UnitID!B:C,2,FALSE))) ->  | F30: =IF(B30="","",[1]ExcLimit!$B$8) ->  | G30: =IF(B30="","",IF(D30=[1]Index!$R$24,"",[1]ExcLimit!$C$8)) ->  | H30: =IF(B30="","",[1]ExcLimit!$D$8) ->  | I30: =IF(B30="","",[1]ExcLimit!$E$8) ->  | J30: =IFERROR(VLOOKUP(B30,[1]ExcCalc!O:S,2,FALSE),"") ->  | K30: =IFERROR(VLOOKUP(B30,[1]ExcCalc!O:S,3,FALSE),"") ->  | L30: =IFERROR(VLOOKUP(B30,[1]ExcCalc!O:S,4,FALSE),"") ->  | M30: =IFERROR(VLOOKUP(B30,[1]ExcCalc!O:S,5,FALSE),"") -> 
B31: =IF(ISNUMBER('[1]דיווח דיגומים'!B31),'[1]דיווח דיגומים'!B31,"") ->  | C31: =IF(ISNUMBER('[1]דיווח דיגומים'!B31),'[1]דיווח דיגומים'!C31,"") ->  | D31: =IF('[1]דיווח דיגומים'!E31="","",'[1]דיווח דיגומים'!E31) ->  | E31: =IF(B31="","",IF(VLOOKUP(B31,[1]WQ_UnitID!B:C,2,FALSE)=0,"",VLOOKUP(B31,[1]WQ_UnitID!B:C,2,FALSE))) ->  | F31: =IF(B31="","",[1]ExcLimit!$B$8) ->  | G31: =IF(B31="","",IF(D31=[1]Index!$R$24,"",[1]ExcLimit!$C$8)) ->  | H31: =IF(B31="","",[1]ExcLimit!$D$8) ->  | I31: =IF(B31="","",[1]ExcLimit!$E$8) ->  | J31: =IFERROR(VLOOKUP(B31,[1]ExcCalc!O:S,2,FALSE),"") ->  | K31: =IFERROR(VLOOKUP(B31,[1]ExcCalc!O:S,3,FALSE),"") ->  | L31: =IFERROR(VLOOKUP(B31,[1]ExcCalc!O:S,4,FALSE),"") ->  | M31: =IFERROR(VLOOKUP(B31,[1]ExcCalc!O:S,5,FALSE),"") -> 
B32: =IF(ISNUMBER('[1]דיווח דיגומים'!B32),'[1]דיווח דיגומים'!B32,"") ->  | C32: =IF(ISNUMBER('[1]דיווח דיגומים'!B32),'[1]דיווח דיגומים'!C32,"") ->  | D32: =IF('[1]דיווח דיגומים'!E32="","",'[1]דיווח דיגומים'!E32) ->  | E32: =IF(B32="","",IF(VLOOKUP(B32,[1]WQ_UnitID!B:C,2,FALSE)=0,"",VLOOKUP(B32,[1]WQ_UnitID!B:C,2,FALSE))) ->  | F32: =IF(B32="","",[1]ExcLimit!$B$8) ->  | G32: =IF(B32="","",IF(D32=[1]Index!$R$24,"",[1]ExcLimit!$C$8)) ->  | H32: =IF(B32="","",[1]ExcLimit!$D$8) ->  | I32: =IF(B32="","",[1]ExcLimit!$E$8) ->  | J32: =IFERROR(VLOOKUP(B32,[1]ExcCalc!O:S,2,FALSE),"") ->  | K32: =IFERROR(VLOOKUP(B32,[1]ExcCalc!O:S,3,FALSE),"") ->  | L32: =IFERROR(VLOOKUP(B32,[1]ExcCalc!O:S,4,FALSE),"") ->  | M32: =IFERROR(VLOOKUP(B32,[1]ExcCalc!O:S,5,FALSE),"") -> 
B33: =IF(ISNUMBER('[1]דיווח דיגומים'!B33),'[1]דיווח דיגומים'!B33,"") ->  | C33: =IF(ISNUMBER('[1]דיווח דיגומים'!B33),'[1]דיווח דיגומים'!C33,"") ->  | D33: =IF('[1]דיווח דיגומים'!E33="","",'[1]דיווח דיגומים'!E33) ->  | E33: =IF(B33="","",IF(VLOOKUP(B33,[1]WQ_UnitID!B:C,2,FALSE)=0,"",VLOOKUP(B33,[1]WQ_UnitID!B:C,2,FALSE))) ->  | F33: =IF(B33="","",[1]ExcLimit!$B$8) ->  | G33: =IF(B33="","",IF(D33=[1]Index!$R$24,"",[1]ExcLimit!$C$8)) ->  | H33: =IF(B33="","",[1]ExcLimit!$D$8) ->  | I33: =IF(B33="","",[1]ExcLimit!$E$8) ->  | J33: =IFERROR(VLOOKUP(B33,[1]ExcCalc!O:S,2,FALSE),"") ->  | K33: =IFERROR(VLOOKUP(B33,[1]ExcCalc!O:S,3,FALSE),"") ->  | L33: =IFERROR(VLOOKUP(B33,[1]ExcCalc!O:S,4,FALSE),"") ->  | M33: =IFERROR(VLOOKUP(B33,[1]ExcCalc!O:S,5,FALSE),"") -> 
B34: =IF(ISNUMBER('[1]דיווח דיגומים'!B34),'[1]דיווח דיגומים'!B34,"") ->  | C34: =IF(ISNUMBER('[1]דיווח דיגומים'!B34),'[1]דיווח דיגומים'!C34,"") ->  | D34: =IF('[1]דיווח דיגומים'!E34="","",'[1]דיווח דיגומים'!E34) ->  | E34: =IF(B34="","",IF(VLOOKUP(B34,[1]WQ_UnitID!B:C,2,FALSE)=0,"",VLOOKUP(B34,[1]WQ_UnitID!B:C,2,FALSE))) ->  | F34: =IF(B34="","",[1]ExcLimit!$B$8) ->  | G34: =IF(B34="","",IF(D34=[1]Index!$R$24,"",[1]ExcLimit!$C$8)) ->  | H34: =IF(B34="","",[1]ExcLimit!$D$8) ->  | I34: =IF(B34="","",[1]ExcLimit!$E$8) ->  | J34: =IFERROR(VLOOKUP(B34,[1]ExcCalc!O:S,2,FALSE),"") ->  | K34: =IFERROR(VLOOKUP(B34,[1]ExcCalc!O:S,3,FALSE),"") ->  | L34: =IFERROR(VLOOKUP(B34,[1]ExcCalc!O:S,4,FALSE),"") ->  | M34: =IFERROR(VLOOKUP(B34,[1]ExcCalc!O:S,5,FALSE),"") -> 
B35: =IF(ISNUMBER('[1]דיווח דיגומים'!B35),'[1]דיווח דיגומים'!B35,"") ->  | C35: =IF(ISNUMBER('[1]דיווח דיגומים'!B35),'[1]דיווח דיגומים'!C35,"") ->  | D35: =IF('[1]דיווח דיגומים'!E35="","",'[1]דיווח דיגומים'!E35) ->  | E35: =IF(B35="","",IF(VLOOKUP(B35,[1]WQ_UnitID!B:C,2,FALSE)=0,"",VLOOKUP(B35,[1]WQ_UnitID!B:C,2,FALSE))) ->  | F35: =IF(B35="","",[1]ExcLimit!$B$8) ->  | G35: =IF(B35="","",IF(D35=[1]Index!$R$24,"",[1]ExcLimit!$C$8)) ->  | H35: =IF(B35="","",[1]ExcLimit!$D$8) ->  | I35: =IF(B35="","",[1]ExcLimit!$E$8) ->  | J35: =IFERROR(VLOOKUP(B35,[1]ExcCalc!O:S,2,FALSE),"") ->  | K35: =IFERROR(VLOOKUP(B35,[1]ExcCalc!O:S,3,FALSE),"") ->  | L35: =IFERROR(VLOOKUP(B35,[1]ExcCalc!O:S,4,FALSE),"") ->  | M35: =IFERROR(VLOOKUP(B35,[1]ExcCalc!O:S,5,FALSE),"") -> 
B36: =IF(ISNUMBER('[1]דיווח דיגומים'!B36),'[1]דיווח דיגומים'!B36,"") ->  | C36: =IF(ISNUMBER('[1]דיווח דיגומים'!B36),'[1]דיווח דיגומים'!C36,"") ->  | D36: =IF('[1]דיווח דיגומים'!E36="","",'[1]דיווח דיגומים'!E36) ->  | E36: =IF(B36="","",IF(VLOOKUP(B36,[1]WQ_UnitID!B:C,2,FALSE)=0,"",VLOOKUP(B36,[1]WQ_UnitID!B:C,2,FALSE))) ->  | F36: =IF(B36="","",[1]ExcLimit!$B$8) ->  | G36: =IF(B36="","",IF(D36=[1]Index!$R$24,"",[1]ExcLimit!$C$8)) ->  | H36: =IF(B36="","",[1]ExcLimit!$D$8) ->  | I36: =IF(B36="","",[1]ExcLimit!$E$8) ->  | J36: =IFERROR(VLOOKUP(B36,[1]ExcCalc!O:S,2,FALSE),"") ->  | K36: =IFERROR(VLOOKUP(B36,[1]ExcCalc!O:S,3,FALSE),"") ->  | L36: =IFERROR(VLOOKUP(B36,[1]ExcCalc!O:S,4,FALSE),"") ->  | M36: =IFERROR(VLOOKUP(B36,[1]ExcCalc!O:S,5,FALSE),"") -> 
B37: =IF(ISNUMBER('[1]דיווח דיגומים'!B37),'[1]דיווח דיגומים'!B37,"") ->  | C37: =IF(ISNUMBER('[1]דיווח דיגומים'!B37),'[1]דיווח דיגומים'!C37,"") ->  | D37: =IF('[1]דיווח דיגומים'!E37="","",'[1]דיווח דיגומים'!E37) ->  | E37: =IF(B37="","",IF(VLOOKUP(B37,[1]WQ_UnitID!B:C,2,FALSE)=0,"",VLOOKUP(B37,[1]WQ_UnitID!B:C,2,FALSE))) ->  | F37: =IF(B37="","",[1]ExcLimit!$B$8) ->  | G37: =IF(B37="","",IF(D37=[1]Index!$R$24,"",[1]ExcLimit!$C$8)) ->  | H37: =IF(B37="","",[1]ExcLimit!$D$8) ->  | I37: =IF(B37="","",[1]ExcLimit!$E$8) ->  | J37: =IFERROR(VLOOKUP(B37,[1]ExcCalc!O:S,2,FALSE),"") ->  | K37: =IFERROR(VLOOKUP(B37,[1]ExcCalc!O:S,3,FALSE),"") ->  | L37: =IFERROR(VLOOKUP(B37,[1]ExcCalc!O:S,4,FALSE),"") ->  | M37: =IFERROR(VLOOKUP(B37,[1]ExcCalc!O:S,5,FALSE),"") -> 
B38: =IF(ISNUMBER('[1]דיווח דיגומים'!B38),'[1]דיווח דיגומים'!B38,"") ->  | C38: =IF(ISNUMBER('[1]דיווח דיגומים'!B38),'[1]דיווח דיגומים'!C38,"") ->  | D38: =IF('[1]דיווח דיגומים'!E38="","",'[1]דיווח דיגומים'!E38) ->  | E38: =IF(B38="","",IF(VLOOKUP(B38,[1]WQ_UnitID!B:C,2,FALSE)=0,"",VLOOKUP(B38,[1]WQ_UnitID!B:C,2,FALSE))) ->  | F38: =IF(B38="","",[1]ExcLimit!$B$8) ->  | G38: =IF(B38="","",IF(D38=[1]Index!$R$24,"",[1]ExcLimit!$C$8)) ->  | H38: =IF(B38="","",[1]ExcLimit!$D$8) ->  | I38: =IF(B38="","",[1]ExcLimit!$E$8) ->  | J38: =IFERROR(VLOOKUP(B38,[1]ExcCalc!O:S,2,FALSE),"") ->  | K38: =IFERROR(VLOOKUP(B38,[1]ExcCalc!O:S,3,FALSE),"") ->  | L38: =IFERROR(VLOOKUP(B38,[1]ExcCalc!O:S,4,FALSE),"") ->  | M38: =IFERROR(VLOOKUP(B38,[1]ExcCalc!O:S,5,FALSE),"") -> 
B39: =IF(ISNUMBER('[1]דיווח דיגומים'!B39),'[1]דיווח דיגומים'!B39,"") ->  | C39: =IF(ISNUMBER('[1]דיווח דיגומים'!B39),'[1]דיווח דיגומים'!C39,"") ->  | D39: =IF('[1]דיווח דיגומים'!E39="","",'[1]דיווח דיגומים'!E39) ->  | E39: =IF(B39="","",IF(VLOOKUP(B39,[1]WQ_UnitID!B:C,2,FALSE)=0,"",VLOOKUP(B39,[1]WQ_UnitID!B:C,2,FALSE))) ->  | F39: =IF(B39="","",[1]ExcLimit!$B$8) ->  | G39: =IF(B39="","",IF(D39=[1]Index!$R$24,"",[1]ExcLimit!$C$8)) ->  | H39: =IF(B39="","",[1]ExcLimit!$D$8) ->  | I39: =IF(B39="","",[1]ExcLimit!$E$8) ->  | J39: =IFERROR(VLOOKUP(B39,[1]ExcCalc!O:S,2,FALSE),"") ->  | K39: =IFERROR(VLOOKUP(B39,[1]ExcCalc!O:S,3,FALSE),"") ->  | L39: =IFERROR(VLOOKUP(B39,[1]ExcCalc!O:S,4,FALSE),"") ->  | M39: =IFERROR(VLOOKUP(B39,[1]ExcCalc!O:S,5,FALSE),"") -> 
B40: =IF(ISNUMBER('[1]דיווח דיגומים'!B40),'[1]דיווח דיגומים'!B40,"") ->  | C40: =IF(ISNUMBER('[1]דיווח דיגומים'!B40),'[1]דיווח דיגומים'!C40,"") ->  | D40: =IF('[1]דיווח דיגומים'!E40="","",'[1]דיווח דיגומים'!E40) ->  | E40: =IF(B40="","",IF(VLOOKUP(B40,[1]WQ_UnitID!B:C,2,FALSE)=0,"",VLOOKUP(B40,[1]WQ_UnitID!B:C,2,FALSE))) ->  | F40: =IF(B40="","",[1]ExcLimit!$B$8) ->  | G40: =IF(B40="","",IF(D40=[1]Index!$R$24,"",[1]ExcLimit!$C$8)) ->  | H40: =IF(B40="","",[1]ExcLimit!$D$8) ->  | I40: =IF(B40="","",[1]ExcLimit!$E$8) ->  | J40: =IFERROR(VLOOKUP(B40,[1]ExcCalc!O:S,2,FALSE),"") ->  | K40: =IFERROR(VLOOKUP(B40,[1]ExcCalc!O:S,3,FALSE),"") ->  | L40: =IFERROR(VLOOKUP(B40,[1]ExcCalc!O:S,4,FALSE),"") ->  | M40: =IFERROR(VLOOKUP(B40,[1]ExcCalc!O:S,5,FALSE),"") -> 
B41: =IF(ISNUMBER('[1]דיווח דיגומים'!B41),'[1]דיווח דיגומים'!B41,"") ->  | C41: =IF(ISNUMBER('[1]דיווח דיגומים'!B41),'[1]דיווח דיגומים'!C41,"") ->  | D41: =IF('[1]דיווח דיגומים'!E41="","",'[1]דיווח דיגומים'!E41) ->  | E41: =IF(B41="","",IF(VLOOKUP(B41,[1]WQ_UnitID!B:C,2,FALSE)=0,"",VLOOKUP(B41,[1]WQ_UnitID!B:C,2,FALSE))) ->  | F41: =IF(B41="","",[1]ExcLimit!$B$8) ->  | G41: =IF(B41="","",IF(D41=[1]Index!$R$24,"",[1]ExcLimit!$C$8)) ->  | H41: =IF(B41="","",[1]ExcLimit!$D$8) ->  | I41: =IF(B41="","",[1]ExcLimit!$E$8) ->  | J41: =IFERROR(VLOOKUP(B41,[1]ExcCalc!O:S,2,FALSE),"") ->  | K41: =IFERROR(VLOOKUP(B41,[1]ExcCalc!O:S,3,FALSE),"") ->  | L41: =IFERROR(VLOOKUP(B41,[1]ExcCalc!O:S,4,FALSE),"") ->  | M41: =IFERROR(VLOOKUP(B41,[1]ExcCalc!O:S,5,FALSE),"") -> 
B42: =IF(ISNUMBER('[1]דיווח דיגומים'!B42),'[1]דיווח דיגומים'!B42,"") ->  | C42: =IF(ISNUMBER('[1]דיווח דיגומים'!B42),'[1]דיווח דיגומים'!C42,"") ->  | D42: =IF('[1]דיווח דיגומים'!E42="","",'[1]דיווח דיגומים'!E42) ->  | E42: =IF(B42="","",IF(VLOOKUP(B42,[1]WQ_UnitID!B:C,2,FALSE)=0,"",VLOOKUP(B42,[1]WQ_UnitID!B:C,2,FALSE))) ->  | F42: =IF(B42="","",[1]ExcLimit!$B$8) ->  | G42: =IF(B42="","",IF(D42=[1]Index!$R$24,"",[1]ExcLimit!$C$8)) ->  | H42: =IF(B42="","",[1]ExcLimit!$D$8) ->  | I42: =IF(B42="","",[1]ExcLimit!$E$8) ->  | J42: =IFERROR(VLOOKUP(B42,[1]ExcCalc!O:S,2,FALSE),"") ->  | K42: =IFERROR(VLOOKUP(B42,[1]ExcCalc!O:S,3,FALSE),"") ->  | L42: =IFERROR(VLOOKUP(B42,[1]ExcCalc!O:S,4,FALSE),"") ->  | M42: =IFERROR(VLOOKUP(B42,[1]ExcCalc!O:S,5,FALSE),"") -> 
B43: =IF(ISNUMBER('[1]דיווח דיגומים'!B43),'[1]דיווח דיגומים'!B43,"") ->  | C43: =IF(ISNUMBER('[1]דיווח דיגומים'!B43),'[1]דיווח דיגומים'!C43,"") ->  | D43: =IF('[1]דיווח דיגומים'!E43="","",'[1]דיווח דיגומים'!E43) ->  | E43: =IF(B43="","",IF(VLOOKUP(B43,[1]WQ_UnitID!B:C,2,FALSE)=0,"",VLOOKUP(B43,[1]WQ_UnitID!B:C,2,FALSE))) ->  | F43: =IF(B43="","",[1]ExcLimit!$B$8) ->  | G43: =IF(B43="","",IF(D43=[1]Index!$R$24,"",[1]ExcLimit!$C$8)) ->  | H43: =IF(B43="","",[1]ExcLimit!$D$8) ->  | I43: =IF(B43="","",[1]ExcLimit!$E$8) ->  | J43: =IFERROR(VLOOKUP(B43,[1]ExcCalc!O:S,2,FALSE),"") ->  | K43: =IFERROR(VLOOKUP(B43,[1]ExcCalc!O:S,3,FALSE),"") ->  | L43: =IFERROR(VLOOKUP(B43,[1]ExcCalc!O:S,4,FALSE),"") ->  | M43: =IFERROR(VLOOKUP(B43,[1]ExcCalc!O:S,5,FALSE),"") -> 
B44: =IF(ISNUMBER('[1]דיווח דיגומים'!B44),'[1]דיווח דיגומים'!B44,"") ->  | C44: =IF(ISNUMBER('[1]דיווח דיגומים'!B44),'[1]דיווח דיגומים'!C44,"") ->  | D44: =IF('[1]דיווח דיגומים'!E44="","",'[1]דיווח דיגומים'!E44) ->  | E44: =IF(B44="","",IF(VLOOKUP(B44,[1]WQ_UnitID!B:C,2,FALSE)=0,"",VLOOKUP(B44,[1]WQ_UnitID!B:C,2,FALSE))) ->  | F44: =IF(B44="","",[1]ExcLimit!$B$8) ->  | G44: =IF(B44="","",IF(D44=[1]Index!$R$24,"",[1]ExcLimit!$C$8)) ->  | H44: =IF(B44="","",[1]ExcLimit!$D$8) ->  | I44: =IF(B44="","",[1]ExcLimit!$E$8) ->  | J44: =IFERROR(VLOOKUP(B44,[1]ExcCalc!O:S,2,FALSE),"") ->  | K44: =IFERROR(VLOOKUP(B44,[1]ExcCalc!O:S,3,FALSE),"") ->  | L44: =IFERROR(VLOOKUP(B44,[1]ExcCalc!O:S,4,FALSE),"") ->  | M44: =IFERROR(VLOOKUP(B44,[1]ExcCalc!O:S,5,FALSE),"") -> 
B45: =IF(ISNUMBER('[1]דיווח דיגומים'!B45),'[1]דיווח דיגומים'!B45,"") ->  | C45: =IF(ISNUMBER('[1]דיווח דיגומים'!B45),'[1]דיווח דיגומים'!C45,"") ->  | D45: =IF('[1]דיווח דיגומים'!E45="","",'[1]דיווח דיגומים'!E45) ->  | E45: =IF(B45="","",IF(VLOOKUP(B45,[1]WQ_UnitID!B:C,2,FALSE)=0,"",VLOOKUP(B45,[1]WQ_UnitID!B:C,2,FALSE))) ->  | F45: =IF(B45="","",[1]ExcLimit!$B$8) ->  | G45: =IF(B45="","",IF(D45=[1]Index!$R$24,"",[1]ExcLimit!$C$8)) ->  | H45: =IF(B45="","",[1]ExcLimit!$D$8) ->  | I45: =IF(B45="","",[1]ExcLimit!$E$8) ->  | J45: =IFERROR(VLOOKUP(B45,[1]ExcCalc!O:S,2,FALSE),"") ->  | K45: =IFERROR(VLOOKUP(B45,[1]ExcCalc!O:S,3,FALSE),"") ->  | L45: =IFERROR(VLOOKUP(B45,[1]ExcCalc!O:S,4,FALSE),"") ->  | M45: =IFERROR(VLOOKUP(B45,[1]ExcCalc!O:S,5,FALSE),"") -> 
B46: =IF(ISNUMBER('[1]דיווח דיגומים'!B46),'[1]דיווח דיגומים'!B46,"") ->  | C46: =IF(ISNUMBER('[1]דיווח דיגומים'!B46),'[1]דיווח דיגומים'!C46,"") ->  | D46: =IF('[1]דיווח דיגומים'!E46="","",'[1]דיווח דיגומים'!E46) ->  | E46: =IF(B46="","",IF(VLOOKUP(B46,[1]WQ_UnitID!B:C,2,FALSE)=0,"",VLOOKUP(B46,[1]WQ_UnitID!B:C,2,FALSE))) ->  | F46: =IF(B46="","",[1]ExcLimit!$B$8) ->  | G46: =IF(B46="","",IF(D46=[1]Index!$R$24,"",[1]ExcLimit!$C$8)) ->  | H46: =IF(B46="","",[1]ExcLimit!$D$8) ->  | I46: =IF(B46="","",[1]ExcLimit!$E$8) ->  | J46: =IFERROR(VLOOKUP(B46,[1]ExcCalc!O:S,2,FALSE),"") ->  | K46: =IFERROR(VLOOKUP(B46,[1]ExcCalc!O:S,3,FALSE),"") ->  | L46: =IFERROR(VLOOKUP(B46,[1]ExcCalc!O:S,4,FALSE),"") ->  | M46: =IFERROR(VLOOKUP(B46,[1]ExcCalc!O:S,5,FALSE),"") -> 
B47: =IF(ISNUMBER('[1]דיווח דיגומים'!B47),'[1]דיווח דיגומים'!B47,"") ->  | C47: =IF(ISNUMBER('[1]דיווח דיגומים'!B47),'[1]דיווח דיגומים'!C47,"") ->  | D47: =IF('[1]דיווח דיגומים'!E47="","",'[1]דיווח דיגומים'!E47) ->  | E47: =IF(B47="","",IF(VLOOKUP(B47,[1]WQ_UnitID!B:C,2,FALSE)=0,"",VLOOKUP(B47,[1]WQ_UnitID!B:C,2,FALSE))) ->  | F47: =IF(B47="","",[1]ExcLimit!$B$8) ->  | G47: =IF(B47="","",IF(D47=[1]Index!$R$24,"",[1]ExcLimit!$C$8)) ->  | H47: =IF(B47="","",[1]ExcLimit!$D$8) ->  | I47: =IF(B47="","",[1]ExcLimit!$E$8) ->  | J47: =IFERROR(VLOOKUP(B47,[1]ExcCalc!O:S,2,FALSE),"") ->  | K47: =IFERROR(VLOOKUP(B47,[1]ExcCalc!O:S,3,FALSE),"") ->  | L47: =IFERROR(VLOOKUP(B47,[1]ExcCalc!O:S,4,FALSE),"") ->  | M47: =IFERROR(VLOOKUP(B47,[1]ExcCalc!O:S,5,FALSE),"") -> 
B48: =IF(ISNUMBER('[1]דיווח דיגומים'!B48),'[1]דיווח דיגומים'!B48,"") ->  | C48: =IF(ISNUMBER('[1]דיווח דיגומים'!B48),'[1]דיווח דיגומים'!C48,"") ->  | D48: =IF('[1]דיווח דיגומים'!E48="","",'[1]דיווח דיגומים'!E48) ->  | E48: =IF(B48="","",IF(VLOOKUP(B48,[1]WQ_UnitID!B:C,2,FALSE)=0,"",VLOOKUP(B48,[1]WQ_UnitID!B:C,2,FALSE))) ->  | F48: =IF(B48="","",[1]ExcLimit!$B$8) ->  | G48: =IF(B48="","",IF(D48=[1]Index!$R$24,"",[1]ExcLimit!$C$8)) ->  | H48: =IF(B48="","",[1]ExcLimit!$D$8) ->  | I48: =IF(B48="","",[1]ExcLimit!$E$8) ->  | J48: =IFERROR(VLOOKUP(B48,[1]ExcCalc!O:S,2,FALSE),"") ->  | K48: =IFERROR(VLOOKUP(B48,[1]ExcCalc!O:S,3,FALSE),"") ->  | L48: =IFERROR(VLOOKUP(B48,[1]ExcCalc!O:S,4,FALSE),"") ->  | M48: =IFERROR(VLOOKUP(B48,[1]ExcCalc!O:S,5,FALSE),"") -> 
B49: =IF(ISNUMBER('[1]דיווח דיגומים'!B49),'[1]דיווח דיגומים'!B49,"") ->  | C49: =IF(ISNUMBER('[1]דיווח דיגומים'!B49),'[1]דיווח דיגומים'!C49,"") ->  | D49: =IF('[1]דיווח דיגומים'!E49="","",'[1]דיווח דיגומים'!E49) ->  | E49: =IF(B49="","",IF(VLOOKUP(B49,[1]WQ_UnitID!B:C,2,FALSE)=0,"",VLOOKUP(B49,[1]WQ_UnitID!B:C,2,FALSE))) ->  | F49: =IF(B49="","",[1]ExcLimit!$B$8) ->  | G49: =IF(B49="","",IF(D49=[1]Index!$R$24,"",[1]ExcLimit!$C$8)) ->  | H49: =IF(B49="","",[1]ExcLimit!$D$8) ->  | I49: =IF(B49="","",[1]ExcLimit!$E$8) ->  | J49: =IFERROR(VLOOKUP(B49,[1]ExcCalc!O:S,2,FALSE),"") ->  | K49: =IFERROR(VLOOKUP(B49,[1]ExcCalc!O:S,3,FALSE),"") ->  | L49: =IFERROR(VLOOKUP(B49,[1]ExcCalc!O:S,4,FALSE),"") ->  | M49: =IFERROR(VLOOKUP(B49,[1]ExcCalc!O:S,5,FALSE),"") -> 
B50: =IF(ISNUMBER('[1]דיווח דיגומים'!B50),'[1]דיווח דיגומים'!B50,"") ->  | C50: =IF(ISNUMBER('[1]דיווח דיגומים'!B50),'[1]דיווח דיגומים'!C50,"") ->  | D50: =IF('[1]דיווח דיגומים'!E50="","",'[1]דיווח דיגומים'!E50) ->  | E50: =IF(B50="","",IF(VLOOKUP(B50,[1]WQ_UnitID!B:C,2,FALSE)=0,"",VLOOKUP(B50,[1]WQ_UnitID!B:C,2,FALSE))) ->  | F50: =IF(B50="","",[1]ExcLimit!$B$8) ->  | G50: =IF(B50="","",IF(D50=[1]Index!$R$24,"",[1]ExcLimit!$C$8)) ->  | H50: =IF(B50="","",[1]ExcLimit!$D$8) ->  | I50: =IF(B50="","",[1]ExcLimit!$E$8) ->  | J50: =IFERROR(VLOOKUP(B50,[1]ExcCalc!O:S,2,FALSE),"") ->  | K50: =IFERROR(VLOOKUP(B50,[1]ExcCalc!O:S,3,FALSE),"") ->  | L50: =IFERROR(VLOOKUP(B50,[1]ExcCalc!O:S,4,FALSE),"") ->  | M50: =IFERROR(VLOOKUP(B50,[1]ExcCalc!O:S,5,FALSE),"") -> 
B51: =IF(ISNUMBER('[1]דיווח דיגומים'!B51),'[1]דיווח דיגומים'!B51,"") ->  | C51: =IF(ISNUMBER('[1]דיווח דיגומים'!B51),'[1]דיווח דיגומים'!C51,"") ->  | D51: =IF('[1]דיווח דיגומים'!E51="","",'[1]דיווח דיגומים'!E51) ->  | E51: =IF(B51="","",IF(VLOOKUP(B51,[1]WQ_UnitID!B:C,2,FALSE)=0,"",VLOOKUP(B51,[1]WQ_UnitID!B:C,2,FALSE))) ->  | F51: =IF(B51="","",[1]ExcLimit!$B$8) ->  | G51: =IF(B51="","",IF(D51=[1]Index!$R$24,"",[1]ExcLimit!$C$8)) ->  | H51: =IF(B51="","",[1]ExcLimit!$D$8) ->  | I51: =IF(B51="","",[1]ExcLimit!$E$8) ->  | J51: =IFERROR(VLOOKUP(B51,[1]ExcCalc!O:S,2,FALSE),"") ->  | K51: =IFERROR(VLOOKUP(B51,[1]ExcCalc!O:S,3,FALSE),"") ->  | L51: =IFERROR(VLOOKUP(B51,[1]ExcCalc!O:S,4,FALSE),"") ->  | M51: =IFERROR(VLOOKUP(B51,[1]ExcCalc!O:S,5,FALSE),"") -> 
B52: =IF(ISNUMBER('[1]דיווח דיגומים'!B52),'[1]דיווח דיגומים'!B52,"") ->  | C52: =IF(ISNUMBER('[1]דיווח דיגומים'!B52),'[1]דיווח דיגומים'!C52,"") ->  | D52: =IF('[1]דיווח דיגומים'!E52="","",'[1]דיווח דיגומים'!E52) ->  | E52: =IF(B52="","",IF(VLOOKUP(B52,[1]WQ_UnitID!B:C,2,FALSE)=0,"",VLOOKUP(B52,[1]WQ_UnitID!B:C,2,FALSE))) ->  | F52: =IF(B52="","",[1]ExcLimit!$B$8) ->  | G52: =IF(B52="","",IF(D52=[1]Index!$R$24,"",[1]ExcLimit!$C$8)) ->  | H52: =IF(B52="","",[1]ExcLimit!$D$8) ->  | I52: =IF(B52="","",[1]ExcLimit!$E$8) ->  | J52: =IFERROR(VLOOKUP(B52,[1]ExcCalc!O:S,2,FALSE),"") ->  | K52: =IFERROR(VLOOKUP(B52,[1]ExcCalc!O:S,3,FALSE),"") ->  | L52: =IFERROR(VLOOKUP(B52,[1]ExcCalc!O:S,4,FALSE),"") ->  | M52: =IFERROR(VLOOKUP(B52,[1]ExcCalc!O:S,5,FALSE),"") -> 
B53: =IF(ISNUMBER('[1]דיווח דיגומים'!B53),'[1]דיווח דיגומים'!B53,"") ->  | C53: =IF(ISNUMBER('[1]דיווח דיגומים'!B53),'[1]דיווח דיגומים'!C53,"") ->  | D53: =IF('[1]דיווח דיגומים'!E53="","",'[1]דיווח דיגומים'!E53) ->  | E53: =IF(B53="","",IF(VLOOKUP(B53,[1]WQ_UnitID!B:C,2,FALSE)=0,"",VLOOKUP(B53,[1]WQ_UnitID!B:C,2,FALSE))) ->  | F53: =IF(B53="","",[1]ExcLimit!$B$8) ->  | G53: =IF(B53="","",IF(D53=[1]Index!$R$24,"",[1]ExcLimit!$C$8)) ->  | H53: =IF(B53="","",[1]ExcLimit!$D$8) ->  | I53: =IF(B53="","",[1]ExcLimit!$E$8) ->  | J53: =IFERROR(VLOOKUP(B53,[1]ExcCalc!O:S,2,FALSE),"") ->  | K53: =IFERROR(VLOOKUP(B53,[1]ExcCalc!O:S,3,FALSE),"") ->  | L53: =IFERROR(VLOOKUP(B53,[1]ExcCalc!O:S,4,FALSE),"") ->  | M53: =IFERROR(VLOOKUP(B53,[1]ExcCalc!O:S,5,FALSE),"") -> 
B54: =IF(ISNUMBER('[1]דיווח דיגומים'!B54),'[1]דיווח דיגומים'!B54,"") ->  | C54: =IF(ISNUMBER('[1]דיווח דיגומים'!B54),'[1]דיווח דיגומים'!C54,"") ->  | D54: =IF('[1]דיווח דיגומים'!E54="","",'[1]דיווח דיגומים'!E54) ->  | E54: =IF(B54="","",IF(VLOOKUP(B54,[1]WQ_UnitID!B:C,2,FALSE)=0,"",VLOOKUP(B54,[1]WQ_UnitID!B:C,2,FALSE))) ->  | F54: =IF(B54="","",[1]ExcLimit!$B$8) ->  | G54: =IF(B54="","",IF(D54=[1]Index!$R$24,"",[1]ExcLimit!$C$8)) ->  | H54: =IF(B54="","",[1]ExcLimit!$D$8) ->  | I54: =IF(B54="","",[1]ExcLimit!$E$8) ->  | J54: =IFERROR(VLOOKUP(B54,[1]ExcCalc!O:S,2,FALSE),"") ->  | K54: =IFERROR(VLOOKUP(B54,[1]ExcCalc!O:S,3,FALSE),"") ->  | L54: =IFERROR(VLOOKUP(B54,[1]ExcCalc!O:S,4,FALSE),"") ->  | M54: =IFERROR(VLOOKUP(B54,[1]ExcCalc!O:S,5,FALSE),"") -> 
B55: =IF(ISNUMBER('[1]דיווח דיגומים'!B55),'[1]דיווח דיגומים'!B55,"") ->  | C55: =IF(ISNUMBER('[1]דיווח דיגומים'!B55),'[1]דיווח דיגומים'!C55,"") ->  | D55: =IF('[1]דיווח דיגומים'!E55="","",'[1]דיווח דיגומים'!E55) ->  | E55: =IF(B55="","",IF(VLOOKUP(B55,[1]WQ_UnitID!B:C,2,FALSE)=0,"",VLOOKUP(B55,[1]WQ_UnitID!B:C,2,FALSE))) ->  | F55: =IF(B55="","",[1]ExcLimit!$B$8) ->  | G55: =IF(B55="","",IF(D55=[1]Index!$R$24,"",[1]ExcLimit!$C$8)) ->  | H55: =IF(B55="","",[1]ExcLimit!$D$8) ->  | I55: =IF(B55="","",[1]ExcLimit!$E$8) ->  | J55: =IFERROR(VLOOKUP(B55,[1]ExcCalc!O:S,2,FALSE),"") ->  | K55: =IFERROR(VLOOKUP(B55,[1]ExcCalc!O:S,3,FALSE),"") ->  | L55: =IFERROR(VLOOKUP(B55,[1]ExcCalc!O:S,4,FALSE),"") ->  | M55: =IFERROR(VLOOKUP(B55,[1]ExcCalc!O:S,5,FALSE),"") -> 
B56: =IF(ISNUMBER('[1]דיווח דיגומים'!B56),'[1]דיווח דיגומים'!B56,"") ->  | C56: =IF(ISNUMBER('[1]דיווח דיגומים'!B56),'[1]דיווח דיגומים'!C56,"") ->  | D56: =IF('[1]דיווח דיגומים'!E56="","",'[1]דיווח דיגומים'!E56) ->  | E56: =IF(B56="","",IF(VLOOKUP(B56,[1]WQ_UnitID!B:C,2,FALSE)=0,"",VLOOKUP(B56,[1]WQ_UnitID!B:C,2,FALSE))) ->  | F56: =IF(B56="","",[1]ExcLimit!$B$8) ->  | G56: =IF(B56="","",IF(D56=[1]Index!$R$24,"",[1]ExcLimit!$C$8)) ->  | H56: =IF(B56="","",[1]ExcLimit!$D$8) ->  | I56: =IF(B56="","",[1]ExcLimit!$E$8) ->  | J56: =IFERROR(VLOOKUP(B56,[1]ExcCalc!O:S,2,FALSE),"") ->  | K56: =IFERROR(VLOOKUP(B56,[1]ExcCalc!O:S,3,FALSE),"") ->  | L56: =IFERROR(VLOOKUP(B56,[1]ExcCalc!O:S,4,FALSE),"") ->  | M56: =IFERROR(VLOOKUP(B56,[1]ExcCalc!O:S,5,FALSE),"") -> 
B57: =IF(ISNUMBER('[1]דיווח דיגומים'!B57),'[1]דיווח דיגומים'!B57,"") ->  | C57: =IF(ISNUMBER('[1]דיווח דיגומים'!B57),'[1]דיווח דיגומים'!C57,"") ->  | D57: =IF('[1]דיווח דיגומים'!E57="","",'[1]דיווח דיגומים'!E57) ->  | E57: =IF(B57="","",IF(VLOOKUP(B57,[1]WQ_UnitID!B:C,2,FALSE)=0,"",VLOOKUP(B57,[1]WQ_UnitID!B:C,2,FALSE))) ->  | F57: =IF(B57="","",[1]ExcLimit!$B$8) ->  | G57: =IF(B57="","",IF(D57=[1]Index!$R$24,"",[1]ExcLimit!$C$8)) ->  | H57: =IF(B57="","",[1]ExcLimit!$D$8) ->  | I57: =IF(B57="","",[1]ExcLimit!$E$8) ->  | J57: =IFERROR(VLOOKUP(B57,[1]ExcCalc!O:S,2,FALSE),"") ->  | K57: =IFERROR(VLOOKUP(B57,[1]ExcCalc!O:S,3,FALSE),"") ->  | L57: =IFERROR(VLOOKUP(B57,[1]ExcCalc!O:S,4,FALSE),"") ->  | M57: =IFERROR(VLOOKUP(B57,[1]ExcCalc!O:S,5,FALSE),"") -> 
B58: =IF(ISNUMBER('[1]דיווח דיגומים'!B58),'[1]דיווח דיגומים'!B58,"") ->  | C58: =IF(ISNUMBER('[1]דיווח דיגומים'!B58),'[1]דיווח דיגומים'!C58,"") ->  | D58: =IF('[1]דיווח דיגומים'!E58="","",'[1]דיווח דיגומים'!E58) ->  | E58: =IF(B58="","",IF(VLOOKUP(B58,[1]WQ_UnitID!B:C,2,FALSE)=0,"",VLOOKUP(B58,[1]WQ_UnitID!B:C,2,FALSE))) ->  | F58: =IF(B58="","",[1]ExcLimit!$B$8) ->  | G58: =IF(B58="","",IF(D58=[1]Index!$R$24,"",[1]ExcLimit!$C$8)) ->  | H58: =IF(B58="","",[1]ExcLimit!$D$8) ->  | I58: =IF(B58="","",[1]ExcLimit!$E$8) ->  | J58: =IFERROR(VLOOKUP(B58,[1]ExcCalc!O:S,2,FALSE),"") ->  | K58: =IFERROR(VLOOKUP(B58,[1]ExcCalc!O:S,3,FALSE),"") ->  | L58: =IFERROR(VLOOKUP(B58,[1]ExcCalc!O:S,4,FALSE),"") ->  | M58: =IFERROR(VLOOKUP(B58,[1]ExcCalc!O:S,5,FALSE),"") -> 
B59: =IF(ISNUMBER('[1]דיווח דיגומים'!B59),'[1]דיווח דיגומים'!B59,"") ->  | C59: =IF(ISNUMBER('[1]דיווח דיגומים'!B59),'[1]דיווח דיגומים'!C59,"") ->  | D59: =IF('[1]דיווח דיגומים'!E59="","",'[1]דיווח דיגומים'!E59) ->  | E59: =IF(B59="","",IF(VLOOKUP(B59,[1]WQ_UnitID!B:C,2,FALSE)=0,"",VLOOKUP(B59,[1]WQ_UnitID!B:C,2,FALSE))) ->  | F59: =IF(B59="","",[1]ExcLimit!$B$8) ->  | G59: =IF(B59="","",IF(D59=[1]Index!$R$24,"",[1]ExcLimit!$C$8)) ->  | H59: =IF(B59="","",[1]ExcLimit!$D$8) ->  | I59: =IF(B59="","",[1]ExcLimit!$E$8) ->  | J59: =IFERROR(VLOOKUP(B59,[1]ExcCalc!O:S,2,FALSE),"") ->  | K59: =IFERROR(VLOOKUP(B59,[1]ExcCalc!O:S,3,FALSE),"") ->  | L59: =IFERROR(VLOOKUP(B59,[1]ExcCalc!O:S,4,FALSE),"") ->  | M59: =IFERROR(VLOOKUP(B59,[1]ExcCalc!O:S,5,FALSE),"") -> 
B60: =IF(ISNUMBER('[1]דיווח דיגומים'!B60),'[1]דיווח דיגומים'!B60,"") ->  | C60: =IF(ISNUMBER('[1]דיווח דיגומים'!B60),'[1]דיווח דיגומים'!C60,"") ->  | D60: =IF('[1]דיווח דיגומים'!E60="","",'[1]דיווח דיגומים'!E60) ->  | E60: =IF(B60="","",IF(VLOOKUP(B60,[1]WQ_UnitID!B:C,2,FALSE)=0,"",VLOOKUP(B60,[1]WQ_UnitID!B:C,2,FALSE))) ->  | F60: =IF(B60="","",[1]ExcLimit!$B$8) ->  | G60: =IF(B60="","",IF(D60=[1]Index!$R$24,"",[1]ExcLimit!$C$8)) ->  | H60: =IF(B60="","",[1]ExcLimit!$D$8) ->  | I60: =IF(B60="","",[1]ExcLimit!$E$8) ->  | J60: =IFERROR(VLOOKUP(B60,[1]ExcCalc!O:S,2,FALSE),"") ->  | K60: =IFERROR(VLOOKUP(B60,[1]ExcCalc!O:S,3,FALSE),"") ->  | L60: =IFERROR(VLOOKUP(B60,[1]ExcCalc!O:S,4,FALSE),"") ->  | M60: =IFERROR(VLOOKUP(B60,[1]ExcCalc!O:S,5,FALSE),"") -> 
B61: =IF(ISNUMBER('[1]דיווח דיגומים'!B61),'[1]דיווח דיגומים'!B61,"") ->  | C61: =IF(ISNUMBER('[1]דיווח דיגומים'!B61),'[1]דיווח דיגומים'!C61,"") ->  | D61: =IF('[1]דיווח דיגומים'!E61="","",'[1]דיווח דיגומים'!E61) ->  | E61: =IF(B61="","",IF(VLOOKUP(B61,[1]WQ_UnitID!B:C,2,FALSE)=0,"",VLOOKUP(B61,[1]WQ_UnitID!B:C,2,FALSE))) ->  | F61: =IF(B61="","",[1]ExcLimit!$B$8) ->  | G61: =IF(B61="","",IF(D61=[1]Index!$R$24,"",[1]ExcLimit!$C$8)) ->  | H61: =IF(B61="","",[1]ExcLimit!$D$8) ->  | I61: =IF(B61="","",[1]ExcLimit!$E$8) ->  | J61: =IFERROR(VLOOKUP(B61,[1]ExcCalc!O:S,2,FALSE),"") ->  | K61: =IFERROR(VLOOKUP(B61,[1]ExcCalc!O:S,3,FALSE),"") ->  | L61: =IFERROR(VLOOKUP(B61,[1]ExcCalc!O:S,4,FALSE),"") ->  | M61: =IFERROR(VLOOKUP(B61,[1]ExcCalc!O:S,5,FALSE),"") -> 
B62: =IF(ISNUMBER('[1]דיווח דיגומים'!B62),'[1]דיווח דיגומים'!B62,"") ->  | C62: =IF(ISNUMBER('[1]דיווח דיגומים'!B62),'[1]דיווח דיגומים'!C62,"") ->  | D62: =IF('[1]דיווח דיגומים'!E62="","",'[1]דיווח דיגומים'!E62) ->  | E62: =IF(B62="","",IF(VLOOKUP(B62,[1]WQ_UnitID!B:C,2,FALSE)=0,"",VLOOKUP(B62,[1]WQ_UnitID!B:C,2,FALSE))) ->  | F62: =IF(B62="","",[1]ExcLimit!$B$8) ->  | G62: =IF(B62="","",IF(D62=[1]Index!$R$24,"",[1]ExcLimit!$C$8)) ->  | H62: =IF(B62="","",[1]ExcLimit!$D$8) ->  | I62: =IF(B62="","",[1]ExcLimit!$E$8) ->  | J62: =IFERROR(VLOOKUP(B62,[1]ExcCalc!O:S,2,FALSE),"") ->  | K62: =IFERROR(VLOOKUP(B62,[1]ExcCalc!O:S,3,FALSE),"") ->  | L62: =IFERROR(VLOOKUP(B62,[1]ExcCalc!O:S,4,FALSE),"") ->  | M62: =IFERROR(VLOOKUP(B62,[1]ExcCalc!O:S,5,FALSE),"") -> 
B63: =IF(ISNUMBER('[1]דיווח דיגומים'!B63),'[1]דיווח דיגומים'!B63,"") ->  | C63: =IF(ISNUMBER('[1]דיווח דיגומים'!B63),'[1]דיווח דיגומים'!C63,"") ->  | D63: =IF('[1]דיווח דיגומים'!E63="","",'[1]דיווח דיגומים'!E63) ->  | E63: =IF(B63="","",IF(VLOOKUP(B63,[1]WQ_UnitID!B:C,2,FALSE)=0,"",VLOOKUP(B63,[1]WQ_UnitID!B:C,2,FALSE))) ->  | F63: =IF(B63="","",[1]ExcLimit!$B$8) ->  | G63: =IF(B63="","",IF(D63=[1]Index!$R$24,"",[1]ExcLimit!$C$8)) ->  | H63: =IF(B63="","",[1]ExcLimit!$D$8) ->  | I63: =IF(B63="","",[1]ExcLimit!$E$8) ->  | J63: =IFERROR(VLOOKUP(B63,[1]ExcCalc!O:S,2,FALSE),"") ->  | K63: =IFERROR(VLOOKUP(B63,[1]ExcCalc!O:S,3,FALSE),"") ->  | L63: =IFERROR(VLOOKUP(B63,[1]ExcCalc!O:S,4,FALSE),"") ->  | M63: =IFERROR(VLOOKUP(B63,[1]ExcCalc!O:S,5,FALSE),"") -> 
B64: =IF(ISNUMBER('[1]דיווח דיגומים'!B64),'[1]דיווח דיגומים'!B64,"") ->  | C64: =IF(ISNUMBER('[1]דיווח דיגומים'!B64),'[1]דיווח דיגומים'!C64,"") ->  | D64: =IF('[1]דיווח דיגומים'!E64="","",'[1]דיווח דיגומים'!E64) ->  | E64: =IF(B64="","",IF(VLOOKUP(B64,[1]WQ_UnitID!B:C,2,FALSE)=0,"",VLOOKUP(B64,[1]WQ_UnitID!B:C,2,FALSE))) ->  | F64: =IF(B64="","",[1]ExcLimit!$B$8) ->  | G64: =IF(B64="","",IF(D64=[1]Index!$R$24,"",[1]ExcLimit!$C$8)) ->  | H64: =IF(B64="","",[1]ExcLimit!$D$8) ->  | I64: =IF(B64="","",[1]ExcLimit!$E$8) ->  | J64: =IFERROR(VLOOKUP(B64,[1]ExcCalc!O:S,2,FALSE),"") ->  | K64: =IFERROR(VLOOKUP(B64,[1]ExcCalc!O:S,3,FALSE),"") ->  | L64: =IFERROR(VLOOKUP(B64,[1]ExcCalc!O:S,4,FALSE),"") ->  | M64: =IFERROR(VLOOKUP(B64,[1]ExcCalc!O:S,5,FALSE),"") -> 
B65: =IF(ISNUMBER('[1]דיווח דיגומים'!B65),'[1]דיווח דיגומים'!B65,"") ->  | C65: =IF(ISNUMBER('[1]דיווח דיגומים'!B65),'[1]דיווח דיגומים'!C65,"") ->  | D65: =IF('[1]דיווח דיגומים'!E65="","",'[1]דיווח דיגומים'!E65) ->  | E65: =IF(B65="","",IF(VLOOKUP(B65,[1]WQ_UnitID!B:C,2,FALSE)=0,"",VLOOKUP(B65,[1]WQ_UnitID!B:C,2,FALSE))) ->  | F65: =IF(B65="","",[1]ExcLimit!$B$8) ->  | G65: =IF(B65="","",IF(D65=[1]Index!$R$24,"",[1]ExcLimit!$C$8)) ->  | H65: =IF(B65="","",[1]ExcLimit!$D$8) ->  | I65: =IF(B65="","",[1]ExcLimit!$E$8) ->  | J65: =IFERROR(VLOOKUP(B65,[1]ExcCalc!O:S,2,FALSE),"") ->  | K65: =IFERROR(VLOOKUP(B65,[1]ExcCalc!O:S,3,FALSE),"") ->  | L65: =IFERROR(VLOOKUP(B65,[1]ExcCalc!O:S,4,FALSE),"") ->  | M65: =IFERROR(VLOOKUP(B65,[1]ExcCalc!O:S,5,FALSE),"") -> 
B66: =IF(ISNUMBER('[1]דיווח דיגומים'!B66),'[1]דיווח דיגומים'!B66,"") ->  | C66: =IF(ISNUMBER('[1]דיווח דיגומים'!B66),'[1]דיווח דיגומים'!C66,"") ->  | D66: =IF('[1]דיווח דיגומים'!E66="","",'[1]דיווח דיגומים'!E66) ->  | E66: =IF(B66="","",IF(VLOOKUP(B66,[1]WQ_UnitID!B:C,2,FALSE)=0,"",VLOOKUP(B66,[1]WQ_UnitID!B:C,2,FALSE))) ->  | F66: =IF(B66="","",[1]ExcLimit!$B$8) ->  | G66: =IF(B66="","",IF(D66=[1]Index!$R$24,"",[1]ExcLimit!$C$8)) ->  | H66: =IF(B66="","",[1]ExcLimit!$D$8) ->  | I66: =IF(B66="","",[1]ExcLimit!$E$8) ->  | J66: =IFERROR(VLOOKUP(B66,[1]ExcCalc!O:S,2,FALSE),"") ->  | K66: =IFERROR(VLOOKUP(B66,[1]ExcCalc!O:S,3,FALSE),"") ->  | L66: =IFERROR(VLOOKUP(B66,[1]ExcCalc!O:S,4,FALSE),"") ->  | M66: =IFERROR(VLOOKUP(B66,[1]ExcCalc!O:S,5,FALSE),"") -> 
B67: =IF(ISNUMBER('[1]דיווח דיגומים'!B67),'[1]דיווח דיגומים'!B67,"") ->  | C67: =IF(ISNUMBER('[1]דיווח דיגומים'!B67),'[1]דיווח דיגומים'!C67,"") ->  | D67: =IF('[1]דיווח דיגומים'!E67="","",'[1]דיווח דיגומים'!E67) ->  | E67: =IF(B67="","",IF(VLOOKUP(B67,[1]WQ_UnitID!B:C,2,FALSE)=0,"",VLOOKUP(B67,[1]WQ_UnitID!B:C,2,FALSE))) ->  | F67: =IF(B67="","",[1]ExcLimit!$B$8) ->  | G67: =IF(B67="","",IF(D67=[1]Index!$R$24,"",[1]ExcLimit!$C$8)) ->  | H67: =IF(B67="","",[1]ExcLimit!$D$8) ->  | I67: =IF(B67="","",[1]ExcLimit!$E$8) ->  | J67: =IFERROR(VLOOKUP(B67,[1]ExcCalc!O:S,2,FALSE),"") ->  | K67: =IFERROR(VLOOKUP(B67,[1]ExcCalc!O:S,3,FALSE),"") ->  | L67: =IFERROR(VLOOKUP(B67,[1]ExcCalc!O:S,4,FALSE),"") ->  | M67: =IFERROR(VLOOKUP(B67,[1]ExcCalc!O:S,5,FALSE),"") -> 
B68: =IF(ISNUMBER('[1]דיווח דיגומים'!B68),'[1]דיווח דיגומים'!B68,"") ->  | C68: =IF(ISNUMBER('[1]דיווח דיגומים'!B68),'[1]דיווח דיגומים'!C68,"") ->  | D68: =IF('[1]דיווח דיגומים'!E68="","",'[1]דיווח דיגומים'!E68) ->  | E68: =IF(B68="","",IF(VLOOKUP(B68,[1]WQ_UnitID!B:C,2,FALSE)=0,"",VLOOKUP(B68,[1]WQ_UnitID!B:C,2,FALSE))) ->  | F68: =IF(B68="","",[1]ExcLimit!$B$8) ->  | G68: =IF(B68="","",IF(D68=[1]Index!$R$24,"",[1]ExcLimit!$C$8)) ->  | H68: =IF(B68="","",[1]ExcLimit!$D$8) ->  | I68: =IF(B68="","",[1]ExcLimit!$E$8) ->  | J68: =IFERROR(VLOOKUP(B68,[1]ExcCalc!O:S,2,FALSE),"") ->  | K68: =IFERROR(VLOOKUP(B68,[1]ExcCalc!O:S,3,FALSE),"") ->  | L68: =IFERROR(VLOOKUP(B68,[1]ExcCalc!O:S,4,FALSE),"") ->  | M68: =IFERROR(VLOOKUP(B68,[1]ExcCalc!O:S,5,FALSE),"") -> 
B69: =IF(ISNUMBER('[1]דיווח דיגומים'!B69),'[1]דיווח דיגומים'!B69,"") ->  | C69: =IF(ISNUMBER('[1]דיווח דיגומים'!B69),'[1]דיווח דיגומים'!C69,"") ->  | D69: =IF('[1]דיווח דיגומים'!E69="","",'[1]דיווח דיגומים'!E69) ->  | E69: =IF(B69="","",IF(VLOOKUP(B69,[1]WQ_UnitID!B:C,2,FALSE)=0,"",VLOOKUP(B69,[1]WQ_UnitID!B:C,2,FALSE))) ->  | F69: =IF(B69="","",[1]ExcLimit!$B$8) ->  | G69: =IF(B69="","",IF(D69=[1]Index!$R$24,"",[1]ExcLimit!$C$8)) ->  | H69: =IF(B69="","",[1]ExcLimit!$D$8) ->  | I69: =IF(B69="","",[1]ExcLimit!$E$8) ->  | J69: =IFERROR(VLOOKUP(B69,[1]ExcCalc!O:S,2,FALSE),"") ->  | K69: =IFERROR(VLOOKUP(B69,[1]ExcCalc!O:S,3,FALSE),"") ->  | L69: =IFERROR(VLOOKUP(B69,[1]ExcCalc!O:S,4,FALSE),"") ->  | M69: =IFERROR(VLOOKUP(B69,[1]ExcCalc!O:S,5,FALSE),"") -> 
B70: =IF(ISNUMBER('[1]דיווח דיגומים'!B70),'[1]דיווח דיגומים'!B70,"") ->  | C70: =IF(ISNUMBER('[1]דיווח דיגומים'!B70),'[1]דיווח דיגומים'!C70,"") ->  | D70: =IF('[1]דיווח דיגומים'!E70="","",'[1]דיווח דיגומים'!E70) ->  | E70: =IF(B70="","",IF(VLOOKUP(B70,[1]WQ_UnitID!B:C,2,FALSE)=0,"",VLOOKUP(B70,[1]WQ_UnitID!B:C,2,FALSE))) ->  | F70: =IF(B70="","",[1]ExcLimit!$B$8) ->  | G70: =IF(B70="","",IF(D70=[1]Index!$R$24,"",[1]ExcLimit!$C$8)) ->  | H70: =IF(B70="","",[1]ExcLimit!$D$8) ->  | I70: =IF(B70="","",[1]ExcLimit!$E$8) ->  | J70: =IFERROR(VLOOKUP(B70,[1]ExcCalc!O:S,2,FALSE),"") ->  | K70: =IFERROR(VLOOKUP(B70,[1]ExcCalc!O:S,3,FALSE),"") ->  | L70: =IFERROR(VLOOKUP(B70,[1]ExcCalc!O:S,4,FALSE),"") ->  | M70: =IFERROR(VLOOKUP(B70,[1]ExcCalc!O:S,5,FALSE),"") -> 
B71: =IF(ISNUMBER('[1]דיווח דיגומים'!B71),'[1]דיווח דיגומים'!B71,"") ->  | C71: =IF(ISNUMBER('[1]דיווח דיגומים'!B71),'[1]דיווח דיגומים'!C71,"") ->  | D71: =IF('[1]דיווח דיגומים'!E71="","",'[1]דיווח דיגומים'!E71) ->  | E71: =IF(B71="","",IF(VLOOKUP(B71,[1]WQ_UnitID!B:C,2,FALSE)=0,"",VLOOKUP(B71,[1]WQ_UnitID!B:C,2,FALSE))) ->  | F71: =IF(B71="","",[1]ExcLimit!$B$8) ->  | G71: =IF(B71="","",IF(D71=[1]Index!$R$24,"",[1]ExcLimit!$C$8)) ->  | H71: =IF(B71="","",[1]ExcLimit!$D$8) ->  | I71: =IF(B71="","",[1]ExcLimit!$E$8) ->  | J71: =IFERROR(VLOOKUP(B71,[1]ExcCalc!O:S,2,FALSE),"") ->  | K71: =IFERROR(VLOOKUP(B71,[1]ExcCalc!O:S,3,FALSE),"") ->  | L71: =IFERROR(VLOOKUP(B71,[1]ExcCalc!O:S,4,FALSE),"") ->  | M71: =IFERROR(VLOOKUP(B71,[1]ExcCalc!O:S,5,FALSE),"") -> 
B72: =IF(ISNUMBER('[1]דיווח דיגומים'!B72),'[1]דיווח דיגומים'!B72,"") ->  | C72: =IF(ISNUMBER('[1]דיווח דיגומים'!B72),'[1]דיווח דיגומים'!C72,"") ->  | D72: =IF('[1]דיווח דיגומים'!E72="","",'[1]דיווח דיגומים'!E72) ->  | E72: =IF(B72="","",IF(VLOOKUP(B72,[1]WQ_UnitID!B:C,2,FALSE)=0,"",VLOOKUP(B72,[1]WQ_UnitID!B:C,2,FALSE))) ->  | F72: =IF(B72="","",[1]ExcLimit!$B$8) ->  | G72: =IF(B72="","",IF(D72=[1]Index!$R$24,"",[1]ExcLimit!$C$8)) ->  | H72: =IF(B72="","",[1]ExcLimit!$D$8) ->  | I72: =IF(B72="","",[1]ExcLimit!$E$8) ->  | J72: =IFERROR(VLOOKUP(B72,[1]ExcCalc!O:S,2,FALSE),"") ->  | K72: =IFERROR(VLOOKUP(B72,[1]ExcCalc!O:S,3,FALSE),"") ->  | L72: =IFERROR(VLOOKUP(B72,[1]ExcCalc!O:S,4,FALSE),"") ->  | M72: =IFERROR(VLOOKUP(B72,[1]ExcCalc!O:S,5,FALSE),"") -> 
B73: =IF(ISNUMBER('[1]דיווח דיגומים'!B73),'[1]דיווח דיגומים'!B73,"") ->  | C73: =IF(ISNUMBER('[1]דיווח דיגומים'!B73),'[1]דיווח דיגומים'!C73,"") ->  | D73: =IF('[1]דיווח דיגומים'!E73="","",'[1]דיווח דיגומים'!E73) ->  | E73: =IF(B73="","",IF(VLOOKUP(B73,[1]WQ_UnitID!B:C,2,FALSE)=0,"",VLOOKUP(B73,[1]WQ_UnitID!B:C,2,FALSE))) ->  | F73: =IF(B73="","",[1]ExcLimit!$B$8) ->  | G73: =IF(B73="","",IF(D73=[1]Index!$R$24,"",[1]ExcLimit!$C$8)) ->  | H73: =IF(B73="","",[1]ExcLimit!$D$8) ->  | I73: =IF(B73="","",[1]ExcLimit!$E$8) ->  | J73: =IFERROR(VLOOKUP(B73,[1]ExcCalc!O:S,2,FALSE),"") ->  | K73: =IFERROR(VLOOKUP(B73,[1]ExcCalc!O:S,3,FALSE),"") ->  | L73: =IFERROR(VLOOKUP(B73,[1]ExcCalc!O:S,4,FALSE),"") ->  | M73: =IFERROR(VLOOKUP(B73,[1]ExcCalc!O:S,5,FALSE),"") -> 
B74: =IF(ISNUMBER('[1]דיווח דיגומים'!B74),'[1]דיווח דיגומים'!B74,"") ->  | C74: =IF(ISNUMBER('[1]דיווח דיגומים'!B74),'[1]דיווח דיגומים'!C74,"") ->  | D74: =IF('[1]דיווח דיגומים'!E74="","",'[1]דיווח דיגומים'!E74) ->  | E74: =IF(B74="","",IF(VLOOKUP(B74,[1]WQ_UnitID!B:C,2,FALSE)=0,"",VLOOKUP(B74,[1]WQ_UnitID!B:C,2,FALSE))) ->  | F74: =IF(B74="","",[1]ExcLimit!$B$8) ->  | G74: =IF(B74="","",IF(D74=[1]Index!$R$24,"",[1]ExcLimit!$C$8)) ->  | H74: =IF(B74="","",[1]ExcLimit!$D$8) ->  | I74: =IF(B74="","",[1]ExcLimit!$E$8) ->  | J74: =IFERROR(VLOOKUP(B74,[1]ExcCalc!O:S,2,FALSE),"") ->  | K74: =IFERROR(VLOOKUP(B74,[1]ExcCalc!O:S,3,FALSE),"") ->  | L74: =IFERROR(VLOOKUP(B74,[1]ExcCalc!O:S,4,FALSE),"") ->  | M74: =IFERROR(VLOOKUP(B74,[1]ExcCalc!O:S,5,FALSE),"") -> 
B75: =IF(ISNUMBER('[1]דיווח דיגומים'!B75),'[1]דיווח דיגומים'!B75,"") ->  | C75: =IF(ISNUMBER('[1]דיווח דיגומים'!B75),'[1]דיווח דיגומים'!C75,"") ->  | D75: =IF('[1]דיווח דיגומים'!E75="","",'[1]דיווח דיגומים'!E75) ->  | E75: =IF(B75="","",IF(VLOOKUP(B75,[1]WQ_UnitID!B:C,2,FALSE)=0,"",VLOOKUP(B75,[1]WQ_UnitID!B:C,2,FALSE))) ->  | F75: =IF(B75="","",[1]ExcLimit!$B$8) ->  | G75: =IF(B75="","",IF(D75=[1]Index!$R$24,"",[1]ExcLimit!$C$8)) ->  | H75: =IF(B75="","",[1]ExcLimit!$D$8) ->  | I75: =IF(B75="","",[1]ExcLimit!$E$8) ->  | J75: =IFERROR(VLOOKUP(B75,[1]ExcCalc!O:S,2,FALSE),"") ->  | K75: =IFERROR(VLOOKUP(B75,[1]ExcCalc!O:S,3,FALSE),"") ->  | L75: =IFERROR(VLOOKUP(B75,[1]ExcCalc!O:S,4,FALSE),"") ->  | M75: =IFERROR(VLOOKUP(B75,[1]ExcCalc!O:S,5,FALSE),"") -> 
B76: =IF(ISNUMBER('[1]דיווח דיגומים'!B76),'[1]דיווח דיגומים'!B76,"") ->  | C76: =IF(ISNUMBER('[1]דיווח דיגומים'!B76),'[1]דיווח דיגומים'!C76,"") ->  | D76: =IF('[1]דיווח דיגומים'!E76="","",'[1]דיווח דיגומים'!E76) ->  | E76: =IF(B76="","",IF(VLOOKUP(B76,[1]WQ_UnitID!B:C,2,FALSE)=0,"",VLOOKUP(B76,[1]WQ_UnitID!B:C,2,FALSE))) ->  | F76: =IF(B76="","",[1]ExcLimit!$B$8) ->  | G76: =IF(B76="","",IF(D76=[1]Index!$R$24,"",[1]ExcLimit!$C$8)) ->  | H76: =IF(B76="","",[1]ExcLimit!$D$8) ->  | I76: =IF(B76="","",[1]ExcLimit!$E$8) ->  | J76: =IFERROR(VLOOKUP(B76,[1]ExcCalc!O:S,2,FALSE),"") ->  | K76: =IFERROR(VLOOKUP(B76,[1]ExcCalc!O:S,3,FALSE),"") ->  | L76: =IFERROR(VLOOKUP(B76,[1]ExcCalc!O:S,4,FALSE),"") ->  | M76: =IFERROR(VLOOKUP(B76,[1]ExcCalc!O:S,5,FALSE),"") -> 
B77: =IF(ISNUMBER('[1]דיווח דיגומים'!B77),'[1]דיווח דיגומים'!B77,"") ->  | C77: =IF(ISNUMBER('[1]דיווח דיגומים'!B77),'[1]דיווח דיגומים'!C77,"") ->  | D77: =IF('[1]דיווח דיגומים'!E77="","",'[1]דיווח דיגומים'!E77) ->  | E77: =IF(B77="","",IF(VLOOKUP(B77,[1]WQ_UnitID!B:C,2,FALSE)=0,"",VLOOKUP(B77,[1]WQ_UnitID!B:C,2,FALSE))) ->  | F77: =IF(B77="","",[1]ExcLimit!$B$8) ->  | G77: =IF(B77="","",IF(D77=[1]Index!$R$24,"",[1]ExcLimit!$C$8)) ->  | H77: =IF(B77="","",[1]ExcLimit!$D$8) ->  | I77: =IF(B77="","",[1]ExcLimit!$E$8) ->  | J77: =IFERROR(VLOOKUP(B77,[1]ExcCalc!O:S,2,FALSE),"") ->  | K77: =IFERROR(VLOOKUP(B77,[1]ExcCalc!O:S,3,FALSE),"") ->  | L77: =IFERROR(VLOOKUP(B77,[1]ExcCalc!O:S,4,FALSE),"") ->  | M77: =IFERROR(VLOOKUP(B77,[1]ExcCalc!O:S,5,FALSE),"") -> 
B78: =IF(ISNUMBER('[1]דיווח דיגומים'!B78),'[1]דיווח דיגומים'!B78,"") ->  | C78: =IF(ISNUMBER('[1]דיווח דיגומים'!B78),'[1]דיווח דיגומים'!C78,"") ->  | D78: =IF('[1]דיווח דיגומים'!E78="","",'[1]דיווח דיגומים'!E78) ->  | E78: =IF(B78="","",IF(VLOOKUP(B78,[1]WQ_UnitID!B:C,2,FALSE)=0,"",VLOOKUP(B78,[1]WQ_UnitID!B:C,2,FALSE))) ->  | F78: =IF(B78="","",[1]ExcLimit!$B$8) ->  | G78: =IF(B78="","",IF(D78=[1]Index!$R$24,"",[1]ExcLimit!$C$8)) ->  | H78: =IF(B78="","",[1]ExcLimit!$D$8) ->  | I78: =IF(B78="","",[1]ExcLimit!$E$8) ->  | J78: =IFERROR(VLOOKUP(B78,[1]ExcCalc!O:S,2,FALSE),"") ->  | K78: =IFERROR(VLOOKUP(B78,[1]ExcCalc!O:S,3,FALSE),"") ->  | L78: =IFERROR(VLOOKUP(B78,[1]ExcCalc!O:S,4,FALSE),"") ->  | M78: =IFERROR(VLOOKUP(B78,[1]ExcCalc!O:S,5,FALSE),"") -> 
B79: =IF(ISNUMBER('[1]דיווח דיגומים'!B79),'[1]דיווח דיגומים'!B79,"") ->  | C79: =IF(ISNUMBER('[1]דיווח דיגומים'!B79),'[1]דיווח דיגומים'!C79,"") ->  | D79: =IF('[1]דיווח דיגומים'!E79="","",'[1]דיווח דיגומים'!E79) ->  | E79: =IF(B79="","",IF(VLOOKUP(B79,[1]WQ_UnitID!B:C,2,FALSE)=0,"",VLOOKUP(B79,[1]WQ_UnitID!B:C,2,FALSE))) ->  | F79: =IF(B79="","",[1]ExcLimit!$B$8) ->  | G79: =IF(B79="","",IF(D79=[1]Index!$R$24,"",[1]ExcLimit!$C$8)) ->  | H79: =IF(B79="","",[1]ExcLimit!$D$8) ->  | I79: =IF(B79="","",[1]ExcLimit!$E$8) ->  | J79: =IFERROR(VLOOKUP(B79,[1]ExcCalc!O:S,2,FALSE),"") ->  | K79: =IFERROR(VLOOKUP(B79,[1]ExcCalc!O:S,3,FALSE),"") ->  | L79: =IFERROR(VLOOKUP(B79,[1]ExcCalc!O:S,4,FALSE),"") ->  | M79: =IFERROR(VLOOKUP(B79,[1]ExcCalc!O:S,5,FALSE),"") -> 
B80: =IF(ISNUMBER('[1]דיווח דיגומים'!B80),'[1]דיווח דיגומים'!B80,"") ->  | C80: =IF(ISNUMBER('[1]דיווח דיגומים'!B80),'[1]דיווח דיגומים'!C80,"") ->  | D80: =IF('[1]דיווח דיגומים'!E80="","",'[1]דיווח דיגומים'!E80) ->  | E80: =IF(B80="","",IF(VLOOKUP(B80,[1]WQ_UnitID!B:C,2,FALSE)=0,"",VLOOKUP(B80,[1]WQ_UnitID!B:C,2,FALSE))) ->  | F80: =IF(B80="","",[1]ExcLimit!$B$8) ->  | G80: =IF(B80="","",IF(D80=[1]Index!$R$24,"",[1]ExcLimit!$C$8)) ->  | H80: =IF(B80="","",[1]ExcLimit!$D$8) ->  | I80: =IF(B80="","",[1]ExcLimit!$E$8) ->  | J80: =IFERROR(VLOOKUP(B80,[1]ExcCalc!O:S,2,FALSE),"") ->  | K80: =IFERROR(VLOOKUP(B80,[1]ExcCalc!O:S,3,FALSE),"") ->  | L80: =IFERROR(VLOOKUP(B80,[1]ExcCalc!O:S,4,FALSE),"") ->  | M80: =IFERROR(VLOOKUP(B80,[1]ExcCalc!O:S,5,FALSE),"") -> 
B81: =IF(ISNUMBER('[1]דיווח דיגומים'!B81),'[1]דיווח דיגומים'!B81,"") ->  | C81: =IF(ISNUMBER('[1]דיווח דיגומים'!B81),'[1]דיווח דיגומים'!C81,"") ->  | D81: =IF('[1]דיווח דיגומים'!E81="","",'[1]דיווח דיגומים'!E81) ->  | E81: =IF(B81="","",IF(VLOOKUP(B81,[1]WQ_UnitID!B:C,2,FALSE)=0,"",VLOOKUP(B81,[1]WQ_UnitID!B:C,2,FALSE))) ->  | F81: =IF(B81="","",[1]ExcLimit!$B$8) ->  | G81: =IF(B81="","",IF(D81=[1]Index!$R$24,"",[1]ExcLimit!$C$8)) ->  | H81: =IF(B81="","",[1]ExcLimit!$D$8) ->  | I81: =IF(B81="","",[1]ExcLimit!$E$8) ->  | J81: =IFERROR(VLOOKUP(B81,[1]ExcCalc!O:S,2,FALSE),"") ->  | K81: =IFERROR(VLOOKUP(B81,[1]ExcCalc!O:S,3,FALSE),"") ->  | L81: =IFERROR(VLOOKUP(B81,[1]ExcCalc!O:S,4,FALSE),"") ->  | M81: =IFERROR(VLOOKUP(B81,[1]ExcCalc!O:S,5,FALSE),"") -> 
B82: =IF(ISNUMBER('[1]דיווח דיגומים'!B82),'[1]דיווח דיגומים'!B82,"") ->  | C82: =IF(ISNUMBER('[1]דיווח דיגומים'!B82),'[1]דיווח דיגומים'!C82,"") ->  | D82: =IF('[1]דיווח דיגומים'!E82="","",'[1]דיווח דיגומים'!E82) ->  | E82: =IF(B82="","",IF(VLOOKUP(B82,[1]WQ_UnitID!B:C,2,FALSE)=0,"",VLOOKUP(B82,[1]WQ_UnitID!B:C,2,FALSE))) ->  | F82: =IF(B82="","",[1]ExcLimit!$B$8) ->  | G82: =IF(B82="","",IF(D82=[1]Index!$R$24,"",[1]ExcLimit!$C$8)) ->  | H82: =IF(B82="","",[1]ExcLimit!$D$8) ->  | I82: =IF(B82="","",[1]ExcLimit!$E$8) ->  | J82: =IFERROR(VLOOKUP(B82,[1]ExcCalc!O:S,2,FALSE),"") ->  | K82: =IFERROR(VLOOKUP(B82,[1]ExcCalc!O:S,3,FALSE),"") ->  | L82: =IFERROR(VLOOKUP(B82,[1]ExcCalc!O:S,4,FALSE),"") ->  | M82: =IFERROR(VLOOKUP(B82,[1]ExcCalc!O:S,5,FALSE),"") -> 
B83: =IF(ISNUMBER('[1]דיווח דיגומים'!B83),'[1]דיווח דיגומים'!B83,"") ->  | C83: =IF(ISNUMBER('[1]דיווח דיגומים'!B83),'[1]דיווח דיגומים'!C83,"") ->  | D83: =IF('[1]דיווח דיגומים'!E83="","",'[1]דיווח דיגומים'!E83) ->  | E83: =IF(B83="","",IF(VLOOKUP(B83,[1]WQ_UnitID!B:C,2,FALSE)=0,"",VLOOKUP(B83,[1]WQ_UnitID!B:C,2,FALSE))) ->  | F83: =IF(B83="","",[1]ExcLimit!$B$8) ->  | G83: =IF(B83="","",IF(D83=[1]Index!$R$24,"",[1]ExcLimit!$C$8)) ->  | H83: =IF(B83="","",[1]ExcLimit!$D$8) ->  | I83: =IF(B83="","",[1]ExcLimit!$E$8) ->  | J83: =IFERROR(VLOOKUP(B83,[1]ExcCalc!O:S,2,FALSE),"") ->  | K83: =IFERROR(VLOOKUP(B83,[1]ExcCalc!O:S,3,FALSE),"") ->  | L83: =IFERROR(VLOOKUP(B83,[1]ExcCalc!O:S,4,FALSE),"") ->  | M83: =IFERROR(VLOOKUP(B83,[1]ExcCalc!O:S,5,FALSE),"") -> 
B84: =IF(ISNUMBER('[1]דיווח דיגומים'!B84),'[1]דיווח דיגומים'!B84,"") ->  | C84: =IF(ISNUMBER('[1]דיווח דיגומים'!B84),'[1]דיווח דיגומים'!C84,"") ->  | D84: =IF('[1]דיווח דיגומים'!E84="","",'[1]דיווח דיגומים'!E84) ->  | E84: =IF(B84="","",IF(VLOOKUP(B84,[1]WQ_UnitID!B:C,2,FALSE)=0,"",VLOOKUP(B84,[1]WQ_UnitID!B:C,2,FALSE))) ->  | F84: =IF(B84="","",[1]ExcLimit!$B$8) ->  | G84: =IF(B84="","",IF(D84=[1]Index!$R$24,"",[1]ExcLimit!$C$8)) ->  | H84: =IF(B84="","",[1]ExcLimit!$D$8) ->  | I84: =IF(B84="","",[1]ExcLimit!$E$8) ->  | J84: =IFERROR(VLOOKUP(B84,[1]ExcCalc!O:S,2,FALSE),"") ->  | K84: =IFERROR(VLOOKUP(B84,[1]ExcCalc!O:S,3,FALSE),"") ->  | L84: =IFERROR(VLOOKUP(B84,[1]ExcCalc!O:S,4,FALSE),"") ->  | M84: =IFERROR(VLOOKUP(B84,[1]ExcCalc!O:S,5,FALSE),"") -> 
B85: =IF(ISNUMBER('[1]דיווח דיגומים'!B85),'[1]דיווח דיגומים'!B85,"") ->  | C85: =IF(ISNUMBER('[1]דיווח דיגומים'!B85),'[1]דיווח דיגומים'!C85,"") ->  | D85: =IF('[1]דיווח דיגומים'!E85="","",'[1]דיווח דיגומים'!E85) ->  | E85: =IF(B85="","",IF(VLOOKUP(B85,[1]WQ_UnitID!B:C,2,FALSE)=0,"",VLOOKUP(B85,[1]WQ_UnitID!B:C,2,FALSE))) ->  | F85: =IF(B85="","",[1]ExcLimit!$B$8) ->  | G85: =IF(B85="","",IF(D85=[1]Index!$R$24,"",[1]ExcLimit!$C$8)) ->  | H85: =IF(B85="","",[1]ExcLimit!$D$8) ->  | I85: =IF(B85="","",[1]ExcLimit!$E$8) ->  | J85: =IFERROR(VLOOKUP(B85,[1]ExcCalc!O:S,2,FALSE),"") ->  | K85: =IFERROR(VLOOKUP(B85,[1]ExcCalc!O:S,3,FALSE),"") ->  | L85: =IFERROR(VLOOKUP(B85,[1]ExcCalc!O:S,4,FALSE),"") ->  | M85: =IFERROR(VLOOKUP(B85,[1]ExcCalc!O:S,5,FALSE),"") -> 
B86: =IF(ISNUMBER('[1]דיווח דיגומים'!B86),'[1]דיווח דיגומים'!B86,"") ->  | C86: =IF(ISNUMBER('[1]דיווח דיגומים'!B86),'[1]דיווח דיגומים'!C86,"") ->  | D86: =IF('[1]דיווח דיגומים'!E86="","",'[1]דיווח דיגומים'!E86) ->  | E86: =IF(B86="","",IF(VLOOKUP(B86,[1]WQ_UnitID!B:C,2,FALSE)=0,"",VLOOKUP(B86,[1]WQ_UnitID!B:C,2,FALSE))) ->  | F86: =IF(B86="","",[1]ExcLimit!$B$8) ->  | G86: =IF(B86="","",IF(D86=[1]Index!$R$24,"",[1]ExcLimit!$C$8)) ->  | H86: =IF(B86="","",[1]ExcLimit!$D$8) ->  | I86: =IF(B86="","",[1]ExcLimit!$E$8) ->  | J86: =IFERROR(VLOOKUP(B86,[1]ExcCalc!O:S,2,FALSE),"") ->  | K86: =IFERROR(VLOOKUP(B86,[1]ExcCalc!O:S,3,FALSE),"") ->  | L86: =IFERROR(VLOOKUP(B86,[1]ExcCalc!O:S,4,FALSE),"") ->  | M86: =IFERROR(VLOOKUP(B86,[1]ExcCalc!O:S,5,FALSE),"") -> 
B87: =IF(ISNUMBER('[1]דיווח דיגומים'!B87),'[1]דיווח דיגומים'!B87,"") ->  | C87: =IF(ISNUMBER('[1]דיווח דיגומים'!B87),'[1]דיווח דיגומים'!C87,"") ->  | D87: =IF('[1]דיווח דיגומים'!E87="","",'[1]דיווח דיגומים'!E87) ->  | E87: =IF(B87="","",IF(VLOOKUP(B87,[1]WQ_UnitID!B:C,2,FALSE)=0,"",VLOOKUP(B87,[1]WQ_UnitID!B:C,2,FALSE))) ->  | F87: =IF(B87="","",[1]ExcLimit!$B$8) ->  | G87: =IF(B87="","",IF(D87=[1]Index!$R$24,"",[1]ExcLimit!$C$8)) ->  | H87: =IF(B87="","",[1]ExcLimit!$D$8) ->  | I87: =IF(B87="","",[1]ExcLimit!$E$8) ->  | J87: =IFERROR(VLOOKUP(B87,[1]ExcCalc!O:S,2,FALSE),"") ->  | K87: =IFERROR(VLOOKUP(B87,[1]ExcCalc!O:S,3,FALSE),"") ->  | L87: =IFERROR(VLOOKUP(B87,[1]ExcCalc!O:S,4,FALSE),"") ->  | M87: =IFERROR(VLOOKUP(B87,[1]ExcCalc!O:S,5,FALSE),"") -> 
B88: =IF(ISNUMBER('[1]דיווח דיגומים'!B88),'[1]דיווח דיגומים'!B88,"") ->  | C88: =IF(ISNUMBER('[1]דיווח דיגומים'!B88),'[1]דיווח דיגומים'!C88,"") ->  | D88: =IF('[1]דיווח דיגומים'!E88="","",'[1]דיווח דיגומים'!E88) ->  | E88: =IF(B88="","",IF(VLOOKUP(B88,[1]WQ_UnitID!B:C,2,FALSE)=0,"",VLOOKUP(B88,[1]WQ_UnitID!B:C,2,FALSE))) ->  | F88: =IF(B88="","",[1]ExcLimit!$B$8) ->  | G88: =IF(B88="","",IF(D88=[1]Index!$R$24,"",[1]ExcLimit!$C$8)) ->  | H88: =IF(B88="","",[1]ExcLimit!$D$8) ->  | I88: =IF(B88="","",[1]ExcLimit!$E$8) ->  | J88: =IFERROR(VLOOKUP(B88,[1]ExcCalc!O:S,2,FALSE),"") ->  | K88: =IFERROR(VLOOKUP(B88,[1]ExcCalc!O:S,3,FALSE),"") ->  | L88: =IFERROR(VLOOKUP(B88,[1]ExcCalc!O:S,4,FALSE),"") ->  | M88: =IFERROR(VLOOKUP(B88,[1]ExcCalc!O:S,5,FALSE),"") -> 
B89: =IF(ISNUMBER('[1]דיווח דיגומים'!B89),'[1]דיווח דיגומים'!B89,"") ->  | C89: =IF(ISNUMBER('[1]דיווח דיגומים'!B89),'[1]דיווח דיגומים'!C89,"") ->  | D89: =IF('[1]דיווח דיגומים'!E89="","",'[1]דיווח דיגומים'!E89) ->  | E89: =IF(B89="","",IF(VLOOKUP(B89,[1]WQ_UnitID!B:C,2,FALSE)=0,"",VLOOKUP(B89,[1]WQ_UnitID!B:C,2,FALSE))) ->  | F89: =IF(B89="","",[1]ExcLimit!$B$8) ->  | G89: =IF(B89="","",IF(D89=[1]Index!$R$24,"",[1]ExcLimit!$C$8)) ->  | H89: =IF(B89="","",[1]ExcLimit!$D$8) ->  | I89: =IF(B89="","",[1]ExcLimit!$E$8) ->  | J89: =IFERROR(VLOOKUP(B89,[1]ExcCalc!O:S,2,FALSE),"") ->  | K89: =IFERROR(VLOOKUP(B89,[1]ExcCalc!O:S,3,FALSE),"") ->  | L89: =IFERROR(VLOOKUP(B89,[1]ExcCalc!O:S,4,FALSE),"") ->  | M89: =IFERROR(VLOOKUP(B89,[1]ExcCalc!O:S,5,FALSE),"") -> 
B90: =IF(ISNUMBER('[1]דיווח דיגומים'!B90),'[1]דיווח דיגומים'!B90,"") ->  | C90: =IF(ISNUMBER('[1]דיווח דיגומים'!B90),'[1]דיווח דיגומים'!C90,"") ->  | D90: =IF('[1]דיווח דיגומים'!E90="","",'[1]דיווח דיגומים'!E90) ->  | E90: =IF(B90="","",IF(VLOOKUP(B90,[1]WQ_UnitID!B:C,2,FALSE)=0,"",VLOOKUP(B90,[1]WQ_UnitID!B:C,2,FALSE))) ->  | F90: =IF(B90="","",[1]ExcLimit!$B$8) ->  | G90: =IF(B90="","",IF(D90=[1]Index!$R$24,"",[1]ExcLimit!$C$8)) ->  | H90: =IF(B90="","",[1]ExcLimit!$D$8) ->  | I90: =IF(B90="","",[1]ExcLimit!$E$8) ->  | J90: =IFERROR(VLOOKUP(B90,[1]ExcCalc!O:S,2,FALSE),"") ->  | K90: =IFERROR(VLOOKUP(B90,[1]ExcCalc!O:S,3,FALSE),"") ->  | L90: =IFERROR(VLOOKUP(B90,[1]ExcCalc!O:S,4,FALSE),"") ->  | M90: =IFERROR(VLOOKUP(B90,[1]ExcCalc!O:S,5,FALSE),"") -> 
